Workbook

Sheet NavHistory
B1: Peter Partnership Fund | S1: Berkshire's % of NAV | T1: Other Stocks as % of NAV | U1: Benchmarks | AJ1: =CEILING(MAX(AK4:AL1105),0.5) -> 24.0 | AM1: =CEILING(MAX(AN4:AO1105),5) -> 230.0
B2: Ordinary Units | J2: Elite Units | R2: All Units | U2: Berkshire Hathaway Class B Stock | AD2: S&P 500 Total Return Index | AJ2: =FLOOR(MIN(AK4:AL1105),1) -> 5.0 | AK2: Ordinary Units | AM2: =FLOOR(MIN(AN4:AO1105),5) -> 55.0 | AN2: Elite Units
A3: Date | B3: NAV per Unit | C3: % Inc. | D3: % Since Launched | E3: Cal YTD % Inc. | F3: Ending 31st March % Inc. | G3: High Water Mark | H3: Equalisation Factor | I3: Fully Equalised ? | J3: NAV per Unit | K3: % Inc. | L3: % Since Launched | M3: Cal YTD % Inc. | N3: Ending 31st March % Inc. | O3: High Water Mark | P3: Equalisation Factor | Q3: Fully Equalised ? | R3: NAV Reaches High Water Mark | U3: Brk.B Price | V3: Book Value | W3: Highest Book Value | X3: Price/ Book | Y3: Price / Highest Book | Z3: % Inc. | AA3: % Since Launched | AB3: Cal YTD % Inc. | AC3: Ending 31st March % Inc. | AD3: Close | AE3: % Inc. | AF3: % Since Launched | AG3: Cal YTD % Inc. | AH3: Ending 31st March % Inc. | AJ3: Date | AK3: NAV per Unit | AL3: High Water Mark | AM3: Date | AN3: NAV per Unit | AO3: High Water Mark
A4: 2017-08-31 | B4: 10.0000 | D4: 0.0% | G4: =B4 -> 10.0000 | H4: 1.0000 | R4: =IF(G4=B4,"Yes","No") -> Yes | U4: $181.16 | V4: 121.88 | W4: =V4 -> 121.88 | X4: =U4/V4 -> 1.49 | Y4: =U4/W4 -> 1.49 | AA4: 0.0% | AD4: $4,789.18 | AF4: 0.0% | AJ4: =A4 -> 2017-08-31 | AK4: =IF(AJ4="","",VLOOKUP(AJ4,A:B,2,0)) -> 10.00000000 | AL4: =IF(AJ4="","",IF(AND(VLOOKUP(AJ4,A:G,7,0)=AK4,MOD(ROW(),2)=1),AL3*1.06^(1/12),VLOOKUP(AJ4,A:G,7,0))) -> 10.00000000
A5: 2017-09-29 | B5: 10.5212 | C5: =B5/B4-1 -> 5.2% | D5: =B5/$B$4-1 -> 5.2% | E5: =B5/$B$4-1 -> 5.2% | F5: =D5 -> 5.2% | G5: =MAX(B5,G4*1.06^(1/12)) -> 10.5212 | H5: =IF($R5="Yes",1,IF($A6="",1,INDEX('EQ Factor Calc Ord. Units'!$A$1:$FA$682,ROW(),LOOKUP(2,1/('EQ Factor Calc Ord. Units'!$A5:$FA5<>""),COLUMN('EQ Factor Calc Ord. Units'!$A5:$FA5))-1))) -> 1.0000 | I5: =IF($R5="Yes","Yes",IF($A6="",$R5,LOOKUP(2,1/('EQ Factor Calc Ord. Units'!$A5:$FA5<>""),'EQ Factor Calc Ord. Units'!$A5:$FA5))) -> Yes | J5: $100.0000 | O5: 100.0000 | P5: 1.0000 | R5: Yes | U5: $183.32 | V5: 121.88 | W5: =MAX(V5,W4) -> 121.88 | X5: 1.50 | Y5: =U5/W5 -> 1.50 | Z5: =U5/U4-1 -> 1.2% | AA5: =U5/$U$4-1 -> 1.2% | AB5: =U5/$U$4-1 -> 1.2% | AC5: =U5/$U$4-1 -> 1.2% | AD5: $4,887.97 | AE5: =AD5/AD4-1 -> 2.1% | AF5: =AD5/$AD$4-1 -> 2.1% | AG5: =AD5/$AD$4-1 -> 2.1% | AH5: =AD5/$AD$4-1 -> 2.1% | AJ5: =IF(INDEX(A:A,5+INT((ROW()-5)/2),1)="","",INDEX(A:A,5+INT((ROW()-5)/2),1)) -> 2017-09-29 | AK5: 10.52118829 | AL5: 10.04867551
A6: 2017-10-31 | B6: 10.5577 | C6: 0.3% | D6: =B6/$B$4-1 -> 5.6% | E6: =B6/$B$4-1 -> 5.6% | F6: =D6 -> 5.6% | G6: 10.5724 | H6: =IF($R6="Yes",1,IF($A7="",1,INDEX('EQ Factor Calc Ord. Units'!$A$1:$FA$682,ROW(),LOOKUP(2,1/('EQ Factor Calc Ord. Units'!$A6:$FA6<>""),COLUMN('EQ Factor Calc Ord. Units'!$A6:$FA6))-1))) -> 0.9997 | I6: =IF($R6="Yes","Yes",IF($A7="",$R6,LOOKUP(2,1/('EQ Factor Calc Ord. Units'!$A6:$FA6<>""),'EQ Factor Calc Ord. Units'!$A6:$FA6))) -> Yes | J6: $100.3472 | K6: =J6/J5-1 -> 0.3% | L6: =J6/$J$5-1 -> 0.3% | M6: =J6/$J$5-1 -> 0.3% | N6: =J6/$J$5-1 -> 0.3% | O6: =MAX(J6,O5*1.06^(1/12)) -> 100.4868 | P6: =IF($R6="Yes",1,IF($A7="",1,INDEX('EQ Factor Calc Elite Units'!$A$1:$FA$682,ROW(),LOOKUP(2,1/('EQ Factor Calc Elite Units'!$A6:$FA6<>""),COLUMN('EQ Factor Calc Elite Units'!$A6:$FA6))-1))) -> 0.9998 | Q6: =IF($R6="Yes","Yes",IF($A7="",$R6,LOOKUP(2,1/('EQ Factor Calc Elite Units'!$A6:$FA6<>""),'EQ Factor Calc Elite Units'!$A6:$FA6))) -> Yes | R6: No | U6: $186.94 | V6: 121.88 | W6: =MAX(V6,W5) -> 121.88 | X6: 1.53 | Y6: 1.53 | Z6: =U6/U5-1 -> 2.0% | AA6: =U6/$U$4-1 -> 3.2% | AB6: =U6/$U$4-1 -> 3.2% | AC6: 3.2% | AD6: $5,002.03 | AE6: =AD6/AD5-1 -> 2.3% | AF6: =AD6/$AD$4-1 -> 4.4% | AG6: =AD6/$AD$4-1 -> 4.4% | AH6: 4.4% | AJ6: 2017-09-29 | AK6: 10.52118829 | AL6: 10.52118829 | AM6: =IF(INDEX(A:A,5+INT((ROW()-5)/2),1)="","",INDEX(A:A,5+INT((ROW()-5)/2),1)) -> 2017-09-29 | AN6: =IF(AM6="","",VLOOKUP(AM6,A:J,10,0)) -> 100.00000000 | AO6: =IF(AM6="","",IF(AND(VLOOKUP(AM6,A:O,15,0)=AN6,MOD(ROW(),2)=1),AO5*1.06^(1/12),VLOOKUP(AM6,A:O,15,0))) -> 100.00000000
A7: 2017-11-30 | B7: 10.8181 | C7: 2.5% | D7: 8.2% | E7: =B7/$B$4-1 -> 8.2% | F7: 8.2% | G7: 10.8181 | H7: =IF($R7="Yes",1,IF($A8="",1,INDEX('EQ Factor Calc Ord. Units'!$A$1:$FA$682,ROW(),LOOKUP(2,1/('EQ Factor Calc Ord. Units'!$A7:$FA7<>""),COLUMN('EQ Factor Calc Ord. Units'!$A7:$FA7))-1))) -> 1.0000 | I7: =IF($R7="Yes","Yes",IF($A8="",$R7,LOOKUP(2,1/('EQ Factor Calc Ord. Units'!$A7:$FA7<>""),'EQ Factor Calc Ord. Units'!$A7:$FA7))) -> Yes | J7: $102.9148 | K7: =J7/J6-1 -> 2.6% | L7: =J7/$J$5-1 -> 2.9% | M7: =J7/$J$5-1 -> 2.9% | N7: 2.9% | O7: =MAX(J7,O6*1.06^(1/12)) -> 102.9148 | P7: =IF($R7="Yes",1,IF($A8="",1,INDEX('EQ Factor Calc Elite Units'!$A$1:$FA$682,ROW(),LOOKUP(2,1/('EQ Factor Calc Elite Units'!$A7:$FA7<>""),COLUMN('EQ Factor Calc Elite Units'!$A7:$FA7))-1))) -> 1.0000 | Q7: =IF($R7="Yes","Yes",IF($A8="",$R7,LOOKUP(2,1/('EQ Factor Calc Elite Units'!$A7:$FA7<>""),'EQ Factor Calc Elite Units'!$A7:$FA7))) -> Yes | R7: Yes | U7: $193.01 | V7: 124.96 | W7: 124.96 | X7: 1.54 | Y7: 1.54 | Z7: 3.2% | AA7: 6.5% | AB7: =U7/$U$4-1 -> 6.5% | AC7: 6.5% | AD7: $5,155.44 | AE7: 3.1% | AF7: 7.6% | AG7: =AD7/$AD$4-1 -> 7.6% | AH7: 7.6% | AJ7: 2017-10-31 | AK7: 10.55771391 | AL7: 10.57240071 | AM7: 2017-10-31 | AN7: 100.34716240 | AO7: 100.48675506
A8: 2017-12-29 | B8: 11.0640 | C8: 2.3% | D8: 10.6% | E8: =B8/$B$4-1 -> 10.6% | F8: 10.6% | G8: 11.0640 | H8: =IF($R8="Yes",1,IF($A9="",1,INDEX('EQ Factor Calc Ord. Units'!$A$1:$FA$682,ROW(),LOOKUP(2,1/('EQ Factor Calc Ord. Units'!$A8:$FA8<>""),COLUMN('EQ Factor Calc Ord. Units'!$A8:$FA8))-1))) -> 1.0000 | I8: =IF($R8="Yes","Yes",IF($A9="",$R8,LOOKUP(2,1/('EQ Factor Calc Ord. Units'!$A8:$FA8<>""),'EQ Factor Calc Ord. Units'!$A8:$FA8))) -> Yes | J8: $105.3456 | K8: 2.4% | L8: 5.3% | M8: =J8/$J$5-1 -> 5.3% | N8: 5.3% | O8: 105.3456 | P8: =IF($R8="Yes",1,IF($A9="",1,INDEX('EQ Factor Calc Elite Units'!$A$1:$FA$682,ROW(),LOOKUP(2,1/('EQ Factor Calc Elite Units'!$A8:$FA8<>""),COLUMN('EQ Factor Calc Elite Units'!$A8:$FA8))-1))) -> 1.0000 | Q8: =IF($R8="Yes","Yes",IF($A9="",$R8,LOOKUP(2,1/('EQ Factor Calc Elite Units'!$A8:$FA8<>""),'EQ Factor Calc Elite Units'!$A8:$FA8))) -> Yes | R8: Yes | U8: $198.22 | V8: 138.99 | W8: 138.99 | X8: 1.43 | Y8: 1.43 | Z8: 2.7% | AA8: 9.4% | AB8: =U8/$U$4-1 -> 9.4% | AC8: 9.4% | AD8: $5,212.76 | AE8: 1.1% | AF8: 8.8% | AG8: =AD8/$AD$4-1 -> 8.8% | AH8: 8.8% | AJ8: 2017-10-31 | AK8: 10.55771391 | AL8: 10.57240071 | AM8: 2017-10-31 | AN8: 100.34716240 | AO8: 100.48675506
A9: 2018-01-31 | B9: 11.5826 | C9: 4.7% | D9: 15.8% | E9: =B9/$B$8-1 -> 4.7% | F9: 15.8% | G9: 11.5826 | H9: =IF($R9="Yes",1,IF($A10="",1,INDEX('EQ Factor Calc Ord. Units'!$A$1:$FA$682,ROW(),LOOKUP(2,1/('EQ Factor Calc Ord. Units'!$A9:$FA9<>""),COLUMN('EQ Factor Calc Ord. Units'!$A9:$FA9))-1))) -> 1.0000 | I9: =IF($R9="Yes","Yes",IF($A10="",$R9,LOOKUP(2,1/('EQ Factor Calc Ord. Units'!$A9:$FA9<>""),'EQ Factor Calc Ord. Units'!$A9:$FA9))) -> Yes | J9: $110.5043 | K9: 4.9% | L9: 10.5% | M9: =J9/$J$8-1 -> 4.9% | N9: 10.5% | O9: 110.5043 | P9: =IF($R9="Yes",1,IF($A10="",1,INDEX('EQ Factor Calc Elite Units'!$A$1:$FA$682,ROW(),LOOKUP(2,1/('EQ Factor Calc Elite Units'!$A9:$FA9<>""),COLUMN('EQ Factor Calc Elite Units'!$A9:$FA9))-1))) -> 1.0000 | Q9: =IF($R9="Yes","Yes",IF($A10="",$R9,LOOKUP(2,1/('EQ Factor Calc Elite Units'!$A9:$FA9<>""),'EQ Factor Calc Elite Units'!$A9:$FA9))) -> Yes | R9: Yes | U9: $214.38 | V9: 138.99 | W9: 138.99 | X9: 1.54 | Y9: 1.54 | Z9: 8.2% | AA9: 18.3% | AB9: =U9/$U$8-1 -> 8.2% | AC9: 18.3% | AD9: $5,511.21 | AE9: 5.7% | AF9: 15.1% | AG9: =AD9/$AD$8-1 -> 5.7% | AH9: 15.1% | AJ9: 2017-11-30 | AK9: 10.81814950 | AL9: 10.62386240 | AM9: 2017-11-30 | AN9: 102.9148377 | AO9: 100.97587942
A10: 2018-02-28 | B10: 11.5329 | C10: -0.4% | D10: 15.3% | E10: 4.2% | F10: 15.3% | G10: 11.6389 | H10: =IF($R10="Yes",1,IF($A11="",1,INDEX('EQ Factor Calc Ord. Units'!$A$1:$FA$682,ROW(),LOOKUP(2,1/('EQ Factor Calc Ord. Units'!$A10:$FA10<>""),COLUMN('EQ Factor Calc Ord. Units'!$A10:$FA10))-1))) -> 0.9983 | I10: =IF($R10="Yes","Yes",IF($A11="",$R10,LOOKUP(2,1/('EQ Factor Calc Ord. Units'!$A10:$FA10<>""),'EQ Factor Calc Ord. Units'!$A10:$FA10))) -> Yes | J10: $110.0302 | K10: -0.4% | L10: 10.0% | M10: 4.4% | N10: 10.0% | O10: 111.0422 | P10: =IF($R10="Yes",1,IF($A11="",1,INDEX('EQ Factor Calc Elite Units'!$A$1:$FA$682,ROW(),LOOKUP(2,1/('EQ Factor Calc Elite Units'!$A10:$FA10<>""),COLUMN('EQ Factor Calc Elite Units'!$A10:$FA10))-1))) -> 0.9986 | Q10: =IF($R10="Yes","Yes",IF($A11="",$R10,LOOKUP(2,1/('EQ Factor Calc Elite Units'!$A10:$FA10<>""),'EQ Factor Calc Elite Units'!$A10:$FA10))) -> Yes | R10: No | U10: $207.20 | V10: 141.17 | W10: 141.17 | X10: 1.47 | Y10: 1.47 | Z10: -3.3% | AA10: 14.4% | AB10: 4.5% | AC10: 14.4% | AD10: $5,308.09 | AE10: -3.7% | AF10: 10.8% | AG10: 1.8% | AH10: 10.8% | AJ10: 2017-11-30 | AK10: 10.81814950 | AL10: 10.81814950 | AM10: 2017-11-30 | AN10: 102.9148377 | AO10: 102.9148377
A11: 2018-03-29 | B11: 11.1501 | C11: -3.3% | D11: 11.5% | E11: 0.8% | F11: 11.5% | G11: 11.6956 | H11: =IF($R11="Yes",1,IF($A12="",1,INDEX('EQ Factor Calc Ord. Units'!$A$1:$FA$682,ROW(),LOOKUP(2,1/('EQ Factor Calc Ord. Units'!$A11:$FA11<>""),COLUMN('EQ Factor Calc Ord. Units'!$A11:$FA11))-1))) -> 0.9911 | I11: =IF($R11="Yes","Yes",IF($A12="",$R11,LOOKUP(2,1/('EQ Factor Calc Ord. Units'!$A11:$FA11<>""),'EQ Factor Calc Ord. Units'!$A11:$FA11))) -> Yes | J11: $106.3787 | K11: -3.3% | L11: =J11/$J$5-1 -> 6.4% | M11: 1.0% | N11: 6.4% | O11: 111.5827 | P11: =IF($R11="Yes",1,IF($A12="",1,INDEX('EQ Factor Calc Elite Units'!$A$1:$FA$682,ROW(),LOOKUP(2,1/('EQ Factor Calc Elite Units'!$A11:$FA11<>""),COLUMN('EQ Factor Calc Elite Units'!$A11:$FA11))-1))) -> 0.9929 | Q11: =IF($R11="Yes","Yes",IF($A12="",$R11,LOOKUP(2,1/('EQ Factor Calc Elite Units'!$A11:$FA11<>""),'EQ Factor Calc Elite Units'!$A11:$FA11))) -> Yes | R11: No | U11: $199.48 | V11: 141.17 | W11: 141.17 | X11: 1.41 | Y11: 1.41 | Z11: -3.7% | AA11: 10.1% | AB11: 0.6% | AC11: 10.1% | AD11: $5,173.19 | AE11: -2.5% | AF11: 8.0% | AG11: -0.8% | AH11: 8.0% | AJ11: 2017-12-29 | AK11: 11.06400252 | AL11: 10.87080739 | AM11: 2017-12-29 | AN11: 105.3455728 | AO11: 103.41578091
A12: 2018-04-30 | B12: 10.6338 | C12: -4.6% | D12: 6.3% | E12: -3.9% | F12: =B12/$B$11-1 -> -4.6% | G12: 11.7525 | H12: =IF($R12="Yes",1,IF($A13="",1,INDEX('EQ Factor Calc Ord. Units'!$A$1:$FA$682,ROW(),LOOKUP(2,1/('EQ Factor Calc Ord. Units'!$A12:$FA12<>""),COLUMN('EQ Factor Calc Ord. Units'!$A12:$FA12))-1))) -> 0.9811 | I12: =IF($R12="Yes","Yes",IF($A13="",$R12,LOOKUP(2,1/('EQ Factor Calc Ord. Units'!$A12:$FA12<>""),'EQ Factor Calc Ord. Units'!$A12:$FA12))) -> Yes | J12: $101.4527 | K12: -4.6% | L12: 1.5% | M12: -3.7% | N12: =J12/$J$11-1 -> -4.6% | O12: 112.1258 | P12: =IF($R12="Yes",1,IF($A13="",1,INDEX('EQ Factor Calc Elite Units'!$A$1:$FA$682,ROW(),LOOKUP(2,1/('EQ Factor Calc Elite Units'!$A12:$FA12<>""),COLUMN('EQ Factor Calc Elite Units'!$A12:$FA12))-1))) -> 0.9849 | Q12: =IF($R12="Yes","Yes",IF($A13="",$R12,LOOKUP(2,1/('EQ Factor Calc Elite Units'!$A12:$FA12<>""),'EQ Factor Calc Elite Units'!$A12:$FA12))) -> Yes | R12: No | U12: $193.73 | V12: 141.17 | W12: 141.17 | X12: 1.37 | Y12: 1.37 | Z12: -2.9% | AA12: 6.9% | AB12: -2.3% | AC12: =U12/$U$11-1 -> -2.9% | AD12: $5,193.04 | AE12: 0.4% | AF12: 8.4% | AG12: -0.4% | AH12: =AD12/$AD$11-1 -> 0.4% | AJ12: 2017-12-29 | AK12: 11.06400252 | AL12: 11.06400252 | AM12: 2017-12-29 | AN12: 105.3455728 | AO12: 105.3455728
A13: 2018-05-31 | B13: 10.5896 | C13: -0.4% | D13: 5.9% | E13: -4.3% | F13: =B13/$B$11-1 -> -5.0% | G13: 11.8097 | H13: =IF($R13="Yes",1,IF($A14="",1,INDEX('EQ Factor Calc Ord. Units'!$A$1:$FA$682,ROW(),LOOKUP(2,1/('EQ Factor Calc Ord. Units'!$A13:$FA13<>""),COLUMN('EQ Factor Calc Ord. Units'!$A13:$FA13))-1))) -> 0.9793 | I13: =IF($R13="Yes","Yes",IF($A14="",$R13,LOOKUP(2,1/('EQ Factor Calc Ord. Units'!$A13:$FA13<>""),'EQ Factor Calc Ord. Units'!$A13:$FA13))) -> Yes | J13: $101.0305 | K13: -0.4% | L13: 1.0% | M13: -4.1% | N13: =J13/$J$11-1 -> -5.0% | O13: 112.6716 | P13: =IF($R13="Yes",1,IF($A14="",1,INDEX('EQ Factor Calc Elite Units'!$A$1:$FA$682,ROW(),LOOKUP(2,1/('EQ Factor Calc Elite Units'!$A13:$FA13<>""),COLUMN('EQ Factor Calc Elite Units'!$A13:$FA13))-1))) -> 0.9834 | Q13: =IF($R13="Yes","Yes",IF($A14="",$R13,LOOKUP(2,1/('EQ Factor Calc Elite Units'!$A13:$FA13<>""),'EQ Factor Calc Elite Units'!$A13:$FA13))) -> Yes | R13: No | U13: $191.53 | V13: 140.79 | W13: 141.17 | X13: 1.36 | Y13: 1.36 | Z13: -1.1% | AA13: 5.7% | AB13: -3.4% | AC13: =U13/$U$11-1 -> -4.0% | AD13: $5,318.10 | AE13: 2.4% | AF13: 11.0% | AG13: 2.0% | AH13: =AD13/$AD$11-1 -> 2.8% | AJ13: 2018-01-31 | AK13: 11.58256302 | AL13: 11.11785711 | AM13: 2018-01-31 | AN13: 110.5042653 | AO13: 105.85834766
A14: 2018-06-29 | B14: 9.9346 | C14: -6.2% | D14: -0.7% | E14: -10.2% | F14: -10.9% | G14: 11.8672 | H14: =IF($R14="Yes",1,IF($A15="",1,INDEX('EQ Factor Calc Ord. Units'!$A$1:$FA$682,ROW(),LOOKUP(2,1/('EQ Factor Calc Ord. Units'!$A14:$FA14<>""),COLUMN('EQ Factor Calc Ord. Units'!$A14:$FA14))-1))) -> 0.9667 | I14: =IF($R14="Yes","Yes",IF($A15="",$R14,LOOKUP(2,1/('EQ Factor Calc Ord. Units'!$A14:$FA14<>""),'EQ Factor Calc Ord. Units'!$A14:$FA14))) -> Yes | J14: $94.7814 | K14: -6.2% | L14: -5.2% | M14: -10.0% | N14: -10.9% | O14: 113.2200 | P14: =IF($R14="Yes",1,IF($A15="",1,INDEX('EQ Factor Calc Elite Units'!$A$1:$FA$682,ROW(),LOOKUP(2,1/('EQ Factor Calc Elite Units'!$A14:$FA14<>""),COLUMN('EQ Factor Calc Elite Units'!$A14:$FA14))-1))) -> 0.9734 | Q14: =IF($R14="Yes","Yes",IF($A15="",$R14,LOOKUP(2,1/('EQ Factor Calc Elite Units'!$A14:$FA14<>""),'EQ Factor Calc Elite Units'!$A14:$FA14))) -> Yes | R14: No | U14: $186.65 | V14: 140.79 | W14: 141.17 | X14: 1.33 | Y14: 1.32 | Z14: -2.5% | AA14: 3.0% | AB14: -5.8% | AC14: -6.4% | AD14: $5,350.83 | AE14: 0.6% | AF14: 11.7% | AG14: 2.6% | AH14: 3.4% | AJ14: 2018-01-31 | AK14: 11.58256302 | AL14: 11.58256302 | AM14: 2018-01-31 | AN14: 110.5042653 | AO14: 110.5042653
A15: 2018-07-31 | B15: 11.3168 | C15: 13.9% | D15: 13.2% | E15: 2.3% | F15: 1.5% | G15: 11.9250 | H15: =IF($R15="Yes",1,IF($A16="",1,INDEX('EQ Factor Calc Ord. Units'!$A$1:$FA$682,ROW(),LOOKUP(2,1/('EQ Factor Calc Ord. Units'!$A15:$FA15<>""),COLUMN('EQ Factor Calc Ord. Units'!$A15:$FA15))-1))) -> 0.9901 | I15: =IF($R15="Yes","Yes",IF($A16="",$R15,LOOKUP(2,1/('EQ Factor Calc Ord. Units'!$A15:$FA15<>""),'EQ Factor Calc Ord. Units'!$A15:$FA15))) -> Yes | J15: $107.9689 | K15: 13.9% | L15: 8.0% | M15: 2.5% | N15: 1.5% | O15: 113.7711 | P15: =IF($R15="Yes",1,IF($A16="",1,INDEX('EQ Factor Calc Elite Units'!$A$1:$FA$682,ROW(),LOOKUP(2,1/('EQ Factor Calc Elite Units'!$A15:$FA15<>""),COLUMN('EQ Factor Calc Elite Units'!$A15:$FA15))-1))) -> 0.9921 | Q15: =IF($R15="Yes","Yes",IF($A16="",$R15,LOOKUP(2,1/('EQ Factor Calc Elite Units'!$A15:$FA15<>""),'EQ Factor Calc Elite Units'!$A15:$FA15))) -> Yes | R15: No | U15: $197.87 | V15: 140.79 | W15: 141.17 | X15: 1.41 | Y15: 1.40 | Z15: 6.0% | AA15: 9.2% | AB15: -0.2% | AC15: -0.8% | AD15: $5,549.96 | AE15: 3.7% | AF15: 15.9% | AG15: 6.5% | AH15: 7.3% | AJ15: 2018-02-28 | AK15: 11.53287528 | AL15: 11.63894173 | AM15: 2018-02-28 | AN15: 110.0302158 | AO15: 111.04215035
A16: 2018-08-31 | B16: 12.2999 | C16: =B16/B15-1 -> 8.7% | D16: 23.0% | E16: 11.2% | F16: 10.3% | G16: 12.2999 | H16: =IF($R16="Yes",1,IF($A17="",1,INDEX('EQ Factor Calc Ord. Units'!$A$1:$FA$682,ROW(),LOOKUP(2,1/('EQ Factor Calc Ord. Units'!$A16:$FA16<>""),COLUMN('EQ Factor Calc Ord. Units'!$A16:$FA16))-1))) -> 1.0000 | I16: =IF($R16="Yes","Yes",IF($A17="",$R16,LOOKUP(2,1/('EQ Factor Calc Ord. Units'!$A16:$FA16<>""),'EQ Factor Calc Ord. Units'!$A16:$FA16))) -> Yes | J16: $117.4989 | K16: 8.8% | L16: 17.5% | M16: 11.5% | N16: 10.5% | O16: 117.4989 | P16: =IF($R16="Yes",1,IF($A17="",1,INDEX('EQ Factor Calc Elite Units'!$A$1:$FA$682,ROW(),LOOKUP(2,1/('EQ Factor Calc Elite Units'!$A16:$FA16<>""),COLUMN('EQ Factor Calc Elite Units'!$A16:$FA16))-1))) -> 1.0000 | Q16: =IF($R16="Yes","Yes",IF($A17="",$R16,LOOKUP(2,1/('EQ Factor Calc Elite Units'!$A16:$FA16<>""),'EQ Factor Calc Elite Units'!$A16:$FA16))) -> Yes | R16: Yes | U16: $208.72 | V16: 145.12 | W16: 145.12 | X16: 1.44 | Y16: 1.44 | Z16: 5.5% | AA16: 15.2% | AB16: 5.3% | AC16: 4.6% | AD16: $5,730.80 | AE16: 3.3% | AF16: 19.7% | AG16: 9.9% | AH16: 10.8% | AJ16: 2018-02-28 | AK16: 11.53287528 | AL16: 11.63894173 | AM16: 2018-02-28 | AN16: 110.0302158 | AO16: 111.04215035
A17: 2018-09-30 | B17: 12.7260 | C17: 3.5% | D17: 27.3% | E17: 15.0% | F17: 14.1% | G17: 12.7260 | H17: =IF($R17="Yes",1,IF($A18="",1,INDEX('EQ Factor Calc Ord. Units'!$A$1:$FA$682,ROW(),LOOKUP(2,1/('EQ Factor Calc Ord. Units'!$A17:$FA17<>""),COLUMN('EQ Factor Calc Ord. Units'!$A17:$FA17))-1))) -> 1.0000 | I17: =IF($R17="Yes","Yes",IF($A18="",$R17,LOOKUP(2,1/('EQ Factor Calc Ord. Units'!$A17:$FA17<>""),'EQ Factor Calc Ord. Units'!$A17:$FA17))) -> Yes | J17: $121.7449 | K17: 3.6% | L17: 21.7% | M17: 15.6% | N17: 14.4% | O17: 121.7449 | P17: =IF($R17="Yes",1,IF($A18="",1,INDEX('EQ Factor Calc Elite Units'!$A$1:$FA$682,ROW(),LOOKUP(2,1/('EQ Factor Calc Elite Units'!$A17:$FA17<>""),COLUMN('EQ Factor Calc Elite Units'!$A17:$FA17))-1))) -> 1.0000 | Q17: =IF($R17="Yes","Yes",IF($A18="",$R17,LOOKUP(2,1/('EQ Factor Calc Elite Units'!$A17:$FA17<>""),'EQ Factor Calc Elite Units'!$A17:$FA17))) -> Yes | R17: Yes | U17: $214.11 | V17: 146.77 | W17: 146.77 | X17: =U17/V17 -> 1.46 | Y17: 1.46 | Z17: =U17/U16-1 -> 2.6% | AA17: =U17/$U$4-1 -> 18.2% | AB17: 8.0% | AC17: 7.3% | AD17: $5,763.42 | AE17: 0.6% | AF17: 20.3% | AG17: 10.6% | AH17: 11.4% | AJ17: 2018-03-29 | AK17: 11.15013975 | AL17: 11.69559487 | AM17: 2018-03-29 | AN17: 106.3787004 | AO17: 111.58265363
A18: 2018-10-31 | B18: 12.0339 | C18: -5.4% | D18: 20.3% | E18: 8.8% | F18: 7.9% | G18: 12.7880 | H18: =IF($R18="Yes",1,IF($A19="",1,INDEX('EQ Factor Calc Ord. Units'!$A$1:$FA$682,ROW(),LOOKUP(2,1/('EQ Factor Calc Ord. Units'!$A18:$FA18<>""),COLUMN('EQ Factor Calc Ord. Units'!$A18:$FA18))-1))) -> 0.9888 | I18: =IF($R18="Yes","Yes",IF($A19="",$R18,LOOKUP(2,1/('EQ Factor Calc Ord. Units'!$A18:$FA18<>""),'EQ Factor Calc Ord. Units'!$A18:$FA18))) -> Yes | J18: $115.1232 | K18: -5.4% | L18: 15.1% | M18: 9.3% | N18: 8.2% | O18: 122.3375 | P18: =IF($R18="Yes",1,IF($A19="",1,INDEX('EQ Factor Calc Elite Units'!$A$1:$FA$682,ROW(),LOOKUP(2,1/('EQ Factor Calc Elite Units'!$A18:$FA18<>""),COLUMN('EQ Factor Calc Elite Units'!$A18:$FA18))-1))) -> 0.9911 | Q18: =IF($R18="Yes","Yes",IF($A19="",$R18,LOOKUP(2,1/('EQ Factor Calc Elite Units'!$A18:$FA18<>""),'EQ Factor Calc Elite Units'!$A18:$FA18))) -> Yes | R18: No | U18: $205.12 | V18: 146.77 | W18: 146.77 | X18: 1.40 | Y18: 1.40 | Z18: -4.2% | AA18: 13.2% | AB18: 3.5% | AC18: 2.8% | AD18: $5,369.49 | AE18: -6.8% | AF18: 12.1% | AG18: 3.0% | AH18: 3.8% | AJ18: 2018-03-29 | AK18: 11.15013975 | AL18: 11.69559487 | AM18: 2018-03-29 | AN18: 106.3787004 | AO18: 111.58265363
A19: 2018-11-30 | B19: 13.4533 | C19: 11.8% | D19: 34.5% | E19: 21.6% | F19: 20.7% | G19: 13.4533 | H19: =IF($R19="Yes",1,IF($A20="",1,INDEX('EQ Factor Calc Ord. Units'!$A$1:$FA$682,ROW(),LOOKUP(2,1/('EQ Factor Calc Ord. Units'!$A19:$FA19<>""),COLUMN('EQ Factor Calc Ord. Units'!$A19:$FA19))-1))) -> 1.0000 | I19: =IF($R19="Yes","Yes",IF($A20="",$R19,LOOKUP(2,1/('EQ Factor Calc Ord. Units'!$A19:$FA19<>""),'EQ Factor Calc Ord. Units'!$A19:$FA19))) -> Yes | J19: $128.9912 | K19: 12.0% | L19: 29.0% | M19: 22.4% | N19: 21.3% | O19: 128.9912 | P19: =IF($R19="Yes",1,IF($A20="",1,INDEX('EQ Factor Calc Elite Units'!$A$1:$FA$682,ROW(),LOOKUP(2,1/('EQ Factor Calc Elite Units'!$A19:$FA19<>""),COLUMN('EQ Factor Calc Elite Units'!$A19:$FA19))-1))) -> 1.0000 | Q19: =IF($R19="Yes","Yes",IF($A20="",$R19,LOOKUP(2,1/('EQ Factor Calc Elite Units'!$A19:$FA19<>""),'EQ Factor Calc Elite Units'!$A19:$FA19))) -> Yes | R19: Yes | U19: $218.24 | V19: 152.47 | W19: 152.47 | X19: 1.43 | Y19: 1.43 | Z19: 6.4% | AA19: 20.5% | AB19: 10.1% | AC19: 9.4% | AD19: $5,478.91 | AE19: 2.0% | AF19: 14.4% | AG19: 5.1% | AH19: 5.9% | AJ19: 2018-04-30 | AK19: 10.63382226 | AL19: 11.75252377 | AM19: 2018-04-30 | AN19: 101.45273700 | AO19: 112.12578784
A20: 2018-12-31 | B20: 11.9745 | C20: -11.0% | D20: =B20/$B$4-1 -> 19.7% | E20: 8.2% | F20: 7.4% | G20: 13.5188 | H20: =IF($R20="Yes",1,IF($A21="",1,INDEX('EQ Factor Calc Ord. Units'!$A$1:$FA$682,ROW(),LOOKUP(2,1/('EQ Factor Calc Ord. Units'!$A20:$FA20<>""),COLUMN('EQ Factor Calc Ord. Units'!$A20:$FA20))-1))) -> 0.9769 | I20: =IF($R20="Yes","Yes",IF($A21="",$R20,LOOKUP(2,1/('EQ Factor Calc Ord. Units'!$A20:$FA20<>""),'EQ Factor Calc Ord. Units'!$A20:$FA20))) -> Yes | J20: $114.8123 | K20: -11.0% | L20: 14.8% | M20: 9.0% | N20: 7.9% | O20: 129.6191 | P20: =IF($R20="Yes",1,IF($A21="",1,INDEX('EQ Factor Calc Elite Units'!$A$1:$FA$682,ROW(),LOOKUP(2,1/('EQ Factor Calc Elite Units'!$A20:$FA20<>""),COLUMN('EQ Factor Calc Elite Units'!$A20:$FA20))-1))) -> 0.9815 | Q20: =IF($R20="Yes","Yes",IF($A21="",$R20,LOOKUP(2,1/('EQ Factor Calc Elite Units'!$A20:$FA20<>""),'EQ Factor Calc Elite Units'!$A20:$FA20))) -> Yes | R20: No | U20: $204.18 | V20: 152.47 | W20: 152.47 | X20: 1.34 | Y20: 1.34 | Z20: -6.4% | AA20: 12.7% | AB20: 3.0% | AC20: 2.4% | AD20: $4,984.22 | AE20: -9.0% | AF20: 4.1% | AG20: =AD20/$AD$8-1 -> -4.4% | AH20: -3.7% | AJ20: 2018-04-30 | AK20: 10.63382226 | AL20: 11.75252377 | AM20: 2018-04-30 | AN20: 101.45273700 | AO20: 112.12578784
A21: 2019-01-31 | B21: 12.2182 | C21: 2.0% | D21: =B21/$B$4-1 -> 22.2% | E21: =B21/$B$20-1 -> 2.0% | F21: =B21/$B$11-1 -> 9.6% | G21: 13.5846 | H21: =IF($R21="Yes",1,IF($A22="",1,INDEX('EQ Factor Calc Ord. Units'!$A$1:$FA$682,ROW(),LOOKUP(2,1/('EQ Factor Calc Ord. Units'!$A21:$FA21<>""),COLUMN('EQ Factor Calc Ord. Units'!$A21:$FA21))-1))) -> 0.9799 | I21: =IF($R21="Yes","Yes",IF($A22="",$R21,LOOKUP(2,1/('EQ Factor Calc Ord. Units'!$A21:$FA21<>""),'EQ Factor Calc Ord. Units'!$A21:$FA21))) -> Yes | J21: $117.1487 | K21: =J21/J20-1 -> 2.0% | L21: =J21/$J$5-1 -> 17.1% | M21: =J21/$J$20-1 -> 2.0% | N21: 10.1% | O21: =MAX(J21,O20*1.06^(1/12)) -> 130.2500 | P21: =IF($R21="Yes",1,IF($A22="",1,INDEX('EQ Factor Calc Elite Units'!$A$1:$FA$682,ROW(),LOOKUP(2,1/('EQ Factor Calc Elite Units'!$A21:$FA21<>""),COLUMN('EQ Factor Calc Elite Units'!$A21:$FA21))-1))) -> 0.9839 | Q21: =IF($R21="Yes","Yes",IF($A22="",$R21,LOOKUP(2,1/('EQ Factor Calc Elite Units'!$A21:$FA21<>""),'EQ Factor Calc Elite Units'!$A21:$FA21))) -> Yes | R21: No | U21: $205.54 | V21: =V20 -> 152.47 | W21: 152.47 | X21: 1.35 | Y21: 1.35 | Z21: 0.7% | AA21: 13.5% | AB21: =U21/$U$20-1 -> 0.7% | AC21: =U21/$U$11-1 -> 3.0% | AD21: $5,383.63 | AE21: 8.0% | AF21: 12.4% | AG21: =AD21/$AD$20-1 -> 8.0% | AH21: =AD21/$AD$11-1 -> 4.1% | AJ21: 2018-05-31 | AK21: 10.58956599 | AL21: 11.80972977 | AM21: 2018-05-31 | AN21: 101.0305066 | AO21: 112.67156578
A22: 2019-02-28 | B22: 11.6743 | C22: -4.5% | D22: 16.7% | E22: =B22/$B$20-1 -> -2.5% | F22: =B22/$B$11-1 -> 4.7% | G22: 13.6507 | H22: =IF($R22="Yes",1,IF($A23="",1,INDEX('EQ Factor Calc Ord. Units'!$A$1:$FA$682,ROW(),LOOKUP(2,1/('EQ Factor Calc Ord. Units'!$A22:$FA22<>""),COLUMN('EQ Factor Calc Ord. Units'!$A22:$FA22))-1))) -> 0.9709 | I22: =IF($R22="Yes","Yes",IF($A23="",$R22,LOOKUP(2,1/('EQ Factor Calc Ord. Units'!$A22:$FA22<>""),'EQ Factor Calc Ord. Units'!$A22:$FA22))) -> Yes | J22: $111.9339 | K22: -4.5% | L22: =J22/$J$5-1 -> 11.9% | M22: =J22/$J$20-1 -> -2.5% | N22: 5.2% | O22: 130.8840 | P22: =IF($R22="Yes",1,IF($A23="",1,INDEX('EQ Factor Calc Elite Units'!$A$1:$FA$682,ROW(),LOOKUP(2,1/('EQ Factor Calc Elite Units'!$A22:$FA22<>""),COLUMN('EQ Factor Calc Elite Units'!$A22:$FA22))-1))) -> 0.9768 | Q22: =IF($R22="Yes","Yes",IF($A23="",$R22,LOOKUP(2,1/('EQ Factor Calc Elite Units'!$A22:$FA22<>""),'EQ Factor Calc Elite Units'!$A22:$FA22))) -> Yes | R22: No | U22: $201.30 | V22: 141.67 | W22: 152.47 | X22: 1.42 | Y22: 1.32 | Z22: -2.1% | AA22: 11.1% | AB22: =U22/$U$20-1 -> -1.4% | AC22: =U22/$U$11-1 -> 0.9% | AD22: $5,556.49 | AE22: 3.2% | AF22: 16.0% | AG22: =AD22/$AD$20-1 -> 11.5% | AH22: =AD22/$AD$11-1 -> 7.4% | AJ22: 2018-05-31 | AK22: 10.58956599 | AL22: 11.80972977 | AM22: 2018-05-31 | AN22: 101.0305066 | AO22: 112.67156578
A23: 2019-03-31 | B23: 11.5324 | C23: =B23/B22-1 -> -1.2% | D23: 15.3% | E23: -3.7% | F23: =B23/$B$11-1 -> 3.4% | G23: 13.7172 | H23: =IF($R23="Yes",1,IF($A24="",1,INDEX('EQ Factor Calc Ord. Units'!$A$1:$FA$682,ROW(),LOOKUP(2,1/('EQ Factor Calc Ord. Units'!$A23:$FA23<>""),COLUMN('EQ Factor Calc Ord. Units'!$A23:$FA23))-1))) -> 0.9680 | I23: =IF($R23="Yes","Yes",IF($A24="",$R23,LOOKUP(2,1/('EQ Factor Calc Ord. Units'!$A23:$FA23<>""),'EQ Factor Calc Ord. Units'!$A23:$FA23))) -> Yes | J23: $110.5733 | K23: -1.2% | L23: 10.6% | M23: =J23/$J$20-1 -> -3.7% | N23: =J23/$J$11-1 -> 3.9% | O23: 131.5211 | P23: =IF($R23="Yes",1,IF($A24="",1,INDEX('EQ Factor Calc Elite Units'!$A$1:$FA$682,ROW(),LOOKUP(2,1/('EQ Factor Calc Elite Units'!$A23:$FA23<>""),COLUMN('EQ Factor Calc Elite Units'!$A23:$FA23))-1))) -> 0.9744 | Q23: =IF($R23="Yes","Yes",IF($A24="",$R23,LOOKUP(2,1/('EQ Factor Calc Elite Units'!$A23:$FA23<>""),'EQ Factor Calc Elite Units'!$A23:$FA23))) -> Yes | R23: No | U23: $200.89 | V23: =V22 -> 141.67 | W23: =MAX(V23,W22) -> 152.47 | X23: =U23/V23 -> 1.42 | Y23: =U23/W23 -> 1.32 | Z23: -0.2% | AA23: =U23/$U$4-1 -> 10.9% | AB23: -1.6% | AC23: =U23/$U$11-1 -> 0.7% | AD23: $5,664.46 | AE23: =AD23/AD22-1 -> 1.9% | AF23: =AD23/$AD$4-1 -> 18.3% | AG23: 13.6% | AH23: =AD23/$AD$11-1 -> 9.5% | AJ23: 2018-06-29 | AK23: 9.93456512 | AL23: 11.86721423 | AM23: 2018-06-29 | AN23: 94.78142418 | AO23: 113.22000032
A24: 2019-04-30 | B24: 13.6603 | C24: 18.5% | D24: 36.6% | E24: 14.1% | F24: =B24/$B$23-1 -> 18.5% | G24: 13.7840 | H24: =IF($R24="Yes",1,IF($A25="",1,INDEX('EQ Factor Calc Ord. Units'!$A$1:$FA$682,ROW(),LOOKUP(2,1/('EQ Factor Calc Ord. Units'!$A24:$FA24<>""),COLUMN('EQ Factor Calc Ord. Units'!$A24:$FA24))-1))) -> 0.9983 | I24: =IF($R24="Yes","Yes",IF($A25="",$R24,LOOKUP(2,1/('EQ Factor Calc Ord. Units'!$A24:$FA24<>""),'EQ Factor Calc Ord. Units'!$A24:$FA24))) -> Yes | J24: $130.9758 | K24: 18.5% | L24: 31.0% | M24: =J24/$J$20-1 -> 14.1% | N24: =J24/$J$23-1 -> 18.5% | O24: 132.1613 | P24: =IF($R24="Yes",1,IF($A25="",1,INDEX('EQ Factor Calc Elite Units'!$A$1:$FA$682,ROW(),LOOKUP(2,1/('EQ Factor Calc Elite Units'!$A24:$FA24<>""),COLUMN('EQ Factor Calc Elite Units'!$A24:$FA24))-1))) -> 0.9987 | Q24: =IF($R24="Yes","Yes",IF($A25="",$R24,LOOKUP(2,1/('EQ Factor Calc Elite Units'!$A24:$FA24<>""),'EQ Factor Calc Elite Units'!$A24:$FA24))) -> Yes | R24: No | U24: $216.71 | V24: 148.77 | W24: 152.47 | X24: 1.46 | Y24: 1.42 | Z24: 7.9% | AA24: 19.6% | AB24: 6.1% | AC24: =U24/$U$23-1 -> 7.9% | AD24: $5,893.81 | AE24: 4.0% | AF24: 23.1% | AG24: 18.2% | AH24: =AD24/$AD$23-1 -> 4.0% | AJ24: 2018-06-29 | AK24: 9.93456512 | AL24: 11.86721423 | AM24: 2018-06-29 | AN24: 94.78142418 | AO24: 113.22000032
A25: 2019-05-31 | B25: 11.3356 | C25: -17.0% | D25: 13.4% | E25: -5.3% | F25: -1.7% | G25: =MAX(B25,G24*1.06^(1/12)) -> 13.8510 | H25: =IF($R25="Yes",1,IF($A26="",1,INDEX('EQ Factor Calc Ord. Units'!$A$1:$FA$682,ROW(),LOOKUP(2,1/('EQ Factor Calc Ord. Units'!$A25:$FA25<>""),COLUMN('EQ Factor Calc Ord. Units'!$A25:$FA25))-1))) -> 0.9629 | I25: =IF($R25="Yes","Yes",IF($A26="",$R25,LOOKUP(2,1/('EQ Factor Calc Ord. Units'!$A25:$FA25<>""),'EQ Factor Calc Ord. Units'!$A25:$FA25))) -> Yes | J25: $108.6866 | K25: -17.0% | L25: 8.7% | M25: -5.3% | N25: -1.7% | O25: 132.8046 | P25: =IF($R25="Yes",1,IF($A26="",1,INDEX('EQ Factor Calc Elite Units'!$A$1:$FA$682,ROW(),LOOKUP(2,1/('EQ Factor Calc Elite Units'!$A25:$FA25<>""),COLUMN('EQ Factor Calc Elite Units'!$A25:$FA25))-1))) -> 0.9703 | Q25: =IF($R25="Yes","Yes",IF($A26="",$R25,LOOKUP(2,1/('EQ Factor Calc Elite Units'!$A25:$FA25<>""),'EQ Factor Calc Elite Units'!$A25:$FA25))) -> Yes | R25: No | U25: $197.42 | V25: 150.37 | W25: 152.47 | X25: 1.31 | Y25: 1.29 | Z25: -8.9% | AA25: 9.0% | AB25: -3.3% | AC25: -1.7% | AD25: $5,519.27 | AE25: -6.4% | AF25: 15.2% | AG25: 10.7% | AH25: -2.6% | AJ25: 2018-07-31 | AK25: 11.31681371 | AL25: 11.92497849 | AM25: 2018-07-31 | AN25: 107.9688651 | AO25: 113.77110440
A26: 2019-06-30 | B26: 13.3950 | C26: 18.2% | D26: 33.9% | E26: 11.9% | F26: 16.2% | G26: 13.9185 | H26: =IF($R26="Yes",1,IF($A27="",1,INDEX('EQ Factor Calc Ord. Units'!$A$1:$FA$682,ROW(),LOOKUP(2,1/('EQ Factor Calc Ord. Units'!$A26:$FA26<>""),COLUMN('EQ Factor Calc Ord. Units'!$A26:$FA26))-1))) -> 0.9926 | I26: =IF($R26="Yes","Yes",IF($A27="",$R26,LOOKUP(2,1/('EQ Factor Calc Ord. Units'!$A26:$FA26<>""),'EQ Factor Calc Ord. Units'!$A26:$FA26))) -> Yes | J26: $128.4316 | K26: 18.2% | L26: 28.4% | M26: 11.9% | N26: 16.2% | O26: 133.4510 | P26: =IF($R26="Yes",1,IF($A27="",1,INDEX('EQ Factor Calc Elite Units'!$A$1:$FA$682,ROW(),LOOKUP(2,1/('EQ Factor Calc Elite Units'!$A26:$FA26<>""),COLUMN('EQ Factor Calc Elite Units'!$A26:$FA26))-1))) -> 0.9941 | Q26: =IF($R26="Yes","Yes",IF($A27="",$R26,LOOKUP(2,1/('EQ Factor Calc Elite Units'!$A26:$FA26<>""),'EQ Factor Calc Elite Units'!$A26:$FA26))) -> Yes | R26: No | U26: $213.17 | V26: =V25 -> 150.37 | W26: 152.47 | X26: 1.42 | Y26: 1.40 | Z26: =U26/U25-1 -> 8.0% | AA26: 17.7% | AB26: 4.4% | AC26: 6.1% | AD26: $5,908.25 | AE26: 7.0% | AF26: 23.4% | AG26: 18.5% | AH26: 4.3% | AJ26: 2018-07-31 | AK26: 11.31681371 | AL26: 11.92497849 | AM26: 2018-07-31 | AN26: 107.9688651 | AO26: 113.77110440
A27: 2019-07-31 | B27: 12.2736 | C27: -8.4% | D27: 22.7% | E27: 2.5% | F27: 6.4% | G27: 13.9862 | H27: =IF($R27="Yes",1,IF($A28="",1,INDEX('EQ Factor Calc Ord. Units'!$A$1:$FA$682,ROW(),LOOKUP(2,1/('EQ Factor Calc Ord. Units'!$A27:$FA27<>""),COLUMN('EQ Factor Calc Ord. Units'!$A27:$FA27))-1))) -> 0.9750 | I27: =IF($R27="Yes","Yes",IF($A28="",$R27,LOOKUP(2,1/('EQ Factor Calc Ord. Units'!$A27:$FA27<>""),'EQ Factor Calc Ord. Units'!$A27:$FA27))) -> Yes | J27: $117.6802 | K27: -8.4% | L27: 17.7% | M27: 2.5% | N27: 6.4% | O27: =MAX(J27,O26*1.06^(1/12)) -> 134.1006 | P27: =IF($R27="Yes",1,IF($A28="",1,INDEX('EQ Factor Calc Elite Units'!$A$1:$FA$682,ROW(),LOOKUP(2,1/('EQ Factor Calc Elite Units'!$A27:$FA27<>""),COLUMN('EQ Factor Calc Elite Units'!$A27:$FA27))-1))) -> 0.9799 | Q27: =IF($R27="Yes","Yes",IF($A28="",$R27,LOOKUP(2,1/('EQ Factor Calc Elite Units'!$A27:$FA27<>""),'EQ Factor Calc Elite Units'!$A27:$FA27))) -> Yes | R27: No | U27: $205.43 | V27: =V26 -> 150.37 | W27: 152.47 | X27: 1.37 | Y27: 1.35 | Z27: -3.6% | AA27: 13.4% | AB27: 0.6% | AC27: 2.3% | AD27: $5,993.17 | AE27: 1.4% | AF27: 25.1% | AG27: 20.2% | AH27: 5.8% | AJ27: 2018-08-31 | AK27: 12.29986874 | AL27: 11.98302393 | AM27: 2018-08-31 | AN27: 117.4989155 | AO27: 114.32489101
A28: 2019-08-31 | B28: 12.0498 | C28: -1.8% | D28: 20.5% | E28: 0.6% | F28: 4.5% | G28: 14.0543 | H28: =IF($R28="Yes",1,IF($A29="",1,INDEX('EQ Factor Calc Ord. Units'!$A$1:$FA$682,ROW(),LOOKUP(2,1/('EQ Factor Calc Ord. Units'!$A28:$FA28<>""),COLUMN('EQ Factor Calc Ord. Units'!$A28:$FA28))-1))) -> 0.9706 | I28: =IF($R28="Yes","Yes",IF($A29="",$R28,LOOKUP(2,1/('EQ Factor Calc Ord. Units'!$A28:$FA28<>""),'EQ Factor Calc Ord. Units'!$A28:$FA28))) -> Yes | J28: $115.5342 | K28: -1.8% | L28: 15.5% | M28: 0.6% | N28: 4.5% | O28: 134.7533 | P28: =IF($R28="Yes",1,IF($A29="",1,INDEX('EQ Factor Calc Elite Units'!$A$1:$FA$682,ROW(),LOOKUP(2,1/('EQ Factor Calc Elite Units'!$A28:$FA28<>""),COLUMN('EQ Factor Calc Elite Units'!$A28:$FA28))-1))) -> 0.9765 | Q28: =IF($R28="Yes","Yes",IF($A29="",$R28,LOOKUP(2,1/('EQ Factor Calc Elite Units'!$A28:$FA28<>""),'EQ Factor Calc Elite Units'!$A28:$FA28))) -> Yes | R28: No | U28: $203.41 | V28: 156.07 | W28: 156.07 | X28: 1.30 | Y28: 1.30 | Z28: -1.0% | AA28: 12.3% | AB28: -0.4% | AC28: 1.3% | AD28: $5,898.23 | AE28: -1.6% | AF28: 23.2% | AG28: 18.3% | AH28: 4.1% | AJ28: 2018-08-31 | AK28: 12.29986874 | AL28: 12.29986874 | AM28: 2018-08-31 | AN28: 117.4989155 | AO28: 117.4989155
A29: 2019-09-30 | B29: 12.9072 | C29: 7.1% | D29: 29.1% | E29: =B29/$B$20-1 -> 7.8% | F29: 11.9% | G29: 14.1227 | H29: =IF($R29="Yes",1,IF($A30="",1,INDEX('EQ Factor Calc Ord. Units'!$A$1:$FA$682,ROW(),LOOKUP(2,1/('EQ Factor Calc Ord. Units'!$A29:$FA29<>""),COLUMN('EQ Factor Calc Ord. Units'!$A29:$FA29))-1))) -> 0.9828 | I29: =IF($R29="Yes","Yes",IF($A30="",$R29,LOOKUP(2,1/('EQ Factor Calc Ord. Units'!$A29:$FA29<>""),'EQ Factor Calc Ord. Units'!$A29:$FA29))) -> Yes | J29: $123.7552 | K29: 7.1% | L29: =J29/$J$5-1 -> 23.8% | M29: =J29/$J$20-1 -> 7.8% | N29: 11.9% | O29: 135.4092 | P29: =IF($R29="Yes",1,IF($A30="",1,INDEX('EQ Factor Calc Elite Units'!$A$1:$FA$682,ROW(),LOOKUP(2,1/('EQ Factor Calc Elite Units'!$A29:$FA29<>""),COLUMN('EQ Factor Calc Elite Units'!$A29:$FA29))-1))) -> 0.9862 | Q29: =IF($R29="Yes","Yes",IF($A30="",$R29,LOOKUP(2,1/('EQ Factor Calc Elite Units'!$A29:$FA29<>""),'EQ Factor Calc Elite Units'!$A29:$FA29))) -> Yes | R29: No | U29: $208.02 | V29: =V28 -> 156.07 | W29: 156.07 | X29: =U29/V29 -> 1.33 | Y29: =U29/W29 -> 1.33 | Z29: 2.3% | AA29: 14.8% | AB29: 1.9% | AC29: 3.5% | AD29: $6,008.59 | AE29: 1.9% | AF29: 25.5% | AG29: 20.6% | AH29: 6.1% | AJ29: 2018-09-30 | AK29: 12.72602597 | AL29: 12.35973897 | AM29: 2018-09-30 | AN29: 121.74488990 | AO29: 118.07084737
A30: 2019-10-31 | B30: 14.0327 | C30: =B30/B29-1 -> 8.7% | D30: 40.3% | E30: =B30/$B$20-1 -> 17.2% | F30: 21.7% | G30: 14.1915 | H30: =IF($R30="Yes",1,IF($A31="",1,INDEX('EQ Factor Calc Ord. Units'!$A$1:$FA$682,ROW(),LOOKUP(2,1/('EQ Factor Calc Ord. Units'!$A30:$FA30<>""),COLUMN('EQ Factor Calc Ord. Units'!$A30:$FA30))-1))) -> 0.9979 | I30: =IF($R30="Yes","Yes",IF($A31="",$R30,LOOKUP(2,1/('EQ Factor Calc Ord. Units'!$A30:$FA30<>""),'EQ Factor Calc Ord. Units'!$A30:$FA30))) -> Yes | J30: $134.5461 | K30: =J30/J29-1 -> 8.7% | L30: =J30/$J$5-1 -> 34.5% | M30: =J30/$J$20-1 -> 17.2% | N30: 21.7% | O30: 136.0683 | P30: =IF($R30="Yes",1,IF($A31="",1,INDEX('EQ Factor Calc Elite Units'!$A$1:$FA$682,ROW(),LOOKUP(2,1/('EQ Factor Calc Elite Units'!$A30:$FA30<>""),COLUMN('EQ Factor Calc Elite Units'!$A30:$FA30))-1))) -> 0.9983 | Q30: =IF($R30="Yes","Yes",IF($A31="",$R30,LOOKUP(2,1/('EQ Factor Calc Elite Units'!$A30:$FA30<>""),'EQ Factor Calc Elite Units'!$A30:$FA30))) -> Yes | R30: No | U30: $212.58 | V30: 158.39 | W30: =MAX(V30,W29) -> 158.39 | X30: 1.34 | Y30: 1.34 | Z30: 2.2% | AA30: =U30/$U$4-1 -> 17.3% | AB30: =U30/$U$20-1 -> 4.1% | AC30: 5.8% | AD30: $6,138.73 | AE30: =AD30/AD29-1 -> 2.2% | AF30: =AD30/$AD$4-1 -> 28.2% | AG30: 23.2% | AH30: 8.4% | AJ30: 2018-09-30 | AK30: 12.72602597 | AL30: 12.72602597 | AM30: 2018-09-30 | AN30: 121.74488990 | AO30: 121.74488990
A31: 2019-11-30 | B31: 15.1422 | C31: 7.9% | D31: =B31/$B$4-1 -> 51.4% | E31: =B31/$B$20-1 -> 26.5% | F31: 31.3% | G31: 15.1422 | H31: =IF($R31="Yes",1,IF($A32="",1,INDEX('EQ Factor Calc Ord. Units'!$A$1:$FA$682,ROW(),LOOKUP(2,1/('EQ Factor Calc Ord. Units'!$A31:$FA31<>""),COLUMN('EQ Factor Calc Ord. Units'!$A31:$FA31))-1))) -> 1.0000 | I31: =IF($R31="Yes","Yes",IF($A32="",$R31,LOOKUP(2,1/('EQ Factor Calc Ord. Units'!$A31:$FA31<>""),'EQ Factor Calc Ord. Units'!$A31:$FA31))) -> Yes | J31: $145.6064 | K31: 8.2% | L31: 45.6% | M31: =J31/$J$20-1 -> 26.8% | N31: 31.7% | O31: 145.6064 | P31: =IF($R31="Yes",1,IF($A32="",1,INDEX('EQ Factor Calc Elite Units'!$A$1:$FA$682,ROW(),LOOKUP(2,1/('EQ Factor Calc Elite Units'!$A31:$FA31<>""),COLUMN('EQ Factor Calc Elite Units'!$A31:$FA31))-1))) -> 1.0000 | Q31: =IF($R31="Yes","Yes",IF($A32="",$R31,LOOKUP(2,1/('EQ Factor Calc Elite Units'!$A31:$FA31<>""),'EQ Factor Calc Elite Units'!$A31:$FA31))) -> Yes | R31: Yes | U31: $220.30 | V31: 164.06 | W31: 164.06 | X31: 1.34 | Y31: 1.34 | Z31: 3.6% | AA31: 21.6% | AB31: =U31/$U$20-1 -> 7.9% | AC31: 9.7% | AD31: $6,361.56 | AE31: =AD31/AD30-1 -> 3.6% | AF31: =AD31/$AD$4-1 -> 32.8% | AG31: =AD31/$AD$20-1 -> 27.6% | AH31: 12.3% | AJ31: 2018-10-31 | AK31: 12.03385793 | AL31: 12.78797054 | AM31: 2018-10-31 | AN31: 115.1231903 | AO31: 122.33748931
A32: 2019-12-31 | B32: 16.1111 | C32: 6.4% | D32: =B32/$B$4-1 -> 61.1% | E32: =B32/$B$20-1 -> 34.5% | F32: 39.7% | G32: 16.1111 | H32: =IF($R32="Yes",1,IF($A33="",1,INDEX('EQ Factor Calc Ord. Units'!$A$1:$FA$682,ROW(),LOOKUP(2,1/('EQ Factor Calc Ord. Units'!$A32:$FA32<>""),COLUMN('EQ Factor Calc Ord. Units'!$A32:$FA32))-1))) -> 1.0000 | I32: =IF($R32="Yes","Yes",IF($A33="",$R32,LOOKUP(2,1/('EQ Factor Calc Ord. Units'!$A32:$FA32<>""),'EQ Factor Calc Ord. Units'!$A32:$FA32))) -> Yes | J32: $155.3541 | K32: 6.7% | L32: 55.4% | M32: =J32/$J$20-1 -> 35.3% | N32: 40.5% | O32: 155.3541 | P32: =IF($R32="Yes",1,IF($A33="",1,INDEX('EQ Factor Calc Elite Units'!$A$1:$FA$682,ROW(),LOOKUP(2,1/('EQ Factor Calc Elite Units'!$A32:$FA32<>""),COLUMN('EQ Factor Calc Elite Units'!$A32:$FA32))-1))) -> 1.0000 | Q32: =IF($R32="Yes","Yes",IF($A33="",$R32,LOOKUP(2,1/('EQ Factor Calc Elite Units'!$A32:$FA32<>""),'EQ Factor Calc Elite Units'!$A32:$FA32))) -> Yes | R32: Yes | S32: 191.5% | T32: 16.8% | U32: $226.50 | V32: 164.06 | W32: 164.06 | X32: 1.38 | Y32: 1.38 | Z32: 2.8% | AA32: 25.0% | AB32: =U32/$U$20-1 -> 10.9% | AC32: 12.7% | AD32: $6,553.57 | AE32: 3.0% | AF32: 36.8% | AG32: =AD32/$AD$20-1 -> 31.5% | AH32: 15.7% | AJ32: 2018-10-31 | AK32: 12.03385793 | AL32: 12.78797054 | AM32: 2018-10-31 | AN32: 115.1231903 | AO32: 122.33748931
A33: 2020-01-31 | B33: 15.6780 | C33: -2.7% | D33: =B33/$B$4-1 -> 56.8% | E33: =B33/$B$32-1 -> -2.7% | F33: =B33/$B$23-1 -> 35.9% | G33: 16.1895 | H33: =IF($R33="Yes",1,IF($A34="",1,INDEX('EQ Factor Calc Ord. Units'!$A$1:$FA$682,ROW(),LOOKUP(2,1/('EQ Factor Calc Ord. Units'!$A33:$FA33<>""),COLUMN('EQ Factor Calc Ord. Units'!$A33:$FA33))-1))) -> 1.0000 | I33: =IF($R33="Yes","Yes",IF($A34="",$R33,LOOKUP(2,1/('EQ Factor Calc Ord. Units'!$A33:$FA33<>""),'EQ Factor Calc Ord. Units'!$A33:$FA33))) -> No | J33: $151.1777 | K33: -2.7% | L33: =J33/$J$5-1 -> 51.2% | M33: =J33/$J$32-1 -> -2.7% | N33: 36.7% | O33: 156.1103 | P33: =IF($R33="Yes",1,IF($A34="",1,INDEX('EQ Factor Calc Elite Units'!$A$1:$FA$682,ROW(),LOOKUP(2,1/('EQ Factor Calc Elite Units'!$A33:$FA33<>""),COLUMN('EQ Factor Calc Elite Units'!$A33:$FA33))-1))) -> 1.0000 | Q33: =IF($R33="Yes","Yes",IF($A34="",$R33,LOOKUP(2,1/('EQ Factor Calc Elite Units'!$A33:$FA33<>""),'EQ Factor Calc Elite Units'!$A33:$FA33))) -> No | R33: No | S33: 233.9% | T33: 16.8% | U33: $224.43 | V33: 170.16 | W33: 170.16 | X33: 1.32 | Y33: 1.32 | Z33: -0.9% | AA33: 23.9% | AB33: =U33/$U$32-1 -> -0.9% | AC33: 11.7% | AD33: $6,551.00 | AE33: =AD33/AD32-1 -> -0.0% | AF33: =AD33/$AD$4-1 -> 36.8% | AG33: =AD33/$AD$32-1 -> -0.0% | AH33: 15.7% | AJ33: 2018-11-30 | AK33: 13.45332811 | AL33: 12.85021664 | AM33: 2018-11-30 | AN33: 128.9911902 | AO33: 122.93297322
A34: 2020-02-29 | B34: 11.6265 | C34: -25.8% | D34: =B34/$B$4-1 -> 16.3% | E34: =B34/$B$32-1 -> -27.8% | F34: 0.8% | G34: 16.2683 | H34: =IF($R34="Yes",1,IF($A35="",1,INDEX('EQ Factor Calc Ord. Units'!$A$1:$FA$682,ROW(),LOOKUP(2,1/('EQ Factor Calc Ord. Units'!$A34:$FA34<>""),COLUMN('EQ Factor Calc Ord. Units'!$A34:$FA34))-1))) -> 0.9870 | I34: =IF($R34="Yes","Yes",IF($A35="",$R34,LOOKUP(2,1/('EQ Factor Calc Ord. Units'!$A34:$FA34<>""),'EQ Factor Calc Ord. Units'!$A34:$FA34))) -> No | J34: $112.1107 | K34: -25.8% | L34: 12.1% | M34: -27.8% | N34: 1.4% | O34: 156.8701 | P34: =IF($R34="Yes",1,IF($A35="",1,INDEX('EQ Factor Calc Elite Units'!$A$1:$FA$682,ROW(),LOOKUP(2,1/('EQ Factor Calc Elite Units'!$A34:$FA34<>""),COLUMN('EQ Factor Calc Elite Units'!$A34:$FA34))-1))) -> 0.9896 | Q34: =IF($R34="Yes","Yes",IF($A35="",$R34,LOOKUP(2,1/('EQ Factor Calc Elite Units'!$A34:$FA34<>""),'EQ Factor Calc Elite Units'!$A34:$FA34))) -> No | R34: No | S34: 328.0% | T34: 15.7% | U34: $206.34 | V34: 174.28 | W34: 174.28 | X34: 1.18 | Y34: 1.18 | Z34: -8.1% | AA34: 13.9% | AB34: -8.9% | AC34: 2.7% | AD34: $6,011.73 | AE34: -8.2% | AF34: 25.5% | AG34: -8.3% | AH34: 6.1% | AJ34: 2018-11-30 | AK34: 13.45332811 | AL34: 13.45332811 | AM34: 2018-11-30 | AN34: 128.9911902 | AO34: 128.9911902
A35: 2020-03-31 | B35: 6.2512 | C35: -46.2% | D35: =B35/$B$4-1 -> -37.5% | E35: -61.2% | F35: =B35/$B$23-1 -> -45.8% | G35: 16.3475 | H35: =IF($R35="Yes",1,IF($A36="",1,INDEX('EQ Factor Calc Ord. Units'!$A$1:$FA$682,ROW(),LOOKUP(2,1/('EQ Factor Calc Ord. Units'!$A35:$FA35<>""),COLUMN('EQ Factor Calc Ord. Units'!$A35:$FA35))-1))) -> 0.8749 | I35: =IF($R35="Yes","Yes",IF($A36="",$R35,LOOKUP(2,1/('EQ Factor Calc Ord. Units'!$A35:$FA35<>""),'EQ Factor Calc Ord. Units'!$A35:$FA35))) -> No | J35: $60.2782 | K35: -46.2% | L35: -39.7% | M35: -61.2% | N35: -45.5% | O35: 157.6337 | P35: =IF($R35="Yes",1,IF($A36="",1,INDEX('EQ Factor Calc Elite Units'!$A$1:$FA$682,ROW(),LOOKUP(2,1/('EQ Factor Calc Elite Units'!$A35:$FA35<>""),COLUMN('EQ Factor Calc Elite Units'!$A35:$FA35))-1))) -> 0.8987 | Q35: =IF($R35="Yes","Yes",IF($A36="",$R35,LOOKUP(2,1/('EQ Factor Calc Elite Units'!$A35:$FA35<>""),'EQ Factor Calc Elite Units'!$A35:$FA35))) -> No | R35: No | S35: 261.7% | T35: 12.5% | U35: $182.83 | V35: 154.09 | W35: 174.28 | X35: 1.19 | Y35: 1.05 | Z35: -11.4% | AA35: 0.9% | AB35: -19.3% | AC35: =U35/$U$23-1 -> -9.0% | AD35: $5,269.20 | AE35: -12.4% | AF35: 10.0% | AG35: -19.6% | AH35: -7.0% | AJ35: 2018-12-31 | AK35: 11.97451954 | AL35: 13.51881286 | AM35: 2018-12-31 | AN35: 114.81229890 | AO35: 129.61906137
A36: 2020-04-30 | B36: 6.7614 | C36: 8.2% | D36: -32.4% | E36: -58.0% | F36: =B36/$B$35-1 -> 8.2% | G36: 16.4271 | H36: =IF($R36="Yes",1,IF($A37="",1,INDEX('EQ Factor Calc Ord. Units'!$A$1:$FA$682,ROW(),LOOKUP(2,1/('EQ Factor Calc Ord. Units'!$A36:$FA36<>""),COLUMN('EQ Factor Calc Ord. Units'!$A36:$FA36))-1))) -> 0.8875 | I36: =IF($R36="Yes","Yes",IF($A37="",$R36,LOOKUP(2,1/('EQ Factor Calc Ord. Units'!$A36:$FA36<>""),'EQ Factor Calc Ord. Units'!$A36:$FA36))) -> No | J36: $65.1979 | K36: 8.2% | L36: -34.8% | M36: -58.0% | N36: =J36/$J$35-1 -> 8.2% | O36: 158.4010 | P36: =IF($R36="Yes",1,IF($A37="",1,INDEX('EQ Factor Calc Elite Units'!$A$1:$FA$682,ROW(),LOOKUP(2,1/('EQ Factor Calc Elite Units'!$A36:$FA36<>""),COLUMN('EQ Factor Calc Elite Units'!$A36:$FA36))-1))) -> 0.9091 | Q36: =IF($R36="Yes","Yes",IF($A37="",$R36,LOOKUP(2,1/('EQ Factor Calc Elite Units'!$A36:$FA36<>""),'EQ Factor Calc Elite Units'!$A36:$FA36))) -> No | R36: No | S36: 237.9% | T36: 13.1% | U36: $187.36 | V36: 160.36 | W36: 174.28 | X36: 1.17 | Y36: 1.08 | Z36: 2.5% | AA36: 3.4% | AB36: -17.3% | AC36: =U36/$U$35-1 -> 2.5% | AD36: $5,944.68 | AE36: 12.8% | AF36: 24.1% | AG36: -9.3% | AH36: =AD36/$AD$35-1 -> 12.8% | AJ36: 2018-12-31 | AK36: 11.97451954 | AL36: 13.51881286 | AM36: 2018-12-31 | AN36: 114.81229890 | AO36: 129.61906137
A37: 2020-05-31 | B37: 6.3257 | C37: -6.4% | D37: -36.7% | E37: -60.7% | F37: 1.2% | G37: 16.5070 | H37: =IF($R37="Yes",1,IF($A38="",1,INDEX('EQ Factor Calc Ord. Units'!$A$1:$FA$682,ROW(),LOOKUP(2,1/('EQ Factor Calc Ord. Units'!$A37:$FA37<>""),COLUMN('EQ Factor Calc Ord. Units'!$A37:$FA37))-1))) -> 0.8756 | I37: =IF($R37="Yes","Yes",IF($A38="",$R37,LOOKUP(2,1/('EQ Factor Calc Ord. Units'!$A37:$FA37<>""),'EQ Factor Calc Ord. Units'!$A37:$FA37))) -> No | J37: $60.9971 | K37: -6.4% | L37: -39.0% | M37: -60.7% | N37: 1.2% | O37: 159.1720 | P37: =IF($R37="Yes",1,IF($A38="",1,INDEX('EQ Factor Calc Elite Units'!$A$1:$FA$682,ROW(),LOOKUP(2,1/('EQ Factor Calc Elite Units'!$A37:$FA37<>""),COLUMN('EQ Factor Calc Elite Units'!$A37:$FA37))-1))) -> 0.8994 | Q37: =IF($R37="Yes","Yes",IF($A38="",$R37,LOOKUP(2,1/('EQ Factor Calc Elite Units'!$A37:$FA37<>""),'EQ Factor Calc Elite Units'!$A37:$FA37))) -> No | R37: No | S37: 199.1% | T37: 40.1% | U37: $185.58 | V37: 157.61 | W37: 174.28 | X37: 1.18 | Y37: 1.06 | Z37: -1.0% | AA37: 2.4% | AB37: -18.1% | AC37: =U37/$U$35-1 -> 1.5% | AD37: $6,227.81 | AE37: 4.8% | AF37: 30.0% | AG37: -5.0% | AH37: 18.2% | AJ37: 2019-01-31 | AK37: 12.21819785 | AL37: 13.58461637 | AM37: 2019-01-31 | AN37: 117.1486988 | AO37: 130.24998871
A38: 2020-06-30 | B38: 5.9518 | C38: =B38/B37-1 -> -5.9% | D38: -40.5% | E38: -63.1% | F38: -4.8% | G38: 16.5874 | H38: =IF($R38="Yes",1,IF($A39="",1,INDEX('EQ Factor Calc Ord. Units'!$A$1:$FA$682,ROW(),LOOKUP(2,1/('EQ Factor Calc Ord. Units'!$A38:$FA38<>""),COLUMN('EQ Factor Calc Ord. Units'!$A38:$FA38))-1))) -> 0.8654 | I38: =IF($R38="Yes","Yes",IF($A39="",$R38,LOOKUP(2,1/('EQ Factor Calc Ord. Units'!$A38:$FA38<>""),'EQ Factor Calc Ord. Units'!$A38:$FA38))) -> No | J38: $57.3914 | K38: -5.9% | L38: -42.6% | M38: -63.1% | N38: -4.8% | O38: 159.9468 | P38: =IF($R38="Yes",1,IF($A39="",1,INDEX('EQ Factor Calc Elite Units'!$A$1:$FA$682,ROW(),LOOKUP(2,1/('EQ Factor Calc Elite Units'!$A38:$FA38<>""),COLUMN('EQ Factor Calc Elite Units'!$A38:$FA38))-1))) -> 0.8910 | Q38: =IF($R38="Yes","Yes",IF($A39="",$R38,LOOKUP(2,1/('EQ Factor Calc Elite Units'!$A38:$FA38<>""),'EQ Factor Calc Elite Units'!$A38:$FA38))) -> No | R38: No | S38: 187.9% | T38: 63.5% | U38: $178.51 | V38: 166.51 | W38: 174.28 | X38: 1.07 | Y38: 1.02 | Z38: -3.8% | AA38: -1.5% | AB38: -21.2% | AC38: -2.4% | AD38: $6,351.67 | AE38: 2.0% | AF38: 32.6% | AG38: -3.1% | AH38: 20.5% | AJ38: 2019-01-31 | AK38: 12.21819785 | AL38: 13.58461637 | AM38: 2019-01-31 | AN38: 117.1486988 | AO38: 130.24998871
A39: 2020-07-31 | B39: 7.1413 | C39: 20.0% | D39: -28.6% | E39: -55.7% | F39: 14.2% | G39: 16.6681 | H39: =IF($R39="Yes",1,IF($A40="",1,INDEX('EQ Factor Calc Ord. Units'!$A$1:$FA$682,ROW(),LOOKUP(2,1/('EQ Factor Calc Ord. Units'!$A39:$FA39<>""),COLUMN('EQ Factor Calc Ord. Units'!$A39:$FA39))-1))) -> 0.8945 | I39: =IF($R39="Yes","Yes",IF($A40="",$R39,LOOKUP(2,1/('EQ Factor Calc Ord. Units'!$A39:$FA39<>""),'EQ Factor Calc Ord. Units'!$A39:$FA39))) -> No | J39: $68.8609 | K39: 20.0% | L39: -31.1% | M39: -55.7% | N39: 14.2% | O39: 160.7253 | P39: =IF($R39="Yes",1,IF($A40="",1,INDEX('EQ Factor Calc Elite Units'!$A$1:$FA$682,ROW(),LOOKUP(2,1/('EQ Factor Calc Elite Units'!$A39:$FA39<>""),COLUMN('EQ Factor Calc Elite Units'!$A39:$FA39))-1))) -> 0.9148 | Q39: =IF($R39="Yes","Yes",IF($A40="",$R39,LOOKUP(2,1/('EQ Factor Calc Elite Units'!$A39:$FA39<>""),'EQ Factor Calc Elite Units'!$A39:$FA39))) -> No | R39: No | S39: 160.7% | T39: 55.7% | U39: $195.78 | V39: 169.48 | W39: 174.28 | X39: 1.16 | Y39: 1.12 | Z39: 9.7% | AA39: 8.1% | AB39: -13.6% | AC39: 7.1% | AD39: $6,709.81 | AE39: 5.6% | AF39: 40.1% | AG39: 2.4% | AH39: 27.3% | AJ39: 2019-02-28 | AK39: 11.67431452 | AL39: 13.65074018 | AM39: 2019-02-28 | AN39: 111.933918 | AO39: 130.88398711
A40: 2020-08-31 | B40: 8.4327 | C40: 18.1% | D40: -15.7% | E40: -47.7% | F40: 34.9% | G40: 16.7493 | H40: =IF($R40="Yes",1,IF($A41="",1,INDEX('EQ Factor Calc Ord. Units'!$A$1:$FA$682,ROW(),LOOKUP(2,1/('EQ Factor Calc Ord. Units'!$A40:$FA40<>""),COLUMN('EQ Factor Calc Ord. Units'!$A40:$FA40))-1))) -> 0.9220 | I40: =IF($R40="Yes","Yes",IF($A41="",$R40,LOOKUP(2,1/('EQ Factor Calc Ord. Units'!$A40:$FA40<>""),'EQ Factor Calc Ord. Units'!$A40:$FA40))) -> No | J40: $81.3143 | K40: 18.1% | L40: -18.7% | M40: -47.7% | N40: 34.9% | O40: 161.5077 | P40: =IF($R40="Yes",1,IF($A41="",1,INDEX('EQ Factor Calc Elite Units'!$A$1:$FA$682,ROW(),LOOKUP(2,1/('EQ Factor Calc Elite Units'!$A40:$FA40<>""),COLUMN('EQ Factor Calc Elite Units'!$A40:$FA40))-1))) -> 0.9372 | Q40: =IF($R40="Yes","Yes",IF($A41="",$R40,LOOKUP(2,1/('EQ Factor Calc Elite Units'!$A40:$FA40<>""),'EQ Factor Calc Elite Units'!$A40:$FA40))) -> No | R40: No | S40: 113.2% | T40: 50.4% | U40: $218.04 | V40: 178.69 | W40: 178.69 | X40: 1.22 | Y40: 1.22 | Z40: 11.4% | AA40: 20.4% | AB40: -3.7% | AC40: 19.3% | AD40: $7,192.11 | AE40: 7.2% | AF40: 50.2% | AG40: 9.7% | AH40: 36.5% | AJ40: 2019-02-28 | AK40: 11.67431452 | AL40: 13.65074018 | AM40: 2019-02-28 | AN40: 111.933918 | AO40: 130.88398711
A41: 2020-09-30 | B41: 8.1108 | C41: -3.8% | D41: -18.9% | E41: -49.7% | F41: 29.7% | G41: 16.8308 | H41: =IF($R41="Yes",1,IF($A42="",1,INDEX('EQ Factor Calc Ord. Units'!$A$1:$FA$682,ROW(),LOOKUP(2,1/('EQ Factor Calc Ord. Units'!$A41:$FA41<>""),COLUMN('EQ Factor Calc Ord. Units'!$A41:$FA41))-1))) -> 0.9145 | I41: =IF($R41="Yes","Yes",IF($A42="",$R41,LOOKUP(2,1/('EQ Factor Calc Ord. Units'!$A41:$FA41<>""),'EQ Factor Calc Ord. Units'!$A41:$FA41))) -> No | J41: $78.2095 | K41: -3.8% | L41: -21.8% | M41: -49.7% | N41: 29.7% | O41: 162.2938 | P41: =IF($R41="Yes",1,IF($A42="",1,INDEX('EQ Factor Calc Elite Units'!$A$1:$FA$682,ROW(),LOOKUP(2,1/('EQ Factor Calc Elite Units'!$A41:$FA41<>""),COLUMN('EQ Factor Calc Elite Units'!$A41:$FA41))-1))) -> 0.9311 | Q41: =IF($R41="Yes","Yes",IF($A42="",$R41,LOOKUP(2,1/('EQ Factor Calc Elite Units'!$A41:$FA41<>""),'EQ Factor Calc Elite Units'!$A41:$FA41))) -> No | R41: No | S41: 90.2% | T41: 51.9% | U41: $212.94 | V41: 173.33 | W41: 178.69 | X41: 1.23 | Y41: 1.19 | Z41: -2.3% | AA41: 17.5% | AB41: =U41/$U$32-1 -> -6.0% | AC41: 16.5% | AD41: $6,918.83 | AE41: =AD41/AD40-1 -> -3.8% | AF41: =AD41/$AD$4-1 -> 44.5% | AG41: =AD41/$AD$32-1 -> 5.6% | AH41: 31.3% | AJ41: 2019-03-31 | AK41: 11.53240184 | AL41: 13.71718585 | AM41: 2019-03-31 | AN41: 110.573252 | AO41: 131.52107154
A42: 2020-10-31 | B42: 7.8756 | C42: -2.9% | D42: =B42/$B$4-1 -> -21.2% | E42: =B42/$B$32-1 -> -51.1% | F42: =B42/$B$35-1 -> 26.0% | G42: 16.9127 | H42: =IF($R42="Yes",1,IF($A43="",1,INDEX('EQ Factor Calc Ord. Units'!$A$1:$FA$682,ROW(),LOOKUP(2,1/('EQ Factor Calc Ord. Units'!$A42:$FA42<>""),COLUMN('EQ Factor Calc Ord. Units'!$A42:$FA42))-1))) -> 0.9089 | I42: =IF($R42="Yes","Yes",IF($A43="",$R42,LOOKUP(2,1/('EQ Factor Calc Ord. Units'!$A42:$FA42<>""),'EQ Factor Calc Ord. Units'!$A42:$FA42))) -> No | J42: $75.9419 | K42: -2.9% | L42: -24.1% | M42: -51.1% | N42: 26.0% | O42: 163.0838 | P42: =IF($R42="Yes",1,IF($A43="",1,INDEX('EQ Factor Calc Elite Units'!$A$1:$FA$682,ROW(),LOOKUP(2,1/('EQ Factor Calc Elite Units'!$A42:$FA42<>""),COLUMN('EQ Factor Calc Elite Units'!$A42:$FA42))-1))) -> 0.9266 | Q42: =IF($R42="Yes","Yes",IF($A43="",$R42,LOOKUP(2,1/('EQ Factor Calc Elite Units'!$A42:$FA42<>""),'EQ Factor Calc Elite Units'!$A42:$FA42))) -> No | R42: No | S42: 78.4% | T42: 60.6% | U42: $201.90 | V42: 173.27 | W42: 178.69 | X42: 1.17 | Y42: 1.13 | Z42: -5.2% | AA42: 11.4% | AB42: -10.9% | AC42: 10.4% | AD42: $6,734.84 | AE42: -2.7% | AF42: =AD42/$AD$4-1 -> 40.6% | AG42: =AD42/$AD$32-1 -> 2.8% | AH42: 27.8% | AJ42: 2019-03-31 | AK42: 11.53240184 | AL42: 13.71718585 | AM42: 2019-03-31 | AN42: 110.573252 | AO42: 131.52107154
A43: 2020-11-30 | B43: 9.2066 | C43: 16.9% | D43: -7.9% | E43: -42.9% | F43: 47.3% | G43: =MAX(B43,G42*1.06^(1/12)) -> 16.9950 | H43: =IF($R43="Yes",1,IF($A44="",1,INDEX('EQ Factor Calc Ord. Units'!$A$1:$FA$682,ROW(),LOOKUP(2,1/('EQ Factor Calc Ord. Units'!$A43:$FA43<>""),COLUMN('EQ Factor Calc Ord. Units'!$A43:$FA43))-1))) -> 0.9352 | I43: =IF($R43="Yes","Yes",IF($A44="",$R43,LOOKUP(2,1/('EQ Factor Calc Ord. Units'!$A43:$FA43<>""),'EQ Factor Calc Ord. Units'!$A43:$FA43))) -> No | J43: $88.7761 | K43: =J43/J42-1 -> 16.9% | L43: =J43/$J$5-1 -> -11.2% | M43: =J43/$J$32-1 -> -42.9% | N43: =J43/$J$35-1 -> 47.3% | O43: =MAX(J43,O42*1.06^(1/12)) -> 163.8776 | P43: =IF($R43="Yes",1,IF($A44="",1,INDEX('EQ Factor Calc Elite Units'!$A$1:$FA$682,ROW(),LOOKUP(2,1/('EQ Factor Calc Elite Units'!$A43:$FA43<>""),COLUMN('EQ Factor Calc Elite Units'!$A43:$FA43))-1))) -> 0.9479 | Q43: =IF($R43="Yes","Yes",IF($A44="",$R43,LOOKUP(2,1/('EQ Factor Calc Elite Units'!$A43:$FA43<>""),'EQ Factor Calc Elite Units'!$A43:$FA43))) -> No | R43: No | S43: 67.2% | T43: 57.2% | U43: $228.91 | V43: 181.95 | W43: =MAX(V43,W42) -> 181.95 | X43: =U43/V43 -> 1.26 | Y43: =U43/W43 -> 1.26 | Z43: =U43/U42-1 -> 13.4% | AA43: =U43/$U$4-1 -> 26.4% | AB43: 1.1% | AC43: =U43/$U$35-1 -> 25.2% | AD43: $7,472.06 | AE43: 10.9% | AF43: =AD43/$AD$4-1 -> 56.0% | AG43: =AD43/$AD$32-1 -> 14.0% | AH43: =AD43/$AD$35-1 -> 41.8% | AJ43: 2019-04-30 | AK43: 13.66031085 | AL43: 13.78395494 | AM43: 2019-04-30 | AN43: 130.9757512 | AO43: 132.16125700
A44: 2020-12-31 | B44: 9.7085 | C44: 5.5% | D44: -2.9% | E44: -39.7% | F44: 55.3% | G44: 17.0778 | H44: =IF($R44="Yes",1,IF($A45="",1,INDEX('EQ Factor Calc Ord. Units'!$A$1:$FA$682,ROW(),LOOKUP(2,1/('EQ Factor Calc Ord. Units'!$A44:$FA44<>""),COLUMN('EQ Factor Calc Ord. Units'!$A44:$FA44))-1))) -> 0.9441 | I44: =IF($R44="Yes","Yes",IF($A45="",$R44,LOOKUP(2,1/('EQ Factor Calc Ord. Units'!$A44:$FA44<>""),'EQ Factor Calc Ord. Units'!$A44:$FA44))) -> No | J44: $93.6162 | K44: 5.5% | L44: -6.4% | M44: -39.7% | N44: =J44/$J$35-1 -> 55.3% | O44: =MAX(J44,O43*1.06^(1/12)) -> 164.6753 | P44: =IF($R44="Yes",1,IF($A45="",1,INDEX('EQ Factor Calc Elite Units'!$A$1:$FA$682,ROW(),LOOKUP(2,1/('EQ Factor Calc Elite Units'!$A44:$FA44<>""),COLUMN('EQ Factor Calc Elite Units'!$A44:$FA44))-1))) -> 0.9551 | Q44: =IF($R44="Yes","Yes",IF($A45="",$R44,LOOKUP(2,1/('EQ Factor Calc Elite Units'!$A44:$FA44<>""),'EQ Factor Calc Elite Units'!$A44:$FA44))) -> No | R44: No | S44: 64.3% | T44: 59.8% | U44: $231.87 | V44: 188.61 | W44: =MAX(V44,W43) -> 188.61 | X44: =U44/V44 -> 1.23 | Y44: =U44/W44 -> 1.23 | Z44: =U44/U43-1 -> 1.3% | AA44: =U44/$U$4-1 -> 28.0% | AB44: 2.4% | AC44: =U44/$U$35-1 -> 26.8% | AD44: $7,759.35 | AE44: 3.8% | AF44: =AD44/$AD$4-1 -> 62.0% | AG44: =AD44/$AD$32-1 -> 18.4% | AH44: =AD44/$AD$35-1 -> 47.3% | AJ44: 2019-04-30 | AK44: 13.66031085 | AL44: 13.78395494 | AM44: 2019-04-30 | AN44: 130.9757512 | AO44: 132.16125700
A45: 2021-01-31 | B45: 9.8083 | C45: =B45/B44-1 -> 1.0% | D45: -1.9% | E45: =B45/$B$44-1 -> 1.0% | F45: =B45/$B$35-1 -> 56.9% | G45: =MAX(B45,G44*1.06^(1/12)) -> 17.1609 | H45: =IF($R45="Yes",1,IF($A46="",1,INDEX('EQ Factor Calc Ord. Units'!$A$1:$FA$682,ROW(),LOOKUP(2,1/('EQ Factor Calc Ord. Units'!$A45:$FA45<>""),COLUMN('EQ Factor Calc Ord. Units'!$A45:$FA45))-1))) -> 0.9451 | I45: =IF($R45="Yes","Yes",IF($A46="",$R45,LOOKUP(2,1/('EQ Factor Calc Ord. Units'!$A45:$FA45<>""),'EQ Factor Calc Ord. Units'!$A45:$FA45))) -> No | J45: $94.5783 | K45: =J45/J44-1 -> 1.0% | L45: =J45/$J$5-1 -> -5.4% | M45: =J45/$J$44-1 -> 1.0% | N45: =J45/$J$35-1 -> 56.9% | O45: =MAX(J45,O44*1.06^(1/12)) -> 165.4769 | P45: =IF($R45="Yes",1,IF($A46="",1,INDEX('EQ Factor Calc Elite Units'!$A$1:$FA$682,ROW(),LOOKUP(2,1/('EQ Factor Calc Elite Units'!$A45:$FA45<>""),COLUMN('EQ Factor Calc Elite Units'!$A45:$FA45))-1))) -> 0.9559 | Q45: =IF($R45="Yes","Yes",IF($A46="",$R45,LOOKUP(2,1/('EQ Factor Calc Elite Units'!$A45:$FA45<>""),'EQ Factor Calc Elite Units'!$A45:$FA45))) -> No | R45: No | S45: 62.3% | T45: 62.2% | U45: $227.87 | V45: 187.44 | W45: =MAX(V45,W44) -> 188.61 | X45: =U45/V45 -> 1.22 | Y45: =U45/W45 -> 1.21 | Z45: =U45/U44-1 -> -1.7% | AA45: =U45/$U$4-1 -> 25.8% | AB45: =U45/$U$44-1 -> -1.7% | AC45: =U45/$U$35-1 -> 24.6% | AD45: $7,681.01 | AE45: -1.0% | AF45: 60.4% | AG45: =AD45/$AD$44-1 -> -1.0% | AH45: =AD45/$AD$35-1 -> 45.8% | AJ45: 2019-05-31 | AK45: 11.33562876 | AL45: 13.85104904 | AM45: 2019-05-31 | AN45: 108.6865817 | AO45: 132.80455861
A46: 2021-02-28 | B46: 10.2835 | C46: 4.8% | D46: 2.8% | E46: 5.9% | F46: 64.5% | G46: =MAX(B46,G45*1.06^(1/12)) -> 17.2444 | H46: =IF($R46="Yes",1,IF($A47="",1,INDEX('EQ Factor Calc Ord. Units'!$A$1:$FA$682,ROW(),LOOKUP(2,1/('EQ Factor Calc Ord. Units'!$A46:$FA46<>""),COLUMN('EQ Factor Calc Ord. Units'!$A46:$FA46))-1))) -> 0.9530 | I46: =IF($R46="Yes","Yes",IF($A47="",$R46,LOOKUP(2,1/('EQ Factor Calc Ord. Units'!$A46:$FA46<>""),'EQ Factor Calc Ord. Units'!$A46:$FA46))) -> No | J46: $99.1604 | K46: 4.8% | L46: -0.8% | M46: 5.9% | N46: 64.5% | O46: =MAX(J46,O45*1.06^(1/12)) -> 166.2823 | P46: =IF($R46="Yes",1,IF($A47="",1,INDEX('EQ Factor Calc Elite Units'!$A$1:$FA$682,ROW(),LOOKUP(2,1/('EQ Factor Calc Elite Units'!$A46:$FA46<>""),COLUMN('EQ Factor Calc Elite Units'!$A46:$FA46))-1))) -> 0.9623 | Q46: =IF($R46="Yes","Yes",IF($A47="",$R46,LOOKUP(2,1/('EQ Factor Calc Elite Units'!$A46:$FA46<>""),'EQ Factor Calc Elite Units'!$A46:$FA46))) -> No | R46: No | S46: 49.9% | T46: 73.4% | U46: $240.51 | V46: 192.37 | W46: =MAX(V46,W45) -> 192.37 | X46: =U46/V46 -> 1.25 | Y46: =U46/W46 -> 1.25 | Z46: =U46/U45-1 -> 5.5% | AA46: =U46/$U$4-1 -> 32.8% | AB46: 3.7% | AC46: =U46/$U$35-1 -> 31.5% | AD46: $7,892.81 | AE46: 2.8% | AF46: 64.8% | AG46: 1.7% | AH46: 49.8% | AJ46: 2019-05-31 | AK46: 11.33562876 | AL46: 13.85104904 | AM46: 2019-05-31 | AN46: 108.6865817 | AO46: 132.80455861
A47: 2021-03-31 | B47: 11.4857 | C47: 11.7% | D47: 14.9% | E47: 18.3% | F47: 83.7% | G47: =MAX(B47,G46*1.06^(1/12)) -> 17.3284 | H47: =IF($R47="Yes",1,IF($A48="",1,INDEX('EQ Factor Calc Ord. Units'!$A$1:$FA$682,ROW(),LOOKUP(2,1/('EQ Factor Calc Ord. Units'!$A47:$FA47<>""),COLUMN('EQ Factor Calc Ord. Units'!$A47:$FA47))-1))) -> 0.9725 | I47: =IF($R47="Yes","Yes",IF($A48="",$R47,LOOKUP(2,1/('EQ Factor Calc Ord. Units'!$A47:$FA47<>""),'EQ Factor Calc Ord. Units'!$A47:$FA47))) -> No | J47: $110.7528 | K47: =J47/J46-1 -> 11.7% | L47: =J47/$J$5-1 -> 10.8% | M47: 18.3% | N47: =J47/$J$35-1 -> 83.7% | O47: =MAX(J47,O46*1.06^(1/12)) -> 167.0917 | P47: =IF($R47="Yes",1,IF($A48="",1,INDEX('EQ Factor Calc Elite Units'!$A$1:$FA$682,ROW(),LOOKUP(2,1/('EQ Factor Calc Elite Units'!$A47:$FA47<>""),COLUMN('EQ Factor Calc Elite Units'!$A47:$FA47))-1))) -> 0.9780 | Q47: =IF($R47="Yes","Yes",IF($A48="",$R47,LOOKUP(2,1/('EQ Factor Calc Elite Units'!$A47:$FA47<>""),'EQ Factor Calc Elite Units'!$A47:$FA47))) -> No | R47: No | S47: 16.6% | T47: 87.1% | U47: $255.47 | V47: 192.94 | W47: =MAX(V47,W46) -> 192.94 | X47: =U47/V47 -> 1.32 | Y47: =U47/W47 -> 1.32 | Z47: =U47/U46-1 -> 6.2% | AA47: =U47/$U$4-1 -> 41.0% | AB47: 10.2% | AC47: =U47/$U$35-1 -> 39.7% | AD47: $8,238.48 | AE47: =AD47/AD46-1 -> 4.4% | AF47: =AD47/$AD$4-1 -> 72.0% | AG47: 6.2% | AH47: =AD47/$AD$35-1 -> 56.4% | AJ47: 2019-06-30 | AK47: 13.39496858 | AL47: 13.91846972 | AM47: 2019-06-30 | AN47: 128.4316361 | AO47: 133.45099151
A48: 2021-04-30 | B48: 12.1556 | C48: =B48/B47-1 -> 5.8% | D48: =B48/$B$4-1 -> 21.6% | E48: 25.2% | F48: =B48/$B$47-1 -> 5.8% | G48: =MAX(B48,G47*1.06^(1/12)) -> 17.4127 | H48: =IF($R48="Yes",1,IF($A49="",1,INDEX('EQ Factor Calc Ord. Units'!$A$1:$FA$682,ROW(),LOOKUP(2,1/('EQ Factor Calc Ord. Units'!$A48:$FA48<>""),COLUMN('EQ Factor Calc Ord. Units'!$A48:$FA48))-1))) -> 0.9824 | I48: =IF($R48="Yes","Yes",IF($A49="",$R48,LOOKUP(2,1/('EQ Factor Calc Ord. Units'!$A48:$FA48<>""),'EQ Factor Calc Ord. Units'!$A48:$FA48))) -> No | J48: $117.2124 | K48: =J48/J47-1 -> 5.8% | L48: =J48/$J$5-1 -> 17.2% | M48: 25.2% | N48: =J48/$J$47-1 -> 5.8% | O48: =MAX(J48,O47*1.06^(1/12)) -> 167.9050 | P48: =IF($R48="Yes",1,IF($A49="",1,INDEX('EQ Factor Calc Elite Units'!$A$1:$FA$682,ROW(),LOOKUP(2,1/('EQ Factor Calc Elite Units'!$A48:$FA48<>""),COLUMN('EQ Factor Calc Elite Units'!$A48:$FA48))-1))) -> 0.9859 | Q48: =IF($R48="Yes","Yes",IF($A49="",$R48,LOOKUP(2,1/('EQ Factor Calc Elite Units'!$A48:$FA48<>""),'EQ Factor Calc Elite Units'!$A48:$FA48))) -> No | R48: =IF(G48=B48,"Yes","No") -> No | S48: 11.7% | T48: 91.4% | U48: $274.95 | V48: 193.44 | W48: =MAX(V48,W47) -> 193.44 | X48: =U48/V48 -> 1.42 | Y48: =U48/W48 -> 1.42 | Z48: =U48/U47-1 -> 7.6% | AA48: =U48/$U$4-1 -> 51.8% | AB48: 18.6% | AC48: =U48/$U$47-1 -> 7.6% | AD48: $8,678.16 | AE48: =AD48/AD47-1 -> 5.3% | AF48: =AD48/$AD$4-1 -> 81.2% | AG48: 11.8% | AH48: =AD48/$AD$47-1 -> 5.3% | AJ48: 2019-06-30 | AK48: 13.39496858 | AL48: 13.91846972 | AM48: 2019-06-30 | AN48: 128.4316361 | AO48: 133.45099151
A49: 2021-05-31 | B49: 12.4957 | C49: 2.8% | D49: 25.0% | E49: 28.7% | F49: =B49/$B$47-1 -> 8.8% | G49: 17.4975 | H49: =IF($R49="Yes",1,IF($A50="",1,INDEX('EQ Factor Calc Ord. Units'!$A$1:$FA$682,ROW(),LOOKUP(2,1/('EQ Factor Calc Ord. Units'!$A49:$FA49<>""),COLUMN('EQ Factor Calc Ord. Units'!$A49:$FA49))-1))) -> 0.9869 | I49: =IF($R49="Yes","Yes",IF($A50="",$R49,LOOKUP(2,1/('EQ Factor Calc Ord. Units'!$A49:$FA49<>""),'EQ Factor Calc Ord. Units'!$A49:$FA49))) -> No | J49: $120.4921 | K49: 2.8% | L49: 20.5% | M49: 28.7% | N49: 8.8% | O49: 168.7223 | P49: =IF($R49="Yes",1,IF($A50="",1,INDEX('EQ Factor Calc Elite Units'!$A$1:$FA$682,ROW(),LOOKUP(2,1/('EQ Factor Calc Elite Units'!$A49:$FA49<>""),COLUMN('EQ Factor Calc Elite Units'!$A49:$FA49))-1))) -> 0.9895 | Q49: =IF($R49="Yes","Yes",IF($A50="",$R49,LOOKUP(2,1/('EQ Factor Calc Elite Units'!$A49:$FA49<>""),'EQ Factor Calc Elite Units'!$A49:$FA49))) -> No | R49: No | S49: 12.0% | T49: 91.7% | U49: $289.44 | V49: 198.57 | W49: 198.57 | X49: =U49/V49 -> 1.457621997 | Y49: 1.46 | Z49: 5.3% | AA49: 59.8% | AB49: 24.8% | AC49: 13.3% | AD49: $8,738.77 | AE49: 0.7% | AF49: 82.5% | AG49: 12.6% | AH49: 6.1% | AJ49: 2019-07-31 | AK49: 12.27363307 | AL49: 13.98621858 | AM49: 2019-07-31 | AN49: 117.6802146 | AO49: 134.10057096
A50: 2021-06-30 | B50: 12.4053 | C50: =B50/B49-1 -> -0.7% | D50: 24.1% | E50: 27.8% | F50: 8.0% | G50: 17.5826 | H50: =IF($R50="Yes",1,IF($A51="",1,INDEX('EQ Factor Calc Ord. Units'!$A$1:$FA$682,ROW(),LOOKUP(2,1/('EQ Factor Calc Ord. Units'!$A50:$FA50<>""),COLUMN('EQ Factor Calc Ord. Units'!$A50:$FA50))-1))) -> 0.9846 | I50: =IF($R50="Yes","Yes",IF($A51="",$R50,LOOKUP(2,1/('EQ Factor Calc Ord. Units'!$A50:$FA50<>""),'EQ Factor Calc Ord. Units'!$A50:$FA50))) -> No | J50: $119.6208 | K50: -0.7% | L50: 19.6% | M50: 27.8% | N50: 8.0% | O50: 169.5436 | P50: =IF($R50="Yes",1,IF($A51="",1,INDEX('EQ Factor Calc Elite Units'!$A$1:$FA$682,ROW(),LOOKUP(2,1/('EQ Factor Calc Elite Units'!$A50:$FA50<>""),COLUMN('EQ Factor Calc Elite Units'!$A50:$FA50))-1))) -> 0.9877 | Q50: =IF($R50="Yes","Yes",IF($A51="",$R50,LOOKUP(2,1/('EQ Factor Calc Elite Units'!$A50:$FA50<>""),'EQ Factor Calc Elite Units'!$A50:$FA50))) -> No | R50: No | S50: 8.0% | T50: 102.9% | U50: $277.92 | V50: 202.05 | W50: 202.05 | X50: =U50/V50 -> 1.375501114 | Y50: 1.38 | Z50: -4.0% | AA50: 53.4% | AB50: 19.9% | AC50: 8.8% | AD50: $8,942.78 | AE50: =AD50/AD49-1 -> 2.3% | AF50: 86.7% | AG50: 15.3% | AH50: 8.5% | AJ50: 2019-07-31 | AK50: 12.27363307 | AL50: 13.98621858 | AM50: 2019-07-31 | AN50: 117.6802146 | AO50: 134.10057096
A51: 2021-07-31 | B51: 13.1171 | C51: 5.7% | D51: 31.2% | E51: 35.1% | F51: 14.2% | G51: 17.6682 | H51: =IF($R51="Yes",1,IF($A52="",1,INDEX('EQ Factor Calc Ord. Units'!$A$1:$FA$682,ROW(),LOOKUP(2,1/('EQ Factor Calc Ord. Units'!$A51:$FA51<>""),COLUMN('EQ Factor Calc Ord. Units'!$A51:$FA51))-1))) -> 0.9945 | I51: =IF($R51="Yes","Yes",IF($A52="",$R51,LOOKUP(2,1/('EQ Factor Calc Ord. Units'!$A51:$FA51<>""),'EQ Factor Calc Ord. Units'!$A51:$FA51))) -> No | J51: $126.4844 | K51: 5.7% | L51: 26.5% | M51: 35.1% | N51: 14.2% | O51: 170.3689 | P51: =IF($R51="Yes",1,IF($A52="",1,INDEX('EQ Factor Calc Elite Units'!$A$1:$FA$682,ROW(),LOOKUP(2,1/('EQ Factor Calc Elite Units'!$A51:$FA51<>""),COLUMN('EQ Factor Calc Elite Units'!$A51:$FA51))-1))) -> 0.9956 | Q51: =IF($R51="Yes","Yes",IF($A52="",$R51,LOOKUP(2,1/('EQ Factor Calc Elite Units'!$A51:$FA51<>""),'EQ Factor Calc Elite Units'!$A51:$FA51))) -> No | R51: No | S51: 7.5% | T51: 101.3% | U51: $278.29 | V51: 195.50 | W51: 202.05 | X51: =U51/V51 -> 1.423478261 | Y51: 1.38 | Z51: 0.1% | AA51: 53.6% | AB51: =U51/$U$44-1 -> 20.0% | AC51: 8.9% | AD51: $9,155.21 | AE51: 2.4% | AF51: 91.2% | AG51: =AD51/$AD$44-1 -> 18.0% | AH51: 11.1% | AJ51: 2019-08-31 | AK51: 12.04981624 | AL51: 14.05429720 | AM51: 2019-08-31 | AN51: 115.5342474 | AO51: 134.75331227
A52: 2021-08-31 | B52: 13.0851 | C52: -0.2% | D52: 30.9% | E52: 34.8% | F52: 13.9% | G52: 17.7542 | H52: =IF($R52="Yes",1,IF($A53="",1,INDEX('EQ Factor Calc Ord. Units'!$A$1:$FA$682,ROW(),LOOKUP(2,1/('EQ Factor Calc Ord. Units'!$A52:$FA52<>""),COLUMN('EQ Factor Calc Ord. Units'!$A52:$FA52))-1))) -> 0.9930 | I52: =IF($R52="Yes","Yes",IF($A53="",$R52,LOOKUP(2,1/('EQ Factor Calc Ord. Units'!$A52:$FA52<>""),'EQ Factor Calc Ord. Units'!$A52:$FA52))) -> No | J52: $126.1754 | K52: -0.2% | L52: 26.2% | M52: 34.8% | N52: 13.9% | O52: 171.1981 | P52: =IF($R52="Yes",1,IF($A53="",1,INDEX('EQ Factor Calc Elite Units'!$A$1:$FA$682,ROW(),LOOKUP(2,1/('EQ Factor Calc Elite Units'!$A52:$FA52<>""),COLUMN('EQ Factor Calc Elite Units'!$A52:$FA52))-1))) -> 0.9944 | Q52: =IF($R52="Yes","Yes",IF($A53="",$R52,LOOKUP(2,1/('EQ Factor Calc Elite Units'!$A52:$FA52<>""),'EQ Factor Calc Elite Units'!$A52:$FA52))) -> No | R52: No | S52: 7.8% | T52: 95.3% | U52: $285.77 | W52: 202.05 | Y52: 1.41 | Z52: 2.7% | AA52: 57.7% | AB52: 23.2% | AC52: 11.9% | AD52: $9,433.58 | AE52: 3.0% | AF52: 97.0% | AG52: =AD52/$AD$44-1 -> 21.6% | AH52: 14.5% | AJ52: 2019-08-31 | AK52: 12.04981624 | AL52: 14.05429720 | AM52: 2019-08-31 | AN52: 115.5342474 | AO52: 134.75331227
A53: 2021-09-30 | B53: 13.2429 | C53: 1.2% | D53: 32.4% | E53: 36.4% | F53: 15.3% | G53: 17.8406 | H53: =IF($R53="Yes",1,IF($A54="",1,INDEX('EQ Factor Calc Ord. Units'!$A$1:$FA$682,ROW(),LOOKUP(2,1/('EQ Factor Calc Ord. Units'!$A53:$FA53<>""),COLUMN('EQ Factor Calc Ord. Units'!$A53:$FA53))-1))) -> 0.9944 | I53: =IF($R53="Yes","Yes",IF($A54="",$R53,LOOKUP(2,1/('EQ Factor Calc Ord. Units'!$A53:$FA53<>""),'EQ Factor Calc Ord. Units'!$A53:$FA53))) -> No | J53: $127.6969 | K53: 1.2% | L53: 27.7% | M53: 36.4% | N53: 15.3% | O53: 172.0315 | P53: =IF($R53="Yes",1,IF($A54="",1,INDEX('EQ Factor Calc Elite Units'!$A$1:$FA$682,ROW(),LOOKUP(2,1/('EQ Factor Calc Elite Units'!$A53:$FA53<>""),COLUMN('EQ Factor Calc Elite Units'!$A53:$FA53))-1))) -> 0.9955 | Q53: =IF($R53="Yes","Yes",IF($A54="",$R53,LOOKUP(2,1/('EQ Factor Calc Elite Units'!$A53:$FA53<>""),'EQ Factor Calc Elite Units'!$A53:$FA53))) -> No | R53: =IF(G53=B53,"Yes","No") -> No | S53: 7.3% | T53: 94.8% | U53: $272.94 | W53: 202.05 | Y53: 1.35 | Z53: -4.5% | AA53: 50.7% | AB53: =U53/$U$44-1 -> 17.7% | AC53: 6.8% | AD53: $8,994.83 | AE53: -4.7% | AF53: 87.8% | AG53: 15.9% | AH53: 9.2% | AJ53: 2019-09-30 | AK53: 12.90722853 | AL53: 14.12270720 | AM53: 2019-09-30 | AN53: 123.7551599 | AO53: 135.40923083
A54: 2021-10-31 | B54: 13.3176 | C54: 0.6% | D54: 33.2% | E54: 37.2% | F54: 15.9% | G54: =MAX(B54,G53*1.06^(1/12)) -> 17.9275 | H54: =IF($R54="Yes",1,IF($A55="",1,INDEX('EQ Factor Calc Ord. Units'!$A$1:$FA$682,ROW(),LOOKUP(2,1/('EQ Factor Calc Ord. Units'!$A54:$FA54<>""),COLUMN('EQ Factor Calc Ord. Units'!$A54:$FA54))-1))) -> 0.9946 | I54: =IF($R54="Yes","Yes",IF($A55="",$R54,LOOKUP(2,1/('EQ Factor Calc Ord. Units'!$A54:$FA54<>""),'EQ Factor Calc Ord. Units'!$A54:$FA54))) -> No | J54: $128.4171 | K54: 0.6% | L54: 28.4% | M54: 37.2% | N54: 15.9% | O54: =MAX(J54,O53*1.06^(1/12)) -> 172.8688 | P54: =IF($R54="Yes",1,IF($A55="",1,INDEX('EQ Factor Calc Elite Units'!$A$1:$FA$682,ROW(),LOOKUP(2,1/('EQ Factor Calc Elite Units'!$A54:$FA54<>""),COLUMN('EQ Factor Calc Elite Units'!$A54:$FA54))-1))) -> 0.9957 | Q54: =IF($R54="Yes","Yes",IF($A55="",$R54,LOOKUP(2,1/('EQ Factor Calc Elite Units'!$A54:$FA54<>""),'EQ Factor Calc Elite Units'!$A54:$FA54))) -> No | R54: No | S54: 7.6% | T54: 92.3% | U54: $287.01 | W54: 202.05 | Y54: =U54/W54 -> 1.42 | Z54: =U54/U53-1 -> 5.2% | AA54: 58.4% | AB54: 23.8% | AC54: 12.3% | AD54: $9,625.02 | AE54: 7.0% | AF54: =AD54/$AD$4-1 -> 101.0% | AG54: 24.0% | AH54: 16.8% | AJ54: 2019-09-30 | AK54: 12.90722853 | AL54: 14.12270720 | AM54: 2019-09-30 | AN54: 123.7551599 | AO54: 135.40923083
A55: 2021-11-30 | B55: 13.0904 | C55: -1.7% | D55: =B55/$B$4-1 -> 30.9% | E55: =B55/$B$44-1 -> 34.8% | F55: =B55/$B$47-1 -> 14.0% | G55: 18.0147 | H55: =IF($R55="Yes",1,IF($A56="",1,INDEX('EQ Factor Calc Ord. Units'!$A$1:$FA$682,ROW(),LOOKUP(2,1/('EQ Factor Calc Ord. Units'!$A55:$FA55<>""),COLUMN('EQ Factor Calc Ord. Units'!$A55:$FA55))-1))) -> 0.9903 | I55: =IF($R55="Yes","Yes",IF($A56="",$R55,LOOKUP(2,1/('EQ Factor Calc Ord. Units'!$A55:$FA55<>""),'EQ Factor Calc Ord. Units'!$A55:$FA55))) -> No | J55: $126.2262 | K55: =J55/J54-1 -> -1.7% | L55: =J55/$J$5-1 -> 26.2% | M55: =J55/$J$44-1 -> 34.8% | N55: =J55/$J$47-1 -> 14.0% | O55: =MAX(J55,O54*1.06^(1/12)) -> 173.7103 | P55: =IF($R55="Yes",1,IF($A56="",1,INDEX('EQ Factor Calc Elite Units'!$A$1:$FA$682,ROW(),LOOKUP(2,1/('EQ Factor Calc Elite Units'!$A55:$FA55<>""),COLUMN('EQ Factor Calc Elite Units'!$A55:$FA55))-1))) -> 0.9923 | Q55: =IF($R55="Yes","Yes",IF($A56="",$R55,LOOKUP(2,1/('EQ Factor Calc Elite Units'!$A55:$FA55<>""),'EQ Factor Calc Elite Units'!$A55:$FA55))) -> No | R55: No | S55: 7.5% | T55: 93.5% | U55: $276.69 | W55: 202.05 | Y55: =U55/W55 -> 1.37 | Z55: =U55/U54-1 -> -3.6% | AA55: =U55/$U$4-1 -> 52.7% | AB55: =U55/$U$44-1 -> 19.3% | AC55: =U55/$U$47-1 -> 8.3% | AD55: $9,558.33 | AE55: -0.7% | AF55: 99.6% | AG55: =AD55/$AD$44-1 -> 23.2% | AH55: =AD55/$AD$47-1 -> 16.0% | AJ55: 2019-10-31 | AK55: 14.03268066 | AL55: 14.19145020 | AM55: 2019-10-31 | AN55: 134.5460517 | AO55: 136.06834211
A56: 2021-12-31 | B56: 13.8222 | C56: 5.6% | D56: 38.2% | E56: 42.4% | F56: 20.3% | G56: =MAX(B56,G55*1.06^(1/12)) -> 18.1024 | H56: =IF($R56="Yes",1,IF($A57="",1,INDEX('EQ Factor Calc Ord. Units'!$A$1:$FA$682,ROW(),LOOKUP(2,1/('EQ Factor Calc Ord. Units'!$A56:$FA56<>""),COLUMN('EQ Factor Calc Ord. Units'!$A56:$FA56))-1))) -> 1.0000 | I56: =IF($R56="Yes","Yes",IF($A57="",$R56,LOOKUP(2,1/('EQ Factor Calc Ord. Units'!$A56:$FA56<>""),'EQ Factor Calc Ord. Units'!$A56:$FA56))) -> No | J56: $133.2831 | K56: 5.6% | L56: 33.3% | M56: 42.4% | N56: 20.3% | O56: =MAX(J56,O55*1.06^(1/12)) -> 174.5558 | P56: =IF($R56="Yes",1,IF($A57="",1,INDEX('EQ Factor Calc Elite Units'!$A$1:$FA$682,ROW(),LOOKUP(2,1/('EQ Factor Calc Elite Units'!$A56:$FA56<>""),COLUMN('EQ Factor Calc Elite Units'!$A56:$FA56))-1))) -> 1.0000 | Q56: =IF($R56="Yes","Yes",IF($A57="",$R56,LOOKUP(2,1/('EQ Factor Calc Elite Units'!$A56:$FA56<>""),'EQ Factor Calc Elite Units'!$A56:$FA56))) -> No | R56: No | S56: 7.7% | T56: 92.9% | U56: $299.00 | W56: 202.05 | Y56: =U56/W56 -> 1.48 | Z56: =U56/U55-1 -> 8.1% | AA56: =U56/$U$4-1 -> 65.0% | AB56: =U56/$U$44-1 -> 29.0% | AC56: =U56/$U$47-1 -> 17.0% | AD56: $9,986.70 | AE56: 4.5% | AF56: 108.5% | AG56: 28.7% | AH56: 21.2% | AJ56: 2019-10-31 | AK56: 14.03268066 | AL56: 14.19145020 | AM56: 2019-10-31 | AN56: 134.5460517 | AO56: 136.06834211
A57: 2022-01-31 | B57: 12.9628 | C57: =B57/B56-1 -> -6.2% | D57: =B57/$B$4-1 -> 29.6% | E57: =B57/$B$56-1 -> -6.2% | F57: =B57/$B$47-1 -> 12.9% | G57: =MAX(B57,G56*1.06^(1/12)) -> 18.1905 | H57: =IF($R57="Yes",1,IF($A58="",1,INDEX('EQ Factor Calc Ord. Units'!$A$1:$FA$682,ROW(),LOOKUP(2,1/('EQ Factor Calc Ord. Units'!$A57:$FA57<>""),COLUMN('EQ Factor Calc Ord. Units'!$A57:$FA57))-1))) -> 1.0000 | I57: =IF($R57="Yes","Yes",IF($A58="",$R57,LOOKUP(2,1/('EQ Factor Calc Ord. Units'!$A57:$FA57<>""),'EQ Factor Calc Ord. Units'!$A57:$FA57))) -> No | J57: $124.9957 | K57: =J57/J56-1 -> -6.2% | L57: =J57/$J$5-1 -> 25.0% | M57: =J57/$J$56-1 -> -6.2% | N57: =J57/$J$47-1 -> 12.9% | O57: =MAX(J57,O56*1.06^(1/12)) -> 175.4055 | P57: =IF($R57="Yes",1,IF($A58="",1,INDEX('EQ Factor Calc Elite Units'!$A$1:$FA$682,ROW(),LOOKUP(2,1/('EQ Factor Calc Elite Units'!$A57:$FA57<>""),COLUMN('EQ Factor Calc Elite Units'!$A57:$FA57))-1))) -> 1.0000 | Q57: =IF($R57="Yes","Yes",IF($A58="",$R57,LOOKUP(2,1/('EQ Factor Calc Elite Units'!$A57:$FA57<>""),'EQ Factor Calc Elite Units'!$A57:$FA57))) -> No | R57: =IF(G57=B57,"Yes","No") -> No | S57: 6.1% | T57: 94.1% | U57: $313.02 | W57: 202.05 | Y57: =U57/W57 -> 1.55 | Z57: =U57/U56-1 -> 4.7% | AA57: =U57/$U$4-1 -> 72.8% | AB57: =U57/$U$56-1 -> 4.7% | AC57: =U57/$U$47-1 -> 22.5% | AD57: $9,469.92 | AE57: -5.2% | AF57: 97.7% | AG57: =AD57/$AD$56-1 -> -5.2% | AH57: =AD57/$AD$47-1 -> 14.9% | AJ57: 2019-11-30 | AK57: 15.14215321 | AL57: 14.26052780 | AM57: 2019-11-30 | AN57: 145.606384 | AO57: 136.73066164
A58: 2022-02-28 | B58: 12.4086 | C58: -4.3% | D58: 24.1% | E58: -10.2% | F58: =B58/$B$47-1 -> 8.0% | G58: 18.2791 | H58: =IF($R58="Yes",1,IF($A59="",1,INDEX('EQ Factor Calc Ord. Units'!$A$1:$FA$682,ROW(),LOOKUP(2,1/('EQ Factor Calc Ord. Units'!$A58:$FA58<>""),COLUMN('EQ Factor Calc Ord. Units'!$A58:$FA58))-1))) -> 0.9907 | I58: =IF($R58="Yes","Yes",IF($A59="",$R58,LOOKUP(2,1/('EQ Factor Calc Ord. Units'!$A58:$FA58<>""),'EQ Factor Calc Ord. Units'!$A58:$FA58))) -> No | J58: $119.6525 | K58: -4.3% | L58: 19.7% | M58: -10.2% | N58: =J58/$J$47-1 -> 8.0% | O58: 176.2593 | P58: =IF($R58="Yes",1,IF($A59="",1,INDEX('EQ Factor Calc Elite Units'!$A$1:$FA$682,ROW(),LOOKUP(2,1/('EQ Factor Calc Elite Units'!$A58:$FA58<>""),COLUMN('EQ Factor Calc Elite Units'!$A58:$FA58))-1))) -> 0.9926 | Q58: =IF($R58="Yes","Yes",IF($A59="",$R58,LOOKUP(2,1/('EQ Factor Calc Elite Units'!$A58:$FA58<>""),'EQ Factor Calc Elite Units'!$A58:$FA58))) -> No | R58: No | S58: 0.0% | T58: 99.9% | U58: $321.45 | W58: 202.05 | Y58: =U58/W58 -> 1.59 | Z58: 2.7% | AA58: 77.4% | AB58: 7.5% | AC58: =U58/$U$47-1 -> 25.8% | AD58: $9,186.37 | AE58: -3.0% | AF58: 91.8% | AG58: -8.0% | AH58: =AD58/$AD$47-1 -> 11.5% | AJ58: 2019-11-30 | AK58: 15.14215321 | AL58: 15.14215321 | AM58: 2019-11-30 | AN58: 145.606384 | AO58: 145.606384
A59: 2022-03-31 | B59: 12.5171 | C59: 0.9% | D59: 25.2% | E59: -9.4% | F59: =B59/$B$47-1 -> 9.0% | G59: 18.3681 | H59: =IF($R59="Yes",1,IF($A60="",1,INDEX('EQ Factor Calc Ord. Units'!$A$1:$FA$682,ROW(),LOOKUP(2,1/('EQ Factor Calc Ord. Units'!$A59:$FA59<>""),COLUMN('EQ Factor Calc Ord. Units'!$A59:$FA59))-1))) -> 0.9915 | I59: =IF($R59="Yes","Yes",IF($A60="",$R59,LOOKUP(2,1/('EQ Factor Calc Ord. Units'!$A59:$FA59<>""),'EQ Factor Calc Ord. Units'!$A59:$FA59))) -> No | J59: $120.6982 | K59: 0.9% | L59: 20.7% | M59: -9.4% | N59: =J59/$J$47-1 -> 9.0% | O59: 177.1172 | P59: =IF($R59="Yes",1,IF($A60="",1,INDEX('EQ Factor Calc Elite Units'!$A$1:$FA$682,ROW(),LOOKUP(2,1/('EQ Factor Calc Elite Units'!$A59:$FA59<>""),COLUMN('EQ Factor Calc Elite Units'!$A59:$FA59))-1))) -> 0.9932 | Q59: =IF($R59="Yes","Yes",IF($A60="",$R59,LOOKUP(2,1/('EQ Factor Calc Elite Units'!$A59:$FA59<>""),'EQ Factor Calc Elite Units'!$A59:$FA59))) -> No | R59: No | S59: 0.0% | T59: 101.1% | U59: $352.91 | W59: =MAX(V59,W58) -> 202.05 | Y59: =U59/W59 -> 1.75 | Z59: 9.8% | AA59: 94.8% | AB59: 18.0% | AC59: =U59/$U$47-1 -> 38.1% | AD59: $9,527.46 | AE59: =AD59/AD58-1 -> 3.7% | AF59: 98.9% | AG59: -4.6% | AH59: =AD59/$AD$47-1 -> 15.6% | AJ59: 2019-12-31 | AK59: 16.11108866 | AL59: 15.21585841 | AM59: 2019-12-31 | AN59: 155.3540564 | AO59: 146.31513048
A60: 2022-04-30 | B60: 11.3259 | C60: -9.5% | D60: 13.3% | E60: -18.1% | F60: =B60/$B$59-1 -> -9.5% | G60: 18.4575 | H60: =IF($R60="Yes",1,IF($A61="",1,INDEX('EQ Factor Calc Ord. Units'!$A$1:$FA$682,ROW(),LOOKUP(2,1/('EQ Factor Calc Ord. Units'!$A60:$FA60<>""),COLUMN('EQ Factor Calc Ord. Units'!$A60:$FA60))-1))) -> 0.9713 | I60: =IF($R60="Yes","Yes",IF($A61="",$R60,LOOKUP(2,1/('EQ Factor Calc Ord. Units'!$A60:$FA60<>""),'EQ Factor Calc Ord. Units'!$A60:$FA60))) -> No | J60: $109.2119 | K60: -9.5% | L60: 9.2% | M60: -18.1% | N60: =J60/$J$59-1 -> -9.5% | O60: 177.9794 | P60: =IF($R60="Yes",1,IF($A61="",1,INDEX('EQ Factor Calc Elite Units'!$A$1:$FA$682,ROW(),LOOKUP(2,1/('EQ Factor Calc Elite Units'!$A60:$FA60<>""),COLUMN('EQ Factor Calc Elite Units'!$A60:$FA60))-1))) -> 0.9770 | Q60: =IF($R60="Yes","Yes",IF($A61="",$R60,LOOKUP(2,1/('EQ Factor Calc Elite Units'!$A60:$FA60<>""),'EQ Factor Calc Elite Units'!$A60:$FA60))) -> No | R60: No | S60: 0.0% | T60: 108.0% | U60: $322.83 | W60: =MAX(V60,W59) -> 202.05 | Y60: =U60/W60 -> 1.60 | Z60: -8.5% | AA60: 78.2% | AB60: 8.0% | AC60: =U60/$U$59-1 -> -8.5% | AD60: $8,696.65 | AE60: =AD60/AD59-1 -> -8.7% | AF60: =AD60/$AD$4-1 -> 81.6% | AG60: -12.9% | AH60: =AD60/$AD$59-1 -> -8.7% | AJ60: 2019-12-31 | AK60: 16.11108866 | AL60: 16.11108866 | AM60: 2019-12-31 | AN60: 155.3540564 | AO60: 155.3540564
A61: 2022-05-31 | B61: 11.8448 | C61: 4.6% | D61: 18.4% | E61: -14.3% | F61: =B61/$B$59-1 -> -5.4% | G61: 18.5473 | H61: =IF($R61="Yes",1,IF($A62="",1,INDEX('EQ Factor Calc Ord. Units'!$A$1:$FA$682,ROW(),LOOKUP(2,1/('EQ Factor Calc Ord. Units'!$A61:$FA61<>""),COLUMN('EQ Factor Calc Ord. Units'!$A61:$FA61))-1))) -> 0.9790 | I61: =IF($R61="Yes","Yes",IF($A62="",$R61,LOOKUP(2,1/('EQ Factor Calc Ord. Units'!$A61:$FA61<>""),'EQ Factor Calc Ord. Units'!$A61:$FA61))) -> No | J61: $114.2152 | K61: 4.6% | L61: 14.2% | M61: -14.3% | N61: -5.4% | O61: 178.8457 | P61: =IF($R61="Yes",1,IF($A62="",1,INDEX('EQ Factor Calc Elite Units'!$A$1:$FA$682,ROW(),LOOKUP(2,1/('EQ Factor Calc Elite Units'!$A61:$FA61<>""),COLUMN('EQ Factor Calc Elite Units'!$A61:$FA61))-1))) -> 0.9832 | Q61: =IF($R61="Yes","Yes",IF($A62="",$R61,LOOKUP(2,1/('EQ Factor Calc Elite Units'!$A61:$FA61<>""),'EQ Factor Calc Elite Units'!$A61:$FA61))) -> No | R61: No | S61: 0.0% | T61: 109.6% | U61: $315.98 | W61: =MAX(V61,W60) -> 202.05 | Y61: =U61/W61 -> 1.56 | Z61: -2.1% | AA61: 74.4% | AB61: 5.7% | AC61: -10.5% | AD61: $8,712.60 | AE61: =AD61/AD60-1 -> 0.2% | AF61: =AD61/$AD$4-1 -> 81.9% | AG61: -12.8% | AH61: -8.6% | AJ61: 2020-01-31 | AK61: 15.67798200 | AL61: 16.18951020 | AM61: 2020-01-31 | AN61: 151.177748 | AO61: 156.11025012
A62: 2022-06-30 | B62: 11.5282 | C62: -2.7% | D62: 15.3% | E62: -16.6% | F62: -7.9% | G62: 18.6376 | H62: =IF($R62="Yes",1,IF($A63="",1,INDEX('EQ Factor Calc Ord. Units'!$A$1:$FA$682,ROW(),LOOKUP(2,1/('EQ Factor Calc Ord. Units'!$A62:$FA62<>""),COLUMN('EQ Factor Calc Ord. Units'!$A62:$FA62))-1))) -> 0.9731 | I62: =IF($R62="Yes","Yes",IF($A63="",$R62,LOOKUP(2,1/('EQ Factor Calc Ord. Units'!$A62:$FA62<>""),'EQ Factor Calc Ord. Units'!$A62:$FA62))) -> No | J62: $111.1629 | K62: -2.7% | L62: 11.2% | M62: -16.6% | N62: -7.9% | O62: 179.7162 | P62: =IF($R62="Yes",1,IF($A63="",1,INDEX('EQ Factor Calc Elite Units'!$A$1:$FA$682,ROW(),LOOKUP(2,1/('EQ Factor Calc Elite Units'!$A62:$FA62<>""),COLUMN('EQ Factor Calc Elite Units'!$A62:$FA62))-1))) -> 0.9785 | Q62: =IF($R62="Yes","Yes",IF($A63="",$R62,LOOKUP(2,1/('EQ Factor Calc Elite Units'!$A62:$FA62<>""),'EQ Factor Calc Elite Units'!$A62:$FA62))) -> No | R62: No | S62: 4.3% | T62: 117.2% | U62: $273.02 | W62: =MAX(V62,W61) -> 202.05 | Y62: =U62/W62 -> 1.35 | Z62: -13.6% | AA62: 50.7% | AB62: -8.7% | AC62: -22.6% | AD62: $7,993.43 | AE62: =AD62/AD61-1 -> -8.3% | AF62: =AD62/$AD$4-1 -> 66.9% | AG62: -20.0% | AH62: -16.1% | AJ62: 2020-01-31 | AK62: 15.67798200 | AL62: 16.18951020 | AM62: 2020-01-31 | AN62: 151.177748 | AO62: 156.11025012
... 16 more rows

Sheet EQ Calc (hidden)
A1: Calculating Performance Fee (Equalisation) when Investor's Subscription Unit Price is below the Fund's High Water Mark + Hurdle Rate
A3: Account Type | I3: Ordinary | J3: Please Choose
A4: Subscription Date | I4: 2019-12-31 | J4: Please Choose | L4: 2021-03-31 | Q4: Ordinary
Q5: Elite
A6: Subscription Unit Price | I6: =C13 -> $16.11108866 | Q6: =CEILING(MAX(C13:C49,H13:H49,J13:J49),$Q$8) -> $19.5
A7: Fund's High Water Mark + Hurdle Rate | I7: =J13 -> $16.11108866 | Q7: =FLOOR(MIN(C13:C49,H13:H49,J13:J49),$Q$8) -> $5.5
A8: Is Subscription's Unit Price LOWER than the Fund's Higher Water Mark + Hurdle Rate ? | I8: =IF(I6<I7,"Yes","No") -> No | K8: Remaining units as a % of Initial Units (called Equalisation Factor) | O8: =LOOKUP(2,1/(N:N<>""),N:N)/F13 -> 1.0000 | Q8: =IF(I3="Elite",5,0.5) -> $0.5
D9: =C14*1.06^(3/12) -> $15.90803830 | F9: =C14*1.06^(1/12) -> $15.75429537 | G9: =F9*1.06^(1/12) -> $15.83098020 | H9: =G9*1.06^(1/12) -> $15.90803830
F10: Before Performance Fee | H10: Performance Fee (Equalisation) Calculation | N10: After Performance Fee
A11: Month # | B11: Date | C11: Unit Price | D11: Subscription/ Topup (or Withdrawn) after Fees | F11: Total Units owned | G11: Investment Value | H11: Investor's Weighted Average High Water Mark + Hurdle Rate | I11: Is the Unit Price above Hurdle Rate since last Performance Fee paid? | J11: Fund's High Water Mark + Hurdle Rate | K11: Is the Unit Price equal or higher than the Fund's High Water Mark + Hurdle Rate ? | L11: Performance Fee paid from Investor's Account | M11: Units Deducted for Performance Fee | N11: Units owned | O11: Investment Value | Q11: unit price | R11: investor's HWM | S11: Fund's HWM
D12: (in USD) | E12: (in Units)
A13: 0 | B13: =I4 -> 2019-12-31 | C13: =IFERROR(IF(I$3="Ordinary",VLOOKUP(B13,NavHistory!A:B,2,0),VLOOKUP(B13,NavHistory!A:J,10,0)),"") -> $16.11108866 | D13: 99,946.58 | E13: =IF(OR(D13="",C13=""),"",ROUND(D13/C13,8)) -> $6,203.59 | F13: =E13 -> 6,203.58947240 | G13: =IF(B13="","",F13*C13) -> $99,946.58 | H13: =C13 -> $16.11108866 | I13: =IF(B13="","",IF(C13>H13,"Yes","No")) -> No | J13: =IFERROR(IF(I$3="Ordinary",VLOOKUP(B13,NavHistory!A:G,7,0),VLOOKUP(B13,NavHistory!A:O,15,0)),"") -> $16.11108866 | K13: =IF(B13="","",IF(OR(C13<J13,COUNT(D14:D$49)>0),"No","No")) -> No | L13: =IF(B13="","",IF(I13="No",0,ROUND((MIN(C13,J13)-H13)*(IF(I$3="Ordinary",20%,16%)-IF(B13>$L$4,2%))*F13,2))) -> 0 | M13: =IF(B13="","",ROUND(L13/C13,8)) -> 0 | N13: =F13-M13 -> 6,203.58947240 | O13: =N13*C13 -> $99,946.58 | P13: =B13 -> 2019-12-31 | Q13: =C13 -> $16.11108866 | R13: =H13 -> $16.11108866 | S13: =J13 -> $16.11108866
A14: 1 | B14: =IF(OR(K13="Yes",B13=""),"",IFERROR(INDEX(Date,MATCH(B13,Date,0)+1,1),"")) -> 2020-01-31 | C14: =IFERROR(IF(I$3="Ordinary",VLOOKUP(B14,NavHistory!A:B,2,0),VLOOKUP(B14,NavHistory!A:J,10,0)),"") -> $15.67798200 | E14: =IF(OR(D14="",C14=""),"",ROUND(D14/C14,8)) ->  | F14: =IF(B14="","",N13+IF(E14<>"",E14)) -> 6,203.58947240 | G14: $97,259.76 | H14: =IF(B14="","",(MAX(C13,H13)*1.06^(1/12)*N13 + IF(E14<>"",C14*E14))/F14) -> $16.18951020 | I14: No | J14: =IFERROR(IF(I$3="Ordinary",VLOOKUP(B14,NavHistory!A:G,7,0),VLOOKUP(B14,NavHistory!A:O,15,0)),"") -> $16.18951020 | K14: =IF(B14="","",IF(OR(C14<J14,COUNT(D15:D$49)>0),"No","No")) -> No | L14: =IF(B14="","",IF(I14="No",0,ROUND((MIN(C14,J14)-H14)*(IF(I$3="Ordinary",20%,16%)-IF(B14>$L$4,2%))*F14,2))) -> 0 | M14: 0 | N14: =IF(B14="","",F14-M14) -> 6,203.58947240 | O14: =IF(B14="","",N14*C14) -> $97,259.76 | P14: =INDEX(B:B,14+INT((ROW()-14))/2,1) -> 2020-01-31 | Q14: =VLOOKUP(P14,B:C,2,0) -> $15.67798200 | R14: =IF(OR(AND(VLOOKUP(P14,B:C,2,0)>VLOOKUP(P14,B:H,5,0),MOD(ROW(),2)=0),VLOOKUP(P14,B:C,2,0)<=VLOOKUP(P14,B:H,5,0)),VLOOKUP(P14,B:H,5,0),VLOOKUP(P14,B:C,2,0)) -> $6,203.58947240 | S14: =VLOOKUP(P14,B:J,7,0) -> $16.18951020
A15: 2 | B15: 2020-02-29 | C15: =IFERROR(IF(I$3="Ordinary",VLOOKUP(B15,NavHistory!A:B,2,0),VLOOKUP(B15,NavHistory!A:J,10,0)),"") -> $11.62651198 | E15: =IF(OR(D15="",C15=""),"",ROUND(D15/C15,8)) ->  | F15: =IF(B15="","",N14+IF(E15<>"",E15)) -> 6,203.58947240 | G15: $72,126.11 | H15: $16.26831346 | I15: No | J15: =IFERROR(IF(I$3="Ordinary",VLOOKUP(B15,NavHistory!A:G,7,0),VLOOKUP(B15,NavHistory!A:O,15,0)),"") -> $16.26831346 | K15: =IF(B15="","",IF(OR(C15<J15,COUNT(D16:D$49)>0),"No","No")) -> No | L15: 0 | M15: 0 | N15: 6,203.58947240 | O15: $72,126.11 | P15: 2020-01-31 | Q15: $15.67798200 | R15: $6,203.58947240 | S15: $16.18951020
A16: 3 | B16: 2020-03-31 | C16: =IFERROR(IF(I$3="Ordinary",VLOOKUP(B16,NavHistory!A:B,2,0),VLOOKUP(B16,NavHistory!A:J,10,0)),"") -> $6.25117066 | F16: 6,203.58947240 | G16: $38,779.70 | H16: $16.34750030 | I16: No | J16: =IFERROR(IF(I$3="Ordinary",VLOOKUP(B16,NavHistory!A:G,7,0),VLOOKUP(B16,NavHistory!A:O,15,0)),"") -> $16.34750030 | K16: =IF(B16="","",IF(OR(C16<J16,COUNT(D17:D$49)>0),"No","No")) -> No | L16: 0 | M16: 0 | N16: 6,203.58947240 | O16: $38,779.70 | P16: 2020-02-29 | Q16: $11.62651198 | R16: $6,203.58947240 | S16: $16.26831346
A17: 4 | B17: 2020-04-30 | C17: =IFERROR(IF(I$3="Ordinary",VLOOKUP(B17,NavHistory!A:B,2,0),VLOOKUP(B17,NavHistory!A:J,10,0)),"") -> $6.76136982 | F17: 6,203.58947240 | G17: $41,944.76 | H17: $16.42707258 | I17: No | J17: =IFERROR(IF(I$3="Ordinary",VLOOKUP(B17,NavHistory!A:G,7,0),VLOOKUP(B17,NavHistory!A:O,15,0)),"") -> $16.42707258 | K17: =IF(B17="","",IF(OR(C17<J17,COUNT(D18:D$49)>0),"No","No")) -> No | L17: 0 | M17: 0 | N17: 6,203.58947240 | O17: $41,944.76 | P17: 2020-02-29 | Q17: $11.62651198 | R17: $6,203.58947240 | S17: $16.26831346
A18: 5 | B18: 2020-05-31 | C18: =IFERROR(IF(I$3="Ordinary",VLOOKUP(B18,NavHistory!A:B,2,0),VLOOKUP(B18,NavHistory!A:J,10,0)),"") -> $6.32572071 | F18: 6,203.58947240 | G18: $39,242.17 | H18: $16.50703219 | I18: No | J18: =IFERROR(IF(I$3="Ordinary",VLOOKUP(B18,NavHistory!A:G,7,0),VLOOKUP(B18,NavHistory!A:O,15,0)),"") -> $16.50703219 | K18: =IF(B18="","",IF(OR(C18<J18,COUNT(D19:D$49)>0),"No","No")) -> No | L18: 0 | M18: 0 | N18: 6,203.58947240 | O18: $39,242.17 | P18: 2020-03-31 | Q18: $6.25117066 | R18: $6,203.58947240 | S18: $16.34750030
A19: 6 | B19: 2020-06-30 | C19: =IFERROR(IF(I$3="Ordinary",VLOOKUP(B19,NavHistory!A:B,2,0),VLOOKUP(B19,NavHistory!A:J,10,0)),"") -> $5.95179292 | F19: 6,203.58947240 | G19: $36,922.48 | H19: =IF(B19="","",(MAX(C18,H18)*1.06^(1/12)*N18 + IF(E19<>"",C19*E19))/F19) -> $16.58738100 | I19: No | J19: =IFERROR(IF(I$3="Ordinary",VLOOKUP(B19,NavHistory!A:G,7,0),VLOOKUP(B19,NavHistory!A:O,15,0)),"") -> $16.58738100 | K19: =IF(B19="","",IF(OR(C19<J19,COUNT(D20:D$49)>0),"No","No")) -> No | L19: 0 | M19: 0 | N19: 6,203.58947240 | O19: $36,922.48 | P19: 2020-03-31 | Q19: $6.25117066 | R19: $6,203.58947240 | S19: $16.34750030
A20: 7 | B20: 2020-07-31 | C20: =IFERROR(IF(I$3="Ordinary",VLOOKUP(B20,NavHistory!A:B,2,0),VLOOKUP(B20,NavHistory!A:J,10,0)),"") -> $7.14125904 | F20: 6,203.58947240 | G20: $44,301.44 | H20: $16.66812092 | I20: No | J20: =IFERROR(IF(I$3="Ordinary",VLOOKUP(B20,NavHistory!A:G,7,0),VLOOKUP(B20,NavHistory!A:O,15,0)),"") -> $16.66812092 | K20: =IF(B20="","",IF(OR(C20<J20,COUNT(D21:D$49)>0),"No","No")) -> No | L20: 0 | M20: 0 | N20: 6,203.58947240 | O20: $44,301.44 | P20: 2020-04-30 | Q20: $6.76136982 | R20: $6,203.58947240 | S20: $16.42707258
A21: 8 | B21: 2020-08-31 | C21: =IFERROR(IF(I$3="Ordinary",VLOOKUP(B21,NavHistory!A:B,2,0),VLOOKUP(B21,NavHistory!A:J,10,0)),"") -> $8.43274779 | F21: 6,203.58947240 | G21: $52,313.31 | H21: $16.74925384 | I21: No | J21: =IFERROR(IF(I$3="Ordinary",VLOOKUP(B21,NavHistory!A:G,7,0),VLOOKUP(B21,NavHistory!A:O,15,0)),"") -> $16.74925384 | K21: =IF(B21="","",IF(OR(C21<J21,COUNT(D22:D$49)>0),"No","No")) -> No | L21: 0 | M21: 0 | N21: 6,203.58947240 | O21: $52,313.31 | P21: 2020-04-30 | Q21: $6.76136982 | R21: $6,203.58947240 | S21: $16.42707258
A22: 9 | B22: 2020-09-30 | C22: =IFERROR(IF(I$3="Ordinary",VLOOKUP(B22,NavHistory!A:B,2,0),VLOOKUP(B22,NavHistory!A:J,10,0)),"") -> $8.11076527 | F22: 6,203.58947240 | G22: $50,315.86 | H22: $16.83078168 | I22: No | J22: =IFERROR(IF(I$3="Ordinary",VLOOKUP(B22,NavHistory!A:G,7,0),VLOOKUP(B22,NavHistory!A:O,15,0)),"") -> $16.83078168 | K22: =IF(B22="","",IF(OR(C22<J22,COUNT(D23:D$49)>0),"No","No")) -> No | L22: 0 | M22: 0 | N22: 6,203.58947240 | O22: $50,315.86 | P22: 2020-05-31 | Q22: $6.32572071 | R22: $6,203.58947240 | S22: $16.50703219
A23: 10 | B23: 2020-10-31 | C23: =IFERROR(IF(I$3="Ordinary",VLOOKUP(B23,NavHistory!A:B,2,0),VLOOKUP(B23,NavHistory!A:J,10,0)),"") -> $7.87559980 | F23: 6,203.58947240 | G23: $48,856.99 | H23: $16.91270636 | I23: No | J23: =IFERROR(IF(I$3="Ordinary",VLOOKUP(B23,NavHistory!A:G,7,0),VLOOKUP(B23,NavHistory!A:O,15,0)),"") -> $16.91270636 | K23: =IF(B23="","",IF(OR(C23<J23,COUNT(D24:D$49)>0),"No","No")) -> No | L23: 0 | M23: 0 | N23: 6,203.58947240 | O23: $48,856.99 | P23: 2020-05-31 | Q23: $6.32572071 | R23: $6,203.58947240 | S23: $16.50703219
A24: 11 | B24: 2020-11-30 | C24: =IFERROR(IF(I$3="Ordinary",VLOOKUP(B24,NavHistory!A:B,2,0),VLOOKUP(B24,NavHistory!A:J,10,0)),"") -> $9.20657959 | F24: 6,203.58947240 | G24: $57,113.84 | H24: $16.99502981 | I24: No | J24: =IFERROR(IF(I$3="Ordinary",VLOOKUP(B24,NavHistory!A:G,7,0),VLOOKUP(B24,NavHistory!A:O,15,0)),"") -> $16.99502981 | K24: =IF(B24="","",IF(OR(C24<J24,COUNT(D25:D$49)>0),"No","No")) -> No | L24: 0 | M24: 0 | N24: 6,203.58947240 | O24: $57,113.84 | P24: 2020-06-30 | Q24: $5.95179292 | R24: $6,203.58947240 | S24: $16.58738100
A25: 12 | B25: 2020-12-31 | C25: =IFERROR(IF(I$3="Ordinary",VLOOKUP(B25,NavHistory!A:B,2,0),VLOOKUP(B25,NavHistory!A:J,10,0)),"") -> $9.70852832 | F25: 6,203.58947240 | G25: $60,227.72 | H25: $17.07775398 | I25: No | J25: =IFERROR(IF(I$3="Ordinary",VLOOKUP(B25,NavHistory!A:G,7,0),VLOOKUP(B25,NavHistory!A:O,15,0)),"") -> $17.07775398 | K25: =IF(B25="","",IF(OR(C25<J25,COUNT(D26:D$49)>0),"No","No")) -> No | L25: 0 | M25: 0 | N25: 6,203.58947240 | O25: $60,227.72 | P25: 2020-06-30 | Q25: $5.95179292 | R25: $6,203.58947240 | S25: $16.58738100
A26: 13 | B26: 2021-01-31 | C26: =IFERROR(IF(I$3="Ordinary",VLOOKUP(B26,NavHistory!A:B,2,0),VLOOKUP(B26,NavHistory!A:J,10,0)),"") -> $9.80830377 | F26: 6,203.58947240 | G26: $60,846.69 | H26: $17.16088081 | I26: No | J26: =IFERROR(IF(I$3="Ordinary",VLOOKUP(B26,NavHistory!A:G,7,0),VLOOKUP(B26,NavHistory!A:O,15,0)),"") -> $17.16088081 | K26: =IF(B26="","",IF(OR(C26<J26,COUNT(D27:D$49)>0),"No","No")) -> No | L26: 0 | M26: 0 | N26: 6,203.58947240 | O26: $60,846.69 | P26: 2020-07-31 | Q26: $7.14125904 | R26: $6,203.58947240 | S26: $16.66812092
A27: 14 | B27: 2021-02-28 | C27: =IFERROR(IF(I$3="Ordinary",VLOOKUP(B27,NavHistory!A:B,2,0),VLOOKUP(B27,NavHistory!A:J,10,0)),"") -> $10.28349132 | F27: 6,203.58947240 | G27: $63,794.56 | H27: $17.24441227 | I27: No | J27: =IFERROR(IF(I$3="Ordinary",VLOOKUP(B27,NavHistory!A:G,7,0),VLOOKUP(B27,NavHistory!A:O,15,0)),"") -> $17.24441227 | K27: =IF(B27="","",IF(OR(C27<J27,COUNT(D28:D$49)>0),"No","No")) -> No | L27: 0 | M27: 0 | N27: 6,203.58947240 | O27: $63,794.56 | P27: 2020-07-31 | Q27: $7.14125904 | R27: $6,203.58947240 | S27: $16.66812092
A28: 15 | B28: 2021-03-31 | C28: =IFERROR(IF(I$3="Ordinary",VLOOKUP(B28,NavHistory!A:B,2,0),VLOOKUP(B28,NavHistory!A:J,10,0)),"") -> $11.48568697 | F28: 6,203.58947240 | G28: $71,252.49 | H28: $17.32835031 | I28: No | J28: =IFERROR(IF(I$3="Ordinary",VLOOKUP(B28,NavHistory!A:G,7,0),VLOOKUP(B28,NavHistory!A:O,15,0)),"") -> $17.32835031 | K28: =IF(B28="","",IF(OR(C28<J28,COUNT(D29:D$49)>0),"No","No")) -> No | L28: 0 | M28: 0 | N28: 6,203.58947240 | O28: $71,252.49 | P28: 2020-08-31 | Q28: $8.43274779 | R28: $6,203.58947240 | S28: $16.74925384
A29: 16 | B29: 2021-04-30 | C29: =IFERROR(IF(I$3="Ordinary",VLOOKUP(B29,NavHistory!A:B,2,0),VLOOKUP(B29,NavHistory!A:J,10,0)),"") -> $12.15558255 | F29: 6,203.58947240 | G29: $75,408.24 | H29: $17.41269694 | I29: No | J29: =IFERROR(IF(I$3="Ordinary",VLOOKUP(B29,NavHistory!A:G,7,0),VLOOKUP(B29,NavHistory!A:O,15,0)),"") -> $17.41269694 | K29: =IF(B29="","",IF(OR(C29<J29,COUNT(D30:D$49)>0),"No","No")) -> No | L29: 0 | M29: 0 | N29: 6,203.58947240 | O29: $75,408.24 | P29: 2020-08-31 | Q29: $8.43274779 | R29: $6,203.58947240 | S29: $16.74925384
A30: 17 | B30: 2021-05-31 | C30: =IFERROR(IF(I$3="Ordinary",VLOOKUP(B30,NavHistory!A:B,2,0),VLOOKUP(B30,NavHistory!A:J,10,0)),"") -> $12.49571288 | F30: 6,203.58947240 | G30: $77,518.27 | H30: $17.49745412 | I30: No | J30: =IFERROR(IF(I$3="Ordinary",VLOOKUP(B30,NavHistory!A:G,7,0),VLOOKUP(B30,NavHistory!A:O,15,0)),"") -> $17.49745412 | K30: =IF(B30="","",IF(OR(C30<J30,COUNT(D31:D$49)>0),"No","No")) -> No | L30: 0 | M30: 0 | N30: 6,203.58947240 | O30: $77,518.27 | P30: 2020-09-30 | Q30: $8.11076527 | R30: $6,203.58947240 | S30: $16.83078168
A31: 18 | B31: 2021-06-30 | C31: =IFERROR(IF(I$3="Ordinary",VLOOKUP(B31,NavHistory!A:B,2,0),VLOOKUP(B31,NavHistory!A:J,10,0)),"") -> $12.40534722 | F31: 6,203.58947240 | G31: $76,957.68 | H31: $17.58262386 | I31: No | J31: =IFERROR(IF(I$3="Ordinary",VLOOKUP(B31,NavHistory!A:G,7,0),VLOOKUP(B31,NavHistory!A:O,15,0)),"") -> $17.58262386 | K31: =IF(B31="","",IF(OR(C31<J31,COUNT(D32:D$49)>0),"No","No")) -> No | L31: 0 | M31: 0 | N31: 6,203.58947240 | O31: $76,957.68 | P31: 2020-09-30 | Q31: $8.11076527 | R31: $6,203.58947240 | S31: $16.83078168
A32: 19 | B32: 2021-07-31 | C32: =IFERROR(IF(I$3="Ordinary",VLOOKUP(B32,NavHistory!A:B,2,0),VLOOKUP(B32,NavHistory!A:J,10,0)),"") -> $13.11714398 | F32: 6,203.58947240 | G32: $81,373.38 | H32: $17.66820817 | I32: No | J32: =IFERROR(IF(I$3="Ordinary",VLOOKUP(B32,NavHistory!A:G,7,0),VLOOKUP(B32,NavHistory!A:O,15,0)),"") -> $17.66820817 | K32: =IF(B32="","",IF(OR(C32<J32,COUNT(D33:D$49)>0),"No","No")) -> No | L32: 0 | M32: 0 | N32: 6,203.58947240 | O32: $81,373.38 | P32: 2020-10-31 | Q32: $7.87559980 | R32: $6,203.58947240 | S32: $16.91270636
A33: 20 | B33: 2021-08-31 | C33: =IFERROR(IF(I$3="Ordinary",VLOOKUP(B33,NavHistory!A:B,2,0),VLOOKUP(B33,NavHistory!A:J,10,0)),"") -> $13.08509867 | F33: 6,203.58947240 | G33: $81,174.58 | H33: $17.75420907 | I33: No | J33: =IFERROR(IF(I$3="Ordinary",VLOOKUP(B33,NavHistory!A:G,7,0),VLOOKUP(B33,NavHistory!A:O,15,0)),"") -> $17.75420907 | K33: =IF(B33="","",IF(OR(C33<J33,COUNT(D34:D$49)>0),"No","No")) -> No | L33: 0 | M33: 0 | N33: 6,203.58947240 | O33: $81,174.58 | P33: 2020-10-31 | Q33: $7.87559980 | R33: $6,203.58947240 | S33: $16.91270636
A34: 21 | B34: 2021-09-30 | C34: =IFERROR(IF(I$3="Ordinary",VLOOKUP(B34,NavHistory!A:B,2,0),VLOOKUP(B34,NavHistory!A:J,10,0)),"") -> $13.24288858 | F34: 6,203.58947240 | G34: $82,153.44 | H34: $17.84062858 | I34: No | J34: =IFERROR(IF(I$3="Ordinary",VLOOKUP(B34,NavHistory!A:G,7,0),VLOOKUP(B34,NavHistory!A:O,15,0)),"") -> $17.84062858 | K34: =IF(B34="","",IF(OR(C34<J34,COUNT(D35:D$49)>0),"No","No")) -> No | L34: 0 | M34: 0 | N34: 6,203.58947240 | O34: $82,153.44 | P34: 2020-11-30 | Q34: $9.20657959 | R34: $6,203.58947240 | S34: $16.99502981
A35: 22 | B35: 2021-10-31 | C35: =IFERROR(IF(I$3="Ordinary",VLOOKUP(B35,NavHistory!A:B,2,0),VLOOKUP(B35,NavHistory!A:J,10,0)),"") -> $13.31757786 | F35: 6,203.58947240 | G35: $82,616.79 | H35: $17.92746874 | I35: No | J35: =IFERROR(IF(I$3="Ordinary",VLOOKUP(B35,NavHistory!A:G,7,0),VLOOKUP(B35,NavHistory!A:O,15,0)),"") -> $17.92746874 | K35: =IF(B35="","",IF(OR(C35<J35,COUNT(D36:D$49)>0),"No","No")) -> No | L35: 0 | M35: 0 | N35: 6,203.58947240 | O35: $82,616.79 | P35: 2020-11-30 | Q35: $9.20657959 | R35: $6,203.58947240 | S35: $16.99502981
A36: 23 | B36: 2021-11-30 | C36: =IFERROR(IF(I$3="Ordinary",VLOOKUP(B36,NavHistory!A:B,2,0),VLOOKUP(B36,NavHistory!A:J,10,0)),"") -> $13.09036618 | F36: 6,203.58947240 | G36: $81,207.26 | H36: $18.01473160 | I36: No | J36: =IFERROR(IF(I$3="Ordinary",VLOOKUP(B36,NavHistory!A:G,7,0),VLOOKUP(B36,NavHistory!A:O,15,0)),"") -> $18.01473160 | K36: =IF(B36="","",IF(OR(C36<J36,COUNT(D37:D$49)>0),"No","No")) -> No | L36: 0 | M36: 0 | N36: 6,203.58947240 | O36: $81,207.26 | P36: 2020-12-31 | Q36: $9.70852832 | R36: $6,203.58947240 | S36: $17.07775398
A37: 24 | B37: 2021-12-31 | C37: =IFERROR(IF(I$3="Ordinary",VLOOKUP(B37,NavHistory!A:B,2,0),VLOOKUP(B37,NavHistory!A:J,10,0)),"") -> $13.82220923 | F37: 6,203.58947240 | G37: $85,747.31 | H37: $18.10241922 | I37: No | J37: =IFERROR(IF(I$3="Ordinary",VLOOKUP(B37,NavHistory!A:G,7,0),VLOOKUP(B37,NavHistory!A:O,15,0)),"") -> $18.10241922 | K37: =IF(B37="","",IF(OR(C37<J37,COUNT(D38:D$49)>0),"No","No")) -> No | L37: 0 | M37: 0 | N37: 6,203.58947240 | O37: $85,747.31 | P37: 2020-12-31 | Q37: $9.70852832 | R37: $6,203.58947240 | S37: $17.07775398
A38: 25 | B38: 2022-01-31 | C38: =IFERROR(IF(I$3="Ordinary",VLOOKUP(B38,NavHistory!A:B,2,0),VLOOKUP(B38,NavHistory!A:J,10,0)),"") -> $12.96275372 | F38: 6,203.58947240 | G38: $80,415.60 | H38: $18.19053366 | I38: No | J38: =IFERROR(IF(I$3="Ordinary",VLOOKUP(B38,NavHistory!A:G,7,0),VLOOKUP(B38,NavHistory!A:O,15,0)),"") -> $18.19053366 | K38: =IF(B38="","",IF(OR(C38<J38,COUNT(D39:D$49)>0),"No","No")) -> No | L38: 0 | M38: 0 | N38: 6,203.58947240 | O38: $80,415.60 | P38: 2021-01-31 | Q38: $9.80830377 | R38: $6,203.58947240 | S38: $17.16088081
A39: 26 | B39: 2022-02-28 | C39: =IFERROR(IF(I$3="Ordinary",VLOOKUP(B39,NavHistory!A:B,2,0),VLOOKUP(B39,NavHistory!A:J,10,0)),"") -> $12.40863929 | F39: 6,203.58947240 | G39: $76,978.10 | H39: $18.27907700 | I39: No | J39: =IFERROR(IF(I$3="Ordinary",VLOOKUP(B39,NavHistory!A:G,7,0),VLOOKUP(B39,NavHistory!A:O,15,0)),"") -> $18.27907700 | K39: =IF(B39="","",IF(OR(C39<J39,COUNT(D40:D$49)>0),"No","No")) -> No | L39: 0 | M39: 0 | N39: 6,203.58947240 | O39: $76,978.10 | P39: 2021-01-31 | Q39: $9.80830377 | R39: $6,203.58947240 | S39: $17.16088081
A40: 27 | B40: 2022-03-31 | C40: =IFERROR(IF(I$3="Ordinary",VLOOKUP(B40,NavHistory!A:B,2,0),VLOOKUP(B40,NavHistory!A:J,10,0)),"") -> $12.51708356 | F40: 6,203.58947240 | G40: $77,650.85 | H40: $18.36805133 | I40: No | J40: =IFERROR(IF(I$3="Ordinary",VLOOKUP(B40,NavHistory!A:G,7,0),VLOOKUP(B40,NavHistory!A:O,15,0)),"") -> $18.36805133 | K40: =IF(B40="","",IF(OR(C40<J40,COUNT(D41:D$49)>0),"No","No")) -> No | L40: 0 | M40: 0 | N40: 6,203.58947240 | O40: $77,650.85 | P40: 2021-02-28 | Q40: $10.28349132 | R40: $6,203.58947240 | S40: $17.24441227
A41: 28 | B41: 2022-04-30 | C41: =IFERROR(IF(I$3="Ordinary",VLOOKUP(B41,NavHistory!A:B,2,0),VLOOKUP(B41,NavHistory!A:J,10,0)),"") -> $11.32588384 | F41: 6,203.58947240 | G41: $70,261.13 | H41: $18.45745875 | I41: No | J41: =IFERROR(IF(I$3="Ordinary",VLOOKUP(B41,NavHistory!A:G,7,0),VLOOKUP(B41,NavHistory!A:O,15,0)),"") -> $18.45745875 | K41: =IF(B41="","",IF(OR(C41<J41,COUNT(D42:D$49)>0),"No","No")) -> No | L41: 0 | M41: 0 | N41: 6,203.58947240 | O41: $70,261.13 | P41: 2021-02-28 | Q41: $10.28349132 | R41: $6,203.58947240 | S41: $17.24441227
A42: 29 | B42: 2022-05-31 | C42: =IFERROR(IF(I$3="Ordinary",VLOOKUP(B42,NavHistory!A:B,2,0),VLOOKUP(B42,NavHistory!A:J,10,0)),"") -> $11.84476080 | F42: 6,203.58947240 | G42: $73,480.03 | H42: $18.54730137 | I42: No | J42: =IFERROR(IF(I$3="Ordinary",VLOOKUP(B42,NavHistory!A:G,7,0),VLOOKUP(B42,NavHistory!A:O,15,0)),"") -> $18.54730137 | K42: =IF(B42="","",IF(OR(C42<J42,COUNT(D43:D$49)>0),"No","No")) -> No | L42: 0 | M42: 0 | N42: 6,203.58947240 | O42: $73,480.03 | P42: 2021-03-31 | Q42: $11.48568697 | R42: $6,203.58947240 | S42: $17.32835031
A43: 30 | B43: 2022-06-30 | C43: =IFERROR(IF(I$3="Ordinary",VLOOKUP(B43,NavHistory!A:B,2,0),VLOOKUP(B43,NavHistory!A:J,10,0)),"") -> $11.52821932 | F43: 6,203.58947240 | G43: $71,516.34 | H43: $18.63758129 | I43: No | J43: =IFERROR(IF(I$3="Ordinary",VLOOKUP(B43,NavHistory!A:G,7,0),VLOOKUP(B43,NavHistory!A:O,15,0)),"") -> $18.63758129 | K43: =IF(B43="","",IF(OR(C43<J43,COUNT(D44:D$49)>0),"No","No")) -> No | L43: 0 | M43: 0 | N43: 6,203.58947240 | O43: $71,516.34 | P43: 2021-03-31 | Q43: $11.48568697 | R43: $6,203.58947240 | S43: $17.32835031
A44: 31 | B44: 2022-07-31 | C44: =IFERROR(IF(I$3="Ordinary",VLOOKUP(B44,NavHistory!A:B,2,0),VLOOKUP(B44,NavHistory!A:J,10,0)),"") -> $12.68015448 | F44: 6,203.58947240 | G44: $78,662.47 | H44: $18.72830066 | I44: No | J44: =IFERROR(IF(I$3="Ordinary",VLOOKUP(B44,NavHistory!A:G,7,0),VLOOKUP(B44,NavHistory!A:O,15,0)),"") -> $18.72830066 | K44: =IF(B44="","",IF(OR(C44<J44,COUNT(D45:D$49)>0),"No","No")) -> No | L44: 0 | M44: 0 | N44: 6,203.58947240 | O44: $78,662.47 | P44: 2021-04-30 | Q44: $12.15558255 | R44: $6,203.58947240 | S44: $17.41269694
A45: 32 | B45: 2022-08-31 | C45: =IFERROR(IF(I$3="Ordinary",VLOOKUP(B45,NavHistory!A:B,2,0),VLOOKUP(B45,NavHistory!A:J,10,0)),"") -> $12.32808413 | F45: 6,203.58947240 | G45: $76,478.37 | H45: $18.81946161 | I45: No | J45: =IFERROR(IF(I$3="Ordinary",VLOOKUP(B45,NavHistory!A:G,7,0),VLOOKUP(B45,NavHistory!A:O,15,0)),"") -> $18.81946161 | K45: =IF(B45="","",IF(OR(C45<J45,COUNT(D46:D$49)>0),"No","No")) -> No | L45: 0 | M45: 0 | N45: 6,203.58947240 | O45: $76,478.37 | P45: 2021-04-30 | Q45: $12.15558255 | R45: $6,203.58947240 | S45: $17.41269694
A46: 33 | B46: 2022-09-30 | C46: =IFERROR(IF(I$3="Ordinary",VLOOKUP(B46,NavHistory!A:B,2,0),VLOOKUP(B46,NavHistory!A:J,10,0)),"") -> $11.50150824 | F46: 6,203.58947240 | G46: $71,350.64 | H46: $18.91106629 | I46: No | J46: =IFERROR(IF(I$3="Ordinary",VLOOKUP(B46,NavHistory!A:G,7,0),VLOOKUP(B46,NavHistory!A:O,15,0)),"") -> $18.91106629 | K46: =IF(B46="","",IF(OR(C46<J46,COUNT(D47:D$49)>0),"No","No")) -> No | L46: 0 | M46: 0 | N46: 6,203.58947240 | O46: $71,350.64 | P46: =INDEX(B:B,14+INT((ROW()-14))/2,1) -> 2021-05-31 | Q46: =VLOOKUP(P46,B:C,2,0) -> $12.49571288 | R46: =IF(OR(AND(VLOOKUP(P46,B:C,2,0)>VLOOKUP(P46,B:H,5,0),MOD(ROW(),2)=0),VLOOKUP(P46,B:C,2,0)<=VLOOKUP(P46,B:H,5,0)),VLOOKUP(P46,B:H,5,0),VLOOKUP(P46,B:C,2,0)) -> $6,203.58947240 | S46: =VLOOKUP(P46,B:J,7,0) -> $17.49745412
A47: 34 | B47: 2022-10-31 | C47: =IFERROR(IF(I$3="Ordinary",VLOOKUP(B47,NavHistory!A:B,2,0),VLOOKUP(B47,NavHistory!A:J,10,0)),"") -> $12.48904638 | F47: 6,203.58947240 | G47: $77,476.92 | H47: $19.00311687 | I47: No | J47: =IFERROR(IF(I$3="Ordinary",VLOOKUP(B47,NavHistory!A:G,7,0),VLOOKUP(B47,NavHistory!A:O,15,0)),"") -> $19.00311687 | K47: =IF(B47="","",IF(OR(C47<J47,COUNT(D48:D$49)>0),"No","No")) -> No | L47: 0 | M47: 0 | N47: 6,203.58947240 | O47: $77,476.92 | P47: 2021-05-31 | Q47: $12.49571288 | R47: $6,203.58947240 | S47: $17.49745412
A48: 35 | B48: 2022-11-30 | C48: =IFERROR(IF(I$3="Ordinary",VLOOKUP(B48,NavHistory!A:B,2,0),VLOOKUP(B48,NavHistory!A:J,10,0)),"") -> $13.32825794 | F48: 6,203.58947240 | G48: $82,683.04 | H48: $19.09561550 | I48: No | J48: =IFERROR(IF(I$3="Ordinary",VLOOKUP(B48,NavHistory!A:G,7,0),VLOOKUP(B48,NavHistory!A:O,15,0)),"") -> $19.09561550 | K48: =IF(B48="","",IF(OR(C48<J48,COUNT(D49:D$49)>0),"No","No")) -> No | L48: 0 | M48: 0 | N48: 6,203.58947240 | O48: $82,683.04 | P48: 2021-06-30 | Q48: $12.40534722 | R48: $6,203.58947240 | S48: $17.58262386
A49: 36 | B49: 2022-12-31 | C49: =IFERROR(IF(I$3="Ordinary",VLOOKUP(B49,NavHistory!A:B,2,0),VLOOKUP(B49,NavHistory!A:J,10,0)),"") -> $12.62144199 | F49: 6,203.58947240 | G49: $78,298.24 | H49: $19.18856437 | I49: No | J49: =IFERROR(IF(I$3="Ordinary",VLOOKUP(B49,NavHistory!A:G,7,0),VLOOKUP(B49,NavHistory!A:O,15,0)),"") -> $19.18856437 | K49: =IF(B49="","",IF(OR(C49<J49,COUNT(D$49:D50)>0),"No","No")) -> No | L49: 0 | M49: 0 | N49: 6,203.58947240 | O49: $78,298.24 | P49: 2021-06-30 | Q49: $12.40534722 | R49: $6,203.58947240 | S49: $17.58262386
P50: 2021-07-31 | Q50: $13.11714398 | R50: $6,203.58947240 | S50: $17.66820817
P51: 2021-07-31 | Q51: $13.11714398 | R51: $6,203.58947240 | S51: $17.66820817
P52: 2021-08-31 | Q52: $13.08509867 | R52: $6,203.58947240 | S52: $17.75420907
P53: 2021-08-31 | Q53: $13.08509867 | R53: $6,203.58947240 | S53: $17.75420907
P54: 2021-09-30 | Q54: $13.24288858 | R54: $6,203.58947240 | S54: $17.84062858
P55: 2021-09-30 | Q55: $13.24288858 | R55: $6,203.58947240 | S55: $17.84062858
P56: 2021-10-31 | Q56: $13.31757786 | R56: $6,203.58947240 | S56: $17.92746874
P57: 2021-10-31 | Q57: $13.31757786 | R57: $6,203.58947240 | S57: $17.92746874
P58: 2021-11-30 | Q58: $13.09036618 | R58: $6,203.58947240 | S58: $18.01473160
P59: 2021-11-30 | Q59: $13.09036618 | R59: $6,203.58947240 | S59: $18.01473160
P60: 2021-12-31 | Q60: $13.82220923 | R60: $6,203.58947240 | S60: $18.10241922
P61: 2021-12-31 | Q61: $13.82220923 | R61: $6,203.58947240 | S61: $18.10241922
P62: 2022-01-31 | Q62: $12.96275372 | R62: $6,203.58947240 | S62: $18.19053366
P63: 2022-01-31 | Q63: $12.96275372 | R63: $6,203.58947240 | S63: $18.19053366
P64: 2022-02-28 | Q64: $12.40863929 | R64: $6,203.58947240 | S64: $18.27907700
P65: 2022-02-28 | Q65: $12.40863929 | R65: $6,203.58947240 | S65: $18.27907700
P66: 2022-03-31 | Q66: $12.51708356 | R66: $6,203.58947240 | S66: $18.36805133
P67: 2022-03-31 | Q67: $12.51708356 | R67: $6,203.58947240 | S67: $18.36805133
P68: 2022-04-30 | Q68: $11.32588384 | R68: $6,203.58947240 | S68: $18.45745875
P69: 2022-04-30 | Q69: $11.32588384 | R69: $6,203.58947240 | S69: $18.45745875
P70: 2022-05-31 | Q70: $11.84476080 | R70: $6,203.58947240 | S70: $18.54730137
P71: 2022-05-31 | Q71: $11.84476080 | R71: $6,203.58947240 | S71: $18.54730137
P72: 2022-06-30 | Q72: $11.52821932 | R72: $6,203.58947240 | S72: $18.63758129
P73: 2022-06-30 | Q73: $11.52821932 | R73: $6,203.58947240 | S73: $18.63758129
P74: 2022-07-31 | Q74: $12.68015448 | R74: $6,203.58947240 | S74: $18.72830066
P75: 2022-07-31 | Q75: $12.68015448 | R75: $6,203.58947240 | S75: $18.72830066
P76: 2022-08-31 | Q76: $12.32808413 | R76: $6,203.58947240 | S76: $18.81946161
P77: 2022-08-31 | Q77: $12.32808413 | R77: $6,203.58947240 | S77: $18.81946161
P78: =INDEX(B:B,14+INT((ROW()-14))/2,1) -> 2022-09-30 | Q78: =VLOOKUP(P78,B:C,2,0) -> $11.50150824 | R78: =IF(OR(AND(VLOOKUP(P78,B:C,2,0)>VLOOKUP(P78,B:H,5,0),MOD(ROW(),2)=0),VLOOKUP(P78,B:C,2,0)<=VLOOKUP(P78,B:H,5,0)),VLOOKUP(P78,B:H,5,0),VLOOKUP(P78,B:C,2,0)) -> $6,203.58947240 | S78: =VLOOKUP(P78,B:J,7,0) -> $18.91106629
E79: =IF(OR(D79="",C79=""),"",ROUND(D79/C79,8)) ->  | P79: 2022-09-30 | Q79: $11.50150824 | R79: $6,203.58947240 | S79: $18.91106629
P80: 2022-10-31 | Q80: $12.48904638 | R80: $6,203.58947240 | S80: $19.00311687
P81: 2022-10-31 | Q81: $12.48904638 | R81: $6,203.58947240 | S81: $19.00311687
P82: 2022-11-30 | Q82: $13.32825794 | R82: $6,203.58947240 | S82: $19.09561550
P83: 2022-11-30 | Q83: $13.32825794 | R83: $6,203.58947240 | S83: $19.09561550
P84: 2022-12-31 | Q84: $12.62144199 | R84: $6,203.58947240 | S84: $19.18856437
P85: 2022-12-31 | Q85: $12.62144199 | R85: $6,203.58947240 | S85: $19.18856437

Sheet Monthly NAV
B3: Monthly NAV Table
C4: Jan | D4: Feb | E4: Mar | F4: Apr | G4: May | H4: Jun | I4: Jul | J4: Aug | K4: Sep | L4: Oct | M4: Nov | N4: Dec | O4: YTD Perf
B5: Ordinary Units
B6: 2017 | C6: - | D6: - | E6: - | F6: - | G6: - | H6: - | I6: - | J6: =NavHistory!$B4 -> 10.0000 | K6: =NavHistory!$B5 -> 10.5212 | L6: =NavHistory!$B6 -> 10.5577 | M6: =NavHistory!$B7 -> 10.8181 | N6: =NavHistory!$B8 -> 11.0640 | O6: =(N6-J6)/J6 -> 10.64%
B7: 2018 | C7: =NavHistory!$B9 -> 11.5826 | D7: =NavHistory!$B10 -> 11.5329 | E7: =NavHistory!$B11 -> 11.1501 | F7: =NavHistory!$B12 -> 10.6338 | G7: =NavHistory!$B13 -> 10.5896 | H7: =NavHistory!$B14 -> 9.9346 | I7: =NavHistory!$B15 -> 11.3168 | J7: =NavHistory!$B16 -> 12.2999 | K7: =NavHistory!$B17 -> 12.7260 | L7: =NavHistory!$B18 -> 12.0339 | M7: =NavHistory!$B19 -> 13.4533 | N7: =NavHistory!$B20 -> 11.9745 | O7: =(N7-N6)/N6 -> 8.23%
B8: 2019 | C8: =NavHistory!$B21 -> 12.2182 | D8: =NavHistory!$B22 -> 11.6743 | E8: =NavHistory!$B23 -> 11.5324 | F8: =NavHistory!$B24 -> 13.6603 | G8: =NavHistory!$B25 -> 11.3356 | H8: =NavHistory!$B26 -> 13.3950 | I8: =NavHistory!$B27 -> 12.2736 | J8: =NavHistory!$B28 -> 12.0498 | K8: =NavHistory!$B29 -> 12.9072 | L8: =NavHistory!$B30 -> 14.0327 | M8: =NavHistory!$B31 -> 15.1422 | N8: =NavHistory!$B32 -> 16.1111 | O8: 34.54%
B9: 2020 | C9: =NavHistory!$B33 -> 15.6780 | D9: =NavHistory!$B34 -> 11.6265 | E9: =NavHistory!$B35 -> 6.2512 | F9: =NavHistory!$B36 -> 6.7614 | G9: =NavHistory!$B37 -> 6.3257 | H9: =NavHistory!$B38 -> 5.9518 | I9: =NavHistory!$B39 -> 7.1413 | J9: =NavHistory!$B40 -> 8.4327 | K9: =NavHistory!$B41 -> 8.1108 | L9: =NavHistory!$B42 -> 7.8756 | M9: =NavHistory!$B43 -> 9.2066 | N9: =NavHistory!$B44 -> 9.7085 | O9: -39.74%
B10: 2021 | C10: =NavHistory!$B45 -> 9.8083 | D10: =NavHistory!$B46 -> 10.2835 | E10: =NavHistory!$B47 -> 11.4857 | F10: =NavHistory!$B48 -> 12.1556 | G10: =NavHistory!$B49 -> 12.4957 | H10: =NavHistory!$B50 -> 12.4053 | I10: =NavHistory!$B51 -> 13.1171 | J10: =NavHistory!$B52 -> 13.0851 | K10: =NavHistory!$B53 -> 13.2429 | L10: =NavHistory!$B54 -> 13.3176 | M10: =NavHistory!$B55 -> 13.0904 | N10: =NavHistory!$B56 -> 13.8222 | O10: 42.37%
B11: 2022 | C11: =NavHistory!$B57 -> 12.9628 | D11: =NavHistory!$B58 -> 12.4086 | E11: =NavHistory!$B59 -> 12.5171 | F11: =NavHistory!$B60 -> 11.3259 | G11: =NavHistory!$B61 -> 11.8448 | H11: =NavHistory!$B62 -> 11.5282 | I11: =NavHistory!$B63 -> 12.6802 | J11: =NavHistory!$B64 -> 12.3281 | K11: =NavHistory!$B65 -> 11.5015 | L11: =NavHistory!$B66 -> 12.4890 | M11: =NavHistory!$B67 -> 13.3283 | N11: =NavHistory!$B68 -> 12.6214 | O11: -8.69%
B12: 2023 | C12: =NavHistory!$B69 -> 12.9405 | D12: =NavHistory!$B70 -> 12.7596 | E12: =NavHistory!$B71 -> 13.3408 | F12: =NavHistory!$B72 -> 13.9195 | G12: =NavHistory!$B73 -> 13.3287 | H12: =NavHistory!$B74 -> 13.6818 | I12: =NavHistory!$B75 -> 13.3850 | J12: =NavHistory!$B76 -> 11.9577 | K12: =NavHistory!$B77 -> 11.1292 | L12: =NavHistory!$B78 -> 10.4529 | M12: =NavHistory!$B79 -> 11.9399 | N12: =NavHistory!$B80 -> 13.2014 | O12: 4.60%
B13: 2024 | C13: =NavHistory!$B81 -> 13.0390 | D13: =NavHistory!$B82 -> 14.2155 | E13: =NavHistory!$B83 -> 13.5672 | F13: =NavHistory!$B84 -> 12.8222 | G13: =NavHistory!$B85 -> 12.6671 | H13: =NavHistory!$B86 -> 12.5000 | I13: =NavHistory!$B87 -> 11.6200 | J13: =NavHistory!$B88 -> 11.9707 | K13: =NavHistory!$B89 -> 12.0416 | L13: =NavHistory!$B90 -> 11.6550 | M13: =NavHistory!$B91 -> 11.4704 | N13: =NavHistory!$B92 -> 11.1154 | O13: =(N13-N12)/N12 -> -15.80%
B14: 2025 | C14: =NavHistory!$B93 -> 11.2717 | D14: =NavHistory!$B94 -> 11.2287 | E14: =NavHistory!$B95 -> 10.5341 | F14: =NavHistory!$B96 -> 10.2960 | G14: =NavHistory!$B97 -> 10.8556 | H14: =NavHistory!$B98 -> 11.5867 | I14: =NavHistory!$B99 -> 12.8326 | J14: =NavHistory!$B100 -> 13.1786 | K14: =NavHistory!$B101 -> 13.3883 | L14: =NavHistory!$B102 -> 13.0581 | M14: =NavHistory!$B103 -> 13.2359 | N14: =NavHistory!$B104 -> 13.6296 | O14: =(N14-N13)/N13 -> 22.62%
B15: 2026 | C15: =NavHistory!$B105 -> 13.3392 | D15: =NavHistory!$B106 -> 13.3048 | E15: =NavHistory!$B107 -> 12.7520 | F15: =NavHistory!$B108 -> 13.3075 | G15: =NavHistory!$B109 -> 13.4396 | H15: =NavHistory!$B110 -> 13.9120 | O15: =(H15-N14)/N14 -> 2.07%
B16: Elite Units
B17: 2017 | C17: - | D17: - | E17: - | F17: - | G17: - | H17: - | I17: - | J17: - | K17: =NavHistory!$J5 -> 100.0000 | L17: =NavHistory!$J6 -> 100.3472 | M17: =NavHistory!$J7 -> 102.9148 | N17: =NavHistory!$J8 -> 105.3456 | O17: =(N17-K17)/K17 -> 5.35%
B18: 2018 | C18: =NavHistory!$J9 -> 110.5043 | D18: =NavHistory!$J10 -> 110.0302 | E18: =NavHistory!$J11 -> 106.3787 | F18: =NavHistory!$J12 -> 101.4527 | G18: =NavHistory!$J13 -> 101.0305 | H18: =NavHistory!$J14 -> 94.7814 | I18: =NavHistory!$J15 -> 107.9689 | J18: =NavHistory!$J16 -> 117.4989 | K18: =NavHistory!$J17 -> 121.7449 | L18: =NavHistory!$J18 -> 115.1232 | M18: =NavHistory!$J19 -> 128.9912 | N18: =NavHistory!$J20 -> 114.8123 | O18: =(N18-N17)/N17 -> 8.99%
B19: 2019 | C19: =NavHistory!$J21 -> 117.1487 | D19: =NavHistory!$J22 -> 111.9339 | E19: =NavHistory!$J23 -> 110.5733 | F19: =NavHistory!$J24 -> 130.9758 | G19: =NavHistory!$J25 -> 108.6866 | H19: =NavHistory!$J26 -> 128.4316 | I19: =NavHistory!$J27 -> 117.6802 | J19: =NavHistory!$J28 -> 115.5342 | K19: =NavHistory!$J29 -> 123.7552 | L19: =NavHistory!$J30 -> 134.5461 | M19: =NavHistory!$J31 -> 145.6064 | N19: =NavHistory!$J32 -> 155.3541 | O19: 35.31%
B20: 2020 | C20: =NavHistory!$J33 -> 151.1777 | D20: =NavHistory!$J34 -> 112.1107 | E20: =NavHistory!$J35 -> 60.2782 | F20: =NavHistory!$J36 -> 65.1979 | G20: =NavHistory!$J37 -> 60.9971 | H20: =NavHistory!$J38 -> 57.3914 | I20: =NavHistory!$J39 -> 68.8609 | J20: =NavHistory!$J40 -> 81.3143 | K20: =NavHistory!$J41 -> 78.2095 | L20: =NavHistory!$J42 -> 75.9419 | M20: =NavHistory!$J43 -> 88.7761 | N20: =NavHistory!$J44 -> 93.6162 | O20: -39.74%
B21: 2021 | C21: =NavHistory!$J45 -> 94.5783 | D21: =NavHistory!$J46 -> 99.1604 | E21: =NavHistory!$J47 -> 110.7528 | F21: =NavHistory!$J48 -> 117.2124 | G21: =NavHistory!$J49 -> 120.4921 | H21: =NavHistory!$J50 -> 119.6208 | I21: =NavHistory!$J51 -> 126.4844 | J21: =NavHistory!$J52 -> 126.1754 | K21: =NavHistory!$J53 -> 127.6969 | L21: =NavHistory!$J54 -> 128.4171 | M21: =NavHistory!$J55 -> 126.2262 | N21: =NavHistory!$J56 -> 133.2831 | O21: 42.37%
B22: 2022 | C22: =NavHistory!$J57 -> 124.9957 | D22: =NavHistory!$J58 -> 119.6525 | E22: =NavHistory!$J59 -> 120.6982 | F22: =NavHistory!$J60 -> 109.2119 | G22: =NavHistory!$J61 -> 114.2152 | H22: =NavHistory!$J62 -> 111.1629 | I22: =NavHistory!$J63 -> 122.2707 | J22: =NavHistory!$J64 -> 118.8760 | K22: =NavHistory!$J65 -> 110.9056 | L22: =NavHistory!$J66 -> 120.4281 | M22: =NavHistory!$J67 -> 128.5204 | N22: =NavHistory!$J68 -> 121.7048 | O22: -8.69%
B23: 2023 | C23: =NavHistory!$J69 -> 124.7813 | D23: =NavHistory!$J70 -> 123.0370 | E23: =NavHistory!$J71 -> 128.6414 | F23: =NavHistory!$J72 -> 134.2215 | G23: =NavHistory!$J73 -> 128.5249 | H23: =NavHistory!$J74 -> 131.9296 | I23: =NavHistory!$J75 -> 129.0673 | J23: =NavHistory!$J76 -> 115.3043 | K23: =NavHistory!$J77 -> 107.3160 | L23: =NavHistory!$J78 -> 100.7947 | M23: =NavHistory!$J79 -> 115.1327 | N23: =NavHistory!$J80 -> 127.2977 | O23: =(N23-N22)/N22 -> 4.60%
B24: 2024 | C24: =NavHistory!$J81 -> 125.7311 | D24: =NavHistory!$J82 -> 137.0756 | E24: =NavHistory!$J83 -> 130.8248 | F24: =NavHistory!$J84 -> 123.6404 | G24: =NavHistory!$J85 -> 122.1450 | H24: =NavHistory!$J86 -> 120.5337 | I24: =NavHistory!$J87 -> 112.0479 | J24: =NavHistory!$J88 -> 115.4298 | K24: =NavHistory!$J89 -> 116.1135 | L24: =NavHistory!$J90 -> 112.3855 | M24: =NavHistory!$J91 -> 110.6061 | N24: =NavHistory!$J92 -> 107.1829 | O24: =(N24-N23)/N23 -> -15.80%
B25: 2025 | C25: =NavHistory!$J93 -> 108.6900 | D25: =NavHistory!$J94 -> 108.2750 | E25: =NavHistory!$J95 -> 101.5769 | F25: =NavHistory!$J96 -> 99.2812 | G25: =NavHistory!$J97 -> 104.6772 | H25: =NavHistory!$J98 -> 111.7274 | I25: =NavHistory!$J99 -> 123.7413 | J25: =NavHistory!$J100 -> 127.0779 | K25: =NavHistory!$J101 -> 129.0996 | L25: =NavHistory!$J102 -> 125.9154 | M25: =NavHistory!$J103 -> 127.6296 | N25: =NavHistory!$J104 -> 131.4261 | O25: =(N25-N24)/N24 -> 22.62%
B26: 2026 | C26: =NavHistory!$J105 -> 128.6264 | D26: =NavHistory!$J106 -> 128.2938 | E26: =NavHistory!$J107 -> 122.9634 | F26: =NavHistory!$J108 -> 128.3199 | G26: =NavHistory!$J109 -> 129.5938 | H26: =NavHistory!$J110 -> 134.1498 | O26: =(H26-N25)/N25 -> 2.07%
C27: ***The actual unit price is in 8 decimal points. If you wish to have the unit price in 8 decimal points, you may download the file at the bottom of this page.
B30: Monthly % Change
C31: Jan | D31: Feb | E31: Mar | F31: Apr | G31: May | H31: Jun | I31: Jul | J31: Aug | K31: Sep | L31: Oct | M31: Nov | N31: Dec | O31: YTD Perf
B32: Ordinary Units
B33: 2017 | C33: - | D33: - | E33: - | F33: - | G33: - | H33: - | I33: - | J33: - | K33: =NavHistory!$C5 -> 5.21% | L33: =NavHistory!$C6 -> 0.35% | M33: =NavHistory!$C7 -> 2.47% | N33: =NavHistory!$C8 -> 2.27% | O33: =O6 -> 10.64%
B34: 2018 | C34: =NavHistory!$C9 -> 4.69% | D34: =NavHistory!$C10 -> -0.43% | E34: =NavHistory!$C11 -> -3.32% | F34: =NavHistory!$C12 -> -4.63% | G34: =NavHistory!$C13 -> -0.42% | H34: =NavHistory!$C14 -> -6.19% | I34: =NavHistory!$C15 -> 13.91% | J34: =NavHistory!$C16 -> 8.69% | K34: =NavHistory!$C17 -> 3.46% | L34: =NavHistory!$C18 -> -5.44% | M34: =NavHistory!$C19 -> 11.80% | N34: =NavHistory!$C20 -> -10.99% | O34: 8.23%
B35: 2019 | C35: =NavHistory!$C21 -> 2.03% | D35: =NavHistory!$C22 -> -4.45% | E35: =NavHistory!$C23 -> -1.22% | F35: =NavHistory!$C24 -> 18.45% | G35: =NavHistory!$C25 -> -17.02% | H35: =NavHistory!$C26 -> 18.17% | I35: =NavHistory!$C27 -> -8.37% | J35: =NavHistory!$C28 -> -1.82% | K35: =NavHistory!$C29 -> 7.12% | L35: =NavHistory!$C30 -> 8.72% | M35: =NavHistory!$C31 -> 7.91% | N35: =NavHistory!$C32 -> 6.40% | O35: 34.54%
B36: 2020 | C36: =NavHistory!$C33 -> -2.69% | D36: =NavHistory!$C34 -> -25.84% | E36: =NavHistory!$C35 -> -46.23% | F36: =NavHistory!$C36 -> 8.16% | G36: =NavHistory!$C37 -> -6.44% | H36: =NavHistory!$C38 -> -5.91% | I36: =NavHistory!$C39 -> 19.99% | J36: =NavHistory!C40 -> 18.08% | K36: =NavHistory!$C41 -> -3.82% | L36: =NavHistory!$C42 -> -2.90% | M36: =NavHistory!$C43 -> 16.90% | N36: =NavHistory!$C44 -> 5.45% | O36: -39.74%
B37: 2021 | C37: =NavHistory!C45 -> 1.03% | D37: =NavHistory!C46 -> 4.84% | E37: =NavHistory!C47 -> 11.69% | F37: =NavHistory!C48 -> 5.83% | G37: =NavHistory!$C49 -> 2.80% | H37: =NavHistory!$C50 -> -0.72% | I37: =NavHistory!$C51 -> 5.74% | J37: =NavHistory!$C52 -> -0.24% | K37: =NavHistory!$C53 -> 1.21% | L37: =NavHistory!$C54 -> 0.56% | M37: =NavHistory!$C55 -> -1.71% | N37: =NavHistory!$C56 -> 5.59% | O37: 42.37%
B38: 2022 | C38: =NavHistory!$C57 -> -6.22% | D38: =NavHistory!$C58 -> -4.27% | E38: =NavHistory!$C59 -> 0.87% | F38: =NavHistory!$C60 -> -9.52% | G38: =NavHistory!$C61 -> 4.58% | H38: =NavHistory!$C62 -> -2.67% | I38: =NavHistory!$C63 -> 9.99% | J38: =NavHistory!$C64 -> -2.78% | K38: =NavHistory!$C65 -> -6.70% | L38: =NavHistory!$C66 -> 8.59% | M38: =NavHistory!$C67 -> 6.72% | N38: =NavHistory!$C68 -> -5.30% | O38: -8.69%
B39: 2023 | C39: =NavHistory!$C69 -> 2.53% | D39: =NavHistory!$C70 -> -1.40% | E39: =NavHistory!$C71 -> 4.56% | F39: =NavHistory!$C72 -> 4.34% | G39: =NavHistory!$C73 -> -4.24% | H39: =NavHistory!$C74 -> 2.65% | I39: =NavHistory!$C75 -> -2.17% | J39: =NavHistory!$C76 -> -10.66% | K39: =NavHistory!$C77 -> -6.93% | L39: =NavHistory!$C78 -> -6.08% | M39: =NavHistory!$C79 -> 14.22% | N39: =NavHistory!$C80 -> 10.57% | O39: 4.60%
B40: 2024 | C40: =NavHistory!$C81 -> -1.23% | D40: =NavHistory!$C82 -> 9.02% | E40: =NavHistory!$C83 -> -4.56% | F40: =NavHistory!$C84 -> -5.49% | G40: =NavHistory!$C85 -> -1.21% | H40: =NavHistory!$C86 -> -1.32% | I40: =NavHistory!$C87 -> -7.04% | J40: =NavHistory!$C88 -> 3.02% | K40: =NavHistory!$C89 -> 0.59% | L40: =NavHistory!$C90 -> -3.21% | M40: =NavHistory!$C91 -> -1.58% | N40: =NavHistory!$C92 -> -3.09% | O40: -15.80%
B41: 2025 | C41: =NavHistory!$C93 -> 1.41% | D41: =NavHistory!$C94 -> -0.38% | E41: =NavHistory!$C95 -> -6.19% | F41: =NavHistory!$C96 -> -2.26% | G41: =NavHistory!$C97 -> 5.44% | H41: =NavHistory!$C98 -> 6.74% | I41: =NavHistory!$C99 -> 10.75% | J41: =NavHistory!$C100 -> 2.70% | K41: =NavHistory!$C101 -> 1.59% | L41: =NavHistory!$C102 -> -2.47% | M41: =NavHistory!$C103 -> 1.36% | N41: =NavHistory!$C104 -> 2.97% | O41: 22.62%
B42: 2026 | C42: =NavHistory!$C105 -> -2.13% | D42: =NavHistory!$C106 -> -0.26% | E42: =NavHistory!$C107 -> -4.15% | F42: =NavHistory!$C108 -> 4.36% | G42: =NavHistory!$C109 -> 0.99% | H42: =NavHistory!$C110 -> 3.52% | O42: =O15 -> 2.07%
B43: Elite Units
B44: 2017 | C44: - | D44: - | E44: - | F44: - | G44: - | H44: - | I44: - | J44: - | K44: - | L44: =NavHistory!$K6 -> 0.35% | M44: =NavHistory!$K7 -> 2.56% | N44: =NavHistory!$K8 -> 2.36% | O44: =O17 -> 5.35%
B45: 2018 | C45: =NavHistory!$K9 -> 4.90% | D45: =NavHistory!$K10 -> -0.43% | E45: =NavHistory!$K11 -> -3.32% | F45: =NavHistory!$K12 -> -4.63% | G45: =NavHistory!$K13 -> -0.42% | H45: =NavHistory!$K14 -> -6.19% | I45: =NavHistory!$K15 -> 13.91% | J45: =NavHistory!$K16 -> 8.83% | K45: =NavHistory!$K17 -> 3.61% | L45: =NavHistory!$K18 -> -5.44% | M45: =NavHistory!$K19 -> 12.05% | N45: =NavHistory!$K20 -> -10.99% | O45: =O18 -> 8.99%
B46: 2019 | C46: =NavHistory!$K21 -> 2.03% | D46: =NavHistory!$K22 -> -4.45% | E46: =NavHistory!$K23 -> -1.22% | F46: =NavHistory!$K24 -> 18.45% | G46: =NavHistory!$K25 -> -17.02% | H46: =NavHistory!$K26 -> 18.17% | I46: =NavHistory!$K27 -> -8.37% | J46: =NavHistory!$K28 -> -1.82% | K46: =NavHistory!$K29 -> 7.12% | L46: =NavHistory!$K30 -> 8.72% | M46: =NavHistory!$K31 -> 8.22% | N46: =NavHistory!$K32 -> 6.69% | O46: =O19 -> 35.31%
B47: 2020 | C47: =NavHistory!$K32 -> 6.69% | D47: =NavHistory!$K33 -> -2.69% | E47: =NavHistory!$K34 -> -25.84% | F47: =NavHistory!$K35 -> -46.23% | G47: =NavHistory!$K36 -> 8.16% | H47: =NavHistory!$K37 -> -6.44% | I47: =NavHistory!$K38 -> -5.91% | J47: =NavHistory!K39 -> 19.98% | K47: =NavHistory!$K40 -> 18.08% | L47: =NavHistory!$K41 -> -3.82% | M47: =NavHistory!$K42 -> -2.90% | N47: =NavHistory!$K43 -> 16.90% | O47: =O20 -> -39.74%
B48: 2021 | C48: =NavHistory!K45 -> 1.03% | D48: =NavHistory!K46 -> 4.84% | E48: =NavHistory!K47 -> 11.69% | F48: =NavHistory!$K48 -> 5.83% | G48: =NavHistory!$K49 -> 2.80% | H48: =NavHistory!$K50 -> -0.72% | I48: =NavHistory!$K51 -> 5.74% | J48: =NavHistory!$K52 -> -0.24% | K48: =NavHistory!$K53 -> 1.21% | L48: =NavHistory!$K54 -> 0.56% | M48: =NavHistory!$K55 -> -1.71% | N48: =NavHistory!$K56 -> 5.59% | O48: =O21 -> 42.37%
B49: 2022 | C49: =NavHistory!$K57 -> -6.22% | D49: =NavHistory!$K58 -> -4.27% | E49: =NavHistory!$K59 -> 0.87% | F49: =NavHistory!$K60 -> -9.52% | G49: =NavHistory!$K61 -> 4.58% | H49: =NavHistory!$K62 -> -2.67% | I49: =NavHistory!$K63 -> 9.99% | J49: =NavHistory!$K64 -> -2.78% | K49: =NavHistory!$K65 -> -6.70% | L49: =NavHistory!$K66 -> 8.59% | M49: =NavHistory!$K67 -> 6.72% | N49: =NavHistory!$K68 -> -5.30% | O49: =O22 -> -8.69%
B50: 2023 | C50: =NavHistory!$K69 -> 2.53% | D50: =NavHistory!$K70 -> -1.40% | E50: =NavHistory!$K71 -> 4.56% | F50: =NavHistory!$K72 -> 4.34% | G50: =NavHistory!$K73 -> -4.24% | H50: =NavHistory!$K74 -> 2.65% | I50: =NavHistory!$K75 -> -2.17% | J50: =NavHistory!$K76 -> -10.66% | K50: =NavHistory!$K77 -> -6.93% | L50: =NavHistory!$K78 -> -6.08% | M50: =NavHistory!$K79 -> 14.22% | N50: =NavHistory!$K80 -> 10.57% | O50: =O23 -> 4.60%
B51: 2024 | C51: =NavHistory!$K81 -> -1.23% | D51: =NavHistory!$K82 -> 9.02% | E51: =NavHistory!$K83 -> -4.56% | F51: =NavHistory!$K84 -> -5.49% | G51: =NavHistory!$K85 -> -1.21% | H51: =NavHistory!$K86 -> -1.32% | I51: =NavHistory!$K87 -> -7.04% | J51: =NavHistory!$K88 -> 3.02% | K51: =NavHistory!$K89 -> 0.59% | L51: =NavHistory!$K90 -> -3.21% | M51: =NavHistory!$K91 -> -1.58% | N51: =NavHistory!$K92 -> -3.09% | O51: =O24 -> -15.80%
B52: 2025 | C52: =NavHistory!$K93 -> 1.41% | D52: =NavHistory!$K94 -> -0.38% | E52: =NavHistory!$K95 -> -6.19% | F52: =NavHistory!$K96 -> -2.26% | G52: =NavHistory!$K97 -> 5.44% | H52: =NavHistory!$K98 -> 6.74% | I52: =NavHistory!$K99 -> 10.75% | J52: =NavHistory!$K100 -> 2.70% | K52: =NavHistory!$K101 -> 1.59% | L52: =NavHistory!$K102 -> -2.47% | M52: =NavHistory!$K103 -> 1.36% | N52: =NavHistory!$K104 -> 2.97% | O52: =O25 -> 22.62%
B53: 2026 | C53: =NavHistory!$K105 -> -2.13% | D53: =NavHistory!$K106 -> -0.26% | E53: =NavHistory!$K107 -> -4.15% | F53: =NavHistory!$K108 -> 4.36% | G53: =NavHistory!$K109 -> 0.99% | H53: =NavHistory!$K110 -> 3.52% | O53: =O26 -> 2.07%

Sheet Annual Performance
B1: Cumulative | H1: Before Pandemic
B2: Year (ending 31st December) | C2: Peter Partnership Fund * | D2: in Per-Share Market Value of BRK Class B | E2: in S&P 500 with Dividends Included | H2: Year (ending 31st December) | I2: Peter Partnership Fund * | J2: in Per-Share Market Value of BRK Class B | K2: in S&P 500 with Dividends Included
B3: Fund inception to 2017 ** | C3: =NavHistory!B8/NavHistory!B4-1 -> 10.6% | D3: =NavHistory!U8/NavHistory!U4-1 -> 9.4% | E3: =NavHistory!AD8/NavHistory!AD4-1 -> 8.8% | H3: Fund inception to 2017 ** | I3: =C3 -> 10.6% | J3: =D3 -> 9.4% | K3: 8.8%
B4: 2018 | C4: =NavHistory!B20/NavHistory!B8-1 -> 8.2% | D4: =NavHistory!U20/NavHistory!U8-1 -> 3.0% | E4: =NavHistory!AD20/NavHistory!AD8-1 -> -4.4% | H4: 2018 | I4: =C4 -> 8.2% | J4: =D4 -> 3.0% | K4: =E4 -> -4.4%
B5: 2019 | C5: =NavHistory!B32/NavHistory!B20-1 -> 34.5% | D5: =NavHistory!U32/NavHistory!U20-1 -> 10.9% | E5: =NavHistory!AD32/NavHistory!AD20-1 -> 31.5% | H5: 2019 | I5: 34.5% | J5: 10.9% | K5: 31.5%
B6: 2020 | C6: =NavHistory!B44/NavHistory!B32-1 -> -39.7% | D6: =NavHistory!U44/NavHistory!U32-1 -> 2.4% | E6: =NavHistory!AD44/NavHistory!AD32-1 -> 18.4%
B7: 2021 | C7: =NavHistory!B56/NavHistory!B44-1 -> 42.4% | D7: =NavHistory!U56/NavHistory!U44-1 -> 29.0% | E7: =NavHistory!AD56/NavHistory!AD44-1 -> 28.7% | H7: Compounded Annual Gain | I7: =EFFECT(RATE(COUNT(NavHistory!$A5:$A32),0,-NavHistory!$B4,NavHistory!$B32)*12,12) -> 22.68% | J7: =EFFECT(RATE(COUNT(NavHistory!$A5:$A32),0,-NavHistory!$U4,NavHistory!$U32)*12,12) -> 10.05% | K7: =EFFECT(RATE(COUNT(NavHistory!$A5:$A32),0,-NavHistory!$AD4,NavHistory!$AD32)*12,12) -> 14.39%
B8: 2022 | C8: =NavHistory!B68/NavHistory!B56-1 -> -8.7% | D8: =NavHistory!U68/NavHistory!U56-1 -> 3.3% | E8: =NavHistory!AD68/NavHistory!AD56-1 -> -18.1% | H8: Overall Gain | I8: =NavHistory!$B32/NavHistory!$B4-1 -> 61.11% | J8: =NavHistory!$U32/NavHistory!$U4-1 -> 25.03% | K8: =NavHistory!$AD32/NavHistory!$AD4-1 -> 36.84%
B9: 2023 | C9: =NavHistory!B80/NavHistory!B68-1 -> 4.6% | D9: =NavHistory!U80/NavHistory!U68-1 -> 15.5% | E9: =NavHistory!AD80/NavHistory!AD68-1 -> 26.3%
B10: 2024 | C10: =NavHistory!B92/NavHistory!B80-1 -> -15.8% | D10: =NavHistory!U92/NavHistory!U80-1 -> 27.1% | E10: =NavHistory!AD92/NavHistory!AD80-1 -> 25.0%
B11: 2025 | C11: =NavHistory!B104/NavHistory!B92-1 -> 22.6% | D11: =NavHistory!U104/NavHistory!U92-1 -> 10.9% | E11: =NavHistory!AD104/NavHistory!AD92-1 -> 17.9% | H11: 2020 Stock Market Crash (December 2019 till 31st March 2020)
H12: Month | I12: Peter Partnership Fund * | J12: in Per-Share Market Value of BRK Class B | K12: in S&P 500 with Dividends Included
B13: Compounded Annual Gain | C13: =EFFECT(RATE(COUNT(NavHistory!$A5:$A104),0,-NavHistory!$B4,NavHistory!$B104)*12,12) -> 3.79% | D13: =EFFECT(RATE(COUNT(NavHistory!$A5:$A104),0,-NavHistory!$U4,NavHistory!$U104)*12,12) -> 13.03% | E13: =EFFECT(RATE(COUNT(NavHistory!$A5:$A104),0,-NavHistory!AD4,NavHistory!$AD104)*12,12) -> 14.88% | H13: 2020-01-01 | I13: =NavHistory!C33 -> -2.7% | J13: =NavHistory!Z33 -> -0.9% | K13: =NavHistory!AE33 -> -0.0%
B14: Overall Gain | C14: =NavHistory!$B104/NavHistory!$B4-1 -> 36.30% | D14: =NavHistory!$U104/NavHistory!$U4-1 -> 177.46% | E14: =NavHistory!$AD104/NavHistory!$AD4-1 -> 217.81% | H14: 2020-02-01 | I14: =NavHistory!C34 -> -25.8% | J14: =NavHistory!Z34 -> -8.1% | K14: =NavHistory!AE34 -> -8.2%
H15: 2020-03-01 | I15: =NavHistory!C35 -> -46.2% | J15: =NavHistory!Z35 -> -11.4% | K15: =NavHistory!AE35 -> -12.4%
H17: Overall Loss | I17: =NavHistory!B35/NavHistory!B32-1 -> -61.20% | J17: =NavHistory!U35/NavHistory!U32-1 -> -19.28% | K17: =NavHistory!AD35/NavHistory!AD32-1 -> -19.60%
H19: After 2020 Stock Market Crash (31st March 2020 till 31st December 2025)
H20: Year (ending 31st December) | I20: Peter Partnership Fund * | J20: in Per-Share Market Value of BRK Class B | K20: in S&P 500 with Dividends Included
H21: From 31st March 2020 | I21: =NavHistory!B44/NavHistory!B35-1 -> 55.3% | J21: =NavHistory!U44/NavHistory!U35-1 -> 26.8% | K21: =NavHistory!AD44/NavHistory!AD35-1 -> 47.3%
H22: 2021 | I22: =C7 -> 42.4% | J22: =D7 -> 29.0% | K22: 28.7%
H23: 2022 | I23: =C8 -> -8.7% | J23: =D8 -> 3.3% | K23: -18.1%
H24: 2023 | I24: =C9 -> 4.6% | J24: 15.5% | K24: 26.3%
H25: 2024 | I25: =C10 -> -15.8% | J25: 27.1% | K25: 25.0%
H26: 2025 | I26: =C11 -> 22.6% | J26: 10.9% | K26: 17.9%
H28: Compounded Annual Gain | I28: =EFFECT(RATE(COUNT(NavHistory!A36:A104),0,-NavHistory!$B35,NavHistory!$B104)*12,12) -> 14.52% | J28: =EFFECT(RATE(COUNT(NavHistory!A36:A104),0,-NavHistory!$U35,NavHistory!$U104)*12,12) -> 19.23% | K28: =EFFECT(RATE(COUNT(NavHistory!A36:A104),0,-NavHistory!$AD35,NavHistory!$AD104)*12,12) -> 20.26%
H29: Overall Gain | I29: =NavHistory!$B104/NavHistory!$B35-1 -> 118.03% | J29: =NavHistory!$U104/NavHistory!$U35-1 -> 174.93% | K29: =NavHistory!$AD104/NavHistory!$AD35-1 -> 188.86%
B36: Peter Partnership’s composite results of all managed accounts during the period before our fund’s inception vs. selected benchmark.
B37: Year (ending 31st December) | C37: Peter Partnership Fund * | D37: in Per-Share Market Value of BRK Class B | E37: in S&P 500 with Dividends Included
B38: From 31st March 2008 | C38: -21% | D38: -32.4% | E38: 11.3%
B39: 2009 | C39: 65% | D39: 49.9% | E39: 14.6%
B40: 2010 | C40: 56% | D40: 36.0% | E40: 20.2%
B41: 2011 | C41: -1% | D41: 1.0% | E41: -1.9%
B42: 2012 | C42: 30% | D42: 17.4% | E42: 12.1%
B43: 2013 | C43: 13% | D43: 5.9% | E43: 6.6%
B44: 2014 | C44: 15% | D44: 13.5% | E44: 1.6%
B45: 2015 | C45: -19% | D45: 1.2% | E45: -19.8%
B46: 2016 | C46: 47% | D46: 12.0% | E46: 35.0%
B47: 2017 | C47: 22% | D47: 21.1% | E47: 0.5%
B49: Compounded Annual Gain | C49: 17.7% | D49: 10.7%
B50: Overall Gain | C50: 390.2% | D50: 169.6%

Sheet EQ Factor Calc Ord. Units (hidden)
D1: 1 | E1: Month Later | K1: 2 | L1: Months Later | R1: 3 | S1: Months Later | Y1: 4 | Z1: Months Later | AF1: 5 | AG1: Months Later | AM1: 6 | AN1: Months Later | AT1: 7 | AU1: Months Later | BA1: 8 | BB1: Months Later | BH1: 9 | BI1: Months Later | BO1: 10 | BP1: Months Later | BV1: 11 | BW1: Months Later | CC1: 12 | CD1: Months Later | CJ1: 13 | CK1: Months Later | CQ1: 14 | CR1: Months Later | CX1: 15 | CY1: Months Later | DE1: 16 | DF1: Months Later | DL1: 17 | DM1: Months Later | DS1: 18 | DT1: Months Later | DZ1: 19 | EA1: Months Later | EG1: 20 | EH1: Months Later | EN1: 21 | EO1: Months Later | EU1: 22 | EV1: Months Later | FB1: 23 | FC1: Months Later | FI1: 24 | FJ1: Months Later | FP1: 25 | FQ1: Months Later | FW1: 26 | FX1: Months Later | GD1: 27 | GE1: Months Later | GK1: 28 | GL1: Months Later | GR1: 29 | GS1: Months Later | GY1: 30 | GZ1: Months Later | HF1: 31 | HG1: Months Later | HM1: 32 | HN1: Months Later | HT1: 33 | HU1: Months Later | IA1: 34 | IB1: Months Later | IH1: 35 | II1: Months Later | IO1: 36 | IP1: Months Later
A2: 20% | B2: NAV | C2: HWM | D2: NAV + Hurdle Rate | E2: Fund's High Water Mark + Hurdle Rate | F2: Maximum Fee Charge | G2: Performance Fees (in $) | H2: Units Deducted for Performance Fees | I2: Balance of Units | J2: Units Fully Equalised ? | K2: NAV + Hurdle Rate | L2: Fund's High Water Mark + Hurdle Rate | M2: Maximum Fee Charge | N2: Performance Fees (in $) | O2: Units Deducted for Performance Fees | P2: Balance of Units | Q2: Units Fully Equalised ? | R2: NAV + Hurdle Rate | S2: Fund's High Water Mark + Hurdle Rate | T2: Maximum Fee Charge | U2: Performance Fees (in $) | V2: Units Deducted for Performance Fees | W2: Balance of Units | X2: Units Fully Equalised ? | Y2: NAV + Hurdle Rate | Z2: Fund's High Water Mark + Hurdle Rate | AA2: Maximum Fee Charge | AB2: Performance Fees (in $) | AC2: Units Deducted for Performance Fees | AD2: Balance of Units | AE2: Units Fully Equalised ? | AF2: NAV + Hurdle Rate | AG2: Fund's High Water Mark + Hurdle Rate | AH2: Maximum Fee Charge | AI2: Performance Fees (in $) | AJ2: Units Deducted for Performance Fees | AK2: Balance of Units | AL2: Units Fully Equalised ? | AM2: NAV + Hurdle Rate | AN2: Fund's High Water Mark + Hurdle Rate | AO2: Maximum Fee Charge | AP2: Performance Fees (in $) | AQ2: Units Deducted for Performance Fees | AR2: Balance of Units | AS2: Units Fully Equalised ? | AT2: NAV + Hurdle Rate | AU2: Fund's High Water Mark + Hurdle Rate | AV2: Maximum Fee Charge | AW2: Performance Fees (in $) | AX2: Units Deducted for Performance Fees | AY2: Balance of Units | AZ2: Units Fully Equalised ? | BA2: NAV + Hurdle Rate | BB2: Fund's High Water Mark + Hurdle Rate | BC2: Maximum Fee Charge | BD2: Performance Fees (in $) | BE2: Units Deducted for Performance Fees | BF2: Balance of Units | BG2: Units Fully Equalised ? | BH2: NAV + Hurdle Rate | BI2: Fund's High Water Mark + Hurdle Rate | BJ2: Maximum Fee Charge | BK2: Performance Fees (in $) | BL2: Units Deducted for Performance Fees | BM2: Balance of Units | BN2: Units Fully Equalised ? | BO2: NAV + Hurdle Rate | BP2: Fund's High Water Mark + Hurdle Rate | BQ2: Maximum Fee Charge | BR2: Performance Fees (in $) | BS2: Units Deducted for Performance Fees | BT2: Balance of Units | BU2: Units Fully Equalised ? | BV2: NAV + Hurdle Rate | BW2: Fund's High Water Mark + Hurdle Rate | BX2: Maximum Fee Charge | BY2: Performance Fees (in $) | BZ2: Units Deducted for Performance Fees | CA2: Balance of Units | CB2: Units Fully Equalised ? | CC2: NAV + Hurdle Rate | CD2: Fund's High Water Mark + Hurdle Rate | CE2: Maximum Fee Charge | CF2: Performance Fees (in $) | CG2: Units Deducted for Performance Fees | CH2: Balance of Units | CI2: Units Fully Equalised ? | CJ2: NAV + Hurdle Rate | CK2: Fund's High Water Mark + Hurdle Rate | CL2: Maximum Fee Charge | CM2: Performance Fees (in $) | CN2: Units Deducted for Performance Fees | CO2: Balance of Units | CP2: Units Fully Equalised ? | CQ2: NAV + Hurdle Rate | CR2: Fund's High Water Mark + Hurdle Rate | CS2: Maximum Fee Charge | CT2: Performance Fees (in $) | CU2: Units Deducted for Performance Fees | CV2: Balance of Units | CW2: Units Fully Equalised ? | CX2: NAV + Hurdle Rate | CY2: Fund's High Water Mark + Hurdle Rate | CZ2: Maximum Fee Charge | DA2: Performance Fees (in $) | DB2: Units Deducted for Performance Fees | DC2: Balance of Units | DD2: Units Fully Equalised ? | DE2: NAV + Hurdle Rate | DF2: Fund's High Water Mark + Hurdle Rate | DG2: Maximum Fee Charge | DH2: Performance Fees (in $) | DI2: Units Deducted for Performance Fees | DJ2: Balance of Units | DK2: Units Fully Equalised ? | DL2: NAV + Hurdle Rate | DM2: Fund's High Water Mark + Hurdle Rate | DN2: Maximum Fee Charge | DO2: Performance Fees (in $) | DP2: Units Deducted for Performance Fees | DQ2: Balance of Units | DR2: Units Fully Equalised ? | DS2: NAV + Hurdle Rate | DT2: Fund's High Water Mark + Hurdle Rate | DU2: Maximum Fee Charge | DV2: Performance Fees (in $) | DW2: Units Deducted for Performance Fees | DX2: Balance of Units | DY2: Units Fully Equalised ? | DZ2: NAV + Hurdle Rate | EA2: Fund's High Water Mark + Hurdle Rate | EB2: Maximum Fee Charge | EC2: Performance Fees (in $) | ED2: Units Deducted for Performance Fees | EE2: Balance of Units | EF2: Units Fully Equalised ? | EG2: NAV + Hurdle Rate | EH2: Fund's High Water Mark + Hurdle Rate | EI2: Maximum Fee Charge | EJ2: Performance Fees (in $) | EK2: Units Deducted for Performance Fees | EL2: Balance of Units | EM2: Units Fully Equalised ? | EN2: NAV + Hurdle Rate | EO2: Fund's High Water Mark + Hurdle Rate | EP2: Maximum Fee Charge | EQ2: Performance Fees (in $) | ER2: Units Deducted for Performance Fees | ES2: Balance of Units | ET2: Units Fully Equalised ? | EU2: NAV + Hurdle Rate | EV2: Fund's High Water Mark + Hurdle Rate | EW2: Maximum Fee Charge | EX2: Performance Fees (in $) | EY2: Units Deducted for Performance Fees | EZ2: Balance of Units | FA2: Units Fully Equalised ? | FB2: NAV + Hurdle Rate | FC2: Fund's High Water Mark + Hurdle Rate | FD2: Maximum Fee Charge | FE2: Performance Fees (in $) | FF2: Units Deducted for Performance Fees | FG2: Balance of Units | FH2: Units Fully Equalised ? | FI2: NAV + Hurdle Rate | FJ2: Fund's High Water Mark + Hurdle Rate | FK2: Maximum Fee Charge | FL2: Performance Fees (in $) | FM2: Units Deducted for Performance Fees | FN2: Balance of Units | FO2: Units Fully Equalised ? | FP2: NAV + Hurdle Rate | FQ2: Fund's High Water Mark + Hurdle Rate | FR2: Maximum Fee Charge | FS2: Performance Fees (in $) | FT2: Units Deducted for Performance Fees | FU2: Balance of Units | FV2: Units Fully Equalised ? | FW2: NAV + Hurdle Rate | FX2: Fund's High Water Mark + Hurdle Rate | FY2: Maximum Fee Charge | FZ2: Performance Fees (in $) | GA2: Units Deducted for Performance Fees | GB2: Balance of Units | GC2: Units Fully Equalised ? | GD2: NAV + Hurdle Rate | GE2: Fund's High Water Mark + Hurdle Rate | GF2: Maximum Fee Charge | GG2: Performance Fees (in $) | GH2: Units Deducted for Performance Fees | GI2: Balance of Units | GJ2: Units Fully Equalised ? | GK2: NAV + Hurdle Rate | GL2: Fund's High Water Mark + Hurdle Rate | GM2: Maximum Fee Charge | GN2: Performance Fees (in $) | GO2: Units Deducted for Performance Fees | GP2: Balance of Units | GQ2: Units Fully Equalised ? | GR2: NAV + Hurdle Rate | GS2: Fund's High Water Mark + Hurdle Rate | GT2: Maximum Fee Charge | GU2: Performance Fees (in $) | GV2: Units Deducted for Performance Fees | GW2: Balance of Units | GX2: Units Fully Equalised ? | GY2: NAV + Hurdle Rate | GZ2: Fund's High Water Mark + Hurdle Rate | HA2: Maximum Fee Charge | HB2: Performance Fees (in $) | HC2: Units Deducted for Performance Fees | HD2: Balance of Units | HE2: Units Fully Equalised ? | HF2: NAV + Hurdle Rate | HG2: Fund's High Water Mark + Hurdle Rate | HH2: Maximum Fee Charge | HI2: Performance Fees (in $) | HJ2: Units Deducted for Performance Fees | HK2: Balance of Units | HL2: Units Fully Equalised ? | HM2: NAV + Hurdle Rate | HN2: Fund's High Water Mark + Hurdle Rate | HO2: Maximum Fee Charge | HP2: Performance Fees (in $) | HQ2: Units Deducted for Performance Fees | HR2: Balance of Units | HS2: Units Fully Equalised ? | HT2: NAV + Hurdle Rate | HU2: Fund's High Water Mark + Hurdle Rate | HV2: Maximum Fee Charge | HW2: Performance Fees (in $) | HX2: Units Deducted for Performance Fees | HY2: Balance of Units | HZ2: Units Fully Equalised ? | IA2: NAV + Hurdle Rate | IB2: Fund's High Water Mark + Hurdle Rate | IC2: Maximum Fee Charge | ID2: Performance Fees (in $) | IE2: Units Deducted for Performance Fees | IF2: Balance of Units | IG2: Units Fully Equalised ? | IH2: NAV + Hurdle Rate | II2: Fund's High Water Mark + Hurdle Rate | IJ2: Maximum Fee Charge | IK2: Performance Fees (in $) | IL2: Units Deducted for Performance Fees | IM2: Balance of Units | IN2: Units Fully Equalised ? | IO2: NAV + Hurdle Rate | IP2: Fund's High Water Mark + Hurdle Rate | IQ2: Maximum Fee Charge | IR2: Performance Fees (in $) | IS2: Units Deducted for Performance Fees | IT2: Balance of Units | IU2: Units Fully Equalised ?
K3: =IF(NavHistory!$R3="Yes","",IF(J3<>"No","",IF(INDEX($B$1:$B$682,ROW()+K$1,1)="","",MAX(D3,INDEX($B$1:$B$682,ROW()+K$1-1,1))*1.06^(1/12)))) ->  | L3: =IF(NavHistory!$R3="Yes","",IF(J3<>"No","",1.06^(1/12)*E3)) ->  | M3: =IF(NavHistory!$R3="Yes","",IF(J3<>"No","",F3-G3)) ->  | N3: =IF(NavHistory!$R3="Yes","",IF(J3<>"No","",MAX(0,MIN((MIN(INDEX($B$1:$B$682,ROW()+K$1,1),L3)-K3)*$A$2,M3)))) ->  | O3: =IF(NavHistory!$R3="Yes","",IF(J3<>"No","",N3/INDEX($B$1:$B$682,ROW()+K$1,1))) ->  | P3: =IF(NavHistory!$R3="Yes","",IF(J3<>"No","",I3-O3)) ->  | Q3: =IF(NavHistory!$R3="Yes","",IF(J3<>"No","",IF(INDEX($B$1:$B$682,ROW()+K$1,1)>L3,"Yes","No"))) ->  | R3: =IF(NavHistory!$R3="Yes","",IF(Q3<>"No","",IF(INDEX($B$1:$B$682,ROW()+R$1,1)="","",MAX(K3,INDEX($B$1:$B$682,ROW()+R$1-1,1))*1.06^(1/12)))) ->  | S3: =IF(NavHistory!$R3="Yes","",IF(Q3<>"No","",1.06^(1/12)*L3)) ->  | T3: =IF(NavHistory!$R3="Yes","",IF(Q3<>"No","",M3-N3)) ->  | U3: =IF(NavHistory!$R3="Yes","",IF(Q3<>"No","",MAX(0,MIN((MIN(INDEX($B$1:$B$682,ROW()+R$1,1),S3)-R3)*$A$2,T3)))) ->  | V3: =IF(NavHistory!$R3="Yes","",IF(Q3<>"No","",U3/INDEX($B$1:$B$682,ROW()+R$1,1))) ->  | W3: =IF(NavHistory!$R3="Yes","",IF(Q3<>"No","",P3-V3)) ->  | X3: =IF(NavHistory!$R3="Yes","",IF(Q3<>"No","",IF(INDEX($B$1:$B$682,ROW()+R$1,1)>S3,"Yes","No"))) ->  | Y3: =IF(NavHistory!$R3="Yes","",IF(X3<>"No","",IF(INDEX($B$1:$B$682,ROW()+Y$1,1)="","",MAX(R3,INDEX($B$1:$B$682,ROW()+Y$1-1,1))*1.06^(1/12)))) ->  | Z3: =IF(NavHistory!$R3="Yes","",IF(X3<>"No","",1.06^(1/12)*S3)) ->  | AA3: =IF(NavHistory!$R3="Yes","",IF(X3<>"No","",T3-U3)) ->  | AB3: =IF(NavHistory!$R3="Yes","",IF(X3<>"No","",MAX(0,MIN((MIN(INDEX($B$1:$B$682,ROW()+Y$1,1),Z3)-Y3)*$A$2,AA3)))) ->  | AC3: =IF(NavHistory!$R3="Yes","",IF(X3<>"No","",AB3/INDEX($B$1:$B$682,ROW()+Y$1,1))) ->  | AD3: =IF(NavHistory!$R3="Yes","",IF(X3<>"No","",W3-AC3)) ->  | AE3: =IF(NavHistory!$R3="Yes","",IF(X3<>"No","",IF(INDEX($B$1:$B$682,ROW()+Y$1,1)>Z3,"Yes","No"))) ->  | AF3: =IF(NavHistory!$R3="Yes","",IF(AE3<>"No","",IF(INDEX($B$1:$B$682,ROW()+AF$1,1)="","",MAX(Y3,INDEX($B$1:$B$682,ROW()+AF$1-1,1))*1.06^(1/12)))) ->  | AG3: =IF(NavHistory!$R3="Yes","",IF(AE3<>"No","",1.06^(1/12)*Z3)) ->  | AH3: =IF(NavHistory!$R3="Yes","",IF(AE3<>"No","",AA3-AB3)) ->  | AI3: =IF(NavHistory!$R3="Yes","",IF(AE3<>"No","",MAX(0,MIN((MIN(INDEX($B$1:$B$682,ROW()+AF$1,1),AG3)-AF3)*$A$2,AH3)))) ->  | AJ3: =IF(NavHistory!$R3="Yes","",IF(AE3<>"No","",AI3/INDEX($B$1:$B$682,ROW()+AF$1,1))) ->  | AK3: =IF(NavHistory!$R3="Yes","",IF(AE3<>"No","",AD3-AJ3)) ->  | AL3: =IF(NavHistory!$R3="Yes","",IF(AE3<>"No","",IF(INDEX($B$1:$B$682,ROW()+AF$1,1)>AG3,"Yes","No"))) ->  | AM3: =IF(NavHistory!$R3="Yes","",IF(AL3<>"No","",IF(INDEX($B$1:$B$682,ROW()+AM$1,1)="","",MAX(AF3,INDEX($B$1:$B$682,ROW()+AM$1-1,1))*1.06^(1/12)))) ->  | AN3: =IF(NavHistory!$R3="Yes","",IF(AL3<>"No","",1.06^(1/12)*AG3)) ->  | AO3: =IF(NavHistory!$R3="Yes","",IF(AL3<>"No","",AH3-AI3)) ->  | AP3: =IF(NavHistory!$R3="Yes","",IF(AL3<>"No","",MAX(0,MIN((MIN(INDEX($B$1:$B$682,ROW()+AM$1,1),AN3)-AM3)*$A$2,AO3)))) ->  | AQ3: =IF(NavHistory!$R3="Yes","",IF(AL3<>"No","",AP3/INDEX($B$1:$B$682,ROW()+AM$1,1))) ->  | AR3: =IF(NavHistory!$R3="Yes","",IF(AL3<>"No","",AK3-AQ3)) ->  | AS3: =IF(NavHistory!$R3="Yes","",IF(AL3<>"No","",IF(INDEX($B$1:$B$682,ROW()+AM$1,1)>AN3,"Yes","No"))) ->  | AT3: =IF(NavHistory!$R3="Yes","",IF(AS3<>"No","",IF(INDEX($B$1:$B$682,ROW()+AT$1,1)="","",MAX(AM3,INDEX($B$1:$B$682,ROW()+AT$1-1,1))*1.06^(1/12)))) ->  | AU3: =IF(NavHistory!$R3="Yes","",IF(AS3<>"No","",1.06^(1/12)*AN3)) ->  | AV3: =IF(NavHistory!$R3="Yes","",IF(AS3<>"No","",AO3-AP3)) ->  | AW3: =IF(NavHistory!$R3="Yes","",IF(AS3<>"No","",MAX(0,MIN((MIN(INDEX($B$1:$B$682,ROW()+AT$1,1),AU3)-AT3)*$A$2,AV3)))) ->  | AX3: =IF(NavHistory!$R3="Yes","",IF(AS3<>"No","",AW3/INDEX($B$1:$B$682,ROW()+AT$1,1))) ->  | AY3: =IF(NavHistory!$R3="Yes","",IF(AS3<>"No","",AR3-AX3)) ->  | AZ3: =IF(NavHistory!$R3="Yes","",IF(AS3<>"No","",IF(INDEX($B$1:$B$682,ROW()+AT$1,1)>AU3,"Yes","No"))) ->  | BA3: =IF(NavHistory!$R3="Yes","",IF(AZ3<>"No","",IF(INDEX($B$1:$B$682,ROW()+BA$1,1)="","",MAX(AT3,INDEX($B$1:$B$682,ROW()+BA$1-1,1))*1.06^(1/12)))) ->  | BB3: =IF(NavHistory!$R3="Yes","",IF(AZ3<>"No","",1.06^(1/12)*AU3)) ->  | BC3: =IF(NavHistory!$R3="Yes","",IF(AZ3<>"No","",AV3-AW3)) ->  | BD3: =IF(NavHistory!$R3="Yes","",IF(AZ3<>"No","",MAX(0,MIN((MIN(INDEX($B$1:$B$682,ROW()+BA$1,1),BB3)-BA3)*$A$2,BC3)))) ->  | BE3: =IF(NavHistory!$R3="Yes","",IF(AZ3<>"No","",BD3/INDEX($B$1:$B$682,ROW()+BA$1,1))) ->  | BF3: =IF(NavHistory!$R3="Yes","",IF(AZ3<>"No","",AY3-BE3)) ->  | BG3: =IF(NavHistory!$R3="Yes","",IF(AZ3<>"No","",IF(INDEX($B$1:$B$682,ROW()+BA$1,1)>BB3,"Yes","No"))) ->  | BH3: =IF(NavHistory!$R3="Yes","",IF(BG3<>"No","",IF(INDEX($B$1:$B$682,ROW()+BH$1,1)="","",MAX(BA3,INDEX($B$1:$B$682,ROW()+BH$1-1,1))*1.06^(1/12)))) ->  | BI3: =IF(NavHistory!$R3="Yes","",IF(BG3<>"No","",1.06^(1/12)*BB3)) ->  | BJ3: =IF(NavHistory!$R3="Yes","",IF(BG3<>"No","",BC3-BD3)) ->  | BK3: =IF(NavHistory!$R3="Yes","",IF(BG3<>"No","",MAX(0,MIN((MIN(INDEX($B$1:$B$682,ROW()+BH$1,1),BI3)-BH3)*$A$2,BJ3)))) ->  | BL3: =IF(NavHistory!$R3="Yes","",IF(BG3<>"No","",BK3/INDEX($B$1:$B$682,ROW()+BH$1,1))) ->  | BM3: =IF(NavHistory!$R3="Yes","",IF(BG3<>"No","",BF3-BL3)) ->  | BN3: =IF(NavHistory!$R3="Yes","",IF(BG3<>"No","",IF(INDEX($B$1:$B$682,ROW()+BH$1,1)>BI3,"Yes","No"))) ->  | BO3: =IF(NavHistory!$R3="Yes","",IF(BN3<>"No","",IF(INDEX($B$1:$B$682,ROW()+BO$1,1)="","",MAX(BH3,INDEX($B$1:$B$682,ROW()+BO$1-1,1))*1.06^(1/12)))) ->  | BP3: =IF(NavHistory!$R3="Yes","",IF(BN3<>"No","",1.06^(1/12)*BI3)) ->  | BQ3: =IF(NavHistory!$R3="Yes","",IF(BN3<>"No","",BJ3-BK3)) ->  | BR3: =IF(NavHistory!$R3="Yes","",IF(BN3<>"No","",MAX(0,MIN((MIN(INDEX($B$1:$B$682,ROW()+BO$1,1),BP3)-BO3)*$A$2,BQ3)))) ->  | BS3: =IF(NavHistory!$R3="Yes","",IF(BN3<>"No","",BR3/INDEX($B$1:$B$682,ROW()+BO$1,1))) ->  | BT3: =IF(NavHistory!$R3="Yes","",IF(BN3<>"No","",BM3-BS3)) ->  | BU3: =IF(NavHistory!$R3="Yes","",IF(BN3<>"No","",IF(INDEX($B$1:$B$682,ROW()+BO$1,1)>BP3,"Yes","No"))) ->  | BV3: =IF(NavHistory!$R3="Yes","",IF(BU3<>"No","",IF(INDEX($B$1:$B$682,ROW()+BV$1,1)="","",MAX(BO3,INDEX($B$1:$B$682,ROW()+BV$1-1,1))*1.06^(1/12)))) ->  | BW3: =IF(NavHistory!$R3="Yes","",IF(BU3<>"No","",1.06^(1/12)*BP3)) ->  | BX3: =IF(NavHistory!$R3="Yes","",IF(BU3<>"No","",BQ3-BR3)) ->  | BY3: =IF(NavHistory!$R3="Yes","",IF(BU3<>"No","",MAX(0,MIN((MIN(INDEX($B$1:$B$682,ROW()+BV$1,1),BW3)-BV3)*$A$2,BX3)))) ->  | BZ3: =IF(NavHistory!$R3="Yes","",IF(BU3<>"No","",BY3/INDEX($B$1:$B$682,ROW()+BV$1,1))) ->  | CA3: =IF(NavHistory!$R3="Yes","",IF(BU3<>"No","",BT3-BZ3)) ->  | CB3: =IF(NavHistory!$R3="Yes","",IF(BU3<>"No","",IF(INDEX($B$1:$B$682,ROW()+BV$1,1)>BW3,"Yes","No"))) ->  | CC3: =IF(NavHistory!$R3="Yes","",IF(CB3<>"No","",IF(INDEX($B$1:$B$682,ROW()+CC$1,1)="","",MAX(BV3,INDEX($B$1:$B$682,ROW()+CC$1-1,1))*1.06^(1/12)))) ->  | CD3: =IF(NavHistory!$R3="Yes","",IF(CB3<>"No","",1.06^(1/12)*BW3)) ->  | CE3: =IF(NavHistory!$R3="Yes","",IF(CB3<>"No","",BX3-BY3)) ->  | CF3: =IF(NavHistory!$R3="Yes","",IF(CB3<>"No","",MAX(0,MIN((MIN(INDEX($B$1:$B$682,ROW()+CC$1,1),CD3)-CC3)*$A$2,CE3)))) ->  | CG3: =IF(NavHistory!$R3="Yes","",IF(CB3<>"No","",CF3/INDEX($B$1:$B$682,ROW()+CC$1,1))) ->  | CH3: =IF(NavHistory!$R3="Yes","",IF(CB3<>"No","",CA3-CG3)) ->  | CI3: =IF(NavHistory!$R3="Yes","",IF(CB3<>"No","",IF(INDEX($B$1:$B$682,ROW()+CC$1,1)>CD3,"Yes","No"))) ->  | CJ3: =IF(NavHistory!$R3="Yes","",IF(CI3<>"No","",IF(INDEX($B$1:$B$682,ROW()+CJ$1,1)="","",MAX(CC3,INDEX($B$1:$B$682,ROW()+CJ$1-1,1))*1.06^(1/12)))) ->  | CK3: =IF(NavHistory!$R3="Yes","",IF(CI3<>"No","",1.06^(1/12)*CD3)) ->  | CL3: =IF(NavHistory!$R3="Yes","",IF(CI3<>"No","",CE3-CF3)) ->  | CM3: =IF(NavHistory!$R3="Yes","",IF(CI3<>"No","",MAX(0,MIN((MIN(INDEX($B$1:$B$682,ROW()+CJ$1,1),CK3)-CJ3)*$A$2,CL3)))) ->  | CN3: =IF(NavHistory!$R3="Yes","",IF(CI3<>"No","",CM3/INDEX($B$1:$B$682,ROW()+CJ$1,1))) ->  | CO3: =IF(NavHistory!$R3="Yes","",IF(CI3<>"No","",CH3-CN3)) ->  | CP3: =IF(NavHistory!$R3="Yes","",IF(CI3<>"No","",IF(INDEX($B$1:$B$682,ROW()+CJ$1,1)>CK3,"Yes","No"))) ->  | CQ3: =IF(NavHistory!$R3="Yes","",IF(CP3<>"No","",IF(INDEX($B$1:$B$682,ROW()+CQ$1,1)="","",MAX(CJ3,INDEX($B$1:$B$682,ROW()+CQ$1-1,1))*1.06^(1/12)))) ->  | CR3: =IF(NavHistory!$R3="Yes","",IF(CP3<>"No","",1.06^(1/12)*CK3)) ->  | CS3: =IF(NavHistory!$R3="Yes","",IF(CP3<>"No","",CL3-CM3)) ->  | CT3: =IF(NavHistory!$R3="Yes","",IF(CP3<>"No","",MAX(0,MIN((MIN(INDEX($B$1:$B$682,ROW()+CQ$1,1),CR3)-CQ3)*$A$2,CS3)))) ->  | CU3: =IF(NavHistory!$R3="Yes","",IF(CP3<>"No","",CT3/INDEX($B$1:$B$682,ROW()+CQ$1,1))) ->  | CV3: =IF(NavHistory!$R3="Yes","",IF(CP3<>"No","",CO3-CU3)) ->  | CW3: =IF(NavHistory!$R3="Yes","",IF(CP3<>"No","",IF(INDEX($B$1:$B$682,ROW()+CQ$1,1)>CR3,"Yes","No"))) ->  | CX3: =IF(NavHistory!$R3="Yes","",IF(CW3<>"No","",IF(INDEX($B$1:$B$682,ROW()+CX$1,1)="","",MAX(CQ3,INDEX($B$1:$B$682,ROW()+CX$1-1,1))*1.06^(1/12)))) ->  | CY3: =IF(NavHistory!$R3="Yes","",IF(CW3<>"No","",1.06^(1/12)*CR3)) ->  | CZ3: =IF(NavHistory!$R3="Yes","",IF(CW3<>"No","",CS3-CT3)) ->  | DA3: =IF(NavHistory!$R3="Yes","",IF(CW3<>"No","",MAX(0,MIN((MIN(INDEX($B$1:$B$682,ROW()+CX$1,1),CY3)-CX3)*$A$2,CZ3)))) ->  | DB3: =IF(NavHistory!$R3="Yes","",IF(CW3<>"No","",DA3/INDEX($B$1:$B$682,ROW()+CX$1,1))) ->  | DC3: =IF(NavHistory!$R3="Yes","",IF(CW3<>"No","",CV3-DB3)) ->  | DD3: =IF(NavHistory!$R3="Yes","",IF(CW3<>"No","",IF(INDEX($B$1:$B$682,ROW()+CX$1,1)>CY3,"Yes","No"))) ->  | DE3: =IF(NavHistory!$R3="Yes","",IF(DD3<>"No","",IF(INDEX($B$1:$B$682,ROW()+DE$1,1)="","",MAX(CX3,INDEX($B$1:$B$682,ROW()+DE$1-1,1))*1.06^(1/12)))) ->  | DF3: =IF(NavHistory!$R3="Yes","",IF(DD3<>"No","",1.06^(1/12)*CY3)) ->  | DG3: =IF(NavHistory!$R3="Yes","",IF(DD3<>"No","",CZ3-DA3)) ->  | DH3: =IF(NavHistory!$R3="Yes","",IF(DD3<>"No","",MAX(0,MIN((MIN(INDEX($B$1:$B$682,ROW()+DE$1,1),DF3)-DE3)*$A$2,DG3)))) ->  | DI3: =IF(NavHistory!$R3="Yes","",IF(DD3<>"No","",DH3/INDEX($B$1:$B$682,ROW()+DE$1,1))) ->  | DJ3: =IF(NavHistory!$R3="Yes","",IF(DD3<>"No","",DC3-DI3)) ->  | DK3: =IF(NavHistory!$R3="Yes","",IF(DD3<>"No","",IF(INDEX($B$1:$B$682,ROW()+DE$1,1)>DF3,"Yes","No"))) ->  | DL3: =IF(NavHistory!$R3="Yes","",IF(DK3<>"No","",IF(INDEX($B$1:$B$682,ROW()+DL$1,1)="","",MAX(DE3,INDEX($B$1:$B$682,ROW()+DL$1-1,1))*1.06^(1/12)))) ->  | DM3: =IF(NavHistory!$R3="Yes","",IF(DK3<>"No","",1.06^(1/12)*DF3)) ->  | DN3: =IF(NavHistory!$R3="Yes","",IF(DK3<>"No","",DG3-DH3)) ->  | DO3: =IF(NavHistory!$R3="Yes","",IF(DK3<>"No","",MAX(0,MIN((MIN(INDEX($B$1:$B$682,ROW()+DL$1,1),DM3)-DL3)*$A$2,DN3)))) ->  | DP3: =IF(NavHistory!$R3="Yes","",IF(DK3<>"No","",DO3/INDEX($B$1:$B$682,ROW()+DL$1,1))) ->  | DQ3: =IF(NavHistory!$R3="Yes","",IF(DK3<>"No","",DJ3-DP3)) ->  | DR3: =IF(NavHistory!$R3="Yes","",IF(DK3<>"No","",IF(INDEX($B$1:$B$682,ROW()+DL$1,1)>DM3,"Yes","No"))) ->  | DS3: =IF(NavHistory!$R3="Yes","",IF(DR3<>"No","",IF(INDEX($B$1:$B$682,ROW()+DS$1,1)="","",MAX(DL3,INDEX($B$1:$B$682,ROW()+DS$1-1,1))*1.06^(1/12)))) ->  | DT3: =IF(NavHistory!$R3="Yes","",IF(DR3<>"No","",1.06^(1/12)*DM3)) ->  | DU3: =IF(NavHistory!$R3="Yes","",IF(DR3<>"No","",DN3-DO3)) ->  | DV3: =IF(NavHistory!$R3="Yes","",IF(DR3<>"No","",MAX(0,MIN((MIN(INDEX($B$1:$B$682,ROW()+DS$1,1),DT3)-DS3)*$A$2,DU3)))) ->  | DW3: =IF(NavHistory!$R3="Yes","",IF(DR3<>"No","",DV3/INDEX($B$1:$B$682,ROW()+DS$1,1))) ->  | DX3: =IF(NavHistory!$R3="Yes","",IF(DR3<>"No","",DQ3-DW3)) ->  | DY3: =IF(NavHistory!$R3="Yes","",IF(DR3<>"No","",IF(INDEX($B$1:$B$682,ROW()+DS$1,1)>DT3,"Yes","No"))) ->  | DZ3: =IF(NavHistory!$R3="Yes","",IF(DY3<>"No","",IF(INDEX($B$1:$B$682,ROW()+DZ$1,1)="","",MAX(DS3,INDEX($B$1:$B$682,ROW()+DZ$1-1,1))*1.06^(1/12)))) ->  | EA3: =IF(NavHistory!$R3="Yes","",IF(DY3<>"No","",1.06^(1/12)*DT3)) ->  | EB3: =IF(NavHistory!$R3="Yes","",IF(DY3<>"No","",DU3-DV3)) ->  | EC3: =IF(NavHistory!$R3="Yes","",IF(DY3<>"No","",MAX(0,MIN((MIN(INDEX($B$1:$B$682,ROW()+DZ$1,1),EA3)-DZ3)*$A$2,EB3)))) ->  | ED3: =IF(NavHistory!$R3="Yes","",IF(DY3<>"No","",EC3/INDEX($B$1:$B$682,ROW()+DZ$1,1))) ->  | EE3: =IF(NavHistory!$R3="Yes","",IF(DY3<>"No","",DX3-ED3)) ->  | EF3: =IF(NavHistory!$R3="Yes","",IF(DY3<>"No","",IF(INDEX($B$1:$B$682,ROW()+DZ$1,1)>EA3,"Yes","No"))) ->  | EG3: =IF(NavHistory!$R3="Yes","",IF(EF3<>"No","",IF(INDEX($B$1:$B$682,ROW()+EG$1,1)="","",MAX(DZ3,INDEX($B$1:$B$682,ROW()+EG$1-1,1))*1.06^(1/12)))) ->  | EH3: =IF(NavHistory!$R3="Yes","",IF(EF3<>"No","",1.06^(1/12)*EA3)) ->  | EI3: =IF(NavHistory!$R3="Yes","",IF(EF3<>"No","",EB3-EC3)) ->  | EJ3: =IF(NavHistory!$R3="Yes","",IF(EF3<>"No","",MAX(0,MIN((MIN(INDEX($B$1:$B$682,ROW()+EG$1,1),EH3)-EG3)*$A$2,EI3)))) ->  | EK3: =IF(NavHistory!$R3="Yes","",IF(EF3<>"No","",EJ3/INDEX($B$1:$B$682,ROW()+EG$1,1))) ->  | EL3: =IF(NavHistory!$R3="Yes","",IF(EF3<>"No","",EE3-EK3)) ->  | EM3: =IF(NavHistory!$R3="Yes","",IF(EF3<>"No","",IF(INDEX($B$1:$B$682,ROW()+EG$1,1)>EH3,"Yes","No"))) ->  | EN3: =IF(NavHistory!$R3="Yes","",IF(EM3<>"No","",IF(INDEX($B$1:$B$682,ROW()+EN$1,1)="","",MAX(EG3,INDEX($B$1:$B$682,ROW()+EN$1-1,1))*1.06^(1/12)))) ->  | EO3: =IF(NavHistory!$R3="Yes","",IF(EM3<>"No","",1.06^(1/12)*EH3)) ->  | EP3: =IF(NavHistory!$R3="Yes","",IF(EM3<>"No","",EI3-EJ3)) ->  | EQ3: =IF(NavHistory!$R3="Yes","",IF(EM3<>"No","",MAX(0,MIN((MIN(INDEX($B$1:$B$682,ROW()+EN$1,1),EO3)-EN3)*$A$2,EP3)))) ->  | ER3: =IF(NavHistory!$R3="Yes","",IF(EM3<>"No","",EQ3/INDEX($B$1:$B$682,ROW()+EN$1,1))) ->  | ES3: =IF(NavHistory!$R3="Yes","",IF(EM3<>"No","",EL3-ER3)) ->  | ET3: =IF(NavHistory!$R3="Yes","",IF(EM3<>"No","",IF(INDEX($B$1:$B$682,ROW()+EN$1,1)>EO3,"Yes","No"))) ->  | EU3: =IF(NavHistory!$R3="Yes","",IF(ET3<>"No","",IF(INDEX($B$1:$B$682,ROW()+EU$1,1)="","",MAX(EN3,INDEX($B$1:$B$682,ROW()+EU$1-1,1))*1.06^(1/12)))) ->  | EV3: =IF(NavHistory!$R3="Yes","",IF(ET3<>"No","",1.06^(1/12)*EO3)) ->  | EW3: =IF(NavHistory!$R3="Yes","",IF(ET3<>"No","",EP3-EQ3)) ->  | EX3: =IF(NavHistory!$R3="Yes","",IF(ET3<>"No","",MAX(0,MIN((MIN(INDEX($B$1:$B$682,ROW()+EU$1,1),EV3)-EU3)*$A$2,EW3)))) ->  | EY3: =IF(NavHistory!$R3="Yes","",IF(ET3<>"No","",EX3/INDEX($B$1:$B$682,ROW()+EU$1,1))) ->  | EZ3: =IF(NavHistory!$R3="Yes","",IF(ET3<>"No","",ES3-EY3)) ->  | FA3: =IF(NavHistory!$R3="Yes","",IF(ET3<>"No","",IF(INDEX($B$1:$B$682,ROW()+EU$1,1)>EV3,"Yes","No"))) ->  | FB3: =IF(NavHistory!$R3="Yes","",IF(FA3<>"No","",IF(INDEX($B$1:$B$682,ROW()+FB$1,1)="","",MAX(EU3,INDEX($B$1:$B$682,ROW()+FB$1-1,1))*1.06^(1/12)))) ->  | FC3: =IF(NavHistory!$R3="Yes","",IF(FA3<>"No","",1.06^(1/12)*EV3)) ->  | FD3: =IF(NavHistory!$R3="Yes","",IF(FA3<>"No","",EW3-EX3)) ->  | FE3: =IF(NavHistory!$R3="Yes","",IF(FA3<>"No","",MAX(0,MIN((MIN(INDEX($B$1:$B$682,ROW()+FB$1,1),FC3)-FB3)*$A$2,FD3)))) ->  | FF3: =IF(NavHistory!$R3="Yes","",IF(FA3<>"No","",FE3/INDEX($B$1:$B$682,ROW()+FB$1,1))) ->  | FG3: =IF(NavHistory!$R3="Yes","",IF(FA3<>"No","",EZ3-FF3)) ->  | FH3: =IF(NavHistory!$R3="Yes","",IF(FA3<>"No","",IF(INDEX($B$1:$B$682,ROW()+FB$1,1)>FC3,"Yes","No"))) ->  | FI3: =IF(NavHistory!$R3="Yes","",IF(FH3<>"No","",IF(INDEX($B$1:$B$682,ROW()+FI$1,1)="","",MAX(FB3,INDEX($B$1:$B$682,ROW()+FI$1-1,1))*1.06^(1/12)))) ->  | FJ3: =IF(NavHistory!$R3="Yes","",IF(FH3<>"No","",1.06^(1/12)*FC3)) ->  | FK3: =IF(NavHistory!$R3="Yes","",IF(FH3<>"No","",FD3-FE3)) ->  | FL3: =IF(NavHistory!$R3="Yes","",IF(FH3<>"No","",MAX(0,MIN((MIN(INDEX($B$1:$B$682,ROW()+FI$1,1),FJ3)-FI3)*$A$2,FK3)))) ->  | FM3: =IF(NavHistory!$R3="Yes","",IF(FH3<>"No","",FL3/INDEX($B$1:$B$682,ROW()+FI$1,1))) ->  | FN3: =IF(NavHistory!$R3="Yes","",IF(FH3<>"No","",FG3-FM3)) ->  | FO3: =IF(NavHistory!$R3="Yes","",IF(FH3<>"No","",IF(INDEX($B$1:$B$682,ROW()+FI$1,1)>FJ3,"Yes","No"))) ->  | FP3: =IF(NavHistory!$R3="Yes","",IF(FO3<>"No","",IF(INDEX($B$1:$B$682,ROW()+FP$1,1)="","",MAX(FI3,INDEX($B$1:$B$682,ROW()+FP$1-1,1))*1.06^(1/12)))) ->  | FQ3: =IF(NavHistory!$R3="Yes","",IF(FO3<>"No","",1.06^(1/12)*FJ3)) ->  | FR3: =IF(NavHistory!$R3="Yes","",IF(FO3<>"No","",FK3-FL3)) ->  | FS3: =IF(NavHistory!$R3="Yes","",IF(FO3<>"No","",MAX(0,MIN((MIN(INDEX($B$1:$B$682,ROW()+FP$1,1),FQ3)-FP3)*$A$2,FR3)))) ->  | FT3: =IF(NavHistory!$R3="Yes","",IF(FO3<>"No","",FS3/INDEX($B$1:$B$682,ROW()+FP$1,1))) ->  | FU3: =IF(NavHistory!$R3="Yes","",IF(FO3<>"No","",FN3-FT3)) ->  | FV3: =IF(NavHistory!$R3="Yes","",IF(FO3<>"No","",IF(INDEX($B$1:$B$682,ROW()+FP$1,1)>FQ3,"Yes","No"))) ->  | FW3: =IF(NavHistory!$R3="Yes","",IF(FV3<>"No","",IF(INDEX($B$1:$B$682,ROW()+FW$1,1)="","",MAX(FP3,INDEX($B$1:$B$682,ROW()+FW$1-1,1))*1.06^(1/12)))) ->  | FX3: =IF(NavHistory!$R3="Yes","",IF(FV3<>"No","",1.06^(1/12)*FQ3)) ->  | FY3: =IF(NavHistory!$R3="Yes","",IF(FV3<>"No","",FR3-FS3)) ->  | FZ3: =IF(NavHistory!$R3="Yes","",IF(FV3<>"No","",MAX(0,MIN((MIN(INDEX($B$1:$B$682,ROW()+FW$1,1),FX3)-FW3)*$A$2,FY3)))) ->  | GA3: =IF(NavHistory!$R3="Yes","",IF(FV3<>"No","",FZ3/INDEX($B$1:$B$682,ROW()+FW$1,1))) ->  | GB3: =IF(NavHistory!$R3="Yes","",IF(FV3<>"No","",FU3-GA3)) ->  | GC3: =IF(NavHistory!$R3="Yes","",IF(FV3<>"No","",IF(INDEX($B$1:$B$682,ROW()+FW$1,1)>FX3,"Yes","No"))) ->  | GD3: =IF(NavHistory!$R3="Yes","",IF(GC3<>"No","",IF(INDEX($B$1:$B$682,ROW()+GD$1,1)="","",MAX(FW3,INDEX($B$1:$B$682,ROW()+GD$1-1,1))*1.06^(1/12)))) ->  | GE3: =IF(NavHistory!$R3="Yes","",IF(GC3<>"No","",1.06^(1/12)*FX3)) ->  | GF3: =IF(NavHistory!$R3="Yes","",IF(GC3<>"No","",FY3-FZ3)) ->  | GG3: =IF(NavHistory!$R3="Yes","",IF(GC3<>"No","",MAX(0,MIN((MIN(INDEX($B$1:$B$682,ROW()+GD$1,1),GE3)-GD3)*$A$2,GF3)))) ->  | GH3: =IF(NavHistory!$R3="Yes","",IF(GC3<>"No","",GG3/INDEX($B$1:$B$682,ROW()+GD$1,1))) ->  | GI3: =IF(NavHistory!$R3="Yes","",IF(GC3<>"No","",GB3-GH3)) ->  | GJ3: =IF(NavHistory!$R3="Yes","",IF(GC3<>"No","",IF(INDEX($B$1:$B$682,ROW()+GD$1,1)>GE3,"Yes","No"))) ->  | GK3: =IF(NavHistory!$R3="Yes","",IF(GJ3<>"No","",IF(INDEX($B$1:$B$682,ROW()+GK$1,1)="","",MAX(GD3,INDEX($B$1:$B$682,ROW()+GK$1-1,1))*1.06^(1/12)))) ->  | GL3: =IF(NavHistory!$R3="Yes","",IF(GJ3<>"No","",1.06^(1/12)*GE3)) ->  | GM3: =IF(NavHistory!$R3="Yes","",IF(GJ3<>"No","",GF3-GG3)) ->  | GN3: =IF(NavHistory!$R3="Yes","",IF(GJ3<>"No","",MAX(0,MIN((MIN(INDEX($B$1:$B$682,ROW()+GK$1,1),GL3)-GK3)*$A$2,GM3)))) ->  | GO3: =IF(NavHistory!$R3="Yes","",IF(GJ3<>"No","",GN3/INDEX($B$1:$B$682,ROW()+GK$1,1))) ->  | GP3: =IF(NavHistory!$R3="Yes","",IF(GJ3<>"No","",GI3-GO3)) ->  | GQ3: =IF(NavHistory!$R3="Yes","",IF(GJ3<>"No","",IF(INDEX($B$1:$B$682,ROW()+GK$1,1)>GL3,"Yes","No"))) ->  | GR3: =IF(NavHistory!$R3="Yes","",IF(GQ3<>"No","",IF(INDEX($B$1:$B$682,ROW()+GR$1,1)="","",MAX(GK3,INDEX($B$1:$B$682,ROW()+GR$1-1,1))*1.06^(1/12)))) ->  | GS3: =IF(NavHistory!$R3="Yes","",IF(GQ3<>"No","",1.06^(1/12)*GL3)) ->  | GT3: =IF(NavHistory!$R3="Yes","",IF(GQ3<>"No","",GM3-GN3)) ->  | GU3: =IF(NavHistory!$R3="Yes","",IF(GQ3<>"No","",MAX(0,MIN((MIN(INDEX($B$1:$B$682,ROW()+GR$1,1),GS3)-GR3)*$A$2,GT3)))) ->  | GV3: =IF(NavHistory!$R3="Yes","",IF(GQ3<>"No","",GU3/INDEX($B$1:$B$682,ROW()+GR$1,1))) ->  | GW3: =IF(NavHistory!$R3="Yes","",IF(GQ3<>"No","",GP3-GV3)) ->  | GX3: =IF(NavHistory!$R3="Yes","",IF(GQ3<>"No","",IF(INDEX($B$1:$B$682,ROW()+GR$1,1)>GS3,"Yes","No"))) ->  | GY3: =IF(NavHistory!$R3="Yes","",IF(GX3<>"No","",IF(INDEX($B$1:$B$682,ROW()+GY$1,1)="","",MAX(GR3,INDEX($B$1:$B$682,ROW()+GY$1-1,1))*1.06^(1/12)))) ->  | GZ3: =IF(NavHistory!$R3="Yes","",IF(GX3<>"No","",1.06^(1/12)*GS3)) ->  | HA3: =IF(NavHistory!$R3="Yes","",IF(GX3<>"No","",GT3-GU3)) ->  | HB3: =IF(NavHistory!$R3="Yes","",IF(GX3<>"No","",MAX(0,MIN((MIN(INDEX($B$1:$B$682,ROW()+GY$1,1),GZ3)-GY3)*$A$2,HA3)))) ->  | HC3: =IF(NavHistory!$R3="Yes","",IF(GX3<>"No","",HB3/INDEX($B$1:$B$682,ROW()+GY$1,1))) ->  | HD3: =IF(NavHistory!$R3="Yes","",IF(GX3<>"No","",GW3-HC3)) ->  | HE3: =IF(NavHistory!$R3="Yes","",IF(GX3<>"No","",IF(INDEX($B$1:$B$682,ROW()+GY$1,1)>GZ3,"Yes","No"))) ->  | HF3: =IF(NavHistory!$R3="Yes","",IF(HE3<>"No","",IF(INDEX($B$1:$B$682,ROW()+HF$1,1)="","",MAX(GY3,INDEX($B$1:$B$682,ROW()+HF$1-1,1))*1.06^(1/12)))) ->  | HG3: =IF(NavHistory!$R3="Yes","",IF(HE3<>"No","",1.06^(1/12)*GZ3)) ->  | HH3: =IF(NavHistory!$R3="Yes","",IF(HE3<>"No","",HA3-HB3)) ->  | HI3: =IF(NavHistory!$R3="Yes","",IF(HE3<>"No","",MAX(0,MIN((MIN(INDEX($B$1:$B$682,ROW()+HF$1,1),HG3)-HF3)*$A$2,HH3)))) ->  | HJ3: =IF(NavHistory!$R3="Yes","",IF(HE3<>"No","",HI3/INDEX($B$1:$B$682,ROW()+HF$1,1))) ->  | HK3: =IF(NavHistory!$R3="Yes","",IF(HE3<>"No","",HD3-HJ3)) ->  | HL3: =IF(NavHistory!$R3="Yes","",IF(HE3<>"No","",IF(INDEX($B$1:$B$682,ROW()+HF$1,1)>HG3,"Yes","No"))) ->  | HM3: =IF(NavHistory!$R3="Yes","",IF(HL3<>"No","",IF(INDEX($B$1:$B$682,ROW()+HM$1,1)="","",MAX(HF3,INDEX($B$1:$B$682,ROW()+HM$1-1,1))*1.06^(1/12)))) ->  | HN3: =IF(NavHistory!$R3="Yes","",IF(HL3<>"No","",1.06^(1/12)*HG3)) ->  | HO3: =IF(NavHistory!$R3="Yes","",IF(HL3<>"No","",HH3-HI3)) ->  | HP3: =IF(NavHistory!$R3="Yes","",IF(HL3<>"No","",MAX(0,MIN((MIN(INDEX($B$1:$B$682,ROW()+HM$1,1),HN3)-HM3)*$A$2,HO3)))) ->  | HQ3: =IF(NavHistory!$R3="Yes","",IF(HL3<>"No","",HP3/INDEX($B$1:$B$682,ROW()+HM$1,1))) ->  | HR3: =IF(NavHistory!$R3="Yes","",IF(HL3<>"No","",HK3-HQ3)) ->  | HS3: =IF(NavHistory!$R3="Yes","",IF(HL3<>"No","",IF(INDEX($B$1:$B$682,ROW()+HM$1,1)>HN3,"Yes","No"))) ->  | HT3: =IF(NavHistory!$R3="Yes","",IF(HS3<>"No","",IF(INDEX($B$1:$B$682,ROW()+HT$1,1)="","",MAX(HM3,INDEX($B$1:$B$682,ROW()+HT$1-1,1))*1.06^(1/12)))) ->  | HU3: =IF(NavHistory!$R3="Yes","",IF(HS3<>"No","",1.06^(1/12)*HN3)) ->  | HV3: =IF(NavHistory!$R3="Yes","",IF(HS3<>"No","",HO3-HP3)) ->  | HW3: =IF(NavHistory!$R3="Yes","",IF(HS3<>"No","",MAX(0,MIN((MIN(INDEX($B$1:$B$682,ROW()+HT$1,1),HU3)-HT3)*$A$2,HV3)))) ->  | HX3: =IF(NavHistory!$R3="Yes","",IF(HS3<>"No","",HW3/INDEX($B$1:$B$682,ROW()+HT$1,1))) ->  | HY3: =IF(NavHistory!$R3="Yes","",IF(HS3<>"No","",HR3-HX3)) ->  | HZ3: =IF(NavHistory!$R3="Yes","",IF(HS3<>"No","",IF(INDEX($B$1:$B$682,ROW()+HT$1,1)>HU3,"Yes","No"))) ->  | IA3: =IF(NavHistory!$R3="Yes","",IF(HZ3<>"No","",IF(INDEX($B$1:$B$682,ROW()+IA$1,1)="","",MAX(HT3,INDEX($B$1:$B$682,ROW()+IA$1-1,1))*1.06^(1/12)))) ->  | IB3: =IF(NavHistory!$R3="Yes","",IF(HZ3<>"No","",1.06^(1/12)*HU3)) ->  | IC3: =IF(NavHistory!$R3="Yes","",IF(HZ3<>"No","",HV3-HW3)) ->  | ID3: =IF(NavHistory!$R3="Yes","",IF(HZ3<>"No","",MAX(0,MIN((MIN(INDEX($B$1:$B$682,ROW()+IA$1,1),IB3)-IA3)*$A$2,IC3)))) ->  | IE3: =IF(NavHistory!$R3="Yes","",IF(HZ3<>"No","",ID3/INDEX($B$1:$B$682,ROW()+IA$1,1))) ->  | IF3: =IF(NavHistory!$R3="Yes","",IF(HZ3<>"No","",HY3-IE3)) ->  | IG3: =IF(NavHistory!$R3="Yes","",IF(HZ3<>"No","",IF(INDEX($B$1:$B$682,ROW()+IA$1,1)>IB3,"Yes","No"))) ->  | IH3: =IF(NavHistory!$R3="Yes","",IF(IG3<>"No","",IF(INDEX($B$1:$B$682,ROW()+IH$1,1)="","",MAX(IA3,INDEX($B$1:$B$682,ROW()+IH$1-1,1))*1.06^(1/12)))) ->  | II3: =IF(NavHistory!$R3="Yes","",IF(IG3<>"No","",1.06^(1/12)*IB3)) ->  | IJ3: =IF(NavHistory!$R3="Yes","",IF(IG3<>"No","",IC3-ID3)) ->  | IK3: =IF(NavHistory!$R3="Yes","",IF(IG3<>"No","",MAX(0,MIN((MIN(INDEX($B$1:$B$682,ROW()+IH$1,1),II3)-IH3)*$A$2,IJ3)))) ->  | IL3: =IF(NavHistory!$R3="Yes","",IF(IG3<>"No","",IK3/INDEX($B$1:$B$682,ROW()+IH$1,1))) ->  | IM3: =IF(NavHistory!$R3="Yes","",IF(IG3<>"No","",IF3-IL3)) ->  | IN3: =IF(NavHistory!$R3="Yes","",IF(IG3<>"No","",IF(INDEX($B$1:$B$682,ROW()+IH$1,1)>II3,"Yes","No"))) ->  | IO3: =IF(NavHistory!$R3="Yes","",IF(IN3<>"No","",IF(INDEX($B$1:$B$682,ROW()+IO$1,1)="","",MAX(IH3,INDEX($B$1:$B$682,ROW()+IO$1-1,1))*1.06^(1/12)))) ->  | IP3: =IF(NavHistory!$R3="Yes","",IF(IN3<>"No","",1.06^(1/12)*II3)) ->  | IQ3: =IF(NavHistory!$R3="Yes","",IF(IN3<>"No","",IJ3-IK3)) ->  | IR3: =IF(NavHistory!$R3="Yes","",IF(IN3<>"No","",MAX(0,MIN((MIN(INDEX($B$1:$B$682,ROW()+IO$1,1),IP3)-IO3)*$A$2,IQ3)))) ->  | IS3: =IF(NavHistory!$R3="Yes","",IF(IN3<>"No","",IR3/INDEX($B$1:$B$682,ROW()+IO$1,1))) ->  | IT3: =IF(NavHistory!$R3="Yes","",IF(IN3<>"No","",IM3-IS3)) ->  | IU3: =IF(NavHistory!$R3="Yes","",IF(IN3<>"No","",IF(INDEX($B$1:$B$682,ROW()+IO$1,1)>IP3,"Yes","No"))) -> 
A4: =IF(NavHistory!A4="","",NavHistory!A4) -> 2017-08-31 | B4: =IF(NavHistory!B4="","",NavHistory!B4) -> 10.0000 | C4: =IF(NavHistory!G4="","",NavHistory!G4) -> 10.0000 | D4: =IF(NavHistory!$R4="Yes","",IF(INDEX($B$1:$B$682,ROW()+D$1,1)="","",1.06^($D$1/12)*B4)) ->  | E4: =IF(NavHistory!$R4="Yes","",IF(INDEX($B$1:$B$682,ROW()+D$1,1)="","",1.06^(1/12)*C4)) ->  | F4: =IF(NavHistory!$R4="Yes","",IF(INDEX($B$1:$B$682,ROW()+D$1,1)="","",(C4-B4)*$A$2)) ->  | G4: =IF(NavHistory!$R4="Yes","",IF(INDEX($B$1:$B$682,ROW()+D$1,1)="","",MAX(0,MIN((MIN($B5,E4)-D4)*$A$2,F4)))) ->  | H4: =IF(NavHistory!$R4="Yes","",IF(INDEX($B$1:$B$682,ROW()+D$1,1)="","",G4/B5)) ->  | I4: =IF(NavHistory!$R4="Yes","",IF(INDEX($B$1:$B$682,ROW()+D$1,1)="","",1-H4)) ->  | J4: =IF(NavHistory!$R4="Yes","",IF(INDEX($B$1:$B$682,ROW()+D$1,1)="","",IF(B5>=E4,"Yes","No"))) ->  | K4: =IF(NavHistory!$R4="Yes","",IF(J4<>"No","",IF(INDEX($B$1:$B$682,ROW()+K$1,1)="","",MAX(D4,INDEX($B$1:$B$682,ROW()+K$1-1,1))*1.06^(1/12)))) ->  | L4: =IF(NavHistory!$R4="Yes","",IF(J4<>"No","",IF(INDEX($B$1:$B$682,ROW()+K$1,1)="","",1.06^(1/12)*E4))) ->  | M4: =IF(NavHistory!$R4="Yes","",IF(J4<>"No","",IF(INDEX($B$1:$B$682,ROW()+K$1,1)="","",F4-G4))) ->  | N4: =IF(NavHistory!$R4="Yes","",IF(J4<>"No","",IF(INDEX($B$1:$B$682,ROW()+K$1,1)="","",MAX(0,MIN((MIN(INDEX($B$1:$B$682,ROW()+K$1,1),L4)-K4)*$A$2,M4))))) ->  | O4: =IF(NavHistory!$R4="Yes","",IF(J4<>"No","",IF(INDEX($B$1:$B$682,ROW()+K$1,1)="","",N4/INDEX($B$1:$B$682,ROW()+K$1,1)))) ->  | P4: =IF(NavHistory!$R4="Yes","",IF(J4<>"No","",IF(INDEX($B$1:$B$682,ROW()+K$1,1)="","",I4-O4))) ->  | Q4: =IF(NavHistory!$R4="Yes","",IF(J4<>"No","",IF(INDEX($B$1:$B$682,ROW()+K$1,1)="","",IF(INDEX($B$1:$B$682,ROW()+K$1,1)>=L4,"Yes","No")))) ->  | R4: =IF(NavHistory!$R4="Yes","",IF(Q4<>"No","",IF(INDEX($B$1:$B$682,ROW()+R$1,1)="","",MAX(K4,INDEX($B$1:$B$682,ROW()+R$1-1,1))*1.06^(1/12)))) ->  | S4: =IF(NavHistory!$R4="Yes","",IF(Q4<>"No","",IF(INDEX($B$1:$B$682,ROW()+R$1,1)="","",1.06^(1/12)*L4))) ->  | T4: =IF(NavHistory!$R4="Yes","",IF(Q4<>"No","",IF(INDEX($B$1:$B$682,ROW()+R$1,1)="","",M4-N4))) ->  | U4: =IF(NavHistory!$R4="Yes","",IF(Q4<>"No","",IF(INDEX($B$1:$B$682,ROW()+R$1,1)="","",MAX(0,MIN((MIN(INDEX($B$1:$B$682,ROW()+R$1,1),S4)-R4)*$A$2,T4))))) ->  | V4: =IF(NavHistory!$R4="Yes","",IF(Q4<>"No","",IF(INDEX($B$1:$B$682,ROW()+R$1,1)="","",U4/INDEX($B$1:$B$682,ROW()+R$1,1)))) ->  | W4: =IF(NavHistory!$R4="Yes","",IF(Q4<>"No","",IF(INDEX($B$1:$B$682,ROW()+R$1,1)="","",P4-V4))) ->  | X4: =IF(NavHistory!$R4="Yes","",IF(Q4<>"No","",IF(INDEX($B$1:$B$682,ROW()+R$1,1)="","",IF(INDEX($B$1:$B$682,ROW()+R$1,1)>=S4,"Yes","No")))) ->  | Y4: =IF(NavHistory!$R4="Yes","",IF(X4<>"No","",IF(INDEX($B$1:$B$682,ROW()+Y$1,1)="","",MAX(R4,INDEX($B$1:$B$682,ROW()+Y$1-1,1))*1.06^(1/12)))) ->  | Z4: =IF(NavHistory!$R4="Yes","",IF(X4<>"No","",IF(INDEX($B$1:$B$682,ROW()+Y$1,1)="","",1.06^(1/12)*S4))) ->  | AA4: =IF(NavHistory!$R4="Yes","",IF(X4<>"No","",IF(INDEX($B$1:$B$682,ROW()+Y$1,1)="","",T4-U4))) ->  | AB4: =IF(NavHistory!$R4="Yes","",IF(X4<>"No","",IF(INDEX($B$1:$B$682,ROW()+Y$1,1)="","",MAX(0,MIN((MIN(INDEX($B$1:$B$682,ROW()+Y$1,1),Z4)-Y4)*$A$2,AA4))))) ->  | AC4: =IF(NavHistory!$R4="Yes","",IF(X4<>"No","",IF(INDEX($B$1:$B$682,ROW()+Y$1,1)="","",AB4/INDEX($B$1:$B$682,ROW()+Y$1,1)))) ->  | AD4: =IF(NavHistory!$R4="Yes","",IF(X4<>"No","",IF(INDEX($B$1:$B$682,ROW()+Y$1,1)="","",W4-AC4))) ->  | AE4: =IF(NavHistory!$R4="Yes","",IF(X4<>"No","",IF(INDEX($B$1:$B$682,ROW()+Y$1,1)="","",IF(INDEX($B$1:$B$682,ROW()+Y$1,1)>=Z4,"Yes","No")))) ->  | AF4: =IF(NavHistory!$R4="Yes","",IF(AE4<>"No","",IF(INDEX($B$1:$B$682,ROW()+AF$1,1)="","",MAX(Y4,INDEX($B$1:$B$682,ROW()+AF$1-1,1))*1.06^(1/12)))) ->  | AG4: =IF(NavHistory!$R4="Yes","",IF(AE4<>"No","",IF(INDEX($B$1:$B$682,ROW()+AF$1,1)="","",1.06^(1/12)*Z4))) ->  | AH4: =IF(NavHistory!$R4="Yes","",IF(AE4<>"No","",IF(INDEX($B$1:$B$682,ROW()+AF$1,1)="","",AA4-AB4))) ->  | AI4: =IF(NavHistory!$R4="Yes","",IF(AE4<>"No","",IF(INDEX($B$1:$B$682,ROW()+AF$1,1)="","",MAX(0,MIN((MIN(INDEX($B$1:$B$682,ROW()+AF$1,1),AG4)-AF4)*$A$2,AH4))))) ->  | AJ4: =IF(NavHistory!$R4="Yes","",IF(AE4<>"No","",IF(INDEX($B$1:$B$682,ROW()+AF$1,1)="","",AI4/INDEX($B$1:$B$682,ROW()+AF$1,1)))) ->  | AK4: =IF(NavHistory!$R4="Yes","",IF(AE4<>"No","",IF(INDEX($B$1:$B$682,ROW()+AF$1,1)="","",AD4-AJ4))) ->  | AL4: =IF(NavHistory!$R4="Yes","",IF(AE4<>"No","",IF(INDEX($B$1:$B$682,ROW()+AF$1,1)="","",IF(INDEX($B$1:$B$682,ROW()+AF$1,1)>=AG4,"Yes","No")))) ->  | AM4: =IF(NavHistory!$R4="Yes","",IF(AL4<>"No","",IF(INDEX($B$1:$B$682,ROW()+AM$1,1)="","",MAX(AF4,INDEX($B$1:$B$682,ROW()+AM$1-1,1))*1.06^(1/12)))) ->  | AN4: =IF(NavHistory!$R4="Yes","",IF(AL4<>"No","",IF(INDEX($B$1:$B$682,ROW()+AM$1,1)="","",1.06^(1/12)*AG4))) ->  | AO4: =IF(NavHistory!$R4="Yes","",IF(AL4<>"No","",IF(INDEX($B$1:$B$682,ROW()+AM$1,1)="","",AH4-AI4))) ->  | AP4: =IF(NavHistory!$R4="Yes","",IF(AL4<>"No","",IF(INDEX($B$1:$B$682,ROW()+AM$1,1)="","",MAX(0,MIN((MIN(INDEX($B$1:$B$682,ROW()+AM$1,1),AN4)-AM4)*$A$2,AO4))))) ->  | AQ4: =IF(NavHistory!$R4="Yes","",IF(AL4<>"No","",IF(INDEX($B$1:$B$682,ROW()+AM$1,1)="","",AP4/INDEX($B$1:$B$682,ROW()+AM$1,1)))) ->  | AR4: =IF(NavHistory!$R4="Yes","",IF(AL4<>"No","",IF(INDEX($B$1:$B$682,ROW()+AM$1,1)="","",AK4-AQ4))) ->  | AS4: =IF(NavHistory!$R4="Yes","",IF(AL4<>"No","",IF(INDEX($B$1:$B$682,ROW()+AM$1,1)="","",IF(INDEX($B$1:$B$682,ROW()+AM$1,1)>=AN4,"Yes","No")))) ->  | AT4: =IF(NavHistory!$R4="Yes","",IF(AS4<>"No","",IF(INDEX($B$1:$B$682,ROW()+AT$1,1)="","",MAX(AM4,INDEX($B$1:$B$682,ROW()+AT$1-1,1))*1.06^(1/12)))) ->  | AU4: =IF(NavHistory!$R4="Yes","",IF(AS4<>"No","",IF(INDEX($B$1:$B$682,ROW()+AT$1,1)="","",1.06^(1/12)*AN4))) ->  | AV4: =IF(NavHistory!$R4="Yes","",IF(AS4<>"No","",IF(INDEX($B$1:$B$682,ROW()+AT$1,1)="","",AO4-AP4))) ->  | AW4: =IF(NavHistory!$R4="Yes","",IF(AS4<>"No","",IF(INDEX($B$1:$B$682,ROW()+AT$1,1)="","",MAX(0,MIN((MIN(INDEX($B$1:$B$682,ROW()+AT$1,1),AU4)-AT4)*$A$2,AV4))))) ->  | AX4: =IF(NavHistory!$R4="Yes","",IF(AS4<>"No","",IF(INDEX($B$1:$B$682,ROW()+AT$1,1)="","",AW4/INDEX($B$1:$B$682,ROW()+AT$1,1)))) ->  | AY4: =IF(NavHistory!$R4="Yes","",IF(AS4<>"No","",IF(INDEX($B$1:$B$682,ROW()+AT$1,1)="","",AR4-AX4))) ->  | AZ4: =IF(NavHistory!$R4="Yes","",IF(AS4<>"No","",IF(INDEX($B$1:$B$682,ROW()+AT$1,1)="","",IF(INDEX($B$1:$B$682,ROW()+AT$1,1)>=AU4,"Yes","No")))) ->  | BA4: =IF(NavHistory!$R4="Yes","",IF(AZ4<>"No","",IF(INDEX($B$1:$B$682,ROW()+BA$1,1)="","",MAX(AT4,INDEX($B$1:$B$682,ROW()+BA$1-1,1))*1.06^(1/12)))) ->  | BB4: =IF(NavHistory!$R4="Yes","",IF(AZ4<>"No","",IF(INDEX($B$1:$B$682,ROW()+BA$1,1)="","",1.06^(1/12)*AU4))) ->  | BC4: =IF(NavHistory!$R4="Yes","",IF(AZ4<>"No","",IF(INDEX($B$1:$B$682,ROW()+BA$1,1)="","",AV4-AW4))) ->  | BD4: =IF(NavHistory!$R4="Yes","",IF(AZ4<>"No","",IF(INDEX($B$1:$B$682,ROW()+BA$1,1)="","",MAX(0,MIN((MIN(INDEX($B$1:$B$682,ROW()+BA$1,1),BB4)-BA4)*$A$2,BC4))))) ->  | BE4: =IF(NavHistory!$R4="Yes","",IF(AZ4<>"No","",IF(INDEX($B$1:$B$682,ROW()+BA$1,1)="","",BD4/INDEX($B$1:$B$682,ROW()+BA$1,1)))) ->  | BF4: =IF(NavHistory!$R4="Yes","",IF(AZ4<>"No","",IF(INDEX($B$1:$B$682,ROW()+BA$1,1)="","",AY4-BE4))) ->  | BG4: =IF(NavHistory!$R4="Yes","",IF(AZ4<>"No","",IF(INDEX($B$1:$B$682,ROW()+BA$1,1)="","",IF(INDEX($B$1:$B$682,ROW()+BA$1,1)>=BB4,"Yes","No")))) ->  | BH4: =IF(NavHistory!$R4="Yes","",IF(BG4<>"No","",IF(INDEX($B$1:$B$682,ROW()+BH$1,1)="","",MAX(BA4,INDEX($B$1:$B$682,ROW()+BH$1-1,1))*1.06^(1/12)))) ->  | BI4: =IF(NavHistory!$R4="Yes","",IF(BG4<>"No","",IF(INDEX($B$1:$B$682,ROW()+BH$1,1)="","",1.06^(1/12)*BB4))) ->  | BJ4: =IF(NavHistory!$R4="Yes","",IF(BG4<>"No","",IF(INDEX($B$1:$B$682,ROW()+BH$1,1)="","",BC4-BD4))) ->  | BK4: =IF(NavHistory!$R4="Yes","",IF(BG4<>"No","",IF(INDEX($B$1:$B$682,ROW()+BH$1,1)="","",MAX(0,MIN((MIN(INDEX($B$1:$B$682,ROW()+BH$1,1),BI4)-BH4)*$A$2,BJ4))))) ->  | BL4: =IF(NavHistory!$R4="Yes","",IF(BG4<>"No","",IF(INDEX($B$1:$B$682,ROW()+BH$1,1)="","",BK4/INDEX($B$1:$B$682,ROW()+BH$1,1)))) ->  | BM4: =IF(NavHistory!$R4="Yes","",IF(BG4<>"No","",IF(INDEX($B$1:$B$682,ROW()+BH$1,1)="","",BF4-BL4))) ->  | BN4: =IF(NavHistory!$R4="Yes","",IF(BG4<>"No","",IF(INDEX($B$1:$B$682,ROW()+BH$1,1)="","",IF(INDEX($B$1:$B$682,ROW()+BH$1,1)>=BI4,"Yes","No")))) ->  | BO4: =IF(NavHistory!$R4="Yes","",IF(BN4<>"No","",IF(INDEX($B$1:$B$682,ROW()+BO$1,1)="","",MAX(BH4,INDEX($B$1:$B$682,ROW()+BO$1-1,1))*1.06^(1/12)))) ->  | BP4: =IF(NavHistory!$R4="Yes","",IF(BN4<>"No","",IF(INDEX($B$1:$B$682,ROW()+BO$1,1)="","",1.06^(1/12)*BI4))) ->  | BQ4: =IF(NavHistory!$R4="Yes","",IF(BN4<>"No","",IF(INDEX($B$1:$B$682,ROW()+BO$1,1)="","",BJ4-BK4))) ->  | BR4: =IF(NavHistory!$R4="Yes","",IF(BN4<>"No","",IF(INDEX($B$1:$B$682,ROW()+BO$1,1)="","",MAX(0,MIN((MIN(INDEX($B$1:$B$682,ROW()+BO$1,1),BP4)-BO4)*$A$2,BQ4))))) ->  | BS4: =IF(NavHistory!$R4="Yes","",IF(BN4<>"No","",IF(INDEX($B$1:$B$682,ROW()+BO$1,1)="","",BR4/INDEX($B$1:$B$682,ROW()+BO$1,1)))) ->  | BT4: =IF(NavHistory!$R4="Yes","",IF(BN4<>"No","",IF(INDEX($B$1:$B$682,ROW()+BO$1,1)="","",BM4-BS4))) ->  | BU4: =IF(NavHistory!$R4="Yes","",IF(BN4<>"No","",IF(INDEX($B$1:$B$682,ROW()+BO$1,1)="","",IF(INDEX($B$1:$B$682,ROW()+BO$1,1)>=BP4,"Yes","No")))) ->  | BV4: =IF(NavHistory!$R4="Yes","",IF(BU4<>"No","",IF(INDEX($B$1:$B$682,ROW()+BV$1,1)="","",MAX(BO4,INDEX($B$1:$B$682,ROW()+BV$1-1,1))*1.06^(1/12)))) ->  | BW4: =IF(NavHistory!$R4="Yes","",IF(BU4<>"No","",IF(INDEX($B$1:$B$682,ROW()+BV$1,1)="","",1.06^(1/12)*BP4))) ->  | BX4: =IF(NavHistory!$R4="Yes","",IF(BU4<>"No","",IF(INDEX($B$1:$B$682,ROW()+BV$1,1)="","",BQ4-BR4))) ->  | BY4: =IF(NavHistory!$R4="Yes","",IF(BU4<>"No","",IF(INDEX($B$1:$B$682,ROW()+BV$1,1)="","",MAX(0,MIN((MIN(INDEX($B$1:$B$682,ROW()+BV$1,1),BW4)-BV4)*$A$2,BX4))))) ->  | BZ4: =IF(NavHistory!$R4="Yes","",IF(BU4<>"No","",IF(INDEX($B$1:$B$682,ROW()+BV$1,1)="","",BY4/INDEX($B$1:$B$682,ROW()+BV$1,1)))) ->  | CA4: =IF(NavHistory!$R4="Yes","",IF(BU4<>"No","",IF(INDEX($B$1:$B$682,ROW()+BV$1,1)="","",BT4-BZ4))) ->  | CB4: =IF(NavHistory!$R4="Yes","",IF(BU4<>"No","",IF(INDEX($B$1:$B$682,ROW()+BV$1,1)="","",IF(INDEX($B$1:$B$682,ROW()+BV$1,1)>=BW4,"Yes","No")))) ->  | CC4: =IF(NavHistory!$R4="Yes","",IF(CB4<>"No","",IF(INDEX($B$1:$B$682,ROW()+CC$1,1)="","",MAX(BV4,INDEX($B$1:$B$682,ROW()+CC$1-1,1))*1.06^(1/12)))) ->  | CD4: =IF(NavHistory!$R4="Yes","",IF(CB4<>"No","",IF(INDEX($B$1:$B$682,ROW()+CC$1,1)="","",1.06^(1/12)*BW4))) ->  | CE4: =IF(NavHistory!$R4="Yes","",IF(CB4<>"No","",IF(INDEX($B$1:$B$682,ROW()+CC$1,1)="","",BX4-BY4))) ->  | CF4: =IF(NavHistory!$R4="Yes","",IF(CB4<>"No","",IF(INDEX($B$1:$B$682,ROW()+CC$1,1)="","",MAX(0,MIN((MIN(INDEX($B$1:$B$682,ROW()+CC$1,1),CD4)-CC4)*$A$2,CE4))))) ->  | CG4: =IF(NavHistory!$R4="Yes","",IF(CB4<>"No","",IF(INDEX($B$1:$B$682,ROW()+CC$1,1)="","",CF4/INDEX($B$1:$B$682,ROW()+CC$1,1)))) ->  | CH4: =IF(NavHistory!$R4="Yes","",IF(CB4<>"No","",IF(INDEX($B$1:$B$682,ROW()+CC$1,1)="","",CA4-CG4))) ->  | CI4: =IF(NavHistory!$R4="Yes","",IF(CB4<>"No","",IF(INDEX($B$1:$B$682,ROW()+CC$1,1)="","",IF(INDEX($B$1:$B$682,ROW()+CC$1,1)>=CD4,"Yes","No")))) ->  | CJ4: =IF(NavHistory!$R4="Yes","",IF(CI4<>"No","",IF(INDEX($B$1:$B$682,ROW()+CJ$1,1)="","",MAX(CC4,INDEX($B$1:$B$682,ROW()+CJ$1-1,1))*1.06^(1/12)))) ->  | CK4: =IF(NavHistory!$R4="Yes","",IF(CI4<>"No","",IF(INDEX($B$1:$B$682,ROW()+CJ$1,1)="","",1.06^(1/12)*CD4))) ->  | CL4: =IF(NavHistory!$R4="Yes","",IF(CI4<>"No","",IF(INDEX($B$1:$B$682,ROW()+CJ$1,1)="","",CE4-CF4))) ->  | CM4: =IF(NavHistory!$R4="Yes","",IF(CI4<>"No","",IF(INDEX($B$1:$B$682,ROW()+CJ$1,1)="","",MAX(0,MIN((MIN(INDEX($B$1:$B$682,ROW()+CJ$1,1),CK4)-CJ4)*$A$2,CL4))))) ->  | CN4: =IF(NavHistory!$R4="Yes","",IF(CI4<>"No","",IF(INDEX($B$1:$B$682,ROW()+CJ$1,1)="","",CM4/INDEX($B$1:$B$682,ROW()+CJ$1,1)))) ->  | CO4: =IF(NavHistory!$R4="Yes","",IF(CI4<>"No","",IF(INDEX($B$1:$B$682,ROW()+CJ$1,1)="","",CH4-CN4))) ->  | CP4: =IF(NavHistory!$R4="Yes","",IF(CI4<>"No","",IF(INDEX($B$1:$B$682,ROW()+CJ$1,1)="","",IF(INDEX($B$1:$B$682,ROW()+CJ$1,1)>=CK4,"Yes","No")))) ->  | CQ4: =IF(NavHistory!$R4="Yes","",IF(CP4<>"No","",IF(INDEX($B$1:$B$682,ROW()+CQ$1,1)="","",MAX(CJ4,INDEX($B$1:$B$682,ROW()+CQ$1-1,1))*1.06^(1/12)))) ->  | CR4: =IF(NavHistory!$R4="Yes","",IF(CP4<>"No","",IF(INDEX($B$1:$B$682,ROW()+CQ$1,1)="","",1.06^(1/12)*CK4))) ->  | CS4: =IF(NavHistory!$R4="Yes","",IF(CP4<>"No","",IF(INDEX($B$1:$B$682,ROW()+CQ$1,1)="","",CL4-CM4))) ->  | CT4: =IF(NavHistory!$R4="Yes","",IF(CP4<>"No","",IF(INDEX($B$1:$B$682,ROW()+CQ$1,1)="","",MAX(0,MIN((MIN(INDEX($B$1:$B$682,ROW()+CQ$1,1),CR4)-CQ4)*$A$2,CS4))))) ->  | CU4: =IF(NavHistory!$R4="Yes","",IF(CP4<>"No","",IF(INDEX($B$1:$B$682,ROW()+CQ$1,1)="","",CT4/INDEX($B$1:$B$682,ROW()+CQ$1,1)))) ->  | CV4: =IF(NavHistory!$R4="Yes","",IF(CP4<>"No","",IF(INDEX($B$1:$B$682,ROW()+CQ$1,1)="","",CO4-CU4))) ->  | CW4: =IF(NavHistory!$R4="Yes","",IF(CP4<>"No","",IF(INDEX($B$1:$B$682,ROW()+CQ$1,1)="","",IF(INDEX($B$1:$B$682,ROW()+CQ$1,1)>=CR4,"Yes","No")))) ->  | CX4: =IF(NavHistory!$R4="Yes","",IF(CW4<>"No","",IF(INDEX($B$1:$B$682,ROW()+CX$1,1)="","",MAX(CQ4,INDEX($B$1:$B$682,ROW()+CX$1-1,1))*1.06^(1/12)))) ->  | CY4: =IF(NavHistory!$R4="Yes","",IF(CW4<>"No","",IF(INDEX($B$1:$B$682,ROW()+CX$1,1)="","",1.06^(1/12)*CR4))) ->  | CZ4: =IF(NavHistory!$R4="Yes","",IF(CW4<>"No","",IF(INDEX($B$1:$B$682,ROW()+CX$1,1)="","",CS4-CT4))) ->  | DA4: =IF(NavHistory!$R4="Yes","",IF(CW4<>"No","",IF(INDEX($B$1:$B$682,ROW()+CX$1,1)="","",MAX(0,MIN((MIN(INDEX($B$1:$B$682,ROW()+CX$1,1),CY4)-CX4)*$A$2,CZ4))))) ->  | DB4: =IF(NavHistory!$R4="Yes","",IF(CW4<>"No","",IF(INDEX($B$1:$B$682,ROW()+CX$1,1)="","",DA4/INDEX($B$1:$B$682,ROW()+CX$1,1)))) ->  | DC4: =IF(NavHistory!$R4="Yes","",IF(CW4<>"No","",IF(INDEX($B$1:$B$682,ROW()+CX$1,1)="","",CV4-DB4))) ->  | DD4: =IF(NavHistory!$R4="Yes","",IF(CW4<>"No","",IF(INDEX($B$1:$B$682,ROW()+CX$1,1)="","",IF(INDEX($B$1:$B$682,ROW()+CX$1,1)>=CY4,"Yes","No")))) ->  | DE4: =IF(NavHistory!$R4="Yes","",IF(DD4<>"No","",IF(INDEX($B$1:$B$682,ROW()+DE$1,1)="","",MAX(CX4,INDEX($B$1:$B$682,ROW()+DE$1-1,1))*1.06^(1/12)))) ->  | DF4: =IF(NavHistory!$R4="Yes","",IF(DD4<>"No","",IF(INDEX($B$1:$B$682,ROW()+DE$1,1)="","",1.06^(1/12)*CY4))) ->  | DG4: =IF(NavHistory!$R4="Yes","",IF(DD4<>"No","",IF(INDEX($B$1:$B$682,ROW()+DE$1,1)="","",CZ4-DA4))) ->  | DH4: =IF(NavHistory!$R4="Yes","",IF(DD4<>"No","",IF(INDEX($B$1:$B$682,ROW()+DE$1,1)="","",MAX(0,MIN((MIN(INDEX($B$1:$B$682,ROW()+DE$1,1),DF4)-DE4)*$A$2,DG4))))) ->  | DI4: =IF(NavHistory!$R4="Yes","",IF(DD4<>"No","",IF(INDEX($B$1:$B$682,ROW()+DE$1,1)="","",DH4/INDEX($B$1:$B$682,ROW()+DE$1,1)))) ->  | DJ4: =IF(NavHistory!$R4="Yes","",IF(DD4<>"No","",IF(INDEX($B$1:$B$682,ROW()+DE$1,1)="","",DC4-DI4))) ->  | DK4: =IF(NavHistory!$R4="Yes","",IF(DD4<>"No","",IF(INDEX($B$1:$B$682,ROW()+DE$1,1)="","",IF(INDEX($B$1:$B$682,ROW()+DE$1,1)>=DF4,"Yes","No")))) ->  | DL4: =IF(NavHistory!$R4="Yes","",IF(DK4<>"No","",IF(INDEX($B$1:$B$682,ROW()+DL$1,1)="","",MAX(DE4,INDEX($B$1:$B$682,ROW()+DL$1-1,1))*1.06^(1/12)))) ->  | DM4: =IF(NavHistory!$R4="Yes","",IF(DK4<>"No","",IF(INDEX($B$1:$B$682,ROW()+DL$1,1)="","",1.06^(1/12)*DF4))) ->  | DN4: =IF(NavHistory!$R4="Yes","",IF(DK4<>"No","",IF(INDEX($B$1:$B$682,ROW()+DL$1,1)="","",DG4-DH4))) ->  | DO4: =IF(NavHistory!$R4="Yes","",IF(DK4<>"No","",IF(INDEX($B$1:$B$682,ROW()+DL$1,1)="","",MAX(0,MIN((MIN(INDEX($B$1:$B$682,ROW()+DL$1,1),DM4)-DL4)*$A$2,DN4))))) ->  | DP4: =IF(NavHistory!$R4="Yes","",IF(DK4<>"No","",IF(INDEX($B$1:$B$682,ROW()+DL$1,1)="","",DO4/INDEX($B$1:$B$682,ROW()+DL$1,1)))) ->  | DQ4: =IF(NavHistory!$R4="Yes","",IF(DK4<>"No","",IF(INDEX($B$1:$B$682,ROW()+DL$1,1)="","",DJ4-DP4))) ->  | DR4: =IF(NavHistory!$R4="Yes","",IF(DK4<>"No","",IF(INDEX($B$1:$B$682,ROW()+DL$1,1)="","",IF(INDEX($B$1:$B$682,ROW()+DL$1,1)>=DM4,"Yes","No")))) ->  | DS4: =IF(NavHistory!$R4="Yes","",IF(DR4<>"No","",IF(INDEX($B$1:$B$682,ROW()+DS$1,1)="","",MAX(DL4,INDEX($B$1:$B$682,ROW()+DS$1-1,1))*1.06^(1/12)))) ->  | DT4: =IF(NavHistory!$R4="Yes","",IF(DR4<>"No","",IF(INDEX($B$1:$B$682,ROW()+DS$1,1)="","",1.06^(1/12)*DM4))) ->  | DU4: =IF(NavHistory!$R4="Yes","",IF(DR4<>"No","",IF(INDEX($B$1:$B$682,ROW()+DS$1,1)="","",DN4-DO4))) ->  | DV4: =IF(NavHistory!$R4="Yes","",IF(DR4<>"No","",IF(INDEX($B$1:$B$682,ROW()+DS$1,1)="","",MAX(0,MIN((MIN(INDEX($B$1:$B$682,ROW()+DS$1,1),DT4)-DS4)*$A$2,DU4))))) ->  | DW4: =IF(NavHistory!$R4="Yes","",IF(DR4<>"No","",IF(INDEX($B$1:$B$682,ROW()+DS$1,1)="","",DV4/INDEX($B$1:$B$682,ROW()+DS$1,1)))) ->  | DX4: =IF(NavHistory!$R4="Yes","",IF(DR4<>"No","",IF(INDEX($B$1:$B$682,ROW()+DS$1,1)="","",DQ4-DW4))) ->  | DY4: =IF(NavHistory!$R4="Yes","",IF(DR4<>"No","",IF(INDEX($B$1:$B$682,ROW()+DS$1,1)="","",IF(INDEX($B$1:$B$682,ROW()+DS$1,1)>=DT4,"Yes","No")))) ->  | DZ4: =IF(NavHistory!$R4="Yes","",IF(DY4<>"No","",IF(INDEX($B$1:$B$682,ROW()+DZ$1,1)="","",MAX(DS4,INDEX($B$1:$B$682,ROW()+DZ$1-1,1))*1.06^(1/12)))) ->  | EA4: =IF(NavHistory!$R4="Yes","",IF(DY4<>"No","",IF(INDEX($B$1:$B$682,ROW()+DZ$1,1)="","",1.06^(1/12)*DT4))) ->  | EB4: =IF(NavHistory!$R4="Yes","",IF(DY4<>"No","",IF(INDEX($B$1:$B$682,ROW()+DZ$1,1)="","",DU4-DV4))) ->  | EC4: =IF(NavHistory!$R4="Yes","",IF(DY4<>"No","",IF(INDEX($B$1:$B$682,ROW()+DZ$1,1)="","",MAX(0,MIN((MIN(INDEX($B$1:$B$682,ROW()+DZ$1,1),EA4)-DZ4)*$A$2,EB4))))) ->  | ED4: =IF(NavHistory!$R4="Yes","",IF(DY4<>"No","",IF(INDEX($B$1:$B$682,ROW()+DZ$1,1)="","",EC4/INDEX($B$1:$B$682,ROW()+DZ$1,1)))) ->  | EE4: =IF(NavHistory!$R4="Yes","",IF(DY4<>"No","",IF(INDEX($B$1:$B$682,ROW()+DZ$1,1)="","",DX4-ED4))) ->  | EF4: =IF(NavHistory!$R4="Yes","",IF(DY4<>"No","",IF(INDEX($B$1:$B$682,ROW()+DZ$1,1)="","",IF(INDEX($B$1:$B$682,ROW()+DZ$1,1)>=EA4,"Yes","No")))) ->  | EG4: =IF(NavHistory!$R4="Yes","",IF(EF4<>"No","",IF(INDEX($B$1:$B$682,ROW()+EG$1,1)="","",MAX(DZ4,INDEX($B$1:$B$682,ROW()+EG$1-1,1))*1.06^(1/12)))) ->  | EH4: =IF(NavHistory!$R4="Yes","",IF(EF4<>"No","",IF(INDEX($B$1:$B$682,ROW()+EG$1,1)="","",1.06^(1/12)*EA4))) ->  | EI4: =IF(NavHistory!$R4="Yes","",IF(EF4<>"No","",IF(INDEX($B$1:$B$682,ROW()+EG$1,1)="","",EB4-EC4))) ->  | EJ4: =IF(NavHistory!$R4="Yes","",IF(EF4<>"No","",IF(INDEX($B$1:$B$682,ROW()+EG$1,1)="","",MAX(0,MIN((MIN(INDEX($B$1:$B$682,ROW()+EG$1,1),EH4)-EG4)*$A$2,EI4))))) ->  | EK4: =IF(NavHistory!$R4="Yes","",IF(EF4<>"No","",IF(INDEX($B$1:$B$682,ROW()+EG$1,1)="","",EJ4/INDEX($B$1:$B$682,ROW()+EG$1,1)))) ->  | EL4: =IF(NavHistory!$R4="Yes","",IF(EF4<>"No","",IF(INDEX($B$1:$B$682,ROW()+EG$1,1)="","",EE4-EK4))) ->  | EM4: =IF(NavHistory!$R4="Yes","",IF(EF4<>"No","",IF(INDEX($B$1:$B$682,ROW()+EG$1,1)="","",IF(INDEX($B$1:$B$682,ROW()+EG$1,1)>=EH4,"Yes","No")))) ->  | EN4: =IF(NavHistory!$R4="Yes","",IF(EM4<>"No","",IF(INDEX($B$1:$B$682,ROW()+EN$1,1)="","",MAX(EG4,INDEX($B$1:$B$682,ROW()+EN$1-1,1))*1.06^(1/12)))) ->  | EO4: =IF(NavHistory!$R4="Yes","",IF(EM4<>"No","",IF(INDEX($B$1:$B$682,ROW()+EN$1,1)="","",1.06^(1/12)*EH4))) ->  | EP4: =IF(NavHistory!$R4="Yes","",IF(EM4<>"No","",IF(INDEX($B$1:$B$682,ROW()+EN$1,1)="","",EI4-EJ4))) ->  | EQ4: =IF(NavHistory!$R4="Yes","",IF(EM4<>"No","",IF(INDEX($B$1:$B$682,ROW()+EN$1,1)="","",MAX(0,MIN((MIN(INDEX($B$1:$B$682,ROW()+EN$1,1),EO4)-EN4)*$A$2,EP4))))) ->  | ER4: =IF(NavHistory!$R4="Yes","",IF(EM4<>"No","",IF(INDEX($B$1:$B$682,ROW()+EN$1,1)="","",EQ4/INDEX($B$1:$B$682,ROW()+EN$1,1)))) ->  | ES4: =IF(NavHistory!$R4="Yes","",IF(EM4<>"No","",IF(INDEX($B$1:$B$682,ROW()+EN$1,1)="","",EL4-ER4))) ->  | ET4: =IF(NavHistory!$R4="Yes","",IF(EM4<>"No","",IF(INDEX($B$1:$B$682,ROW()+EN$1,1)="","",IF(INDEX($B$1:$B$682,ROW()+EN$1,1)>=EO4,"Yes","No")))) ->  | EU4: =IF(NavHistory!$R4="Yes","",IF(ET4<>"No","",IF(INDEX($B$1:$B$682,ROW()+EU$1,1)="","",MAX(EN4,INDEX($B$1:$B$682,ROW()+EU$1-1,1))*1.06^(1/12)))) ->  | EV4: =IF(NavHistory!$R4="Yes","",IF(ET4<>"No","",IF(INDEX($B$1:$B$682,ROW()+EU$1,1)="","",1.06^(1/12)*EO4))) ->  | EW4: =IF(NavHistory!$R4="Yes","",IF(ET4<>"No","",IF(INDEX($B$1:$B$682,ROW()+EU$1,1)="","",EP4-EQ4))) ->  | EX4: =IF(NavHistory!$R4="Yes","",IF(ET4<>"No","",IF(INDEX($B$1:$B$682,ROW()+EU$1,1)="","",MAX(0,MIN((MIN(INDEX($B$1:$B$682,ROW()+EU$1,1),EV4)-EU4)*$A$2,EW4))))) ->  | EY4: =IF(NavHistory!$R4="Yes","",IF(ET4<>"No","",IF(INDEX($B$1:$B$682,ROW()+EU$1,1)="","",EX4/INDEX($B$1:$B$682,ROW()+EU$1,1)))) ->  | EZ4: =IF(NavHistory!$R4="Yes","",IF(ET4<>"No","",IF(INDEX($B$1:$B$682,ROW()+EU$1,1)="","",ES4-EY4))) ->  | FA4: =IF(NavHistory!$R4="Yes","",IF(ET4<>"No","",IF(INDEX($B$1:$B$682,ROW()+EU$1,1)="","",IF(INDEX($B$1:$B$682,ROW()+EU$1,1)>=EV4,"Yes","No")))) ->  | FB4: =IF(NavHistory!$R4="Yes","",IF(FA4<>"No","",IF(INDEX($B$1:$B$682,ROW()+FB$1,1)="","",MAX(EU4,INDEX($B$1:$B$682,ROW()+FB$1-1,1))*1.06^(1/12)))) ->  | FC4: =IF(NavHistory!$R4="Yes","",IF(FA4<>"No","",IF(INDEX($B$1:$B$682,ROW()+FB$1,1)="","",1.06^(1/12)*EV4))) ->  | FD4: =IF(NavHistory!$R4="Yes","",IF(FA4<>"No","",IF(INDEX($B$1:$B$682,ROW()+FB$1,1)="","",EW4-EX4))) ->  | FE4: =IF(NavHistory!$R4="Yes","",IF(FA4<>"No","",IF(INDEX($B$1:$B$682,ROW()+FB$1,1)="","",MAX(0,MIN((MIN(INDEX($B$1:$B$682,ROW()+FB$1,1),FC4)-FB4)*$A$2,FD4))))) ->  | FF4: =IF(NavHistory!$R4="Yes","",IF(FA4<>"No","",IF(INDEX($B$1:$B$682,ROW()+FB$1,1)="","",FE4/INDEX($B$1:$B$682,ROW()+FB$1,1)))) ->  | FG4: =IF(NavHistory!$R4="Yes","",IF(FA4<>"No","",IF(INDEX($B$1:$B$682,ROW()+FB$1,1)="","",EZ4-FF4))) ->  | FH4: =IF(NavHistory!$R4="Yes","",IF(FA4<>"No","",IF(INDEX($B$1:$B$682,ROW()+FB$1,1)="","",IF(INDEX($B$1:$B$682,ROW()+FB$1,1)>=FC4,"Yes","No")))) ->  | FI4: =IF(NavHistory!$R4="Yes","",IF(FH4<>"No","",IF(INDEX($B$1:$B$682,ROW()+FI$1,1)="","",MAX(FB4,INDEX($B$1:$B$682,ROW()+FI$1-1,1))*1.06^(1/12)))) ->  | FJ4: =IF(NavHistory!$R4="Yes","",IF(FH4<>"No","",IF(INDEX($B$1:$B$682,ROW()+FI$1,1)="","",1.06^(1/12)*FC4))) ->  | FK4: =IF(NavHistory!$R4="Yes","",IF(FH4<>"No","",IF(INDEX($B$1:$B$682,ROW()+FI$1,1)="","",FD4-FE4))) ->  | FL4: =IF(NavHistory!$R4="Yes","",IF(FH4<>"No","",IF(INDEX($B$1:$B$682,ROW()+FI$1,1)="","",MAX(0,MIN((MIN(INDEX($B$1:$B$682,ROW()+FI$1,1),FJ4)-FI4)*$A$2,FK4))))) ->  | FM4: =IF(NavHistory!$R4="Yes","",IF(FH4<>"No","",IF(INDEX($B$1:$B$682,ROW()+FI$1,1)="","",FL4/INDEX($B$1:$B$682,ROW()+FI$1,1)))) ->  | FN4: =IF(NavHistory!$R4="Yes","",IF(FH4<>"No","",IF(INDEX($B$1:$B$682,ROW()+FI$1,1)="","",FG4-FM4))) ->  | FO4: =IF(NavHistory!$R4="Yes","",IF(FH4<>"No","",IF(INDEX($B$1:$B$682,ROW()+FI$1,1)="","",IF(INDEX($B$1:$B$682,ROW()+FI$1,1)>=FJ4,"Yes","No")))) ->  | FP4: =IF(NavHistory!$R4="Yes","",IF(FO4<>"No","",IF(INDEX($B$1:$B$682,ROW()+FP$1,1)="","",MAX(FI4,INDEX($B$1:$B$682,ROW()+FP$1-1,1))*1.06^(1/12)))) ->  | FQ4: =IF(NavHistory!$R4="Yes","",IF(FO4<>"No","",IF(INDEX($B$1:$B$682,ROW()+FP$1,1)="","",1.06^(1/12)*FJ4))) ->  | FR4: =IF(NavHistory!$R4="Yes","",IF(FO4<>"No","",IF(INDEX($B$1:$B$682,ROW()+FP$1,1)="","",FK4-FL4))) ->  | FS4: =IF(NavHistory!$R4="Yes","",IF(FO4<>"No","",IF(INDEX($B$1:$B$682,ROW()+FP$1,1)="","",MAX(0,MIN((MIN(INDEX($B$1:$B$682,ROW()+FP$1,1),FQ4)-FP4)*$A$2,FR4))))) ->  | FT4: =IF(NavHistory!$R4="Yes","",IF(FO4<>"No","",IF(INDEX($B$1:$B$682,ROW()+FP$1,1)="","",FS4/INDEX($B$1:$B$682,ROW()+FP$1,1)))) ->  | FU4: =IF(NavHistory!$R4="Yes","",IF(FO4<>"No","",IF(INDEX($B$1:$B$682,ROW()+FP$1,1)="","",FN4-FT4))) ->  | FV4: =IF(NavHistory!$R4="Yes","",IF(FO4<>"No","",IF(INDEX($B$1:$B$682,ROW()+FP$1,1)="","",IF(INDEX($B$1:$B$682,ROW()+FP$1,1)>=FQ4,"Yes","No")))) ->  | FW4: =IF(NavHistory!$R4="Yes","",IF(FV4<>"No","",IF(INDEX($B$1:$B$682,ROW()+FW$1,1)="","",MAX(FP4,INDEX($B$1:$B$682,ROW()+FW$1-1,1))*1.06^(1/12)))) ->  | FX4: =IF(NavHistory!$R4="Yes","",IF(FV4<>"No","",IF(INDEX($B$1:$B$682,ROW()+FW$1,1)="","",1.06^(1/12)*FQ4))) ->  | FY4: =IF(NavHistory!$R4="Yes","",IF(FV4<>"No","",IF(INDEX($B$1:$B$682,ROW()+FW$1,1)="","",FR4-FS4))) ->  | FZ4: =IF(NavHistory!$R4="Yes","",IF(FV4<>"No","",IF(INDEX($B$1:$B$682,ROW()+FW$1,1)="","",MAX(0,MIN((MIN(INDEX($B$1:$B$682,ROW()+FW$1,1),FX4)-FW4)*$A$2,FY4))))) ->  | GA4: =IF(NavHistory!$R4="Yes","",IF(FV4<>"No","",IF(INDEX($B$1:$B$682,ROW()+FW$1,1)="","",FZ4/INDEX($B$1:$B$682,ROW()+FW$1,1)))) ->  | GB4: =IF(NavHistory!$R4="Yes","",IF(FV4<>"No","",IF(INDEX($B$1:$B$682,ROW()+FW$1,1)="","",FU4-GA4))) ->  | GC4: =IF(NavHistory!$R4="Yes","",IF(FV4<>"No","",IF(INDEX($B$1:$B$682,ROW()+FW$1,1)="","",IF(INDEX($B$1:$B$682,ROW()+FW$1,1)>=FX4,"Yes","No")))) ->  | GD4: =IF(NavHistory!$R4="Yes","",IF(GC4<>"No","",IF(INDEX($B$1:$B$682,ROW()+GD$1,1)="","",MAX(FW4,INDEX($B$1:$B$682,ROW()+GD$1-1,1))*1.06^(1/12)))) ->  | GE4: =IF(NavHistory!$R4="Yes","",IF(GC4<>"No","",IF(INDEX($B$1:$B$682,ROW()+GD$1,1)="","",1.06^(1/12)*FX4))) ->  | GF4: =IF(NavHistory!$R4="Yes","",IF(GC4<>"No","",IF(INDEX($B$1:$B$682,ROW()+GD$1,1)="","",FY4-FZ4))) ->  | GG4: =IF(NavHistory!$R4="Yes","",IF(GC4<>"No","",IF(INDEX($B$1:$B$682,ROW()+GD$1,1)="","",MAX(0,MIN((MIN(INDEX($B$1:$B$682,ROW()+GD$1,1),GE4)-GD4)*$A$2,GF4))))) ->  | GH4: =IF(NavHistory!$R4="Yes","",IF(GC4<>"No","",IF(INDEX($B$1:$B$682,ROW()+GD$1,1)="","",GG4/INDEX($B$1:$B$682,ROW()+GD$1,1)))) ->  | GI4: =IF(NavHistory!$R4="Yes","",IF(GC4<>"No","",IF(INDEX($B$1:$B$682,ROW()+GD$1,1)="","",GB4-GH4))) ->  | GJ4: =IF(NavHistory!$R4="Yes","",IF(GC4<>"No","",IF(INDEX($B$1:$B$682,ROW()+GD$1,1)="","",IF(INDEX($B$1:$B$682,ROW()+GD$1,1)>=GE4,"Yes","No")))) ->  | GK4: =IF(NavHistory!$R4="Yes","",IF(GJ4<>"No","",IF(INDEX($B$1:$B$682,ROW()+GK$1,1)="","",MAX(GD4,INDEX($B$1:$B$682,ROW()+GK$1-1,1))*1.06^(1/12)))) ->  | GL4: =IF(NavHistory!$R4="Yes","",IF(GJ4<>"No","",IF(INDEX($B$1:$B$682,ROW()+GK$1,1)="","",1.06^(1/12)*GE4))) ->  | GM4: =IF(NavHistory!$R4="Yes","",IF(GJ4<>"No","",IF(INDEX($B$1:$B$682,ROW()+GK$1,1)="","",GF4-GG4))) ->  | GN4: =IF(NavHistory!$R4="Yes","",IF(GJ4<>"No","",IF(INDEX($B$1:$B$682,ROW()+GK$1,1)="","",MAX(0,MIN((MIN(INDEX($B$1:$B$682,ROW()+GK$1,1),GL4)-GK4)*$A$2,GM4))))) ->  | GO4: =IF(NavHistory!$R4="Yes","",IF(GJ4<>"No","",IF(INDEX($B$1:$B$682,ROW()+GK$1,1)="","",GN4/INDEX($B$1:$B$682,ROW()+GK$1,1)))) ->  | GP4: =IF(NavHistory!$R4="Yes","",IF(GJ4<>"No","",IF(INDEX($B$1:$B$682,ROW()+GK$1,1)="","",GI4-GO4))) ->  | GQ4: =IF(NavHistory!$R4="Yes","",IF(GJ4<>"No","",IF(INDEX($B$1:$B$682,ROW()+GK$1,1)="","",IF(INDEX($B$1:$B$682,ROW()+GK$1,1)>=GL4,"Yes","No")))) ->  | GR4: =IF(NavHistory!$R4="Yes","",IF(GQ4<>"No","",IF(INDEX($B$1:$B$682,ROW()+GR$1,1)="","",MAX(GK4,INDEX($B$1:$B$682,ROW()+GR$1-1,1))*1.06^(1/12)))) ->  | GS4: =IF(NavHistory!$R4="Yes","",IF(GQ4<>"No","",IF(INDEX($B$1:$B$682,ROW()+GR$1,1)="","",1.06^(1/12)*GL4))) ->  | GT4: =IF(NavHistory!$R4="Yes","",IF(GQ4<>"No","",IF(INDEX($B$1:$B$682,ROW()+GR$1,1)="","",GM4-GN4))) ->  | GU4: =IF(NavHistory!$R4="Yes","",IF(GQ4<>"No","",IF(INDEX($B$1:$B$682,ROW()+GR$1,1)="","",MAX(0,MIN((MIN(INDEX($B$1:$B$682,ROW()+GR$1,1),GS4)-GR4)*$A$2,GT4))))) ->  | GV4: =IF(NavHistory!$R4="Yes","",IF(GQ4<>"No","",IF(INDEX($B$1:$B$682,ROW()+GR$1,1)="","",GU4/INDEX($B$1:$B$682,ROW()+GR$1,1)))) ->  | GW4: =IF(NavHistory!$R4="Yes","",IF(GQ4<>"No","",IF(INDEX($B$1:$B$682,ROW()+GR$1,1)="","",GP4-GV4))) ->  | GX4: =IF(NavHistory!$R4="Yes","",IF(GQ4<>"No","",IF(INDEX($B$1:$B$682,ROW()+GR$1,1)="","",IF(INDEX($B$1:$B$682,ROW()+GR$1,1)>=GS4,"Yes","No")))) ->  | GY4: =IF(NavHistory!$R4="Yes","",IF(GX4<>"No","",IF(INDEX($B$1:$B$682,ROW()+GY$1,1)="","",MAX(GR4,INDEX($B$1:$B$682,ROW()+GY$1-1,1))*1.06^(1/12)))) ->  | GZ4: =IF(NavHistory!$R4="Yes","",IF(GX4<>"No","",IF(INDEX($B$1:$B$682,ROW()+GY$1,1)="","",1.06^(1/12)*GS4))) ->  | HA4: =IF(NavHistory!$R4="Yes","",IF(GX4<>"No","",IF(INDEX($B$1:$B$682,ROW()+GY$1,1)="","",GT4-GU4))) ->  | HB4: =IF(NavHistory!$R4="Yes","",IF(GX4<>"No","",IF(INDEX($B$1:$B$682,ROW()+GY$1,1)="","",MAX(0,MIN((MIN(INDEX($B$1:$B$682,ROW()+GY$1,1),GZ4)-GY4)*$A$2,HA4))))) ->  | HC4: =IF(NavHistory!$R4="Yes","",IF(GX4<>"No","",IF(INDEX($B$1:$B$682,ROW()+GY$1,1)="","",HB4/INDEX($B$1:$B$682,ROW()+GY$1,1)))) ->  | HD4: =IF(NavHistory!$R4="Yes","",IF(GX4<>"No","",IF(INDEX($B$1:$B$682,ROW()+GY$1,1)="","",GW4-HC4))) ->  | HE4: =IF(NavHistory!$R4="Yes","",IF(GX4<>"No","",IF(INDEX($B$1:$B$682,ROW()+GY$1,1)="","",IF(INDEX($B$1:$B$682,ROW()+GY$1,1)>=GZ4,"Yes","No")))) ->  | HF4: =IF(NavHistory!$R4="Yes","",IF(HE4<>"No","",IF(INDEX($B$1:$B$682,ROW()+HF$1,1)="","",MAX(GY4,INDEX($B$1:$B$682,ROW()+HF$1-1,1))*1.06^(1/12)))) ->  | HG4: =IF(NavHistory!$R4="Yes","",IF(HE4<>"No","",IF(INDEX($B$1:$B$682,ROW()+HF$1,1)="","",1.06^(1/12)*GZ4))) ->  | HH4: =IF(NavHistory!$R4="Yes","",IF(HE4<>"No","",IF(INDEX($B$1:$B$682,ROW()+HF$1,1)="","",HA4-HB4))) ->  | HI4: =IF(NavHistory!$R4="Yes","",IF(HE4<>"No","",IF(INDEX($B$1:$B$682,ROW()+HF$1,1)="","",MAX(0,MIN((MIN(INDEX($B$1:$B$682,ROW()+HF$1,1),HG4)-HF4)*$A$2,HH4))))) ->  | HJ4: =IF(NavHistory!$R4="Yes","",IF(HE4<>"No","",IF(INDEX($B$1:$B$682,ROW()+HF$1,1)="","",HI4/INDEX($B$1:$B$682,ROW()+HF$1,1)))) ->  | HK4: =IF(NavHistory!$R4="Yes","",IF(HE4<>"No","",IF(INDEX($B$1:$B$682,ROW()+HF$1,1)="","",HD4-HJ4))) ->  | HL4: =IF(NavHistory!$R4="Yes","",IF(HE4<>"No","",IF(INDEX($B$1:$B$682,ROW()+HF$1,1)="","",IF(INDEX($B$1:$B$682,ROW()+HF$1,1)>=HG4,"Yes","No")))) ->  | HM4: =IF(NavHistory!$R4="Yes","",IF(HL4<>"No","",IF(INDEX($B$1:$B$682,ROW()+HM$1,1)="","",MAX(HF4,INDEX($B$1:$B$682,ROW()+HM$1-1,1))*1.06^(1/12)))) ->  | HN4: =IF(NavHistory!$R4="Yes","",IF(HL4<>"No","",IF(INDEX($B$1:$B$682,ROW()+HM$1,1)="","",1.06^(1/12)*HG4))) ->  | HO4: =IF(NavHistory!$R4="Yes","",IF(HL4<>"No","",IF(INDEX($B$1:$B$682,ROW()+HM$1,1)="","",HH4-HI4))) ->  | HP4: =IF(NavHistory!$R4="Yes","",IF(HL4<>"No","",IF(INDEX($B$1:$B$682,ROW()+HM$1,1)="","",MAX(0,MIN((MIN(INDEX($B$1:$B$682,ROW()+HM$1,1),HN4)-HM4)*$A$2,HO4))))) ->  | HQ4: =IF(NavHistory!$R4="Yes","",IF(HL4<>"No","",IF(INDEX($B$1:$B$682,ROW()+HM$1,1)="","",HP4/INDEX($B$1:$B$682,ROW()+HM$1,1)))) ->  | HR4: =IF(NavHistory!$R4="Yes","",IF(HL4<>"No","",IF(INDEX($B$1:$B$682,ROW()+HM$1,1)="","",HK4-HQ4))) ->  | HS4: =IF(NavHistory!$R4="Yes","",IF(HL4<>"No","",IF(INDEX($B$1:$B$682,ROW()+HM$1,1)="","",IF(INDEX($B$1:$B$682,ROW()+HM$1,1)>=HN4,"Yes","No")))) ->  | HT4: =IF(NavHistory!$R4="Yes","",IF(HS4<>"No","",IF(INDEX($B$1:$B$682,ROW()+HT$1,1)="","",MAX(HM4,INDEX($B$1:$B$682,ROW()+HT$1-1,1))*1.06^(1/12)))) ->  | HU4: =IF(NavHistory!$R4="Yes","",IF(HS4<>"No","",IF(INDEX($B$1:$B$682,ROW()+HT$1,1)="","",1.06^(1/12)*HN4))) ->  | HV4: =IF(NavHistory!$R4="Yes","",IF(HS4<>"No","",IF(INDEX($B$1:$B$682,ROW()+HT$1,1)="","",HO4-HP4))) ->  | HW4: =IF(NavHistory!$R4="Yes","",IF(HS4<>"No","",IF(INDEX($B$1:$B$682,ROW()+HT$1,1)="","",MAX(0,MIN((MIN(INDEX($B$1:$B$682,ROW()+HT$1,1),HU4)-HT4)*$A$2,HV4))))) ->  | HX4: =IF(NavHistory!$R4="Yes","",IF(HS4<>"No","",IF(INDEX($B$1:$B$682,ROW()+HT$1,1)="","",HW4/INDEX($B$1:$B$682,ROW()+HT$1,1)))) ->  | HY4: =IF(NavHistory!$R4="Yes","",IF(HS4<>"No","",IF(INDEX($B$1:$B$682,ROW()+HT$1,1)="","",HR4-HX4))) ->  | HZ4: =IF(NavHistory!$R4="Yes","",IF(HS4<>"No","",IF(INDEX($B$1:$B$682,ROW()+HT$1,1)="","",IF(INDEX($B$1:$B$682,ROW()+HT$1,1)>=HU4,"Yes","No")))) ->  | IA4: =IF(NavHistory!$R4="Yes","",IF(HZ4<>"No","",IF(INDEX($B$1:$B$682,ROW()+IA$1,1)="","",MAX(HT4,INDEX($B$1:$B$682,ROW()+IA$1-1,1))*1.06^(1/12)))) ->  | IB4: =IF(NavHistory!$R4="Yes","",IF(HZ4<>"No","",IF(INDEX($B$1:$B$682,ROW()+IA$1,1)="","",1.06^(1/12)*HU4))) ->  | IC4: =IF(NavHistory!$R4="Yes","",IF(HZ4<>"No","",IF(INDEX($B$1:$B$682,ROW()+IA$1,1)="","",HV4-HW4))) ->  | ID4: =IF(NavHistory!$R4="Yes","",IF(HZ4<>"No","",IF(INDEX($B$1:$B$682,ROW()+IA$1,1)="","",MAX(0,MIN((MIN(INDEX($B$1:$B$682,ROW()+IA$1,1),IB4)-IA4)*$A$2,IC4))))) ->  | IE4: =IF(NavHistory!$R4="Yes","",IF(HZ4<>"No","",IF(INDEX($B$1:$B$682,ROW()+IA$1,1)="","",ID4/INDEX($B$1:$B$682,ROW()+IA$1,1)))) ->  | IF4: =IF(NavHistory!$R4="Yes","",IF(HZ4<>"No","",IF(INDEX($B$1:$B$682,ROW()+IA$1,1)="","",HY4-IE4))) ->  | IG4: =IF(NavHistory!$R4="Yes","",IF(HZ4<>"No","",IF(INDEX($B$1:$B$682,ROW()+IA$1,1)="","",IF(INDEX($B$1:$B$682,ROW()+IA$1,1)>=IB4,"Yes","No")))) ->  | IH4: =IF(NavHistory!$R4="Yes","",IF(IG4<>"No","",IF(INDEX($B$1:$B$682,ROW()+IH$1,1)="","",MAX(IA4,INDEX($B$1:$B$682,ROW()+IH$1-1,1))*1.06^(1/12)))) ->  | II4: =IF(NavHistory!$R4="Yes","",IF(IG4<>"No","",IF(INDEX($B$1:$B$682,ROW()+IH$1,1)="","",1.06^(1/12)*IB4))) ->  | IJ4: =IF(NavHistory!$R4="Yes","",IF(IG4<>"No","",IF(INDEX($B$1:$B$682,ROW()+IH$1,1)="","",IC4-ID4))) ->  | IK4: =IF(NavHistory!$R4="Yes","",IF(IG4<>"No","",IF(INDEX($B$1:$B$682,ROW()+IH$1,1)="","",MAX(0,MIN((MIN(INDEX($B$1:$B$682,ROW()+IH$1,1),II4)-IH4)*$A$2,IJ4))))) ->  | IL4: =IF(NavHistory!$R4="Yes","",IF(IG4<>"No","",IF(INDEX($B$1:$B$682,ROW()+IH$1,1)="","",IK4/INDEX($B$1:$B$682,ROW()+IH$1,1)))) ->  | IM4: =IF(NavHistory!$R4="Yes","",IF(IG4<>"No","",IF(INDEX($B$1:$B$682,ROW()+IH$1,1)="","",IF4-IL4))) ->  | IN4: =IF(NavHistory!$R4="Yes","",IF(IG4<>"No","",IF(INDEX($B$1:$B$682,ROW()+IH$1,1)="","",IF(INDEX($B$1:$B$682,ROW()+IH$1,1)>=II4,"Yes","No")))) ->  | IO4: =IF(NavHistory!$R4="Yes","",IF(IN4<>"No","",IF(INDEX($B$1:$B$682,ROW()+IO$1,1)="","",MAX(IH4,INDEX($B$1:$B$682,ROW()+IO$1-1,1))*1.06^(1/12)))) ->  | IP4: =IF(NavHistory!$R4="Yes","",IF(IN4<>"No","",IF(INDEX($B$1:$B$682,ROW()+IO$1,1)="","",1.06^(1/12)*II4))) ->  | IQ4: =IF(NavHistory!$R4="Yes","",IF(IN4<>"No","",IF(INDEX($B$1:$B$682,ROW()+IO$1,1)="","",IJ4-IK4))) ->  | IR4: =IF(NavHistory!$R4="Yes","",IF(IN4<>"No","",IF(INDEX($B$1:$B$682,ROW()+IO$1,1)="","",MAX(0,MIN((MIN(INDEX($B$1:$B$682,ROW()+IO$1,1),IP4)-IO4)*$A$2,IQ4))))) ->  | IS4: =IF(NavHistory!$R4="Yes","",IF(IN4<>"No","",IF(INDEX($B$1:$B$682,ROW()+IO$1,1)="","",IR4/INDEX($B$1:$B$682,ROW()+IO$1,1)))) ->  | IT4: =IF(NavHistory!$R4="Yes","",IF(IN4<>"No","",IF(INDEX($B$1:$B$682,ROW()+IO$1,1)="","",IM4-IS4))) ->  | IU4: =IF(NavHistory!$R4="Yes","",IF(IN4<>"No","",IF(INDEX($B$1:$B$682,ROW()+IO$1,1)="","",IF(INDEX($B$1:$B$682,ROW()+IO$1,1)>=IP4,"Yes","No")))) -> 
A5: =IF(NavHistory!A5="","",NavHistory!A5) -> 2017-09-29 | B5: =IF(NavHistory!B5="","",NavHistory!B5) -> 10.5212 | C5: =IF(NavHistory!G5="","",NavHistory!G5) -> 10.5212 | D5: =IF(NavHistory!$R5="Yes","",IF(INDEX($B$1:$B$682,ROW()+D$1,1)="","",1.06^($D$1/12)*B5)) ->  | E5: =IF(NavHistory!$R5="Yes","",IF(INDEX($B$1:$B$682,ROW()+D$1,1)="","",1.06^(1/12)*C5)) ->  | F5: =IF(NavHistory!$R5="Yes","",IF(INDEX($B$1:$B$682,ROW()+D$1,1)="","",(C5-B5)*$A$2)) ->  | G5: =IF(NavHistory!$R5="Yes","",IF(INDEX($B$1:$B$682,ROW()+D$1,1)="","",MAX(0,MIN((MIN($B6,E5)-D5)*$A$2,F5)))) ->  | H5: =IF(NavHistory!$R5="Yes","",IF(INDEX($B$1:$B$682,ROW()+D$1,1)="","",G5/B6)) ->  | I5: =IF(NavHistory!$R5="Yes","",IF(INDEX($B$1:$B$682,ROW()+D$1,1)="","",1-H5)) ->  | J5: =IF(NavHistory!$R5="Yes","",IF(INDEX($B$1:$B$682,ROW()+D$1,1)="","",IF(B6>=E5,"Yes","No"))) ->  | K5: =IF(NavHistory!$R5="Yes","",IF(J5<>"No","",IF(INDEX($B$1:$B$682,ROW()+K$1,1)="","",MAX(D5,INDEX($B$1:$B$682,ROW()+K$1-1,1))*1.06^(1/12)))) ->  | L5: =IF(NavHistory!$R5="Yes","",IF(J5<>"No","",IF(INDEX($B$1:$B$682,ROW()+K$1,1)="","",1.06^(1/12)*E5))) ->  | M5: =IF(NavHistory!$R5="Yes","",IF(J5<>"No","",IF(INDEX($B$1:$B$682,ROW()+K$1,1)="","",F5-G5))) ->  | N5: =IF(NavHistory!$R5="Yes","",IF(J5<>"No","",IF(INDEX($B$1:$B$682,ROW()+K$1,1)="","",MAX(0,MIN((MIN(INDEX($B$1:$B$682,ROW()+K$1,1),L5)-K5)*$A$2,M5))))) ->  | O5: =IF(NavHistory!$R5="Yes","",IF(J5<>"No","",IF(INDEX($B$1:$B$682,ROW()+K$1,1)="","",N5/INDEX($B$1:$B$682,ROW()+K$1,1)))) ->  | P5: =IF(NavHistory!$R5="Yes","",IF(J5<>"No","",IF(INDEX($B$1:$B$682,ROW()+K$1,1)="","",I5-O5))) ->  | Q5: =IF(NavHistory!$R5="Yes","",IF(J5<>"No","",IF(INDEX($B$1:$B$682,ROW()+K$1,1)="","",IF(INDEX($B$1:$B$682,ROW()+K$1,1)>=L5,"Yes","No")))) ->  | R5: =IF(NavHistory!$R5="Yes","",IF(Q5<>"No","",IF(INDEX($B$1:$B$682,ROW()+R$1,1)="","",MAX(K5,INDEX($B$1:$B$682,ROW()+R$1-1,1))*1.06^(1/12)))) ->  | S5: =IF(NavHistory!$R5="Yes","",IF(Q5<>"No","",IF(INDEX($B$1:$B$682,ROW()+R$1,1)="","",1.06^(1/12)*L5))) ->  | T5: =IF(NavHistory!$R5="Yes","",IF(Q5<>"No","",IF(INDEX($B$1:$B$682,ROW()+R$1,1)="","",M5-N5))) ->  | U5: =IF(NavHistory!$R5="Yes","",IF(Q5<>"No","",IF(INDEX($B$1:$B$682,ROW()+R$1,1)="","",MAX(0,MIN((MIN(INDEX($B$1:$B$682,ROW()+R$1,1),S5)-R5)*$A$2,T5))))) ->  | V5: =IF(NavHistory!$R5="Yes","",IF(Q5<>"No","",IF(INDEX($B$1:$B$682,ROW()+R$1,1)="","",U5/INDEX($B$1:$B$682,ROW()+R$1,1)))) ->  | W5: =IF(NavHistory!$R5="Yes","",IF(Q5<>"No","",IF(INDEX($B$1:$B$682,ROW()+R$1,1)="","",P5-V5))) ->  | X5: =IF(NavHistory!$R5="Yes","",IF(Q5<>"No","",IF(INDEX($B$1:$B$682,ROW()+R$1,1)="","",IF(INDEX($B$1:$B$682,ROW()+R$1,1)>=S5,"Yes","No")))) ->  | Y5: =IF(NavHistory!$R5="Yes","",IF(X5<>"No","",IF(INDEX($B$1:$B$682,ROW()+Y$1,1)="","",MAX(R5,INDEX($B$1:$B$682,ROW()+Y$1-1,1))*1.06^(1/12)))) ->  | Z5: =IF(NavHistory!$R5="Yes","",IF(X5<>"No","",IF(INDEX($B$1:$B$682,ROW()+Y$1,1)="","",1.06^(1/12)*S5))) ->  | AA5: =IF(NavHistory!$R5="Yes","",IF(X5<>"No","",IF(INDEX($B$1:$B$682,ROW()+Y$1,1)="","",T5-U5))) ->  | AB5: =IF(NavHistory!$R5="Yes","",IF(X5<>"No","",IF(INDEX($B$1:$B$682,ROW()+Y$1,1)="","",MAX(0,MIN((MIN(INDEX($B$1:$B$682,ROW()+Y$1,1),Z5)-Y5)*$A$2,AA5))))) ->  | AC5: =IF(NavHistory!$R5="Yes","",IF(X5<>"No","",IF(INDEX($B$1:$B$682,ROW()+Y$1,1)="","",AB5/INDEX($B$1:$B$682,ROW()+Y$1,1)))) ->  | AD5: =IF(NavHistory!$R5="Yes","",IF(X5<>"No","",IF(INDEX($B$1:$B$682,ROW()+Y$1,1)="","",W5-AC5))) ->  | AE5: =IF(NavHistory!$R5="Yes","",IF(X5<>"No","",IF(INDEX($B$1:$B$682,ROW()+Y$1,1)="","",IF(INDEX($B$1:$B$682,ROW()+Y$1,1)>=Z5,"Yes","No")))) ->  | AF5: =IF(NavHistory!$R5="Yes","",IF(AE5<>"No","",IF(INDEX($B$1:$B$682,ROW()+AF$1,1)="","",MAX(Y5,INDEX($B$1:$B$682,ROW()+AF$1-1,1))*1.06^(1/12)))) ->  | AG5: =IF(NavHistory!$R5="Yes","",IF(AE5<>"No","",IF(INDEX($B$1:$B$682,ROW()+AF$1,1)="","",1.06^(1/12)*Z5))) ->  | AH5: =IF(NavHistory!$R5="Yes","",IF(AE5<>"No","",IF(INDEX($B$1:$B$682,ROW()+AF$1,1)="","",AA5-AB5))) ->  | AI5: =IF(NavHistory!$R5="Yes","",IF(AE5<>"No","",IF(INDEX($B$1:$B$682,ROW()+AF$1,1)="","",MAX(0,MIN((MIN(INDEX($B$1:$B$682,ROW()+AF$1,1),AG5)-AF5)*$A$2,AH5))))) ->  | AJ5: =IF(NavHistory!$R5="Yes","",IF(AE5<>"No","",IF(INDEX($B$1:$B$682,ROW()+AF$1,1)="","",AI5/INDEX($B$1:$B$682,ROW()+AF$1,1)))) ->  | AK5: =IF(NavHistory!$R5="Yes","",IF(AE5<>"No","",IF(INDEX($B$1:$B$682,ROW()+AF$1,1)="","",AD5-AJ5))) ->  | AL5: =IF(NavHistory!$R5="Yes","",IF(AE5<>"No","",IF(INDEX($B$1:$B$682,ROW()+AF$1,1)="","",IF(INDEX($B$1:$B$682,ROW()+AF$1,1)>=AG5,"Yes","No")))) ->  | AM5: =IF(NavHistory!$R5="Yes","",IF(AL5<>"No","",IF(INDEX($B$1:$B$682,ROW()+AM$1,1)="","",MAX(AF5,INDEX($B$1:$B$682,ROW()+AM$1-1,1))*1.06^(1/12)))) ->  | AN5: =IF(NavHistory!$R5="Yes","",IF(AL5<>"No","",IF(INDEX($B$1:$B$682,ROW()+AM$1,1)="","",1.06^(1/12)*AG5))) ->  | AO5: =IF(NavHistory!$R5="Yes","",IF(AL5<>"No","",IF(INDEX($B$1:$B$682,ROW()+AM$1,1)="","",AH5-AI5))) ->  | AP5: =IF(NavHistory!$R5="Yes","",IF(AL5<>"No","",IF(INDEX($B$1:$B$682,ROW()+AM$1,1)="","",MAX(0,MIN((MIN(INDEX($B$1:$B$682,ROW()+AM$1,1),AN5)-AM5)*$A$2,AO5))))) ->  | AQ5: =IF(NavHistory!$R5="Yes","",IF(AL5<>"No","",IF(INDEX($B$1:$B$682,ROW()+AM$1,1)="","",AP5/INDEX($B$1:$B$682,ROW()+AM$1,1)))) ->  | AR5: =IF(NavHistory!$R5="Yes","",IF(AL5<>"No","",IF(INDEX($B$1:$B$682,ROW()+AM$1,1)="","",AK5-AQ5))) ->  | AS5: =IF(NavHistory!$R5="Yes","",IF(AL5<>"No","",IF(INDEX($B$1:$B$682,ROW()+AM$1,1)="","",IF(INDEX($B$1:$B$682,ROW()+AM$1,1)>=AN5,"Yes","No")))) ->  | AT5: =IF(NavHistory!$R5="Yes","",IF(AS5<>"No","",IF(INDEX($B$1:$B$682,ROW()+AT$1,1)="","",MAX(AM5,INDEX($B$1:$B$682,ROW()+AT$1-1,1))*1.06^(1/12)))) ->  | AU5: =IF(NavHistory!$R5="Yes","",IF(AS5<>"No","",IF(INDEX($B$1:$B$682,ROW()+AT$1,1)="","",1.06^(1/12)*AN5))) ->  | AV5: =IF(NavHistory!$R5="Yes","",IF(AS5<>"No","",IF(INDEX($B$1:$B$682,ROW()+AT$1,1)="","",AO5-AP5))) ->  | AW5: =IF(NavHistory!$R5="Yes","",IF(AS5<>"No","",IF(INDEX($B$1:$B$682,ROW()+AT$1,1)="","",MAX(0,MIN((MIN(INDEX($B$1:$B$682,ROW()+AT$1,1),AU5)-AT5)*$A$2,AV5))))) ->  | AX5: =IF(NavHistory!$R5="Yes","",IF(AS5<>"No","",IF(INDEX($B$1:$B$682,ROW()+AT$1,1)="","",AW5/INDEX($B$1:$B$682,ROW()+AT$1,1)))) ->  | AY5: =IF(NavHistory!$R5="Yes","",IF(AS5<>"No","",IF(INDEX($B$1:$B$682,ROW()+AT$1,1)="","",AR5-AX5))) ->  | AZ5: =IF(NavHistory!$R5="Yes","",IF(AS5<>"No","",IF(INDEX($B$1:$B$682,ROW()+AT$1,1)="","",IF(INDEX($B$1:$B$682,ROW()+AT$1,1)>=AU5,"Yes","No")))) ->  | BA5: =IF(NavHistory!$R5="Yes","",IF(AZ5<>"No","",IF(INDEX($B$1:$B$682,ROW()+BA$1,1)="","",MAX(AT5,INDEX($B$1:$B$682,ROW()+BA$1-1,1))*1.06^(1/12)))) ->  | BB5: =IF(NavHistory!$R5="Yes","",IF(AZ5<>"No","",IF(INDEX($B$1:$B$682,ROW()+BA$1,1)="","",1.06^(1/12)*AU5))) ->  | BC5: =IF(NavHistory!$R5="Yes","",IF(AZ5<>"No","",IF(INDEX($B$1:$B$682,ROW()+BA$1,1)="","",AV5-AW5))) ->  | BD5: =IF(NavHistory!$R5="Yes","",IF(AZ5<>"No","",IF(INDEX($B$1:$B$682,ROW()+BA$1,1)="","",MAX(0,MIN((MIN(INDEX($B$1:$B$682,ROW()+BA$1,1),BB5)-BA5)*$A$2,BC5))))) ->  | BE5: =IF(NavHistory!$R5="Yes","",IF(AZ5<>"No","",IF(INDEX($B$1:$B$682,ROW()+BA$1,1)="","",BD5/INDEX($B$1:$B$682,ROW()+BA$1,1)))) ->  | BF5: =IF(NavHistory!$R5="Yes","",IF(AZ5<>"No","",IF(INDEX($B$1:$B$682,ROW()+BA$1,1)="","",AY5-BE5))) ->  | BG5: =IF(NavHistory!$R5="Yes","",IF(AZ5<>"No","",IF(INDEX($B$1:$B$682,ROW()+BA$1,1)="","",IF(INDEX($B$1:$B$682,ROW()+BA$1,1)>=BB5,"Yes","No")))) ->  | BH5: =IF(NavHistory!$R5="Yes","",IF(BG5<>"No","",IF(INDEX($B$1:$B$682,ROW()+BH$1,1)="","",MAX(BA5,INDEX($B$1:$B$682,ROW()+BH$1-1,1))*1.06^(1/12)))) ->  | BI5: =IF(NavHistory!$R5="Yes","",IF(BG5<>"No","",IF(INDEX($B$1:$B$682,ROW()+BH$1,1)="","",1.06^(1/12)*BB5))) ->  | BJ5: =IF(NavHistory!$R5="Yes","",IF(BG5<>"No","",IF(INDEX($B$1:$B$682,ROW()+BH$1,1)="","",BC5-BD5))) ->  | BK5: =IF(NavHistory!$R5="Yes","",IF(BG5<>"No","",IF(INDEX($B$1:$B$682,ROW()+BH$1,1)="","",MAX(0,MIN((MIN(INDEX($B$1:$B$682,ROW()+BH$1,1),BI5)-BH5)*$A$2,BJ5))))) ->  | BL5: =IF(NavHistory!$R5="Yes","",IF(BG5<>"No","",IF(INDEX($B$1:$B$682,ROW()+BH$1,1)="","",BK5/INDEX($B$1:$B$682,ROW()+BH$1,1)))) ->  | BM5: =IF(NavHistory!$R5="Yes","",IF(BG5<>"No","",IF(INDEX($B$1:$B$682,ROW()+BH$1,1)="","",BF5-BL5))) ->  | BN5: =IF(NavHistory!$R5="Yes","",IF(BG5<>"No","",IF(INDEX($B$1:$B$682,ROW()+BH$1,1)="","",IF(INDEX($B$1:$B$682,ROW()+BH$1,1)>=BI5,"Yes","No")))) ->  | BO5: =IF(NavHistory!$R5="Yes","",IF(BN5<>"No","",IF(INDEX($B$1:$B$682,ROW()+BO$1,1)="","",MAX(BH5,INDEX($B$1:$B$682,ROW()+BO$1-1,1))*1.06^(1/12)))) ->  | BP5: =IF(NavHistory!$R5="Yes","",IF(BN5<>"No","",IF(INDEX($B$1:$B$682,ROW()+BO$1,1)="","",1.06^(1/12)*BI5))) ->  | BQ5: =IF(NavHistory!$R5="Yes","",IF(BN5<>"No","",IF(INDEX($B$1:$B$682,ROW()+BO$1,1)="","",BJ5-BK5))) ->  | BR5: =IF(NavHistory!$R5="Yes","",IF(BN5<>"No","",IF(INDEX($B$1:$B$682,ROW()+BO$1,1)="","",MAX(0,MIN((MIN(INDEX($B$1:$B$682,ROW()+BO$1,1),BP5)-BO5)*$A$2,BQ5))))) ->  | BS5: =IF(NavHistory!$R5="Yes","",IF(BN5<>"No","",IF(INDEX($B$1:$B$682,ROW()+BO$1,1)="","",BR5/INDEX($B$1:$B$682,ROW()+BO$1,1)))) ->  | BT5: =IF(NavHistory!$R5="Yes","",IF(BN5<>"No","",IF(INDEX($B$1:$B$682,ROW()+BO$1,1)="","",BM5-BS5))) ->  | BU5: =IF(NavHistory!$R5="Yes","",IF(BN5<>"No","",IF(INDEX($B$1:$B$682,ROW()+BO$1,1)="","",IF(INDEX($B$1:$B$682,ROW()+BO$1,1)>=BP5,"Yes","No")))) ->  | BV5: =IF(NavHistory!$R5="Yes","",IF(BU5<>"No","",IF(INDEX($B$1:$B$682,ROW()+BV$1,1)="","",MAX(BO5,INDEX($B$1:$B$682,ROW()+BV$1-1,1))*1.06^(1/12)))) ->  | BW5: =IF(NavHistory!$R5="Yes","",IF(BU5<>"No","",IF(INDEX($B$1:$B$682,ROW()+BV$1,1)="","",1.06^(1/12)*BP5))) ->  | BX5: =IF(NavHistory!$R5="Yes","",IF(BU5<>"No","",IF(INDEX($B$1:$B$682,ROW()+BV$1,1)="","",BQ5-BR5))) ->  | BY5: =IF(NavHistory!$R5="Yes","",IF(BU5<>"No","",IF(INDEX($B$1:$B$682,ROW()+BV$1,1)="","",MAX(0,MIN((MIN(INDEX($B$1:$B$682,ROW()+BV$1,1),BW5)-BV5)*$A$2,BX5))))) ->  | BZ5: =IF(NavHistory!$R5="Yes","",IF(BU5<>"No","",IF(INDEX($B$1:$B$682,ROW()+BV$1,1)="","",BY5/INDEX($B$1:$B$682,ROW()+BV$1,1)))) ->  | CA5: =IF(NavHistory!$R5="Yes","",IF(BU5<>"No","",IF(INDEX($B$1:$B$682,ROW()+BV$1,1)="","",BT5-BZ5))) ->  | CB5: =IF(NavHistory!$R5="Yes","",IF(BU5<>"No","",IF(INDEX($B$1:$B$682,ROW()+BV$1,1)="","",IF(INDEX($B$1:$B$682,ROW()+BV$1,1)>=BW5,"Yes","No")))) ->  | CC5: =IF(NavHistory!$R5="Yes","",IF(CB5<>"No","",IF(INDEX($B$1:$B$682,ROW()+CC$1,1)="","",MAX(BV5,INDEX($B$1:$B$682,ROW()+CC$1-1,1))*1.06^(1/12)))) ->  | CD5: =IF(NavHistory!$R5="Yes","",IF(CB5<>"No","",IF(INDEX($B$1:$B$682,ROW()+CC$1,1)="","",1.06^(1/12)*BW5))) ->  | CE5: =IF(NavHistory!$R5="Yes","",IF(CB5<>"No","",IF(INDEX($B$1:$B$682,ROW()+CC$1,1)="","",BX5-BY5))) ->  | CF5: =IF(NavHistory!$R5="Yes","",IF(CB5<>"No","",IF(INDEX($B$1:$B$682,ROW()+CC$1,1)="","",MAX(0,MIN((MIN(INDEX($B$1:$B$682,ROW()+CC$1,1),CD5)-CC5)*$A$2,CE5))))) ->  | CG5: =IF(NavHistory!$R5="Yes","",IF(CB5<>"No","",IF(INDEX($B$1:$B$682,ROW()+CC$1,1)="","",CF5/INDEX($B$1:$B$682,ROW()+CC$1,1)))) ->  | CH5: =IF(NavHistory!$R5="Yes","",IF(CB5<>"No","",IF(INDEX($B$1:$B$682,ROW()+CC$1,1)="","",CA5-CG5))) ->  | CI5: =IF(NavHistory!$R5="Yes","",IF(CB5<>"No","",IF(INDEX($B$1:$B$682,ROW()+CC$1,1)="","",IF(INDEX($B$1:$B$682,ROW()+CC$1,1)>=CD5,"Yes","No")))) ->  | CJ5: =IF(NavHistory!$R5="Yes","",IF(CI5<>"No","",IF(INDEX($B$1:$B$682,ROW()+CJ$1,1)="","",MAX(CC5,INDEX($B$1:$B$682,ROW()+CJ$1-1,1))*1.06^(1/12)))) ->  | CK5: =IF(NavHistory!$R5="Yes","",IF(CI5<>"No","",IF(INDEX($B$1:$B$682,ROW()+CJ$1,1)="","",1.06^(1/12)*CD5))) ->  | CL5: =IF(NavHistory!$R5="Yes","",IF(CI5<>"No","",IF(INDEX($B$1:$B$682,ROW()+CJ$1,1)="","",CE5-CF5))) ->  | CM5: =IF(NavHistory!$R5="Yes","",IF(CI5<>"No","",IF(INDEX($B$1:$B$682,ROW()+CJ$1,1)="","",MAX(0,MIN((MIN(INDEX($B$1:$B$682,ROW()+CJ$1,1),CK5)-CJ5)*$A$2,CL5))))) ->  | CN5: =IF(NavHistory!$R5="Yes","",IF(CI5<>"No","",IF(INDEX($B$1:$B$682,ROW()+CJ$1,1)="","",CM5/INDEX($B$1:$B$682,ROW()+CJ$1,1)))) ->  | CO5: =IF(NavHistory!$R5="Yes","",IF(CI5<>"No","",IF(INDEX($B$1:$B$682,ROW()+CJ$1,1)="","",CH5-CN5))) ->  | CP5: =IF(NavHistory!$R5="Yes","",IF(CI5<>"No","",IF(INDEX($B$1:$B$682,ROW()+CJ$1,1)="","",IF(INDEX($B$1:$B$682,ROW()+CJ$1,1)>=CK5,"Yes","No")))) ->  | CQ5: =IF(NavHistory!$R5="Yes","",IF(CP5<>"No","",IF(INDEX($B$1:$B$682,ROW()+CQ$1,1)="","",MAX(CJ5,INDEX($B$1:$B$682,ROW()+CQ$1-1,1))*1.06^(1/12)))) ->  | CR5: =IF(NavHistory!$R5="Yes","",IF(CP5<>"No","",IF(INDEX($B$1:$B$682,ROW()+CQ$1,1)="","",1.06^(1/12)*CK5))) ->  | CS5: =IF(NavHistory!$R5="Yes","",IF(CP5<>"No","",IF(INDEX($B$1:$B$682,ROW()+CQ$1,1)="","",CL5-CM5))) ->  | CT5: =IF(NavHistory!$R5="Yes","",IF(CP5<>"No","",IF(INDEX($B$1:$B$682,ROW()+CQ$1,1)="","",MAX(0,MIN((MIN(INDEX($B$1:$B$682,ROW()+CQ$1,1),CR5)-CQ5)*$A$2,CS5))))) ->  | CU5: =IF(NavHistory!$R5="Yes","",IF(CP5<>"No","",IF(INDEX($B$1:$B$682,ROW()+CQ$1,1)="","",CT5/INDEX($B$1:$B$682,ROW()+CQ$1,1)))) ->  | CV5: =IF(NavHistory!$R5="Yes","",IF(CP5<>"No","",IF(INDEX($B$1:$B$682,ROW()+CQ$1,1)="","",CO5-CU5))) ->  | CW5: =IF(NavHistory!$R5="Yes","",IF(CP5<>"No","",IF(INDEX($B$1:$B$682,ROW()+CQ$1,1)="","",IF(INDEX($B$1:$B$682,ROW()+CQ$1,1)>=CR5,"Yes","No")))) ->  | CX5: =IF(NavHistory!$R5="Yes","",IF(CW5<>"No","",IF(INDEX($B$1:$B$682,ROW()+CX$1,1)="","",MAX(CQ5,INDEX($B$1:$B$682,ROW()+CX$1-1,1))*1.06^(1/12)))) ->  | CY5: =IF(NavHistory!$R5="Yes","",IF(CW5<>"No","",IF(INDEX($B$1:$B$682,ROW()+CX$1,1)="","",1.06^(1/12)*CR5))) ->  | CZ5: =IF(NavHistory!$R5="Yes","",IF(CW5<>"No","",IF(INDEX($B$1:$B$682,ROW()+CX$1,1)="","",CS5-CT5))) ->  | DA5: =IF(NavHistory!$R5="Yes","",IF(CW5<>"No","",IF(INDEX($B$1:$B$682,ROW()+CX$1,1)="","",MAX(0,MIN((MIN(INDEX($B$1:$B$682,ROW()+CX$1,1),CY5)-CX5)*$A$2,CZ5))))) ->  | DB5: =IF(NavHistory!$R5="Yes","",IF(CW5<>"No","",IF(INDEX($B$1:$B$682,ROW()+CX$1,1)="","",DA5/INDEX($B$1:$B$682,ROW()+CX$1,1)))) ->  | DC5: =IF(NavHistory!$R5="Yes","",IF(CW5<>"No","",IF(INDEX($B$1:$B$682,ROW()+CX$1,1)="","",CV5-DB5))) ->  | DD5: =IF(NavHistory!$R5="Yes","",IF(CW5<>"No","",IF(INDEX($B$1:$B$682,ROW()+CX$1,1)="","",IF(INDEX($B$1:$B$682,ROW()+CX$1,1)>=CY5,"Yes","No")))) ->  | DE5: =IF(NavHistory!$R5="Yes","",IF(DD5<>"No","",IF(INDEX($B$1:$B$682,ROW()+DE$1,1)="","",MAX(CX5,INDEX($B$1:$B$682,ROW()+DE$1-1,1))*1.06^(1/12)))) ->  | DF5: =IF(NavHistory!$R5="Yes","",IF(DD5<>"No","",IF(INDEX($B$1:$B$682,ROW()+DE$1,1)="","",1.06^(1/12)*CY5))) ->  | DG5: =IF(NavHistory!$R5="Yes","",IF(DD5<>"No","",IF(INDEX($B$1:$B$682,ROW()+DE$1,1)="","",CZ5-DA5))) ->  | DH5: =IF(NavHistory!$R5="Yes","",IF(DD5<>"No","",IF(INDEX($B$1:$B$682,ROW()+DE$1,1)="","",MAX(0,MIN((MIN(INDEX($B$1:$B$682,ROW()+DE$1,1),DF5)-DE5)*$A$2,DG5))))) ->  | DI5: =IF(NavHistory!$R5="Yes","",IF(DD5<>"No","",IF(INDEX($B$1:$B$682,ROW()+DE$1,1)="","",DH5/INDEX($B$1:$B$682,ROW()+DE$1,1)))) ->  | DJ5: =IF(NavHistory!$R5="Yes","",IF(DD5<>"No","",IF(INDEX($B$1:$B$682,ROW()+DE$1,1)="","",DC5-DI5))) ->  | DK5: =IF(NavHistory!$R5="Yes","",IF(DD5<>"No","",IF(INDEX($B$1:$B$682,ROW()+DE$1,1)="","",IF(INDEX($B$1:$B$682,ROW()+DE$1,1)>=DF5,"Yes","No")))) ->  | DL5: =IF(NavHistory!$R5="Yes","",IF(DK5<>"No","",IF(INDEX($B$1:$B$682,ROW()+DL$1,1)="","",MAX(DE5,INDEX($B$1:$B$682,ROW()+DL$1-1,1))*1.06^(1/12)))) ->  | DM5: =IF(NavHistory!$R5="Yes","",IF(DK5<>"No","",IF(INDEX($B$1:$B$682,ROW()+DL$1,1)="","",1.06^(1/12)*DF5))) ->  | DN5: =IF(NavHistory!$R5="Yes","",IF(DK5<>"No","",IF(INDEX($B$1:$B$682,ROW()+DL$1,1)="","",DG5-DH5))) ->  | DO5: =IF(NavHistory!$R5="Yes","",IF(DK5<>"No","",IF(INDEX($B$1:$B$682,ROW()+DL$1,1)="","",MAX(0,MIN((MIN(INDEX($B$1:$B$682,ROW()+DL$1,1),DM5)-DL5)*$A$2,DN5))))) ->  | DP5: =IF(NavHistory!$R5="Yes","",IF(DK5<>"No","",IF(INDEX($B$1:$B$682,ROW()+DL$1,1)="","",DO5/INDEX($B$1:$B$682,ROW()+DL$1,1)))) ->  | DQ5: =IF(NavHistory!$R5="Yes","",IF(DK5<>"No","",IF(INDEX($B$1:$B$682,ROW()+DL$1,1)="","",DJ5-DP5))) ->  | DR5: =IF(NavHistory!$R5="Yes","",IF(DK5<>"No","",IF(INDEX($B$1:$B$682,ROW()+DL$1,1)="","",IF(INDEX($B$1:$B$682,ROW()+DL$1,1)>=DM5,"Yes","No")))) ->  | DS5: =IF(NavHistory!$R5="Yes","",IF(DR5<>"No","",IF(INDEX($B$1:$B$682,ROW()+DS$1,1)="","",MAX(DL5,INDEX($B$1:$B$682,ROW()+DS$1-1,1))*1.06^(1/12)))) ->  | DT5: =IF(NavHistory!$R5="Yes","",IF(DR5<>"No","",IF(INDEX($B$1:$B$682,ROW()+DS$1,1)="","",1.06^(1/12)*DM5))) ->  | DU5: =IF(NavHistory!$R5="Yes","",IF(DR5<>"No","",IF(INDEX($B$1:$B$682,ROW()+DS$1,1)="","",DN5-DO5))) ->  | DV5: =IF(NavHistory!$R5="Yes","",IF(DR5<>"No","",IF(INDEX($B$1:$B$682,ROW()+DS$1,1)="","",MAX(0,MIN((MIN(INDEX($B$1:$B$682,ROW()+DS$1,1),DT5)-DS5)*$A$2,DU5))))) ->  | DW5: =IF(NavHistory!$R5="Yes","",IF(DR5<>"No","",IF(INDEX($B$1:$B$682,ROW()+DS$1,1)="","",DV5/INDEX($B$1:$B$682,ROW()+DS$1,1)))) ->  | DX5: =IF(NavHistory!$R5="Yes","",IF(DR5<>"No","",IF(INDEX($B$1:$B$682,ROW()+DS$1,1)="","",DQ5-DW5))) ->  | DY5: =IF(NavHistory!$R5="Yes","",IF(DR5<>"No","",IF(INDEX($B$1:$B$682,ROW()+DS$1,1)="","",IF(INDEX($B$1:$B$682,ROW()+DS$1,1)>=DT5,"Yes","No")))) ->  | DZ5: =IF(NavHistory!$R5="Yes","",IF(DY5<>"No","",IF(INDEX($B$1:$B$682,ROW()+DZ$1,1)="","",MAX(DS5,INDEX($B$1:$B$682,ROW()+DZ$1-1,1))*1.06^(1/12)))) ->  | EA5: =IF(NavHistory!$R5="Yes","",IF(DY5<>"No","",IF(INDEX($B$1:$B$682,ROW()+DZ$1,1)="","",1.06^(1/12)*DT5))) ->  | EB5: =IF(NavHistory!$R5="Yes","",IF(DY5<>"No","",IF(INDEX($B$1:$B$682,ROW()+DZ$1,1)="","",DU5-DV5))) ->  | EC5: =IF(NavHistory!$R5="Yes","",IF(DY5<>"No","",IF(INDEX($B$1:$B$682,ROW()+DZ$1,1)="","",MAX(0,MIN((MIN(INDEX($B$1:$B$682,ROW()+DZ$1,1),EA5)-DZ5)*$A$2,EB5))))) ->  | ED5: =IF(NavHistory!$R5="Yes","",IF(DY5<>"No","",IF(INDEX($B$1:$B$682,ROW()+DZ$1,1)="","",EC5/INDEX($B$1:$B$682,ROW()+DZ$1,1)))) ->  | EE5: =IF(NavHistory!$R5="Yes","",IF(DY5<>"No","",IF(INDEX($B$1:$B$682,ROW()+DZ$1,1)="","",DX5-ED5))) ->  | EF5: =IF(NavHistory!$R5="Yes","",IF(DY5<>"No","",IF(INDEX($B$1:$B$682,ROW()+DZ$1,1)="","",IF(INDEX($B$1:$B$682,ROW()+DZ$1,1)>=EA5,"Yes","No")))) ->  | EG5: =IF(NavHistory!$R5="Yes","",IF(EF5<>"No","",IF(INDEX($B$1:$B$682,ROW()+EG$1,1)="","",MAX(DZ5,INDEX($B$1:$B$682,ROW()+EG$1-1,1))*1.06^(1/12)))) ->  | EH5: =IF(NavHistory!$R5="Yes","",IF(EF5<>"No","",IF(INDEX($B$1:$B$682,ROW()+EG$1,1)="","",1.06^(1/12)*EA5))) ->  | EI5: =IF(NavHistory!$R5="Yes","",IF(EF5<>"No","",IF(INDEX($B$1:$B$682,ROW()+EG$1,1)="","",EB5-EC5))) ->  | EJ5: =IF(NavHistory!$R5="Yes","",IF(EF5<>"No","",IF(INDEX($B$1:$B$682,ROW()+EG$1,1)="","",MAX(0,MIN((MIN(INDEX($B$1:$B$682,ROW()+EG$1,1),EH5)-EG5)*$A$2,EI5))))) ->  | EK5: =IF(NavHistory!$R5="Yes","",IF(EF5<>"No","",IF(INDEX($B$1:$B$682,ROW()+EG$1,1)="","",EJ5/INDEX($B$1:$B$682,ROW()+EG$1,1)))) ->  | EL5: =IF(NavHistory!$R5="Yes","",IF(EF5<>"No","",IF(INDEX($B$1:$B$682,ROW()+EG$1,1)="","",EE5-EK5))) ->  | EM5: =IF(NavHistory!$R5="Yes","",IF(EF5<>"No","",IF(INDEX($B$1:$B$682,ROW()+EG$1,1)="","",IF(INDEX($B$1:$B$682,ROW()+EG$1,1)>=EH5,"Yes","No")))) ->  | EN5: =IF(NavHistory!$R5="Yes","",IF(EM5<>"No","",IF(INDEX($B$1:$B$682,ROW()+EN$1,1)="","",MAX(EG5,INDEX($B$1:$B$682,ROW()+EN$1-1,1))*1.06^(1/12)))) ->  | EO5: =IF(NavHistory!$R5="Yes","",IF(EM5<>"No","",IF(INDEX($B$1:$B$682,ROW()+EN$1,1)="","",1.06^(1/12)*EH5))) ->  | EP5: =IF(NavHistory!$R5="Yes","",IF(EM5<>"No","",IF(INDEX($B$1:$B$682,ROW()+EN$1,1)="","",EI5-EJ5))) ->  | EQ5: =IF(NavHistory!$R5="Yes","",IF(EM5<>"No","",IF(INDEX($B$1:$B$682,ROW()+EN$1,1)="","",MAX(0,MIN((MIN(INDEX($B$1:$B$682,ROW()+EN$1,1),EO5)-EN5)*$A$2,EP5))))) ->  | ER5: =IF(NavHistory!$R5="Yes","",IF(EM5<>"No","",IF(INDEX($B$1:$B$682,ROW()+EN$1,1)="","",EQ5/INDEX($B$1:$B$682,ROW()+EN$1,1)))) ->  | ES5: =IF(NavHistory!$R5="Yes","",IF(EM5<>"No","",IF(INDEX($B$1:$B$682,ROW()+EN$1,1)="","",EL5-ER5))) ->  | ET5: =IF(NavHistory!$R5="Yes","",IF(EM5<>"No","",IF(INDEX($B$1:$B$682,ROW()+EN$1,1)="","",IF(INDEX($B$1:$B$682,ROW()+EN$1,1)>=EO5,"Yes","No")))) ->  | EU5: =IF(NavHistory!$R5="Yes","",IF(ET5<>"No","",IF(INDEX($B$1:$B$682,ROW()+EU$1,1)="","",MAX(EN5,INDEX($B$1:$B$682,ROW()+EU$1-1,1))*1.06^(1/12)))) ->  | EV5: =IF(NavHistory!$R5="Yes","",IF(ET5<>"No","",IF(INDEX($B$1:$B$682,ROW()+EU$1,1)="","",1.06^(1/12)*EO5))) ->  | EW5: =IF(NavHistory!$R5="Yes","",IF(ET5<>"No","",IF(INDEX($B$1:$B$682,ROW()+EU$1,1)="","",EP5-EQ5))) ->  | EX5: =IF(NavHistory!$R5="Yes","",IF(ET5<>"No","",IF(INDEX($B$1:$B$682,ROW()+EU$1,1)="","",MAX(0,MIN((MIN(INDEX($B$1:$B$682,ROW()+EU$1,1),EV5)-EU5)*$A$2,EW5))))) ->  | EY5: =IF(NavHistory!$R5="Yes","",IF(ET5<>"No","",IF(INDEX($B$1:$B$682,ROW()+EU$1,1)="","",EX5/INDEX($B$1:$B$682,ROW()+EU$1,1)))) ->  | EZ5: =IF(NavHistory!$R5="Yes","",IF(ET5<>"No","",IF(INDEX($B$1:$B$682,ROW()+EU$1,1)="","",ES5-EY5))) ->  | FA5: =IF(NavHistory!$R5="Yes","",IF(ET5<>"No","",IF(INDEX($B$1:$B$682,ROW()+EU$1,1)="","",IF(INDEX($B$1:$B$682,ROW()+EU$1,1)>=EV5,"Yes","No")))) ->  | FB5: =IF(NavHistory!$R5="Yes","",IF(FA5<>"No","",IF(INDEX($B$1:$B$682,ROW()+FB$1,1)="","",MAX(EU5,INDEX($B$1:$B$682,ROW()+FB$1-1,1))*1.06^(1/12)))) ->  | FC5: =IF(NavHistory!$R5="Yes","",IF(FA5<>"No","",IF(INDEX($B$1:$B$682,ROW()+FB$1,1)="","",1.06^(1/12)*EV5))) ->  | FD5: =IF(NavHistory!$R5="Yes","",IF(FA5<>"No","",IF(INDEX($B$1:$B$682,ROW()+FB$1,1)="","",EW5-EX5))) ->  | FE5: =IF(NavHistory!$R5="Yes","",IF(FA5<>"No","",IF(INDEX($B$1:$B$682,ROW()+FB$1,1)="","",MAX(0,MIN((MIN(INDEX($B$1:$B$682,ROW()+FB$1,1),FC5)-FB5)*$A$2,FD5))))) ->  | FF5: =IF(NavHistory!$R5="Yes","",IF(FA5<>"No","",IF(INDEX($B$1:$B$682,ROW()+FB$1,1)="","",FE5/INDEX($B$1:$B$682,ROW()+FB$1,1)))) ->  | FG5: =IF(NavHistory!$R5="Yes","",IF(FA5<>"No","",IF(INDEX($B$1:$B$682,ROW()+FB$1,1)="","",EZ5-FF5))) ->  | FH5: =IF(NavHistory!$R5="Yes","",IF(FA5<>"No","",IF(INDEX($B$1:$B$682,ROW()+FB$1,1)="","",IF(INDEX($B$1:$B$682,ROW()+FB$1,1)>=FC5,"Yes","No")))) ->  | FI5: =IF(NavHistory!$R5="Yes","",IF(FH5<>"No","",IF(INDEX($B$1:$B$682,ROW()+FI$1,1)="","",MAX(FB5,INDEX($B$1:$B$682,ROW()+FI$1-1,1))*1.06^(1/12)))) ->  | FJ5: =IF(NavHistory!$R5="Yes","",IF(FH5<>"No","",IF(INDEX($B$1:$B$682,ROW()+FI$1,1)="","",1.06^(1/12)*FC5))) ->  | FK5: =IF(NavHistory!$R5="Yes","",IF(FH5<>"No","",IF(INDEX($B$1:$B$682,ROW()+FI$1,1)="","",FD5-FE5))) ->  | FL5: =IF(NavHistory!$R5="Yes","",IF(FH5<>"No","",IF(INDEX($B$1:$B$682,ROW()+FI$1,1)="","",MAX(0,MIN((MIN(INDEX($B$1:$B$682,ROW()+FI$1,1),FJ5)-FI5)*$A$2,FK5))))) ->  | FM5: =IF(NavHistory!$R5="Yes","",IF(FH5<>"No","",IF(INDEX($B$1:$B$682,ROW()+FI$1,1)="","",FL5/INDEX($B$1:$B$682,ROW()+FI$1,1)))) ->  | FN5: =IF(NavHistory!$R5="Yes","",IF(FH5<>"No","",IF(INDEX($B$1:$B$682,ROW()+FI$1,1)="","",FG5-FM5))) ->  | FO5: =IF(NavHistory!$R5="Yes","",IF(FH5<>"No","",IF(INDEX($B$1:$B$682,ROW()+FI$1,1)="","",IF(INDEX($B$1:$B$682,ROW()+FI$1,1)>=FJ5,"Yes","No")))) ->  | FP5: =IF(NavHistory!$R5="Yes","",IF(FO5<>"No","",IF(INDEX($B$1:$B$682,ROW()+FP$1,1)="","",MAX(FI5,INDEX($B$1:$B$682,ROW()+FP$1-1,1))*1.06^(1/12)))) ->  | FQ5: =IF(NavHistory!$R5="Yes","",IF(FO5<>"No","",IF(INDEX($B$1:$B$682,ROW()+FP$1,1)="","",1.06^(1/12)*FJ5))) ->  | FR5: =IF(NavHistory!$R5="Yes","",IF(FO5<>"No","",IF(INDEX($B$1:$B$682,ROW()+FP$1,1)="","",FK5-FL5))) ->  | FS5: =IF(NavHistory!$R5="Yes","",IF(FO5<>"No","",IF(INDEX($B$1:$B$682,ROW()+FP$1,1)="","",MAX(0,MIN((MIN(INDEX($B$1:$B$682,ROW()+FP$1,1),FQ5)-FP5)*$A$2,FR5))))) ->  | FT5: =IF(NavHistory!$R5="Yes","",IF(FO5<>"No","",IF(INDEX($B$1:$B$682,ROW()+FP$1,1)="","",FS5/INDEX($B$1:$B$682,ROW()+FP$1,1)))) ->  | FU5: =IF(NavHistory!$R5="Yes","",IF(FO5<>"No","",IF(INDEX($B$1:$B$682,ROW()+FP$1,1)="","",FN5-FT5))) ->  | FV5: =IF(NavHistory!$R5="Yes","",IF(FO5<>"No","",IF(INDEX($B$1:$B$682,ROW()+FP$1,1)="","",IF(INDEX($B$1:$B$682,ROW()+FP$1,1)>=FQ5,"Yes","No")))) ->  | FW5: =IF(NavHistory!$R5="Yes","",IF(FV5<>"No","",IF(INDEX($B$1:$B$682,ROW()+FW$1,1)="","",MAX(FP5,INDEX($B$1:$B$682,ROW()+FW$1-1,1))*1.06^(1/12)))) ->  | FX5: =IF(NavHistory!$R5="Yes","",IF(FV5<>"No","",IF(INDEX($B$1:$B$682,ROW()+FW$1,1)="","",1.06^(1/12)*FQ5))) ->  | FY5: =IF(NavHistory!$R5="Yes","",IF(FV5<>"No","",IF(INDEX($B$1:$B$682,ROW()+FW$1,1)="","",FR5-FS5))) ->  | FZ5: =IF(NavHistory!$R5="Yes","",IF(FV5<>"No","",IF(INDEX($B$1:$B$682,ROW()+FW$1,1)="","",MAX(0,MIN((MIN(INDEX($B$1:$B$682,ROW()+FW$1,1),FX5)-FW5)*$A$2,FY5))))) ->  | GA5: =IF(NavHistory!$R5="Yes","",IF(FV5<>"No","",IF(INDEX($B$1:$B$682,ROW()+FW$1,1)="","",FZ5/INDEX($B$1:$B$682,ROW()+FW$1,1)))) ->  | GB5: =IF(NavHistory!$R5="Yes","",IF(FV5<>"No","",IF(INDEX($B$1:$B$682,ROW()+FW$1,1)="","",FU5-GA5))) ->  | GC5: =IF(NavHistory!$R5="Yes","",IF(FV5<>"No","",IF(INDEX($B$1:$B$682,ROW()+FW$1,1)="","",IF(INDEX($B$1:$B$682,ROW()+FW$1,1)>=FX5,"Yes","No")))) ->  | GD5: =IF(NavHistory!$R5="Yes","",IF(GC5<>"No","",IF(INDEX($B$1:$B$682,ROW()+GD$1,1)="","",MAX(FW5,INDEX($B$1:$B$682,ROW()+GD$1-1,1))*1.06^(1/12)))) ->  | GE5: =IF(NavHistory!$R5="Yes","",IF(GC5<>"No","",IF(INDEX($B$1:$B$682,ROW()+GD$1,1)="","",1.06^(1/12)*FX5))) ->  | GF5: =IF(NavHistory!$R5="Yes","",IF(GC5<>"No","",IF(INDEX($B$1:$B$682,ROW()+GD$1,1)="","",FY5-FZ5))) ->  | GG5: =IF(NavHistory!$R5="Yes","",IF(GC5<>"No","",IF(INDEX($B$1:$B$682,ROW()+GD$1,1)="","",MAX(0,MIN((MIN(INDEX($B$1:$B$682,ROW()+GD$1,1),GE5)-GD5)*$A$2,GF5))))) ->  | GH5: =IF(NavHistory!$R5="Yes","",IF(GC5<>"No","",IF(INDEX($B$1:$B$682,ROW()+GD$1,1)="","",GG5/INDEX($B$1:$B$682,ROW()+GD$1,1)))) ->  | GI5: =IF(NavHistory!$R5="Yes","",IF(GC5<>"No","",IF(INDEX($B$1:$B$682,ROW()+GD$1,1)="","",GB5-GH5))) ->  | GJ5: =IF(NavHistory!$R5="Yes","",IF(GC5<>"No","",IF(INDEX($B$1:$B$682,ROW()+GD$1,1)="","",IF(INDEX($B$1:$B$682,ROW()+GD$1,1)>=GE5,"Yes","No")))) ->  | GK5: =IF(NavHistory!$R5="Yes","",IF(GJ5<>"No","",IF(INDEX($B$1:$B$682,ROW()+GK$1,1)="","",MAX(GD5,INDEX($B$1:$B$682,ROW()+GK$1-1,1))*1.06^(1/12)))) ->  | GL5: =IF(NavHistory!$R5="Yes","",IF(GJ5<>"No","",IF(INDEX($B$1:$B$682,ROW()+GK$1,1)="","",1.06^(1/12)*GE5))) ->  | GM5: =IF(NavHistory!$R5="Yes","",IF(GJ5<>"No","",IF(INDEX($B$1:$B$682,ROW()+GK$1,1)="","",GF5-GG5))) ->  | GN5: =IF(NavHistory!$R5="Yes","",IF(GJ5<>"No","",IF(INDEX($B$1:$B$682,ROW()+GK$1,1)="","",MAX(0,MIN((MIN(INDEX($B$1:$B$682,ROW()+GK$1,1),GL5)-GK5)*$A$2,GM5))))) ->  | GO5: =IF(NavHistory!$R5="Yes","",IF(GJ5<>"No","",IF(INDEX($B$1:$B$682,ROW()+GK$1,1)="","",GN5/INDEX($B$1:$B$682,ROW()+GK$1,1)))) ->  | GP5: =IF(NavHistory!$R5="Yes","",IF(GJ5<>"No","",IF(INDEX($B$1:$B$682,ROW()+GK$1,1)="","",GI5-GO5))) ->  | GQ5: =IF(NavHistory!$R5="Yes","",IF(GJ5<>"No","",IF(INDEX($B$1:$B$682,ROW()+GK$1,1)="","",IF(INDEX($B$1:$B$682,ROW()+GK$1,1)>=GL5,"Yes","No")))) ->  | GR5: =IF(NavHistory!$R5="Yes","",IF(GQ5<>"No","",IF(INDEX($B$1:$B$682,ROW()+GR$1,1)="","",MAX(GK5,INDEX($B$1:$B$682,ROW()+GR$1-1,1))*1.06^(1/12)))) ->  | GS5: =IF(NavHistory!$R5="Yes","",IF(GQ5<>"No","",IF(INDEX($B$1:$B$682,ROW()+GR$1,1)="","",1.06^(1/12)*GL5))) ->  | GT5: =IF(NavHistory!$R5="Yes","",IF(GQ5<>"No","",IF(INDEX($B$1:$B$682,ROW()+GR$1,1)="","",GM5-GN5))) ->  | GU5: =IF(NavHistory!$R5="Yes","",IF(GQ5<>"No","",IF(INDEX($B$1:$B$682,ROW()+GR$1,1)="","",MAX(0,MIN((MIN(INDEX($B$1:$B$682,ROW()+GR$1,1),GS5)-GR5)*$A$2,GT5))))) ->  | GV5: =IF(NavHistory!$R5="Yes","",IF(GQ5<>"No","",IF(INDEX($B$1:$B$682,ROW()+GR$1,1)="","",GU5/INDEX($B$1:$B$682,ROW()+GR$1,1)))) ->  | GW5: =IF(NavHistory!$R5="Yes","",IF(GQ5<>"No","",IF(INDEX($B$1:$B$682,ROW()+GR$1,1)="","",GP5-GV5))) ->  | GX5: =IF(NavHistory!$R5="Yes","",IF(GQ5<>"No","",IF(INDEX($B$1:$B$682,ROW()+GR$1,1)="","",IF(INDEX($B$1:$B$682,ROW()+GR$1,1)>=GS5,"Yes","No")))) ->  | GY5: =IF(NavHistory!$R5="Yes","",IF(GX5<>"No","",IF(INDEX($B$1:$B$682,ROW()+GY$1,1)="","",MAX(GR5,INDEX($B$1:$B$682,ROW()+GY$1-1,1))*1.06^(1/12)))) ->  | GZ5: =IF(NavHistory!$R5="Yes","",IF(GX5<>"No","",IF(INDEX($B$1:$B$682,ROW()+GY$1,1)="","",1.06^(1/12)*GS5))) ->  | HA5: =IF(NavHistory!$R5="Yes","",IF(GX5<>"No","",IF(INDEX($B$1:$B$682,ROW()+GY$1,1)="","",GT5-GU5))) ->  | HB5: =IF(NavHistory!$R5="Yes","",IF(GX5<>"No","",IF(INDEX($B$1:$B$682,ROW()+GY$1,1)="","",MAX(0,MIN((MIN(INDEX($B$1:$B$682,ROW()+GY$1,1),GZ5)-GY5)*$A$2,HA5))))) ->  | HC5: =IF(NavHistory!$R5="Yes","",IF(GX5<>"No","",IF(INDEX($B$1:$B$682,ROW()+GY$1,1)="","",HB5/INDEX($B$1:$B$682,ROW()+GY$1,1)))) ->  | HD5: =IF(NavHistory!$R5="Yes","",IF(GX5<>"No","",IF(INDEX($B$1:$B$682,ROW()+GY$1,1)="","",GW5-HC5))) ->  | HE5: =IF(NavHistory!$R5="Yes","",IF(GX5<>"No","",IF(INDEX($B$1:$B$682,ROW()+GY$1,1)="","",IF(INDEX($B$1:$B$682,ROW()+GY$1,1)>=GZ5,"Yes","No")))) ->  | HF5: =IF(NavHistory!$R5="Yes","",IF(HE5<>"No","",IF(INDEX($B$1:$B$682,ROW()+HF$1,1)="","",MAX(GY5,INDEX($B$1:$B$682,ROW()+HF$1-1,1))*1.06^(1/12)))) ->  | HG5: =IF(NavHistory!$R5="Yes","",IF(HE5<>"No","",IF(INDEX($B$1:$B$682,ROW()+HF$1,1)="","",1.06^(1/12)*GZ5))) ->  | HH5: =IF(NavHistory!$R5="Yes","",IF(HE5<>"No","",IF(INDEX($B$1:$B$682,ROW()+HF$1,1)="","",HA5-HB5))) ->  | HI5: =IF(NavHistory!$R5="Yes","",IF(HE5<>"No","",IF(INDEX($B$1:$B$682,ROW()+HF$1,1)="","",MAX(0,MIN((MIN(INDEX($B$1:$B$682,ROW()+HF$1,1),HG5)-HF5)*$A$2,HH5))))) ->  | HJ5: =IF(NavHistory!$R5="Yes","",IF(HE5<>"No","",IF(INDEX($B$1:$B$682,ROW()+HF$1,1)="","",HI5/INDEX($B$1:$B$682,ROW()+HF$1,1)))) ->  | HK5: =IF(NavHistory!$R5="Yes","",IF(HE5<>"No","",IF(INDEX($B$1:$B$682,ROW()+HF$1,1)="","",HD5-HJ5))) ->  | HL5: =IF(NavHistory!$R5="Yes","",IF(HE5<>"No","",IF(INDEX($B$1:$B$682,ROW()+HF$1,1)="","",IF(INDEX($B$1:$B$682,ROW()+HF$1,1)>=HG5,"Yes","No")))) ->  | HM5: =IF(NavHistory!$R5="Yes","",IF(HL5<>"No","",IF(INDEX($B$1:$B$682,ROW()+HM$1,1)="","",MAX(HF5,INDEX($B$1:$B$682,ROW()+HM$1-1,1))*1.06^(1/12)))) ->  | HN5: =IF(NavHistory!$R5="Yes","",IF(HL5<>"No","",IF(INDEX($B$1:$B$682,ROW()+HM$1,1)="","",1.06^(1/12)*HG5))) ->  | HO5: =IF(NavHistory!$R5="Yes","",IF(HL5<>"No","",IF(INDEX($B$1:$B$682,ROW()+HM$1,1)="","",HH5-HI5))) ->  | HP5: =IF(NavHistory!$R5="Yes","",IF(HL5<>"No","",IF(INDEX($B$1:$B$682,ROW()+HM$1,1)="","",MAX(0,MIN((MIN(INDEX($B$1:$B$682,ROW()+HM$1,1),HN5)-HM5)*$A$2,HO5))))) ->  | HQ5: =IF(NavHistory!$R5="Yes","",IF(HL5<>"No","",IF(INDEX($B$1:$B$682,ROW()+HM$1,1)="","",HP5/INDEX($B$1:$B$682,ROW()+HM$1,1)))) ->  | HR5: =IF(NavHistory!$R5="Yes","",IF(HL5<>"No","",IF(INDEX($B$1:$B$682,ROW()+HM$1,1)="","",HK5-HQ5))) ->  | HS5: =IF(NavHistory!$R5="Yes","",IF(HL5<>"No","",IF(INDEX($B$1:$B$682,ROW()+HM$1,1)="","",IF(INDEX($B$1:$B$682,ROW()+HM$1,1)>=HN5,"Yes","No")))) ->  | HT5: =IF(NavHistory!$R5="Yes","",IF(HS5<>"No","",IF(INDEX($B$1:$B$682,ROW()+HT$1,1)="","",MAX(HM5,INDEX($B$1:$B$682,ROW()+HT$1-1,1))*1.06^(1/12)))) ->  | HU5: =IF(NavHistory!$R5="Yes","",IF(HS5<>"No","",IF(INDEX($B$1:$B$682,ROW()+HT$1,1)="","",1.06^(1/12)*HN5))) ->  | HV5: =IF(NavHistory!$R5="Yes","",IF(HS5<>"No","",IF(INDEX($B$1:$B$682,ROW()+HT$1,1)="","",HO5-HP5))) ->  | HW5: =IF(NavHistory!$R5="Yes","",IF(HS5<>"No","",IF(INDEX($B$1:$B$682,ROW()+HT$1,1)="","",MAX(0,MIN((MIN(INDEX($B$1:$B$682,ROW()+HT$1,1),HU5)-HT5)*$A$2,HV5))))) ->  | HX5: =IF(NavHistory!$R5="Yes","",IF(HS5<>"No","",IF(INDEX($B$1:$B$682,ROW()+HT$1,1)="","",HW5/INDEX($B$1:$B$682,ROW()+HT$1,1)))) ->  | HY5: =IF(NavHistory!$R5="Yes","",IF(HS5<>"No","",IF(INDEX($B$1:$B$682,ROW()+HT$1,1)="","",HR5-HX5))) ->  | HZ5: =IF(NavHistory!$R5="Yes","",IF(HS5<>"No","",IF(INDEX($B$1:$B$682,ROW()+HT$1,1)="","",IF(INDEX($B$1:$B$682,ROW()+HT$1,1)>=HU5,"Yes","No")))) ->  | IA5: =IF(NavHistory!$R5="Yes","",IF(HZ5<>"No","",IF(INDEX($B$1:$B$682,ROW()+IA$1,1)="","",MAX(HT5,INDEX($B$1:$B$682,ROW()+IA$1-1,1))*1.06^(1/12)))) ->  | IB5: =IF(NavHistory!$R5="Yes","",IF(HZ5<>"No","",IF(INDEX($B$1:$B$682,ROW()+IA$1,1)="","",1.06^(1/12)*HU5))) ->  | IC5: =IF(NavHistory!$R5="Yes","",IF(HZ5<>"No","",IF(INDEX($B$1:$B$682,ROW()+IA$1,1)="","",HV5-HW5))) ->  | ID5: =IF(NavHistory!$R5="Yes","",IF(HZ5<>"No","",IF(INDEX($B$1:$B$682,ROW()+IA$1,1)="","",MAX(0,MIN((MIN(INDEX($B$1:$B$682,ROW()+IA$1,1),IB5)-IA5)*$A$2,IC5))))) ->  | IE5: =IF(NavHistory!$R5="Yes","",IF(HZ5<>"No","",IF(INDEX($B$1:$B$682,ROW()+IA$1,1)="","",ID5/INDEX($B$1:$B$682,ROW()+IA$1,1)))) ->  | IF5: =IF(NavHistory!$R5="Yes","",IF(HZ5<>"No","",IF(INDEX($B$1:$B$682,ROW()+IA$1,1)="","",HY5-IE5))) ->  | IG5: =IF(NavHistory!$R5="Yes","",IF(HZ5<>"No","",IF(INDEX($B$1:$B$682,ROW()+IA$1,1)="","",IF(INDEX($B$1:$B$682,ROW()+IA$1,1)>=IB5,"Yes","No")))) ->  | IH5: =IF(NavHistory!$R5="Yes","",IF(IG5<>"No","",IF(INDEX($B$1:$B$682,ROW()+IH$1,1)="","",MAX(IA5,INDEX($B$1:$B$682,ROW()+IH$1-1,1))*1.06^(1/12)))) ->  | II5: =IF(NavHistory!$R5="Yes","",IF(IG5<>"No","",IF(INDEX($B$1:$B$682,ROW()+IH$1,1)="","",1.06^(1/12)*IB5))) ->  | IJ5: =IF(NavHistory!$R5="Yes","",IF(IG5<>"No","",IF(INDEX($B$1:$B$682,ROW()+IH$1,1)="","",IC5-ID5))) ->  | IK5: =IF(NavHistory!$R5="Yes","",IF(IG5<>"No","",IF(INDEX($B$1:$B$682,ROW()+IH$1,1)="","",MAX(0,MIN((MIN(INDEX($B$1:$B$682,ROW()+IH$1,1),II5)-IH5)*$A$2,IJ5))))) ->  | IL5: =IF(NavHistory!$R5="Yes","",IF(IG5<>"No","",IF(INDEX($B$1:$B$682,ROW()+IH$1,1)="","",IK5/INDEX($B$1:$B$682,ROW()+IH$1,1)))) ->  | IM5: =IF(NavHistory!$R5="Yes","",IF(IG5<>"No","",IF(INDEX($B$1:$B$682,ROW()+IH$1,1)="","",IF5-IL5))) ->  | IN5: =IF(NavHistory!$R5="Yes","",IF(IG5<>"No","",IF(INDEX($B$1:$B$682,ROW()+IH$1,1)="","",IF(INDEX($B$1:$B$682,ROW()+IH$1,1)>=II5,"Yes","No")))) ->  | IO5: =IF(NavHistory!$R5="Yes","",IF(IN5<>"No","",IF(INDEX($B$1:$B$682,ROW()+IO$1,1)="","",MAX(IH5,INDEX($B$1:$B$682,ROW()+IO$1-1,1))*1.06^(1/12)))) ->  | IP5: =IF(NavHistory!$R5="Yes","",IF(IN5<>"No","",IF(INDEX($B$1:$B$682,ROW()+IO$1,1)="","",1.06^(1/12)*II5))) ->  | IQ5: =IF(NavHistory!$R5="Yes","",IF(IN5<>"No","",IF(INDEX($B$1:$B$682,ROW()+IO$1,1)="","",IJ5-IK5))) ->  | IR5: =IF(NavHistory!$R5="Yes","",IF(IN5<>"No","",IF(INDEX($B$1:$B$682,ROW()+IO$1,1)="","",MAX(0,MIN((MIN(INDEX($B$1:$B$682,ROW()+IO$1,1),IP5)-IO5)*$A$2,IQ5))))) ->  | IS5: =IF(NavHistory!$R5="Yes","",IF(IN5<>"No","",IF(INDEX($B$1:$B$682,ROW()+IO$1,1)="","",IR5/INDEX($B$1:$B$682,ROW()+IO$1,1)))) ->  | IT5: =IF(NavHistory!$R5="Yes","",IF(IN5<>"No","",IF(INDEX($B$1:$B$682,ROW()+IO$1,1)="","",IM5-IS5))) ->  | IU5: =IF(NavHistory!$R5="Yes","",IF(IN5<>"No","",IF(INDEX($B$1:$B$682,ROW()+IO$1,1)="","",IF(INDEX($B$1:$B$682,ROW()+IO$1,1)>=IP5,"Yes","No")))) -> 
A6: =IF(NavHistory!A6="","",NavHistory!A6) -> 2017-10-31 | B6: =IF(NavHistory!B6="","",NavHistory!B6) -> 10.5577 | C6: =IF(NavHistory!G6="","",NavHistory!G6) -> 10.5724 | D6: =IF(NavHistory!$R6="Yes","",IF(INDEX($B$1:$B$682,ROW()+D$1,1)="","",1.06^($D$1/12)*B6)) -> 10.6091 | E6: =IF(NavHistory!$R6="Yes","",IF(INDEX($B$1:$B$682,ROW()+D$1,1)="","",1.06^(1/12)*C6)) -> 10.6239 | F6: =IF(NavHistory!$R6="Yes","",IF(INDEX($B$1:$B$682,ROW()+D$1,1)="","",(C6-B6)*$A$2)) -> 0.0029 | G6: =IF(NavHistory!$R6="Yes","",IF(INDEX($B$1:$B$682,ROW()+D$1,1)="","",MAX(0,MIN((MIN($B7,E6)-D6)*$A$2,F6)))) -> 0.0029 | H6: =IF(NavHistory!$R6="Yes","",IF(INDEX($B$1:$B$682,ROW()+D$1,1)="","",G6/B7)) -> 0.0003 | I6: =IF(NavHistory!$R6="Yes","",IF(INDEX($B$1:$B$682,ROW()+D$1,1)="","",1-H6)) -> 0.9997 | J6: =IF(NavHistory!$R6="Yes","",IF(INDEX($B$1:$B$682,ROW()+D$1,1)="","",IF(B7>=E6,"Yes","No"))) -> Yes | K6: =IF(NavHistory!$R6="Yes","",IF(J6<>"No","",IF(INDEX($B$1:$B$682,ROW()+K$1,1)="","",MAX(D6,INDEX($B$1:$B$682,ROW()+K$1-1,1))*1.06^(1/12)))) ->  | L6: =IF(NavHistory!$R6="Yes","",IF(J6<>"No","",IF(INDEX($B$1:$B$682,ROW()+K$1,1)="","",1.06^(1/12)*E6))) ->  | M6: =IF(NavHistory!$R6="Yes","",IF(J6<>"No","",IF(INDEX($B$1:$B$682,ROW()+K$1,1)="","",F6-G6))) ->  | N6: =IF(NavHistory!$R6="Yes","",IF(J6<>"No","",IF(INDEX($B$1:$B$682,ROW()+K$1,1)="","",MAX(0,MIN((MIN(INDEX($B$1:$B$682,ROW()+K$1,1),L6)-K6)*$A$2,M6))))) ->  | O6: =IF(NavHistory!$R6="Yes","",IF(J6<>"No","",IF(INDEX($B$1:$B$682,ROW()+K$1,1)="","",N6/INDEX($B$1:$B$682,ROW()+K$1,1)))) ->  | P6: =IF(NavHistory!$R6="Yes","",IF(J6<>"No","",IF(INDEX($B$1:$B$682,ROW()+K$1,1)="","",I6-O6))) ->  | Q6: =IF(NavHistory!$R6="Yes","",IF(J6<>"No","",IF(INDEX($B$1:$B$682,ROW()+K$1,1)="","",IF(INDEX($B$1:$B$682,ROW()+K$1,1)>=L6,"Yes","No")))) ->  | R6: =IF(NavHistory!$R6="Yes","",IF(Q6<>"No","",IF(INDEX($B$1:$B$682,ROW()+R$1,1)="","",MAX(K6,INDEX($B$1:$B$682,ROW()+R$1-1,1))*1.06^(1/12)))) ->  | S6: =IF(NavHistory!$R6="Yes","",IF(Q6<>"No","",IF(INDEX($B$1:$B$682,ROW()+R$1,1)="","",1.06^(1/12)*L6))) ->  | T6: =IF(NavHistory!$R6="Yes","",IF(Q6<>"No","",IF(INDEX($B$1:$B$682,ROW()+R$1,1)="","",M6-N6))) ->  | U6: =IF(NavHistory!$R6="Yes","",IF(Q6<>"No","",IF(INDEX($B$1:$B$682,ROW()+R$1,1)="","",MAX(0,MIN((MIN(INDEX($B$1:$B$682,ROW()+R$1,1),S6)-R6)*$A$2,T6))))) ->  | V6: =IF(NavHistory!$R6="Yes","",IF(Q6<>"No","",IF(INDEX($B$1:$B$682,ROW()+R$1,1)="","",U6/INDEX($B$1:$B$682,ROW()+R$1,1)))) ->  | W6: =IF(NavHistory!$R6="Yes","",IF(Q6<>"No","",IF(INDEX($B$1:$B$682,ROW()+R$1,1)="","",P6-V6))) ->  | X6: =IF(NavHistory!$R6="Yes","",IF(Q6<>"No","",IF(INDEX($B$1:$B$682,ROW()+R$1,1)="","",IF(INDEX($B$1:$B$682,ROW()+R$1,1)>=S6,"Yes","No")))) ->  | Y6: =IF(NavHistory!$R6="Yes","",IF(X6<>"No","",IF(INDEX($B$1:$B$682,ROW()+Y$1,1)="","",MAX(R6,INDEX($B$1:$B$682,ROW()+Y$1-1,1))*1.06^(1/12)))) ->  | Z6: =IF(NavHistory!$R6="Yes","",IF(X6<>"No","",IF(INDEX($B$1:$B$682,ROW()+Y$1,1)="","",1.06^(1/12)*S6))) ->  | AA6: =IF(NavHistory!$R6="Yes","",IF(X6<>"No","",IF(INDEX($B$1:$B$682,ROW()+Y$1,1)="","",T6-U6))) ->  | AB6: =IF(NavHistory!$R6="Yes","",IF(X6<>"No","",IF(INDEX($B$1:$B$682,ROW()+Y$1,1)="","",MAX(0,MIN((MIN(INDEX($B$1:$B$682,ROW()+Y$1,1),Z6)-Y6)*$A$2,AA6))))) ->  | AC6: =IF(NavHistory!$R6="Yes","",IF(X6<>"No","",IF(INDEX($B$1:$B$682,ROW()+Y$1,1)="","",AB6/INDEX($B$1:$B$682,ROW()+Y$1,1)))) ->  | AD6: =IF(NavHistory!$R6="Yes","",IF(X6<>"No","",IF(INDEX($B$1:$B$682,ROW()+Y$1,1)="","",W6-AC6))) ->  | AE6: =IF(NavHistory!$R6="Yes","",IF(X6<>"No","",IF(INDEX($B$1:$B$682,ROW()+Y$1,1)="","",IF(INDEX($B$1:$B$682,ROW()+Y$1,1)>=Z6,"Yes","No")))) ->  | AF6: =IF(NavHistory!$R6="Yes","",IF(AE6<>"No","",IF(INDEX($B$1:$B$682,ROW()+AF$1,1)="","",MAX(Y6,INDEX($B$1:$B$682,ROW()+AF$1-1,1))*1.06^(1/12)))) ->  | AG6: =IF(NavHistory!$R6="Yes","",IF(AE6<>"No","",IF(INDEX($B$1:$B$682,ROW()+AF$1,1)="","",1.06^(1/12)*Z6))) ->  | AH6: =IF(NavHistory!$R6="Yes","",IF(AE6<>"No","",IF(INDEX($B$1:$B$682,ROW()+AF$1,1)="","",AA6-AB6))) ->  | AI6: =IF(NavHistory!$R6="Yes","",IF(AE6<>"No","",IF(INDEX($B$1:$B$682,ROW()+AF$1,1)="","",MAX(0,MIN((MIN(INDEX($B$1:$B$682,ROW()+AF$1,1),AG6)-AF6)*$A$2,AH6))))) ->  | AJ6: =IF(NavHistory!$R6="Yes","",IF(AE6<>"No","",IF(INDEX($B$1:$B$682,ROW()+AF$1,1)="","",AI6/INDEX($B$1:$B$682,ROW()+AF$1,1)))) ->  | AK6: =IF(NavHistory!$R6="Yes","",IF(AE6<>"No","",IF(INDEX($B$1:$B$682,ROW()+AF$1,1)="","",AD6-AJ6))) ->  | AL6: =IF(NavHistory!$R6="Yes","",IF(AE6<>"No","",IF(INDEX($B$1:$B$682,ROW()+AF$1,1)="","",IF(INDEX($B$1:$B$682,ROW()+AF$1,1)>=AG6,"Yes","No")))) ->  | AM6: =IF(NavHistory!$R6="Yes","",IF(AL6<>"No","",IF(INDEX($B$1:$B$682,ROW()+AM$1,1)="","",MAX(AF6,INDEX($B$1:$B$682,ROW()+AM$1-1,1))*1.06^(1/12)))) ->  | AN6: =IF(NavHistory!$R6="Yes","",IF(AL6<>"No","",IF(INDEX($B$1:$B$682,ROW()+AM$1,1)="","",1.06^(1/12)*AG6))) ->  | AO6: =IF(NavHistory!$R6="Yes","",IF(AL6<>"No","",IF(INDEX($B$1:$B$682,ROW()+AM$1,1)="","",AH6-AI6))) ->  | AP6: =IF(NavHistory!$R6="Yes","",IF(AL6<>"No","",IF(INDEX($B$1:$B$682,ROW()+AM$1,1)="","",MAX(0,MIN((MIN(INDEX($B$1:$B$682,ROW()+AM$1,1),AN6)-AM6)*$A$2,AO6))))) ->  | AQ6: =IF(NavHistory!$R6="Yes","",IF(AL6<>"No","",IF(INDEX($B$1:$B$682,ROW()+AM$1,1)="","",AP6/INDEX($B$1:$B$682,ROW()+AM$1,1)))) ->  | AR6: =IF(NavHistory!$R6="Yes","",IF(AL6<>"No","",IF(INDEX($B$1:$B$682,ROW()+AM$1,1)="","",AK6-AQ6))) ->  | AS6: =IF(NavHistory!$R6="Yes","",IF(AL6<>"No","",IF(INDEX($B$1:$B$682,ROW()+AM$1,1)="","",IF(INDEX($B$1:$B$682,ROW()+AM$1,1)>=AN6,"Yes","No")))) ->  | AT6: =IF(NavHistory!$R6="Yes","",IF(AS6<>"No","",IF(INDEX($B$1:$B$682,ROW()+AT$1,1)="","",MAX(AM6,INDEX($B$1:$B$682,ROW()+AT$1-1,1))*1.06^(1/12)))) ->  | AU6: =IF(NavHistory!$R6="Yes","",IF(AS6<>"No","",IF(INDEX($B$1:$B$682,ROW()+AT$1,1)="","",1.06^(1/12)*AN6))) ->  | AV6: =IF(NavHistory!$R6="Yes","",IF(AS6<>"No","",IF(INDEX($B$1:$B$682,ROW()+AT$1,1)="","",AO6-AP6))) ->  | AW6: =IF(NavHistory!$R6="Yes","",IF(AS6<>"No","",IF(INDEX($B$1:$B$682,ROW()+AT$1,1)="","",MAX(0,MIN((MIN(INDEX($B$1:$B$682,ROW()+AT$1,1),AU6)-AT6)*$A$2,AV6))))) ->  | AX6: =IF(NavHistory!$R6="Yes","",IF(AS6<>"No","",IF(INDEX($B$1:$B$682,ROW()+AT$1,1)="","",AW6/INDEX($B$1:$B$682,ROW()+AT$1,1)))) ->  | AY6: =IF(NavHistory!$R6="Yes","",IF(AS6<>"No","",IF(INDEX($B$1:$B$682,ROW()+AT$1,1)="","",AR6-AX6))) ->  | AZ6: =IF(NavHistory!$R6="Yes","",IF(AS6<>"No","",IF(INDEX($B$1:$B$682,ROW()+AT$1,1)="","",IF(INDEX($B$1:$B$682,ROW()+AT$1,1)>=AU6,"Yes","No")))) ->  | BA6: =IF(NavHistory!$R6="Yes","",IF(AZ6<>"No","",IF(INDEX($B$1:$B$682,ROW()+BA$1,1)="","",MAX(AT6,INDEX($B$1:$B$682,ROW()+BA$1-1,1))*1.06^(1/12)))) ->  | BB6: =IF(NavHistory!$R6="Yes","",IF(AZ6<>"No","",IF(INDEX($B$1:$B$682,ROW()+BA$1,1)="","",1.06^(1/12)*AU6))) ->  | BC6: =IF(NavHistory!$R6="Yes","",IF(AZ6<>"No","",IF(INDEX($B$1:$B$682,ROW()+BA$1,1)="","",AV6-AW6))) ->  | BD6: =IF(NavHistory!$R6="Yes","",IF(AZ6<>"No","",IF(INDEX($B$1:$B$682,ROW()+BA$1,1)="","",MAX(0,MIN((MIN(INDEX($B$1:$B$682,ROW()+BA$1,1),BB6)-BA6)*$A$2,BC6))))) ->  | BE6: =IF(NavHistory!$R6="Yes","",IF(AZ6<>"No","",IF(INDEX($B$1:$B$682,ROW()+BA$1,1)="","",BD6/INDEX($B$1:$B$682,ROW()+BA$1,1)))) ->  | BF6: =IF(NavHistory!$R6="Yes","",IF(AZ6<>"No","",IF(INDEX($B$1:$B$682,ROW()+BA$1,1)="","",AY6-BE6))) ->  | BG6: =IF(NavHistory!$R6="Yes","",IF(AZ6<>"No","",IF(INDEX($B$1:$B$682,ROW()+BA$1,1)="","",IF(INDEX($B$1:$B$682,ROW()+BA$1,1)>=BB6,"Yes","No")))) ->  | BH6: =IF(NavHistory!$R6="Yes","",IF(BG6<>"No","",IF(INDEX($B$1:$B$682,ROW()+BH$1,1)="","",MAX(BA6,INDEX($B$1:$B$682,ROW()+BH$1-1,1))*1.06^(1/12)))) ->  | BI6: =IF(NavHistory!$R6="Yes","",IF(BG6<>"No","",IF(INDEX($B$1:$B$682,ROW()+BH$1,1)="","",1.06^(1/12)*BB6))) ->  | BJ6: =IF(NavHistory!$R6="Yes","",IF(BG6<>"No","",IF(INDEX($B$1:$B$682,ROW()+BH$1,1)="","",BC6-BD6))) ->  | BK6: =IF(NavHistory!$R6="Yes","",IF(BG6<>"No","",IF(INDEX($B$1:$B$682,ROW()+BH$1,1)="","",MAX(0,MIN((MIN(INDEX($B$1:$B$682,ROW()+BH$1,1),BI6)-BH6)*$A$2,BJ6))))) ->  | BL6: =IF(NavHistory!$R6="Yes","",IF(BG6<>"No","",IF(INDEX($B$1:$B$682,ROW()+BH$1,1)="","",BK6/INDEX($B$1:$B$682,ROW()+BH$1,1)))) ->  | BM6: =IF(NavHistory!$R6="Yes","",IF(BG6<>"No","",IF(INDEX($B$1:$B$682,ROW()+BH$1,1)="","",BF6-BL6))) ->  | BN6: =IF(NavHistory!$R6="Yes","",IF(BG6<>"No","",IF(INDEX($B$1:$B$682,ROW()+BH$1,1)="","",IF(INDEX($B$1:$B$682,ROW()+BH$1,1)>=BI6,"Yes","No")))) ->  | BO6: =IF(NavHistory!$R6="Yes","",IF(BN6<>"No","",IF(INDEX($B$1:$B$682,ROW()+BO$1,1)="","",MAX(BH6,INDEX($B$1:$B$682,ROW()+BO$1-1,1))*1.06^(1/12)))) ->  | BP6: =IF(NavHistory!$R6="Yes","",IF(BN6<>"No","",IF(INDEX($B$1:$B$682,ROW()+BO$1,1)="","",1.06^(1/12)*BI6))) ->  | BQ6: =IF(NavHistory!$R6="Yes","",IF(BN6<>"No","",IF(INDEX($B$1:$B$682,ROW()+BO$1,1)="","",BJ6-BK6))) ->  | BR6: =IF(NavHistory!$R6="Yes","",IF(BN6<>"No","",IF(INDEX($B$1:$B$682,ROW()+BO$1,1)="","",MAX(0,MIN((MIN(INDEX($B$1:$B$682,ROW()+BO$1,1),BP6)-BO6)*$A$2,BQ6))))) ->  | BS6: =IF(NavHistory!$R6="Yes","",IF(BN6<>"No","",IF(INDEX($B$1:$B$682,ROW()+BO$1,1)="","",BR6/INDEX($B$1:$B$682,ROW()+BO$1,1)))) ->  | BT6: =IF(NavHistory!$R6="Yes","",IF(BN6<>"No","",IF(INDEX($B$1:$B$682,ROW()+BO$1,1)="","",BM6-BS6))) ->  | BU6: =IF(NavHistory!$R6="Yes","",IF(BN6<>"No","",IF(INDEX($B$1:$B$682,ROW()+BO$1,1)="","",IF(INDEX($B$1:$B$682,ROW()+BO$1,1)>=BP6,"Yes","No")))) ->  | BV6: =IF(NavHistory!$R6="Yes","",IF(BU6<>"No","",IF(INDEX($B$1:$B$682,ROW()+BV$1,1)="","",MAX(BO6,INDEX($B$1:$B$682,ROW()+BV$1-1,1))*1.06^(1/12)))) ->  | BW6: =IF(NavHistory!$R6="Yes","",IF(BU6<>"No","",IF(INDEX($B$1:$B$682,ROW()+BV$1,1)="","",1.06^(1/12)*BP6))) ->  | BX6: =IF(NavHistory!$R6="Yes","",IF(BU6<>"No","",IF(INDEX($B$1:$B$682,ROW()+BV$1,1)="","",BQ6-BR6))) ->  | BY6: =IF(NavHistory!$R6="Yes","",IF(BU6<>"No","",IF(INDEX($B$1:$B$682,ROW()+BV$1,1)="","",MAX(0,MIN((MIN(INDEX($B$1:$B$682,ROW()+BV$1,1),BW6)-BV6)*$A$2,BX6))))) ->  | BZ6: =IF(NavHistory!$R6="Yes","",IF(BU6<>"No","",IF(INDEX($B$1:$B$682,ROW()+BV$1,1)="","",BY6/INDEX($B$1:$B$682,ROW()+BV$1,1)))) ->  | CA6: =IF(NavHistory!$R6="Yes","",IF(BU6<>"No","",IF(INDEX($B$1:$B$682,ROW()+BV$1,1)="","",BT6-BZ6))) ->  | CB6: =IF(NavHistory!$R6="Yes","",IF(BU6<>"No","",IF(INDEX($B$1:$B$682,ROW()+BV$1,1)="","",IF(INDEX($B$1:$B$682,ROW()+BV$1,1)>=BW6,"Yes","No")))) ->  | CC6: =IF(NavHistory!$R6="Yes","",IF(CB6<>"No","",IF(INDEX($B$1:$B$682,ROW()+CC$1,1)="","",MAX(BV6,INDEX($B$1:$B$682,ROW()+CC$1-1,1))*1.06^(1/12)))) ->  | CD6: =IF(NavHistory!$R6="Yes","",IF(CB6<>"No","",IF(INDEX($B$1:$B$682,ROW()+CC$1,1)="","",1.06^(1/12)*BW6))) ->  | CE6: =IF(NavHistory!$R6="Yes","",IF(CB6<>"No","",IF(INDEX($B$1:$B$682,ROW()+CC$1,1)="","",BX6-BY6))) ->  | CF6: =IF(NavHistory!$R6="Yes","",IF(CB6<>"No","",IF(INDEX($B$1:$B$682,ROW()+CC$1,1)="","",MAX(0,MIN((MIN(INDEX($B$1:$B$682,ROW()+CC$1,1),CD6)-CC6)*$A$2,CE6))))) ->  | CG6: =IF(NavHistory!$R6="Yes","",IF(CB6<>"No","",IF(INDEX($B$1:$B$682,ROW()+CC$1,1)="","",CF6/INDEX($B$1:$B$682,ROW()+CC$1,1)))) ->  | CH6: =IF(NavHistory!$R6="Yes","",IF(CB6<>"No","",IF(INDEX($B$1:$B$682,ROW()+CC$1,1)="","",CA6-CG6))) ->  | CI6: =IF(NavHistory!$R6="Yes","",IF(CB6<>"No","",IF(INDEX($B$1:$B$682,ROW()+CC$1,1)="","",IF(INDEX($B$1:$B$682,ROW()+CC$1,1)>=CD6,"Yes","No")))) ->  | CJ6: =IF(NavHistory!$R6="Yes","",IF(CI6<>"No","",IF(INDEX($B$1:$B$682,ROW()+CJ$1,1)="","",MAX(CC6,INDEX($B$1:$B$682,ROW()+CJ$1-1,1))*1.06^(1/12)))) ->  | CK6: =IF(NavHistory!$R6="Yes","",IF(CI6<>"No","",IF(INDEX($B$1:$B$682,ROW()+CJ$1,1)="","",1.06^(1/12)*CD6))) ->  | CL6: =IF(NavHistory!$R6="Yes","",IF(CI6<>"No","",IF(INDEX($B$1:$B$682,ROW()+CJ$1,1)="","",CE6-CF6))) ->  | CM6: =IF(NavHistory!$R6="Yes","",IF(CI6<>"No","",IF(INDEX($B$1:$B$682,ROW()+CJ$1,1)="","",MAX(0,MIN((MIN(INDEX($B$1:$B$682,ROW()+CJ$1,1),CK6)-CJ6)*$A$2,CL6))))) ->  | CN6: =IF(NavHistory!$R6="Yes","",IF(CI6<>"No","",IF(INDEX($B$1:$B$682,ROW()+CJ$1,1)="","",CM6/INDEX($B$1:$B$682,ROW()+CJ$1,1)))) ->  | CO6: =IF(NavHistory!$R6="Yes","",IF(CI6<>"No","",IF(INDEX($B$1:$B$682,ROW()+CJ$1,1)="","",CH6-CN6))) ->  | CP6: =IF(NavHistory!$R6="Yes","",IF(CI6<>"No","",IF(INDEX($B$1:$B$682,ROW()+CJ$1,1)="","",IF(INDEX($B$1:$B$682,ROW()+CJ$1,1)>=CK6,"Yes","No")))) ->  | CQ6: =IF(NavHistory!$R6="Yes","",IF(CP6<>"No","",IF(INDEX($B$1:$B$682,ROW()+CQ$1,1)="","",MAX(CJ6,INDEX($B$1:$B$682,ROW()+CQ$1-1,1))*1.06^(1/12)))) ->  | CR6: =IF(NavHistory!$R6="Yes","",IF(CP6<>"No","",IF(INDEX($B$1:$B$682,ROW()+CQ$1,1)="","",1.06^(1/12)*CK6))) ->  | CS6: =IF(NavHistory!$R6="Yes","",IF(CP6<>"No","",IF(INDEX($B$1:$B$682,ROW()+CQ$1,1)="","",CL6-CM6))) ->  | CT6: =IF(NavHistory!$R6="Yes","",IF(CP6<>"No","",IF(INDEX($B$1:$B$682,ROW()+CQ$1,1)="","",MAX(0,MIN((MIN(INDEX($B$1:$B$682,ROW()+CQ$1,1),CR6)-CQ6)*$A$2,CS6))))) ->  | CU6: =IF(NavHistory!$R6="Yes","",IF(CP6<>"No","",IF(INDEX($B$1:$B$682,ROW()+CQ$1,1)="","",CT6/INDEX($B$1:$B$682,ROW()+CQ$1,1)))) ->  | CV6: =IF(NavHistory!$R6="Yes","",IF(CP6<>"No","",IF(INDEX($B$1:$B$682,ROW()+CQ$1,1)="","",CO6-CU6))) ->  | CW6: =IF(NavHistory!$R6="Yes","",IF(CP6<>"No","",IF(INDEX($B$1:$B$682,ROW()+CQ$1,1)="","",IF(INDEX($B$1:$B$682,ROW()+CQ$1,1)>=CR6,"Yes","No")))) ->  | CX6: =IF(NavHistory!$R6="Yes","",IF(CW6<>"No","",IF(INDEX($B$1:$B$682,ROW()+CX$1,1)="","",MAX(CQ6,INDEX($B$1:$B$682,ROW()+CX$1-1,1))*1.06^(1/12)))) ->  | CY6: =IF(NavHistory!$R6="Yes","",IF(CW6<>"No","",IF(INDEX($B$1:$B$682,ROW()+CX$1,1)="","",1.06^(1/12)*CR6))) ->  | CZ6: =IF(NavHistory!$R6="Yes","",IF(CW6<>"No","",IF(INDEX($B$1:$B$682,ROW()+CX$1,1)="","",CS6-CT6))) ->  | DA6: =IF(NavHistory!$R6="Yes","",IF(CW6<>"No","",IF(INDEX($B$1:$B$682,ROW()+CX$1,1)="","",MAX(0,MIN((MIN(INDEX($B$1:$B$682,ROW()+CX$1,1),CY6)-CX6)*$A$2,CZ6))))) ->  | DB6: =IF(NavHistory!$R6="Yes","",IF(CW6<>"No","",IF(INDEX($B$1:$B$682,ROW()+CX$1,1)="","",DA6/INDEX($B$1:$B$682,ROW()+CX$1,1)))) ->  | DC6: =IF(NavHistory!$R6="Yes","",IF(CW6<>"No","",IF(INDEX($B$1:$B$682,ROW()+CX$1,1)="","",CV6-DB6))) ->  | DD6: =IF(NavHistory!$R6="Yes","",IF(CW6<>"No","",IF(INDEX($B$1:$B$682,ROW()+CX$1,1)="","",IF(INDEX($B$1:$B$682,ROW()+CX$1,1)>=CY6,"Yes","No")))) ->  | DE6: =IF(NavHistory!$R6="Yes","",IF(DD6<>"No","",IF(INDEX($B$1:$B$682,ROW()+DE$1,1)="","",MAX(CX6,INDEX($B$1:$B$682,ROW()+DE$1-1,1))*1.06^(1/12)))) ->  | DF6: =IF(NavHistory!$R6="Yes","",IF(DD6<>"No","",IF(INDEX($B$1:$B$682,ROW()+DE$1,1)="","",1.06^(1/12)*CY6))) ->  | DG6: =IF(NavHistory!$R6="Yes","",IF(DD6<>"No","",IF(INDEX($B$1:$B$682,ROW()+DE$1,1)="","",CZ6-DA6))) ->  | DH6: =IF(NavHistory!$R6="Yes","",IF(DD6<>"No","",IF(INDEX($B$1:$B$682,ROW()+DE$1,1)="","",MAX(0,MIN((MIN(INDEX($B$1:$B$682,ROW()+DE$1,1),DF6)-DE6)*$A$2,DG6))))) ->  | DI6: =IF(NavHistory!$R6="Yes","",IF(DD6<>"No","",IF(INDEX($B$1:$B$682,ROW()+DE$1,1)="","",DH6/INDEX($B$1:$B$682,ROW()+DE$1,1)))) ->  | DJ6: =IF(NavHistory!$R6="Yes","",IF(DD6<>"No","",IF(INDEX($B$1:$B$682,ROW()+DE$1,1)="","",DC6-DI6))) ->  | DK6: =IF(NavHistory!$R6="Yes","",IF(DD6<>"No","",IF(INDEX($B$1:$B$682,ROW()+DE$1,1)="","",IF(INDEX($B$1:$B$682,ROW()+DE$1,1)>=DF6,"Yes","No")))) ->  | DL6: =IF(NavHistory!$R6="Yes","",IF(DK6<>"No","",IF(INDEX($B$1:$B$682,ROW()+DL$1,1)="","",MAX(DE6,INDEX($B$1:$B$682,ROW()+DL$1-1,1))*1.06^(1/12)))) ->  | DM6: =IF(NavHistory!$R6="Yes","",IF(DK6<>"No","",IF(INDEX($B$1:$B$682,ROW()+DL$1,1)="","",1.06^(1/12)*DF6))) ->  | DN6: =IF(NavHistory!$R6="Yes","",IF(DK6<>"No","",IF(INDEX($B$1:$B$682,ROW()+DL$1,1)="","",DG6-DH6))) ->  | DO6: =IF(NavHistory!$R6="Yes","",IF(DK6<>"No","",IF(INDEX($B$1:$B$682,ROW()+DL$1,1)="","",MAX(0,MIN((MIN(INDEX($B$1:$B$682,ROW()+DL$1,1),DM6)-DL6)*$A$2,DN6))))) ->  | DP6: =IF(NavHistory!$R6="Yes","",IF(DK6<>"No","",IF(INDEX($B$1:$B$682,ROW()+DL$1,1)="","",DO6/INDEX($B$1:$B$682,ROW()+DL$1,1)))) ->  | DQ6: =IF(NavHistory!$R6="Yes","",IF(DK6<>"No","",IF(INDEX($B$1:$B$682,ROW()+DL$1,1)="","",DJ6-DP6))) ->  | DR6: =IF(NavHistory!$R6="Yes","",IF(DK6<>"No","",IF(INDEX($B$1:$B$682,ROW()+DL$1,1)="","",IF(INDEX($B$1:$B$682,ROW()+DL$1,1)>=DM6,"Yes","No")))) ->  | DS6: =IF(NavHistory!$R6="Yes","",IF(DR6<>"No","",IF(INDEX($B$1:$B$682,ROW()+DS$1,1)="","",MAX(DL6,INDEX($B$1:$B$682,ROW()+DS$1-1,1))*1.06^(1/12)))) ->  | DT6: =IF(NavHistory!$R6="Yes","",IF(DR6<>"No","",IF(INDEX($B$1:$B$682,ROW()+DS$1,1)="","",1.06^(1/12)*DM6))) ->  | DU6: =IF(NavHistory!$R6="Yes","",IF(DR6<>"No","",IF(INDEX($B$1:$B$682,ROW()+DS$1,1)="","",DN6-DO6))) ->  | DV6: =IF(NavHistory!$R6="Yes","",IF(DR6<>"No","",IF(INDEX($B$1:$B$682,ROW()+DS$1,1)="","",MAX(0,MIN((MIN(INDEX($B$1:$B$682,ROW()+DS$1,1),DT6)-DS6)*$A$2,DU6))))) ->  | DW6: =IF(NavHistory!$R6="Yes","",IF(DR6<>"No","",IF(INDEX($B$1:$B$682,ROW()+DS$1,1)="","",DV6/INDEX($B$1:$B$682,ROW()+DS$1,1)))) ->  | DX6: =IF(NavHistory!$R6="Yes","",IF(DR6<>"No","",IF(INDEX($B$1:$B$682,ROW()+DS$1,1)="","",DQ6-DW6))) ->  | DY6: =IF(NavHistory!$R6="Yes","",IF(DR6<>"No","",IF(INDEX($B$1:$B$682,ROW()+DS$1,1)="","",IF(INDEX($B$1:$B$682,ROW()+DS$1,1)>=DT6,"Yes","No")))) ->  | DZ6: =IF(NavHistory!$R6="Yes","",IF(DY6<>"No","",IF(INDEX($B$1:$B$682,ROW()+DZ$1,1)="","",MAX(DS6,INDEX($B$1:$B$682,ROW()+DZ$1-1,1))*1.06^(1/12)))) ->  | EA6: =IF(NavHistory!$R6="Yes","",IF(DY6<>"No","",IF(INDEX($B$1:$B$682,ROW()+DZ$1,1)="","",1.06^(1/12)*DT6))) ->  | EB6: =IF(NavHistory!$R6="Yes","",IF(DY6<>"No","",IF(INDEX($B$1:$B$682,ROW()+DZ$1,1)="","",DU6-DV6))) ->  | EC6: =IF(NavHistory!$R6="Yes","",IF(DY6<>"No","",IF(INDEX($B$1:$B$682,ROW()+DZ$1,1)="","",MAX(0,MIN((MIN(INDEX($B$1:$B$682,ROW()+DZ$1,1),EA6)-DZ6)*$A$2,EB6))))) ->  | ED6: =IF(NavHistory!$R6="Yes","",IF(DY6<>"No","",IF(INDEX($B$1:$B$682,ROW()+DZ$1,1)="","",EC6/INDEX($B$1:$B$682,ROW()+DZ$1,1)))) ->  | EE6: =IF(NavHistory!$R6="Yes","",IF(DY6<>"No","",IF(INDEX($B$1:$B$682,ROW()+DZ$1,1)="","",DX6-ED6))) ->  | EF6: =IF(NavHistory!$R6="Yes","",IF(DY6<>"No","",IF(INDEX($B$1:$B$682,ROW()+DZ$1,1)="","",IF(INDEX($B$1:$B$682,ROW()+DZ$1,1)>=EA6,"Yes","No")))) ->  | EG6: =IF(NavHistory!$R6="Yes","",IF(EF6<>"No","",IF(INDEX($B$1:$B$682,ROW()+EG$1,1)="","",MAX(DZ6,INDEX($B$1:$B$682,ROW()+EG$1-1,1))*1.06^(1/12)))) ->  | EH6: =IF(NavHistory!$R6="Yes","",IF(EF6<>"No","",IF(INDEX($B$1:$B$682,ROW()+EG$1,1)="","",1.06^(1/12)*EA6))) ->  | EI6: =IF(NavHistory!$R6="Yes","",IF(EF6<>"No","",IF(INDEX($B$1:$B$682,ROW()+EG$1,1)="","",EB6-EC6))) ->  | EJ6: =IF(NavHistory!$R6="Yes","",IF(EF6<>"No","",IF(INDEX($B$1:$B$682,ROW()+EG$1,1)="","",MAX(0,MIN((MIN(INDEX($B$1:$B$682,ROW()+EG$1,1),EH6)-EG6)*$A$2,EI6))))) ->  | EK6: =IF(NavHistory!$R6="Yes","",IF(EF6<>"No","",IF(INDEX($B$1:$B$682,ROW()+EG$1,1)="","",EJ6/INDEX($B$1:$B$682,ROW()+EG$1,1)))) ->  | EL6: =IF(NavHistory!$R6="Yes","",IF(EF6<>"No","",IF(INDEX($B$1:$B$682,ROW()+EG$1,1)="","",EE6-EK6))) ->  | EM6: =IF(NavHistory!$R6="Yes","",IF(EF6<>"No","",IF(INDEX($B$1:$B$682,ROW()+EG$1,1)="","",IF(INDEX($B$1:$B$682,ROW()+EG$1,1)>=EH6,"Yes","No")))) ->  | EN6: =IF(NavHistory!$R6="Yes","",IF(EM6<>"No","",IF(INDEX($B$1:$B$682,ROW()+EN$1,1)="","",MAX(EG6,INDEX($B$1:$B$682,ROW()+EN$1-1,1))*1.06^(1/12)))) ->  | EO6: =IF(NavHistory!$R6="Yes","",IF(EM6<>"No","",IF(INDEX($B$1:$B$682,ROW()+EN$1,1)="","",1.06^(1/12)*EH6))) ->  | EP6: =IF(NavHistory!$R6="Yes","",IF(EM6<>"No","",IF(INDEX($B$1:$B$682,ROW()+EN$1,1)="","",EI6-EJ6))) ->  | EQ6: =IF(NavHistory!$R6="Yes","",IF(EM6<>"No","",IF(INDEX($B$1:$B$682,ROW()+EN$1,1)="","",MAX(0,MIN((MIN(INDEX($B$1:$B$682,ROW()+EN$1,1),EO6)-EN6)*$A$2,EP6))))) ->  | ER6: =IF(NavHistory!$R6="Yes","",IF(EM6<>"No","",IF(INDEX($B$1:$B$682,ROW()+EN$1,1)="","",EQ6/INDEX($B$1:$B$682,ROW()+EN$1,1)))) ->  | ES6: =IF(NavHistory!$R6="Yes","",IF(EM6<>"No","",IF(INDEX($B$1:$B$682,ROW()+EN$1,1)="","",EL6-ER6))) ->  | ET6: =IF(NavHistory!$R6="Yes","",IF(EM6<>"No","",IF(INDEX($B$1:$B$682,ROW()+EN$1,1)="","",IF(INDEX($B$1:$B$682,ROW()+EN$1,1)>=EO6,"Yes","No")))) ->  | EU6: =IF(NavHistory!$R6="Yes","",IF(ET6<>"No","",IF(INDEX($B$1:$B$682,ROW()+EU$1,1)="","",MAX(EN6,INDEX($B$1:$B$682,ROW()+EU$1-1,1))*1.06^(1/12)))) ->  | EV6: =IF(NavHistory!$R6="Yes","",IF(ET6<>"No","",IF(INDEX($B$1:$B$682,ROW()+EU$1,1)="","",1.06^(1/12)*EO6))) ->  | EW6: =IF(NavHistory!$R6="Yes","",IF(ET6<>"No","",IF(INDEX($B$1:$B$682,ROW()+EU$1,1)="","",EP6-EQ6))) ->  | EX6: =IF(NavHistory!$R6="Yes","",IF(ET6<>"No","",IF(INDEX($B$1:$B$682,ROW()+EU$1,1)="","",MAX(0,MIN((MIN(INDEX($B$1:$B$682,ROW()+EU$1,1),EV6)-EU6)*$A$2,EW6))))) ->  | EY6: =IF(NavHistory!$R6="Yes","",IF(ET6<>"No","",IF(INDEX($B$1:$B$682,ROW()+EU$1,1)="","",EX6/INDEX($B$1:$B$682,ROW()+EU$1,1)))) ->  | EZ6: =IF(NavHistory!$R6="Yes","",IF(ET6<>"No","",IF(INDEX($B$1:$B$682,ROW()+EU$1,1)="","",ES6-EY6))) ->  | FA6: =IF(NavHistory!$R6="Yes","",IF(ET6<>"No","",IF(INDEX($B$1:$B$682,ROW()+EU$1,1)="","",IF(INDEX($B$1:$B$682,ROW()+EU$1,1)>=EV6,"Yes","No")))) ->  | FB6: =IF(NavHistory!$R6="Yes","",IF(FA6<>"No","",IF(INDEX($B$1:$B$682,ROW()+FB$1,1)="","",MAX(EU6,INDEX($B$1:$B$682,ROW()+FB$1-1,1))*1.06^(1/12)))) ->  | FC6: =IF(NavHistory!$R6="Yes","",IF(FA6<>"No","",IF(INDEX($B$1:$B$682,ROW()+FB$1,1)="","",1.06^(1/12)*EV6))) ->  | FD6: =IF(NavHistory!$R6="Yes","",IF(FA6<>"No","",IF(INDEX($B$1:$B$682,ROW()+FB$1,1)="","",EW6-EX6))) ->  | FE6: =IF(NavHistory!$R6="Yes","",IF(FA6<>"No","",IF(INDEX($B$1:$B$682,ROW()+FB$1,1)="","",MAX(0,MIN((MIN(INDEX($B$1:$B$682,ROW()+FB$1,1),FC6)-FB6)*$A$2,FD6))))) ->  | FF6: =IF(NavHistory!$R6="Yes","",IF(FA6<>"No","",IF(INDEX($B$1:$B$682,ROW()+FB$1,1)="","",FE6/INDEX($B$1:$B$682,ROW()+FB$1,1)))) ->  | FG6: =IF(NavHistory!$R6="Yes","",IF(FA6<>"No","",IF(INDEX($B$1:$B$682,ROW()+FB$1,1)="","",EZ6-FF6))) ->  | FH6: =IF(NavHistory!$R6="Yes","",IF(FA6<>"No","",IF(INDEX($B$1:$B$682,ROW()+FB$1,1)="","",IF(INDEX($B$1:$B$682,ROW()+FB$1,1)>=FC6,"Yes","No")))) ->  | FI6: =IF(NavHistory!$R6="Yes","",IF(FH6<>"No","",IF(INDEX($B$1:$B$682,ROW()+FI$1,1)="","",MAX(FB6,INDEX($B$1:$B$682,ROW()+FI$1-1,1))*1.06^(1/12)))) ->  | FJ6: =IF(NavHistory!$R6="Yes","",IF(FH6<>"No","",IF(INDEX($B$1:$B$682,ROW()+FI$1,1)="","",1.06^(1/12)*FC6))) ->  | FK6: =IF(NavHistory!$R6="Yes","",IF(FH6<>"No","",IF(INDEX($B$1:$B$682,ROW()+FI$1,1)="","",FD6-FE6))) ->  | FL6: =IF(NavHistory!$R6="Yes","",IF(FH6<>"No","",IF(INDEX($B$1:$B$682,ROW()+FI$1,1)="","",MAX(0,MIN((MIN(INDEX($B$1:$B$682,ROW()+FI$1,1),FJ6)-FI6)*$A$2,FK6))))) ->  | FM6: =IF(NavHistory!$R6="Yes","",IF(FH6<>"No","",IF(INDEX($B$1:$B$682,ROW()+FI$1,1)="","",FL6/INDEX($B$1:$B$682,ROW()+FI$1,1)))) ->  | FN6: =IF(NavHistory!$R6="Yes","",IF(FH6<>"No","",IF(INDEX($B$1:$B$682,ROW()+FI$1,1)="","",FG6-FM6))) ->  | FO6: =IF(NavHistory!$R6="Yes","",IF(FH6<>"No","",IF(INDEX($B$1:$B$682,ROW()+FI$1,1)="","",IF(INDEX($B$1:$B$682,ROW()+FI$1,1)>=FJ6,"Yes","No")))) ->  | FP6: =IF(NavHistory!$R6="Yes","",IF(FO6<>"No","",IF(INDEX($B$1:$B$682,ROW()+FP$1,1)="","",MAX(FI6,INDEX($B$1:$B$682,ROW()+FP$1-1,1))*1.06^(1/12)))) ->  | FQ6: =IF(NavHistory!$R6="Yes","",IF(FO6<>"No","",IF(INDEX($B$1:$B$682,ROW()+FP$1,1)="","",1.06^(1/12)*FJ6))) ->  | FR6: =IF(NavHistory!$R6="Yes","",IF(FO6<>"No","",IF(INDEX($B$1:$B$682,ROW()+FP$1,1)="","",FK6-FL6))) ->  | FS6: =IF(NavHistory!$R6="Yes","",IF(FO6<>"No","",IF(INDEX($B$1:$B$682,ROW()+FP$1,1)="","",MAX(0,MIN((MIN(INDEX($B$1:$B$682,ROW()+FP$1,1),FQ6)-FP6)*$A$2,FR6))))) ->  | FT6: =IF(NavHistory!$R6="Yes","",IF(FO6<>"No","",IF(INDEX($B$1:$B$682,ROW()+FP$1,1)="","",FS6/INDEX($B$1:$B$682,ROW()+FP$1,1)))) ->  | FU6: =IF(NavHistory!$R6="Yes","",IF(FO6<>"No","",IF(INDEX($B$1:$B$682,ROW()+FP$1,1)="","",FN6-FT6))) ->  | FV6: =IF(NavHistory!$R6="Yes","",IF(FO6<>"No","",IF(INDEX($B$1:$B$682,ROW()+FP$1,1)="","",IF(INDEX($B$1:$B$682,ROW()+FP$1,1)>=FQ6,"Yes","No")))) ->  | FW6: =IF(NavHistory!$R6="Yes","",IF(FV6<>"No","",IF(INDEX($B$1:$B$682,ROW()+FW$1,1)="","",MAX(FP6,INDEX($B$1:$B$682,ROW()+FW$1-1,1))*1.06^(1/12)))) ->  | FX6: =IF(NavHistory!$R6="Yes","",IF(FV6<>"No","",IF(INDEX($B$1:$B$682,ROW()+FW$1,1)="","",1.06^(1/12)*FQ6))) ->  | FY6: =IF(NavHistory!$R6="Yes","",IF(FV6<>"No","",IF(INDEX($B$1:$B$682,ROW()+FW$1,1)="","",FR6-FS6))) ->  | FZ6: =IF(NavHistory!$R6="Yes","",IF(FV6<>"No","",IF(INDEX($B$1:$B$682,ROW()+FW$1,1)="","",MAX(0,MIN((MIN(INDEX($B$1:$B$682,ROW()+FW$1,1),FX6)-FW6)*$A$2,FY6))))) ->  | GA6: =IF(NavHistory!$R6="Yes","",IF(FV6<>"No","",IF(INDEX($B$1:$B$682,ROW()+FW$1,1)="","",FZ6/INDEX($B$1:$B$682,ROW()+FW$1,1)))) ->  | GB6: =IF(NavHistory!$R6="Yes","",IF(FV6<>"No","",IF(INDEX($B$1:$B$682,ROW()+FW$1,1)="","",FU6-GA6))) ->  | GC6: =IF(NavHistory!$R6="Yes","",IF(FV6<>"No","",IF(INDEX($B$1:$B$682,ROW()+FW$1,1)="","",IF(INDEX($B$1:$B$682,ROW()+FW$1,1)>=FX6,"Yes","No")))) ->  | GD6: =IF(NavHistory!$R6="Yes","",IF(GC6<>"No","",IF(INDEX($B$1:$B$682,ROW()+GD$1,1)="","",MAX(FW6,INDEX($B$1:$B$682,ROW()+GD$1-1,1))*1.06^(1/12)))) ->  | GE6: =IF(NavHistory!$R6="Yes","",IF(GC6<>"No","",IF(INDEX($B$1:$B$682,ROW()+GD$1,1)="","",1.06^(1/12)*FX6))) ->  | GF6: =IF(NavHistory!$R6="Yes","",IF(GC6<>"No","",IF(INDEX($B$1:$B$682,ROW()+GD$1,1)="","",FY6-FZ6))) ->  | GG6: =IF(NavHistory!$R6="Yes","",IF(GC6<>"No","",IF(INDEX($B$1:$B$682,ROW()+GD$1,1)="","",MAX(0,MIN((MIN(INDEX($B$1:$B$682,ROW()+GD$1,1),GE6)-GD6)*$A$2,GF6))))) ->  | GH6: =IF(NavHistory!$R6="Yes","",IF(GC6<>"No","",IF(INDEX($B$1:$B$682,ROW()+GD$1,1)="","",GG6/INDEX($B$1:$B$682,ROW()+GD$1,1)))) ->  | GI6: =IF(NavHistory!$R6="Yes","",IF(GC6<>"No","",IF(INDEX($B$1:$B$682,ROW()+GD$1,1)="","",GB6-GH6))) ->  | GJ6: =IF(NavHistory!$R6="Yes","",IF(GC6<>"No","",IF(INDEX($B$1:$B$682,ROW()+GD$1,1)="","",IF(INDEX($B$1:$B$682,ROW()+GD$1,1)>=GE6,"Yes","No")))) ->  | GK6: =IF(NavHistory!$R6="Yes","",IF(GJ6<>"No","",IF(INDEX($B$1:$B$682,ROW()+GK$1,1)="","",MAX(GD6,INDEX($B$1:$B$682,ROW()+GK$1-1,1))*1.06^(1/12)))) ->  | GL6: =IF(NavHistory!$R6="Yes","",IF(GJ6<>"No","",IF(INDEX($B$1:$B$682,ROW()+GK$1,1)="","",1.06^(1/12)*GE6))) ->  | GM6: =IF(NavHistory!$R6="Yes","",IF(GJ6<>"No","",IF(INDEX($B$1:$B$682,ROW()+GK$1,1)="","",GF6-GG6))) ->  | GN6: =IF(NavHistory!$R6="Yes","",IF(GJ6<>"No","",IF(INDEX($B$1:$B$682,ROW()+GK$1,1)="","",MAX(0,MIN((MIN(INDEX($B$1:$B$682,ROW()+GK$1,1),GL6)-GK6)*$A$2,GM6))))) ->  | GO6: =IF(NavHistory!$R6="Yes","",IF(GJ6<>"No","",IF(INDEX($B$1:$B$682,ROW()+GK$1,1)="","",GN6/INDEX($B$1:$B$682,ROW()+GK$1,1)))) ->  | GP6: =IF(NavHistory!$R6="Yes","",IF(GJ6<>"No","",IF(INDEX($B$1:$B$682,ROW()+GK$1,1)="","",GI6-GO6))) ->  | GQ6: =IF(NavHistory!$R6="Yes","",IF(GJ6<>"No","",IF(INDEX($B$1:$B$682,ROW()+GK$1,1)="","",IF(INDEX($B$1:$B$682,ROW()+GK$1,1)>=GL6,"Yes","No")))) ->  | GR6: =IF(NavHistory!$R6="Yes","",IF(GQ6<>"No","",IF(INDEX($B$1:$B$682,ROW()+GR$1,1)="","",MAX(GK6,INDEX($B$1:$B$682,ROW()+GR$1-1,1))*1.06^(1/12)))) ->  | GS6: =IF(NavHistory!$R6="Yes","",IF(GQ6<>"No","",IF(INDEX($B$1:$B$682,ROW()+GR$1,1)="","",1.06^(1/12)*GL6))) ->  | GT6: =IF(NavHistory!$R6="Yes","",IF(GQ6<>"No","",IF(INDEX($B$1:$B$682,ROW()+GR$1,1)="","",GM6-GN6))) ->  | GU6: =IF(NavHistory!$R6="Yes","",IF(GQ6<>"No","",IF(INDEX($B$1:$B$682,ROW()+GR$1,1)="","",MAX(0,MIN((MIN(INDEX($B$1:$B$682,ROW()+GR$1,1),GS6)-GR6)*$A$2,GT6))))) ->  | GV6: =IF(NavHistory!$R6="Yes","",IF(GQ6<>"No","",IF(INDEX($B$1:$B$682,ROW()+GR$1,1)="","",GU6/INDEX($B$1:$B$682,ROW()+GR$1,1)))) ->  | GW6: =IF(NavHistory!$R6="Yes","",IF(GQ6<>"No","",IF(INDEX($B$1:$B$682,ROW()+GR$1,1)="","",GP6-GV6))) ->  | GX6: =IF(NavHistory!$R6="Yes","",IF(GQ6<>"No","",IF(INDEX($B$1:$B$682,ROW()+GR$1,1)="","",IF(INDEX($B$1:$B$682,ROW()+GR$1,1)>=GS6,"Yes","No")))) ->  | GY6: =IF(NavHistory!$R6="Yes","",IF(GX6<>"No","",IF(INDEX($B$1:$B$682,ROW()+GY$1,1)="","",MAX(GR6,INDEX($B$1:$B$682,ROW()+GY$1-1,1))*1.06^(1/12)))) ->  | GZ6: =IF(NavHistory!$R6="Yes","",IF(GX6<>"No","",IF(INDEX($B$1:$B$682,ROW()+GY$1,1)="","",1.06^(1/12)*GS6))) ->  | HA6: =IF(NavHistory!$R6="Yes","",IF(GX6<>"No","",IF(INDEX($B$1:$B$682,ROW()+GY$1,1)="","",GT6-GU6))) ->  | HB6: =IF(NavHistory!$R6="Yes","",IF(GX6<>"No","",IF(INDEX($B$1:$B$682,ROW()+GY$1,1)="","",MAX(0,MIN((MIN(INDEX($B$1:$B$682,ROW()+GY$1,1),GZ6)-GY6)*$A$2,HA6))))) ->  | HC6: =IF(NavHistory!$R6="Yes","",IF(GX6<>"No","",IF(INDEX($B$1:$B$682,ROW()+GY$1,1)="","",HB6/INDEX($B$1:$B$682,ROW()+GY$1,1)))) ->  | HD6: =IF(NavHistory!$R6="Yes","",IF(GX6<>"No","",IF(INDEX($B$1:$B$682,ROW()+GY$1,1)="","",GW6-HC6))) ->  | HE6: =IF(NavHistory!$R6="Yes","",IF(GX6<>"No","",IF(INDEX($B$1:$B$682,ROW()+GY$1,1)="","",IF(INDEX($B$1:$B$682,ROW()+GY$1,1)>=GZ6,"Yes","No")))) ->  | HF6: =IF(NavHistory!$R6="Yes","",IF(HE6<>"No","",IF(INDEX($B$1:$B$682,ROW()+HF$1,1)="","",MAX(GY6,INDEX($B$1:$B$682,ROW()+HF$1-1,1))*1.06^(1/12)))) ->  | HG6: =IF(NavHistory!$R6="Yes","",IF(HE6<>"No","",IF(INDEX($B$1:$B$682,ROW()+HF$1,1)="","",1.06^(1/12)*GZ6))) ->  | HH6: =IF(NavHistory!$R6="Yes","",IF(HE6<>"No","",IF(INDEX($B$1:$B$682,ROW()+HF$1,1)="","",HA6-HB6))) ->  | HI6: =IF(NavHistory!$R6="Yes","",IF(HE6<>"No","",IF(INDEX($B$1:$B$682,ROW()+HF$1,1)="","",MAX(0,MIN((MIN(INDEX($B$1:$B$682,ROW()+HF$1,1),HG6)-HF6)*$A$2,HH6))))) ->  | HJ6: =IF(NavHistory!$R6="Yes","",IF(HE6<>"No","",IF(INDEX($B$1:$B$682,ROW()+HF$1,1)="","",HI6/INDEX($B$1:$B$682,ROW()+HF$1,1)))) ->  | HK6: =IF(NavHistory!$R6="Yes","",IF(HE6<>"No","",IF(INDEX($B$1:$B$682,ROW()+HF$1,1)="","",HD6-HJ6))) ->  | HL6: =IF(NavHistory!$R6="Yes","",IF(HE6<>"No","",IF(INDEX($B$1:$B$682,ROW()+HF$1,1)="","",IF(INDEX($B$1:$B$682,ROW()+HF$1,1)>=HG6,"Yes","No")))) ->  | HM6: =IF(NavHistory!$R6="Yes","",IF(HL6<>"No","",IF(INDEX($B$1:$B$682,ROW()+HM$1,1)="","",MAX(HF6,INDEX($B$1:$B$682,ROW()+HM$1-1,1))*1.06^(1/12)))) ->  | HN6: =IF(NavHistory!$R6="Yes","",IF(HL6<>"No","",IF(INDEX($B$1:$B$682,ROW()+HM$1,1)="","",1.06^(1/12)*HG6))) ->  | HO6: =IF(NavHistory!$R6="Yes","",IF(HL6<>"No","",IF(INDEX($B$1:$B$682,ROW()+HM$1,1)="","",HH6-HI6))) ->  | HP6: =IF(NavHistory!$R6="Yes","",IF(HL6<>"No","",IF(INDEX($B$1:$B$682,ROW()+HM$1,1)="","",MAX(0,MIN((MIN(INDEX($B$1:$B$682,ROW()+HM$1,1),HN6)-HM6)*$A$2,HO6))))) ->  | HQ6: =IF(NavHistory!$R6="Yes","",IF(HL6<>"No","",IF(INDEX($B$1:$B$682,ROW()+HM$1,1)="","",HP6/INDEX($B$1:$B$682,ROW()+HM$1,1)))) ->  | HR6: =IF(NavHistory!$R6="Yes","",IF(HL6<>"No","",IF(INDEX($B$1:$B$682,ROW()+HM$1,1)="","",HK6-HQ6))) ->  | HS6: =IF(NavHistory!$R6="Yes","",IF(HL6<>"No","",IF(INDEX($B$1:$B$682,ROW()+HM$1,1)="","",IF(INDEX($B$1:$B$682,ROW()+HM$1,1)>=HN6,"Yes","No")))) ->  | HT6: =IF(NavHistory!$R6="Yes","",IF(HS6<>"No","",IF(INDEX($B$1:$B$682,ROW()+HT$1,1)="","",MAX(HM6,INDEX($B$1:$B$682,ROW()+HT$1-1,1))*1.06^(1/12)))) ->  | HU6: =IF(NavHistory!$R6="Yes","",IF(HS6<>"No","",IF(INDEX($B$1:$B$682,ROW()+HT$1,1)="","",1.06^(1/12)*HN6))) ->  | HV6: =IF(NavHistory!$R6="Yes","",IF(HS6<>"No","",IF(INDEX($B$1:$B$682,ROW()+HT$1,1)="","",HO6-HP6))) ->  | HW6: =IF(NavHistory!$R6="Yes","",IF(HS6<>"No","",IF(INDEX($B$1:$B$682,ROW()+HT$1,1)="","",MAX(0,MIN((MIN(INDEX($B$1:$B$682,ROW()+HT$1,1),HU6)-HT6)*$A$2,HV6))))) ->  | HX6: =IF(NavHistory!$R6="Yes","",IF(HS6<>"No","",IF(INDEX($B$1:$B$682,ROW()+HT$1,1)="","",HW6/INDEX($B$1:$B$682,ROW()+HT$1,1)))) ->  | HY6: =IF(NavHistory!$R6="Yes","",IF(HS6<>"No","",IF(INDEX($B$1:$B$682,ROW()+HT$1,1)="","",HR6-HX6))) ->  | HZ6: =IF(NavHistory!$R6="Yes","",IF(HS6<>"No","",IF(INDEX($B$1:$B$682,ROW()+HT$1,1)="","",IF(INDEX($B$1:$B$682,ROW()+HT$1,1)>=HU6,"Yes","No")))) ->  | IA6: =IF(NavHistory!$R6="Yes","",IF(HZ6<>"No","",IF(INDEX($B$1:$B$682,ROW()+IA$1,1)="","",MAX(HT6,INDEX($B$1:$B$682,ROW()+IA$1-1,1))*1.06^(1/12)))) ->  | IB6: =IF(NavHistory!$R6="Yes","",IF(HZ6<>"No","",IF(INDEX($B$1:$B$682,ROW()+IA$1,1)="","",1.06^(1/12)*HU6))) ->  | IC6: =IF(NavHistory!$R6="Yes","",IF(HZ6<>"No","",IF(INDEX($B$1:$B$682,ROW()+IA$1,1)="","",HV6-HW6))) ->  | ID6: =IF(NavHistory!$R6="Yes","",IF(HZ6<>"No","",IF(INDEX($B$1:$B$682,ROW()+IA$1,1)="","",MAX(0,MIN((MIN(INDEX($B$1:$B$682,ROW()+IA$1,1),IB6)-IA6)*$A$2,IC6))))) ->  | IE6: =IF(NavHistory!$R6="Yes","",IF(HZ6<>"No","",IF(INDEX($B$1:$B$682,ROW()+IA$1,1)="","",ID6/INDEX($B$1:$B$682,ROW()+IA$1,1)))) ->  | IF6: =IF(NavHistory!$R6="Yes","",IF(HZ6<>"No","",IF(INDEX($B$1:$B$682,ROW()+IA$1,1)="","",HY6-IE6))) ->  | IG6: =IF(NavHistory!$R6="Yes","",IF(HZ6<>"No","",IF(INDEX($B$1:$B$682,ROW()+IA$1,1)="","",IF(INDEX($B$1:$B$682,ROW()+IA$1,1)>=IB6,"Yes","No")))) ->  | IH6: =IF(NavHistory!$R6="Yes","",IF(IG6<>"No","",IF(INDEX($B$1:$B$682,ROW()+IH$1,1)="","",MAX(IA6,INDEX($B$1:$B$682,ROW()+IH$1-1,1))*1.06^(1/12)))) ->  | II6: =IF(NavHistory!$R6="Yes","",IF(IG6<>"No","",IF(INDEX($B$1:$B$682,ROW()+IH$1,1)="","",1.06^(1/12)*IB6))) ->  | IJ6: =IF(NavHistory!$R6="Yes","",IF(IG6<>"No","",IF(INDEX($B$1:$B$682,ROW()+IH$1,1)="","",IC6-ID6))) ->  | IK6: =IF(NavHistory!$R6="Yes","",IF(IG6<>"No","",IF(INDEX($B$1:$B$682,ROW()+IH$1,1)="","",MAX(0,MIN((MIN(INDEX($B$1:$B$682,ROW()+IH$1,1),II6)-IH6)*$A$2,IJ6))))) ->  | IL6: =IF(NavHistory!$R6="Yes","",IF(IG6<>"No","",IF(INDEX($B$1:$B$682,ROW()+IH$1,1)="","",IK6/INDEX($B$1:$B$682,ROW()+IH$1,1)))) ->  | IM6: =IF(NavHistory!$R6="Yes","",IF(IG6<>"No","",IF(INDEX($B$1:$B$682,ROW()+IH$1,1)="","",IF6-IL6))) ->  | IN6: =IF(NavHistory!$R6="Yes","",IF(IG6<>"No","",IF(INDEX($B$1:$B$682,ROW()+IH$1,1)="","",IF(INDEX($B$1:$B$682,ROW()+IH$1,1)>=II6,"Yes","No")))) ->  | IO6: =IF(NavHistory!$R6="Yes","",IF(IN6<>"No","",IF(INDEX($B$1:$B$682,ROW()+IO$1,1)="","",MAX(IH6,INDEX($B$1:$B$682,ROW()+IO$1-1,1))*1.06^(1/12)))) ->  | IP6: =IF(NavHistory!$R6="Yes","",IF(IN6<>"No","",IF(INDEX($B$1:$B$682,ROW()+IO$1,1)="","",1.06^(1/12)*II6))) ->  | IQ6: =IF(NavHistory!$R6="Yes","",IF(IN6<>"No","",IF(INDEX($B$1:$B$682,ROW()+IO$1,1)="","",IJ6-IK6))) ->  | IR6: =IF(NavHistory!$R6="Yes","",IF(IN6<>"No","",IF(INDEX($B$1:$B$682,ROW()+IO$1,1)="","",MAX(0,MIN((MIN(INDEX($B$1:$B$682,ROW()+IO$1,1),IP6)-IO6)*$A$2,IQ6))))) ->  | IS6: =IF(NavHistory!$R6="Yes","",IF(IN6<>"No","",IF(INDEX($B$1:$B$682,ROW()+IO$1,1)="","",IR6/INDEX($B$1:$B$682,ROW()+IO$1,1)))) ->  | IT6: =IF(NavHistory!$R6="Yes","",IF(IN6<>"No","",IF(INDEX($B$1:$B$682,ROW()+IO$1,1)="","",IM6-IS6))) ->  | IU6: =IF(NavHistory!$R6="Yes","",IF(IN6<>"No","",IF(INDEX($B$1:$B$682,ROW()+IO$1,1)="","",IF(INDEX($B$1:$B$682,ROW()+IO$1,1)>=IP6,"Yes","No")))) -> 
A7: =IF(NavHistory!A7="","",NavHistory!A7) -> 2017-11-30 | B7: =IF(NavHistory!B7="","",NavHistory!B7) -> 10.8181 | C7: =IF(NavHistory!G7="","",NavHistory!G7) -> 10.8181 | D7: =IF(NavHistory!$R7="Yes","",IF(INDEX($B$1:$B$682,ROW()+D$1,1)="","",1.06^($D$1/12)*B7)) ->  | E7: =IF(NavHistory!$R7="Yes","",IF(INDEX($B$1:$B$682,ROW()+D$1,1)="","",1.06^(1/12)*C7)) ->  | F7: =IF(NavHistory!$R7="Yes","",IF(INDEX($B$1:$B$682,ROW()+D$1,1)="","",(C7-B7)*$A$2)) ->  | G7: =IF(NavHistory!$R7="Yes","",IF(INDEX($B$1:$B$682,ROW()+D$1,1)="","",MAX(0,MIN((MIN($B8,E7)-D7)*$A$2,F7)))) ->  | H7: =IF(NavHistory!$R7="Yes","",IF(INDEX($B$1:$B$682,ROW()+D$1,1)="","",G7/B8)) ->  | I7: =IF(NavHistory!$R7="Yes","",IF(INDEX($B$1:$B$682,ROW()+D$1,1)="","",1-H7)) ->  | J7: =IF(NavHistory!$R7="Yes","",IF(INDEX($B$1:$B$682,ROW()+D$1,1)="","",IF(B8>=E7,"Yes","No"))) ->  | K7: =IF(NavHistory!$R7="Yes","",IF(J7<>"No","",IF(INDEX($B$1:$B$682,ROW()+K$1,1)="","",MAX(D7,INDEX($B$1:$B$682,ROW()+K$1-1,1))*1.06^(1/12)))) ->  | L7: =IF(NavHistory!$R7="Yes","",IF(J7<>"No","",IF(INDEX($B$1:$B$682,ROW()+K$1,1)="","",1.06^(1/12)*E7))) ->  | M7: =IF(NavHistory!$R7="Yes","",IF(J7<>"No","",IF(INDEX($B$1:$B$682,ROW()+K$1,1)="","",F7-G7))) ->  | N7: =IF(NavHistory!$R7="Yes","",IF(J7<>"No","",IF(INDEX($B$1:$B$682,ROW()+K$1,1)="","",MAX(0,MIN((MIN(INDEX($B$1:$B$682,ROW()+K$1,1),L7)-K7)*$A$2,M7))))) ->  | O7: =IF(NavHistory!$R7="Yes","",IF(J7<>"No","",IF(INDEX($B$1:$B$682,ROW()+K$1,1)="","",N7/INDEX($B$1:$B$682,ROW()+K$1,1)))) ->  | P7: =IF(NavHistory!$R7="Yes","",IF(J7<>"No","",IF(INDEX($B$1:$B$682,ROW()+K$1,1)="","",I7-O7))) ->  | Q7: =IF(NavHistory!$R7="Yes","",IF(J7<>"No","",IF(INDEX($B$1:$B$682,ROW()+K$1,1)="","",IF(INDEX($B$1:$B$682,ROW()+K$1,1)>=L7,"Yes","No")))) ->  | R7: =IF(NavHistory!$R7="Yes","",IF(Q7<>"No","",IF(INDEX($B$1:$B$682,ROW()+R$1,1)="","",MAX(K7,INDEX($B$1:$B$682,ROW()+R$1-1,1))*1.06^(1/12)))) ->  | S7: =IF(NavHistory!$R7="Yes","",IF(Q7<>"No","",IF(INDEX($B$1:$B$682,ROW()+R$1,1)="","",1.06^(1/12)*L7))) ->  | T7: =IF(NavHistory!$R7="Yes","",IF(Q7<>"No","",IF(INDEX($B$1:$B$682,ROW()+R$1,1)="","",M7-N7))) ->  | U7: =IF(NavHistory!$R7="Yes","",IF(Q7<>"No","",IF(INDEX($B$1:$B$682,ROW()+R$1,1)="","",MAX(0,MIN((MIN(INDEX($B$1:$B$682,ROW()+R$1,1),S7)-R7)*$A$2,T7))))) ->  | V7: =IF(NavHistory!$R7="Yes","",IF(Q7<>"No","",IF(INDEX($B$1:$B$682,ROW()+R$1,1)="","",U7/INDEX($B$1:$B$682,ROW()+R$1,1)))) ->  | W7: =IF(NavHistory!$R7="Yes","",IF(Q7<>"No","",IF(INDEX($B$1:$B$682,ROW()+R$1,1)="","",P7-V7))) ->  | X7: =IF(NavHistory!$R7="Yes","",IF(Q7<>"No","",IF(INDEX($B$1:$B$682,ROW()+R$1,1)="","",IF(INDEX($B$1:$B$682,ROW()+R$1,1)>=S7,"Yes","No")))) ->  | Y7: =IF(NavHistory!$R7="Yes","",IF(X7<>"No","",IF(INDEX($B$1:$B$682,ROW()+Y$1,1)="","",MAX(R7,INDEX($B$1:$B$682,ROW()+Y$1-1,1))*1.06^(1/12)))) ->  | Z7: =IF(NavHistory!$R7="Yes","",IF(X7<>"No","",IF(INDEX($B$1:$B$682,ROW()+Y$1,1)="","",1.06^(1/12)*S7))) ->  | AA7: =IF(NavHistory!$R7="Yes","",IF(X7<>"No","",IF(INDEX($B$1:$B$682,ROW()+Y$1,1)="","",T7-U7))) ->  | AB7: =IF(NavHistory!$R7="Yes","",IF(X7<>"No","",IF(INDEX($B$1:$B$682,ROW()+Y$1,1)="","",MAX(0,MIN((MIN(INDEX($B$1:$B$682,ROW()+Y$1,1),Z7)-Y7)*$A$2,AA7))))) ->  | AC7: =IF(NavHistory!$R7="Yes","",IF(X7<>"No","",IF(INDEX($B$1:$B$682,ROW()+Y$1,1)="","",AB7/INDEX($B$1:$B$682,ROW()+Y$1,1)))) ->  | AD7: =IF(NavHistory!$R7="Yes","",IF(X7<>"No","",IF(INDEX($B$1:$B$682,ROW()+Y$1,1)="","",W7-AC7))) ->  | AE7: =IF(NavHistory!$R7="Yes","",IF(X7<>"No","",IF(INDEX($B$1:$B$682,ROW()+Y$1,1)="","",IF(INDEX($B$1:$B$682,ROW()+Y$1,1)>=Z7,"Yes","No")))) ->  | AF7: =IF(NavHistory!$R7="Yes","",IF(AE7<>"No","",IF(INDEX($B$1:$B$682,ROW()+AF$1,1)="","",MAX(Y7,INDEX($B$1:$B$682,ROW()+AF$1-1,1))*1.06^(1/12)))) ->  | AG7: =IF(NavHistory!$R7="Yes","",IF(AE7<>"No","",IF(INDEX($B$1:$B$682,ROW()+AF$1,1)="","",1.06^(1/12)*Z7))) ->  | AH7: =IF(NavHistory!$R7="Yes","",IF(AE7<>"No","",IF(INDEX($B$1:$B$682,ROW()+AF$1,1)="","",AA7-AB7))) ->  | AI7: =IF(NavHistory!$R7="Yes","",IF(AE7<>"No","",IF(INDEX($B$1:$B$682,ROW()+AF$1,1)="","",MAX(0,MIN((MIN(INDEX($B$1:$B$682,ROW()+AF$1,1),AG7)-AF7)*$A$2,AH7))))) ->  | AJ7: =IF(NavHistory!$R7="Yes","",IF(AE7<>"No","",IF(INDEX($B$1:$B$682,ROW()+AF$1,1)="","",AI7/INDEX($B$1:$B$682,ROW()+AF$1,1)))) ->  | AK7: =IF(NavHistory!$R7="Yes","",IF(AE7<>"No","",IF(INDEX($B$1:$B$682,ROW()+AF$1,1)="","",AD7-AJ7))) ->  | AL7: =IF(NavHistory!$R7="Yes","",IF(AE7<>"No","",IF(INDEX($B$1:$B$682,ROW()+AF$1,1)="","",IF(INDEX($B$1:$B$682,ROW()+AF$1,1)>=AG7,"Yes","No")))) ->  | AM7: =IF(NavHistory!$R7="Yes","",IF(AL7<>"No","",IF(INDEX($B$1:$B$682,ROW()+AM$1,1)="","",MAX(AF7,INDEX($B$1:$B$682,ROW()+AM$1-1,1))*1.06^(1/12)))) ->  | AN7: =IF(NavHistory!$R7="Yes","",IF(AL7<>"No","",IF(INDEX($B$1:$B$682,ROW()+AM$1,1)="","",1.06^(1/12)*AG7))) ->  | AO7: =IF(NavHistory!$R7="Yes","",IF(AL7<>"No","",IF(INDEX($B$1:$B$682,ROW()+AM$1,1)="","",AH7-AI7))) ->  | AP7: =IF(NavHistory!$R7="Yes","",IF(AL7<>"No","",IF(INDEX($B$1:$B$682,ROW()+AM$1,1)="","",MAX(0,MIN((MIN(INDEX($B$1:$B$682,ROW()+AM$1,1),AN7)-AM7)*$A$2,AO7))))) ->  | AQ7: =IF(NavHistory!$R7="Yes","",IF(AL7<>"No","",IF(INDEX($B$1:$B$682,ROW()+AM$1,1)="","",AP7/INDEX($B$1:$B$682,ROW()+AM$1,1)))) ->  | AR7: =IF(NavHistory!$R7="Yes","",IF(AL7<>"No","",IF(INDEX($B$1:$B$682,ROW()+AM$1,1)="","",AK7-AQ7))) ->  | AS7: =IF(NavHistory!$R7="Yes","",IF(AL7<>"No","",IF(INDEX($B$1:$B$682,ROW()+AM$1,1)="","",IF(INDEX($B$1:$B$682,ROW()+AM$1,1)>=AN7,"Yes","No")))) ->  | AT7: =IF(NavHistory!$R7="Yes","",IF(AS7<>"No","",IF(INDEX($B$1:$B$682,ROW()+AT$1,1)="","",MAX(AM7,INDEX($B$1:$B$682,ROW()+AT$1-1,1))*1.06^(1/12)))) ->  | AU7: =IF(NavHistory!$R7="Yes","",IF(AS7<>"No","",IF(INDEX($B$1:$B$682,ROW()+AT$1,1)="","",1.06^(1/12)*AN7))) ->  | AV7: =IF(NavHistory!$R7="Yes","",IF(AS7<>"No","",IF(INDEX($B$1:$B$682,ROW()+AT$1,1)="","",AO7-AP7))) ->  | AW7: =IF(NavHistory!$R7="Yes","",IF(AS7<>"No","",IF(INDEX($B$1:$B$682,ROW()+AT$1,1)="","",MAX(0,MIN((MIN(INDEX($B$1:$B$682,ROW()+AT$1,1),AU7)-AT7)*$A$2,AV7))))) ->  | AX7: =IF(NavHistory!$R7="Yes","",IF(AS7<>"No","",IF(INDEX($B$1:$B$682,ROW()+AT$1,1)="","",AW7/INDEX($B$1:$B$682,ROW()+AT$1,1)))) ->  | AY7: =IF(NavHistory!$R7="Yes","",IF(AS7<>"No","",IF(INDEX($B$1:$B$682,ROW()+AT$1,1)="","",AR7-AX7))) ->  | AZ7: =IF(NavHistory!$R7="Yes","",IF(AS7<>"No","",IF(INDEX($B$1:$B$682,ROW()+AT$1,1)="","",IF(INDEX($B$1:$B$682,ROW()+AT$1,1)>=AU7,"Yes","No")))) ->  | BA7: =IF(NavHistory!$R7="Yes","",IF(AZ7<>"No","",IF(INDEX($B$1:$B$682,ROW()+BA$1,1)="","",MAX(AT7,INDEX($B$1:$B$682,ROW()+BA$1-1,1))*1.06^(1/12)))) ->  | BB7: =IF(NavHistory!$R7="Yes","",IF(AZ7<>"No","",IF(INDEX($B$1:$B$682,ROW()+BA$1,1)="","",1.06^(1/12)*AU7))) ->  | BC7: =IF(NavHistory!$R7="Yes","",IF(AZ7<>"No","",IF(INDEX($B$1:$B$682,ROW()+BA$1,1)="","",AV7-AW7))) ->  | BD7: =IF(NavHistory!$R7="Yes","",IF(AZ7<>"No","",IF(INDEX($B$1:$B$682,ROW()+BA$1,1)="","",MAX(0,MIN((MIN(INDEX($B$1:$B$682,ROW()+BA$1,1),BB7)-BA7)*$A$2,BC7))))) ->  | BE7: =IF(NavHistory!$R7="Yes","",IF(AZ7<>"No","",IF(INDEX($B$1:$B$682,ROW()+BA$1,1)="","",BD7/INDEX($B$1:$B$682,ROW()+BA$1,1)))) ->  | BF7: =IF(NavHistory!$R7="Yes","",IF(AZ7<>"No","",IF(INDEX($B$1:$B$682,ROW()+BA$1,1)="","",AY7-BE7))) ->  | BG7: =IF(NavHistory!$R7="Yes","",IF(AZ7<>"No","",IF(INDEX($B$1:$B$682,ROW()+BA$1,1)="","",IF(INDEX($B$1:$B$682,ROW()+BA$1,1)>=BB7,"Yes","No")))) ->  | BH7: =IF(NavHistory!$R7="Yes","",IF(BG7<>"No","",IF(INDEX($B$1:$B$682,ROW()+BH$1,1)="","",MAX(BA7,INDEX($B$1:$B$682,ROW()+BH$1-1,1))*1.06^(1/12)))) ->  | BI7: =IF(NavHistory!$R7="Yes","",IF(BG7<>"No","",IF(INDEX($B$1:$B$682,ROW()+BH$1,1)="","",1.06^(1/12)*BB7))) ->  | BJ7: =IF(NavHistory!$R7="Yes","",IF(BG7<>"No","",IF(INDEX($B$1:$B$682,ROW()+BH$1,1)="","",BC7-BD7))) ->  | BK7: =IF(NavHistory!$R7="Yes","",IF(BG7<>"No","",IF(INDEX($B$1:$B$682,ROW()+BH$1,1)="","",MAX(0,MIN((MIN(INDEX($B$1:$B$682,ROW()+BH$1,1),BI7)-BH7)*$A$2,BJ7))))) ->  | BL7: =IF(NavHistory!$R7="Yes","",IF(BG7<>"No","",IF(INDEX($B$1:$B$682,ROW()+BH$1,1)="","",BK7/INDEX($B$1:$B$682,ROW()+BH$1,1)))) ->  | BM7: =IF(NavHistory!$R7="Yes","",IF(BG7<>"No","",IF(INDEX($B$1:$B$682,ROW()+BH$1,1)="","",BF7-BL7))) ->  | BN7: =IF(NavHistory!$R7="Yes","",IF(BG7<>"No","",IF(INDEX($B$1:$B$682,ROW()+BH$1,1)="","",IF(INDEX($B$1:$B$682,ROW()+BH$1,1)>=BI7,"Yes","No")))) ->  | BO7: =IF(NavHistory!$R7="Yes","",IF(BN7<>"No","",IF(INDEX($B$1:$B$682,ROW()+BO$1,1)="","",MAX(BH7,INDEX($B$1:$B$682,ROW()+BO$1-1,1))*1.06^(1/12)))) ->  | BP7: =IF(NavHistory!$R7="Yes","",IF(BN7<>"No","",IF(INDEX($B$1:$B$682,ROW()+BO$1,1)="","",1.06^(1/12)*BI7))) ->  | BQ7: =IF(NavHistory!$R7="Yes","",IF(BN7<>"No","",IF(INDEX($B$1:$B$682,ROW()+BO$1,1)="","",BJ7-BK7))) ->  | BR7: =IF(NavHistory!$R7="Yes","",IF(BN7<>"No","",IF(INDEX($B$1:$B$682,ROW()+BO$1,1)="","",MAX(0,MIN((MIN(INDEX($B$1:$B$682,ROW()+BO$1,1),BP7)-BO7)*$A$2,BQ7))))) ->  | BS7: =IF(NavHistory!$R7="Yes","",IF(BN7<>"No","",IF(INDEX($B$1:$B$682,ROW()+BO$1,1)="","",BR7/INDEX($B$1:$B$682,ROW()+BO$1,1)))) ->  | BT7: =IF(NavHistory!$R7="Yes","",IF(BN7<>"No","",IF(INDEX($B$1:$B$682,ROW()+BO$1,1)="","",BM7-BS7))) ->  | BU7: =IF(NavHistory!$R7="Yes","",IF(BN7<>"No","",IF(INDEX($B$1:$B$682,ROW()+BO$1,1)="","",IF(INDEX($B$1:$B$682,ROW()+BO$1,1)>=BP7,"Yes","No")))) ->  | BV7: =IF(NavHistory!$R7="Yes","",IF(BU7<>"No","",IF(INDEX($B$1:$B$682,ROW()+BV$1,1)="","",MAX(BO7,INDEX($B$1:$B$682,ROW()+BV$1-1,1))*1.06^(1/12)))) ->  | BW7: =IF(NavHistory!$R7="Yes","",IF(BU7<>"No","",IF(INDEX($B$1:$B$682,ROW()+BV$1,1)="","",1.06^(1/12)*BP7))) ->  | BX7: =IF(NavHistory!$R7="Yes","",IF(BU7<>"No","",IF(INDEX($B$1:$B$682,ROW()+BV$1,1)="","",BQ7-BR7))) ->  | BY7: =IF(NavHistory!$R7="Yes","",IF(BU7<>"No","",IF(INDEX($B$1:$B$682,ROW()+BV$1,1)="","",MAX(0,MIN((MIN(INDEX($B$1:$B$682,ROW()+BV$1,1),BW7)-BV7)*$A$2,BX7))))) ->  | BZ7: =IF(NavHistory!$R7="Yes","",IF(BU7<>"No","",IF(INDEX($B$1:$B$682,ROW()+BV$1,1)="","",BY7/INDEX($B$1:$B$682,ROW()+BV$1,1)))) ->  | CA7: =IF(NavHistory!$R7="Yes","",IF(BU7<>"No","",IF(INDEX($B$1:$B$682,ROW()+BV$1,1)="","",BT7-BZ7))) ->  | CB7: =IF(NavHistory!$R7="Yes","",IF(BU7<>"No","",IF(INDEX($B$1:$B$682,ROW()+BV$1,1)="","",IF(INDEX($B$1:$B$682,ROW()+BV$1,1)>=BW7,"Yes","No")))) ->  | CC7: =IF(NavHistory!$R7="Yes","",IF(CB7<>"No","",IF(INDEX($B$1:$B$682,ROW()+CC$1,1)="","",MAX(BV7,INDEX($B$1:$B$682,ROW()+CC$1-1,1))*1.06^(1/12)))) ->  | CD7: =IF(NavHistory!$R7="Yes","",IF(CB7<>"No","",IF(INDEX($B$1:$B$682,ROW()+CC$1,1)="","",1.06^(1/12)*BW7))) ->  | CE7: =IF(NavHistory!$R7="Yes","",IF(CB7<>"No","",IF(INDEX($B$1:$B$682,ROW()+CC$1,1)="","",BX7-BY7))) ->  | CF7: =IF(NavHistory!$R7="Yes","",IF(CB7<>"No","",IF(INDEX($B$1:$B$682,ROW()+CC$1,1)="","",MAX(0,MIN((MIN(INDEX($B$1:$B$682,ROW()+CC$1,1),CD7)-CC7)*$A$2,CE7))))) ->  | CG7: =IF(NavHistory!$R7="Yes","",IF(CB7<>"No","",IF(INDEX($B$1:$B$682,ROW()+CC$1,1)="","",CF7/INDEX($B$1:$B$682,ROW()+CC$1,1)))) ->  | CH7: =IF(NavHistory!$R7="Yes","",IF(CB7<>"No","",IF(INDEX($B$1:$B$682,ROW()+CC$1,1)="","",CA7-CG7))) ->  | CI7: =IF(NavHistory!$R7="Yes","",IF(CB7<>"No","",IF(INDEX($B$1:$B$682,ROW()+CC$1,1)="","",IF(INDEX($B$1:$B$682,ROW()+CC$1,1)>=CD7,"Yes","No")))) ->  | CJ7: =IF(NavHistory!$R7="Yes","",IF(CI7<>"No","",IF(INDEX($B$1:$B$682,ROW()+CJ$1,1)="","",MAX(CC7,INDEX($B$1:$B$682,ROW()+CJ$1-1,1))*1.06^(1/12)))) ->  | CK7: =IF(NavHistory!$R7="Yes","",IF(CI7<>"No","",IF(INDEX($B$1:$B$682,ROW()+CJ$1,1)="","",1.06^(1/12)*CD7))) ->  | CL7: =IF(NavHistory!$R7="Yes","",IF(CI7<>"No","",IF(INDEX($B$1:$B$682,ROW()+CJ$1,1)="","",CE7-CF7))) ->  | CM7: =IF(NavHistory!$R7="Yes","",IF(CI7<>"No","",IF(INDEX($B$1:$B$682,ROW()+CJ$1,1)="","",MAX(0,MIN((MIN(INDEX($B$1:$B$682,ROW()+CJ$1,1),CK7)-CJ7)*$A$2,CL7))))) ->  | CN7: =IF(NavHistory!$R7="Yes","",IF(CI7<>"No","",IF(INDEX($B$1:$B$682,ROW()+CJ$1,1)="","",CM7/INDEX($B$1:$B$682,ROW()+CJ$1,1)))) ->  | CO7: =IF(NavHistory!$R7="Yes","",IF(CI7<>"No","",IF(INDEX($B$1:$B$682,ROW()+CJ$1,1)="","",CH7-CN7))) ->  | CP7: =IF(NavHistory!$R7="Yes","",IF(CI7<>"No","",IF(INDEX($B$1:$B$682,ROW()+CJ$1,1)="","",IF(INDEX($B$1:$B$682,ROW()+CJ$1,1)>=CK7,"Yes","No")))) ->  | CQ7: =IF(NavHistory!$R7="Yes","",IF(CP7<>"No","",IF(INDEX($B$1:$B$682,ROW()+CQ$1,1)="","",MAX(CJ7,INDEX($B$1:$B$682,ROW()+CQ$1-1,1))*1.06^(1/12)))) ->  | CR7: =IF(NavHistory!$R7="Yes","",IF(CP7<>"No","",IF(INDEX($B$1:$B$682,ROW()+CQ$1,1)="","",1.06^(1/12)*CK7))) ->  | CS7: =IF(NavHistory!$R7="Yes","",IF(CP7<>"No","",IF(INDEX($B$1:$B$682,ROW()+CQ$1,1)="","",CL7-CM7))) ->  | CT7: =IF(NavHistory!$R7="Yes","",IF(CP7<>"No","",IF(INDEX($B$1:$B$682,ROW()+CQ$1,1)="","",MAX(0,MIN((MIN(INDEX($B$1:$B$682,ROW()+CQ$1,1),CR7)-CQ7)*$A$2,CS7))))) ->  | CU7: =IF(NavHistory!$R7="Yes","",IF(CP7<>"No","",IF(INDEX($B$1:$B$682,ROW()+CQ$1,1)="","",CT7/INDEX($B$1:$B$682,ROW()+CQ$1,1)))) ->  | CV7: =IF(NavHistory!$R7="Yes","",IF(CP7<>"No","",IF(INDEX($B$1:$B$682,ROW()+CQ$1,1)="","",CO7-CU7))) ->  | CW7: =IF(NavHistory!$R7="Yes","",IF(CP7<>"No","",IF(INDEX($B$1:$B$682,ROW()+CQ$1,1)="","",IF(INDEX($B$1:$B$682,ROW()+CQ$1,1)>=CR7,"Yes","No")))) ->  | CX7: =IF(NavHistory!$R7="Yes","",IF(CW7<>"No","",IF(INDEX($B$1:$B$682,ROW()+CX$1,1)="","",MAX(CQ7,INDEX($B$1:$B$682,ROW()+CX$1-1,1))*1.06^(1/12)))) ->  | CY7: =IF(NavHistory!$R7="Yes","",IF(CW7<>"No","",IF(INDEX($B$1:$B$682,ROW()+CX$1,1)="","",1.06^(1/12)*CR7))) ->  | CZ7: =IF(NavHistory!$R7="Yes","",IF(CW7<>"No","",IF(INDEX($B$1:$B$682,ROW()+CX$1,1)="","",CS7-CT7))) ->  | DA7: =IF(NavHistory!$R7="Yes","",IF(CW7<>"No","",IF(INDEX($B$1:$B$682,ROW()+CX$1,1)="","",MAX(0,MIN((MIN(INDEX($B$1:$B$682,ROW()+CX$1,1),CY7)-CX7)*$A$2,CZ7))))) ->  | DB7: =IF(NavHistory!$R7="Yes","",IF(CW7<>"No","",IF(INDEX($B$1:$B$682,ROW()+CX$1,1)="","",DA7/INDEX($B$1:$B$682,ROW()+CX$1,1)))) ->  | DC7: =IF(NavHistory!$R7="Yes","",IF(CW7<>"No","",IF(INDEX($B$1:$B$682,ROW()+CX$1,1)="","",CV7-DB7))) ->  | DD7: =IF(NavHistory!$R7="Yes","",IF(CW7<>"No","",IF(INDEX($B$1:$B$682,ROW()+CX$1,1)="","",IF(INDEX($B$1:$B$682,ROW()+CX$1,1)>=CY7,"Yes","No")))) ->  | DE7: =IF(NavHistory!$R7="Yes","",IF(DD7<>"No","",IF(INDEX($B$1:$B$682,ROW()+DE$1,1)="","",MAX(CX7,INDEX($B$1:$B$682,ROW()+DE$1-1,1))*1.06^(1/12)))) ->  | DF7: =IF(NavHistory!$R7="Yes","",IF(DD7<>"No","",IF(INDEX($B$1:$B$682,ROW()+DE$1,1)="","",1.06^(1/12)*CY7))) ->  | DG7: =IF(NavHistory!$R7="Yes","",IF(DD7<>"No","",IF(INDEX($B$1:$B$682,ROW()+DE$1,1)="","",CZ7-DA7))) ->  | DH7: =IF(NavHistory!$R7="Yes","",IF(DD7<>"No","",IF(INDEX($B$1:$B$682,ROW()+DE$1,1)="","",MAX(0,MIN((MIN(INDEX($B$1:$B$682,ROW()+DE$1,1),DF7)-DE7)*$A$2,DG7))))) ->  | DI7: =IF(NavHistory!$R7="Yes","",IF(DD7<>"No","",IF(INDEX($B$1:$B$682,ROW()+DE$1,1)="","",DH7/INDEX($B$1:$B$682,ROW()+DE$1,1)))) ->  | DJ7: =IF(NavHistory!$R7="Yes","",IF(DD7<>"No","",IF(INDEX($B$1:$B$682,ROW()+DE$1,1)="","",DC7-DI7))) ->  | DK7: =IF(NavHistory!$R7="Yes","",IF(DD7<>"No","",IF(INDEX($B$1:$B$682,ROW()+DE$1,1)="","",IF(INDEX($B$1:$B$682,ROW()+DE$1,1)>=DF7,"Yes","No")))) ->  | DL7: =IF(NavHistory!$R7="Yes","",IF(DK7<>"No","",IF(INDEX($B$1:$B$682,ROW()+DL$1,1)="","",MAX(DE7,INDEX($B$1:$B$682,ROW()+DL$1-1,1))*1.06^(1/12)))) ->  | DM7: =IF(NavHistory!$R7="Yes","",IF(DK7<>"No","",IF(INDEX($B$1:$B$682,ROW()+DL$1,1)="","",1.06^(1/12)*DF7))) ->  | DN7: =IF(NavHistory!$R7="Yes","",IF(DK7<>"No","",IF(INDEX($B$1:$B$682,ROW()+DL$1,1)="","",DG7-DH7))) ->  | DO7: =IF(NavHistory!$R7="Yes","",IF(DK7<>"No","",IF(INDEX($B$1:$B$682,ROW()+DL$1,1)="","",MAX(0,MIN((MIN(INDEX($B$1:$B$682,ROW()+DL$1,1),DM7)-DL7)*$A$2,DN7))))) ->  | DP7: =IF(NavHistory!$R7="Yes","",IF(DK7<>"No","",IF(INDEX($B$1:$B$682,ROW()+DL$1,1)="","",DO7/INDEX($B$1:$B$682,ROW()+DL$1,1)))) ->  | DQ7: =IF(NavHistory!$R7="Yes","",IF(DK7<>"No","",IF(INDEX($B$1:$B$682,ROW()+DL$1,1)="","",DJ7-DP7))) ->  | DR7: =IF(NavHistory!$R7="Yes","",IF(DK7<>"No","",IF(INDEX($B$1:$B$682,ROW()+DL$1,1)="","",IF(INDEX($B$1:$B$682,ROW()+DL$1,1)>=DM7,"Yes","No")))) ->  | DS7: =IF(NavHistory!$R7="Yes","",IF(DR7<>"No","",IF(INDEX($B$1:$B$682,ROW()+DS$1,1)="","",MAX(DL7,INDEX($B$1:$B$682,ROW()+DS$1-1,1))*1.06^(1/12)))) ->  | DT7: =IF(NavHistory!$R7="Yes","",IF(DR7<>"No","",IF(INDEX($B$1:$B$682,ROW()+DS$1,1)="","",1.06^(1/12)*DM7))) ->  | DU7: =IF(NavHistory!$R7="Yes","",IF(DR7<>"No","",IF(INDEX($B$1:$B$682,ROW()+DS$1,1)="","",DN7-DO7))) ->  | DV7: =IF(NavHistory!$R7="Yes","",IF(DR7<>"No","",IF(INDEX($B$1:$B$682,ROW()+DS$1,1)="","",MAX(0,MIN((MIN(INDEX($B$1:$B$682,ROW()+DS$1,1),DT7)-DS7)*$A$2,DU7))))) ->  | DW7: =IF(NavHistory!$R7="Yes","",IF(DR7<>"No","",IF(INDEX($B$1:$B$682,ROW()+DS$1,1)="","",DV7/INDEX($B$1:$B$682,ROW()+DS$1,1)))) ->  | DX7: =IF(NavHistory!$R7="Yes","",IF(DR7<>"No","",IF(INDEX($B$1:$B$682,ROW()+DS$1,1)="","",DQ7-DW7))) ->  | DY7: =IF(NavHistory!$R7="Yes","",IF(DR7<>"No","",IF(INDEX($B$1:$B$682,ROW()+DS$1,1)="","",IF(INDEX($B$1:$B$682,ROW()+DS$1,1)>=DT7,"Yes","No")))) ->  | DZ7: =IF(NavHistory!$R7="Yes","",IF(DY7<>"No","",IF(INDEX($B$1:$B$682,ROW()+DZ$1,1)="","",MAX(DS7,INDEX($B$1:$B$682,ROW()+DZ$1-1,1))*1.06^(1/12)))) ->  | EA7: =IF(NavHistory!$R7="Yes","",IF(DY7<>"No","",IF(INDEX($B$1:$B$682,ROW()+DZ$1,1)="","",1.06^(1/12)*DT7))) ->  | EB7: =IF(NavHistory!$R7="Yes","",IF(DY7<>"No","",IF(INDEX($B$1:$B$682,ROW()+DZ$1,1)="","",DU7-DV7))) ->  | EC7: =IF(NavHistory!$R7="Yes","",IF(DY7<>"No","",IF(INDEX($B$1:$B$682,ROW()+DZ$1,1)="","",MAX(0,MIN((MIN(INDEX($B$1:$B$682,ROW()+DZ$1,1),EA7)-DZ7)*$A$2,EB7))))) ->  | ED7: =IF(NavHistory!$R7="Yes","",IF(DY7<>"No","",IF(INDEX($B$1:$B$682,ROW()+DZ$1,1)="","",EC7/INDEX($B$1:$B$682,ROW()+DZ$1,1)))) ->  | EE7: =IF(NavHistory!$R7="Yes","",IF(DY7<>"No","",IF(INDEX($B$1:$B$682,ROW()+DZ$1,1)="","",DX7-ED7))) ->  | EF7: =IF(NavHistory!$R7="Yes","",IF(DY7<>"No","",IF(INDEX($B$1:$B$682,ROW()+DZ$1,1)="","",IF(INDEX($B$1:$B$682,ROW()+DZ$1,1)>=EA7,"Yes","No")))) ->  | EG7: =IF(NavHistory!$R7="Yes","",IF(EF7<>"No","",IF(INDEX($B$1:$B$682,ROW()+EG$1,1)="","",MAX(DZ7,INDEX($B$1:$B$682,ROW()+EG$1-1,1))*1.06^(1/12)))) ->  | EH7: =IF(NavHistory!$R7="Yes","",IF(EF7<>"No","",IF(INDEX($B$1:$B$682,ROW()+EG$1,1)="","",1.06^(1/12)*EA7))) ->  | EI7: =IF(NavHistory!$R7="Yes","",IF(EF7<>"No","",IF(INDEX($B$1:$B$682,ROW()+EG$1,1)="","",EB7-EC7))) ->  | EJ7: =IF(NavHistory!$R7="Yes","",IF(EF7<>"No","",IF(INDEX($B$1:$B$682,ROW()+EG$1,1)="","",MAX(0,MIN((MIN(INDEX($B$1:$B$682,ROW()+EG$1,1),EH7)-EG7)*$A$2,EI7))))) ->  | EK7: =IF(NavHistory!$R7="Yes","",IF(EF7<>"No","",IF(INDEX($B$1:$B$682,ROW()+EG$1,1)="","",EJ7/INDEX($B$1:$B$682,ROW()+EG$1,1)))) ->  | EL7: =IF(NavHistory!$R7="Yes","",IF(EF7<>"No","",IF(INDEX($B$1:$B$682,ROW()+EG$1,1)="","",EE7-EK7))) ->  | EM7: =IF(NavHistory!$R7="Yes","",IF(EF7<>"No","",IF(INDEX($B$1:$B$682,ROW()+EG$1,1)="","",IF(INDEX($B$1:$B$682,ROW()+EG$1,1)>=EH7,"Yes","No")))) ->  | EN7: =IF(NavHistory!$R7="Yes","",IF(EM7<>"No","",IF(INDEX($B$1:$B$682,ROW()+EN$1,1)="","",MAX(EG7,INDEX($B$1:$B$682,ROW()+EN$1-1,1))*1.06^(1/12)))) ->  | EO7: =IF(NavHistory!$R7="Yes","",IF(EM7<>"No","",IF(INDEX($B$1:$B$682,ROW()+EN$1,1)="","",1.06^(1/12)*EH7))) ->  | EP7: =IF(NavHistory!$R7="Yes","",IF(EM7<>"No","",IF(INDEX($B$1:$B$682,ROW()+EN$1,1)="","",EI7-EJ7))) ->  | EQ7: =IF(NavHistory!$R7="Yes","",IF(EM7<>"No","",IF(INDEX($B$1:$B$682,ROW()+EN$1,1)="","",MAX(0,MIN((MIN(INDEX($B$1:$B$682,ROW()+EN$1,1),EO7)-EN7)*$A$2,EP7))))) ->  | ER7: =IF(NavHistory!$R7="Yes","",IF(EM7<>"No","",IF(INDEX($B$1:$B$682,ROW()+EN$1,1)="","",EQ7/INDEX($B$1:$B$682,ROW()+EN$1,1)))) ->  | ES7: =IF(NavHistory!$R7="Yes","",IF(EM7<>"No","",IF(INDEX($B$1:$B$682,ROW()+EN$1,1)="","",EL7-ER7))) ->  | ET7: =IF(NavHistory!$R7="Yes","",IF(EM7<>"No","",IF(INDEX($B$1:$B$682,ROW()+EN$1,1)="","",IF(INDEX($B$1:$B$682,ROW()+EN$1,1)>=EO7,"Yes","No")))) ->  | EU7: =IF(NavHistory!$R7="Yes","",IF(ET7<>"No","",IF(INDEX($B$1:$B$682,ROW()+EU$1,1)="","",MAX(EN7,INDEX($B$1:$B$682,ROW()+EU$1-1,1))*1.06^(1/12)))) ->  | EV7: =IF(NavHistory!$R7="Yes","",IF(ET7<>"No","",IF(INDEX($B$1:$B$682,ROW()+EU$1,1)="","",1.06^(1/12)*EO7))) ->  | EW7: =IF(NavHistory!$R7="Yes","",IF(ET7<>"No","",IF(INDEX($B$1:$B$682,ROW()+EU$1,1)="","",EP7-EQ7))) ->  | EX7: =IF(NavHistory!$R7="Yes","",IF(ET7<>"No","",IF(INDEX($B$1:$B$682,ROW()+EU$1,1)="","",MAX(0,MIN((MIN(INDEX($B$1:$B$682,ROW()+EU$1,1),EV7)-EU7)*$A$2,EW7))))) ->  | EY7: =IF(NavHistory!$R7="Yes","",IF(ET7<>"No","",IF(INDEX($B$1:$B$682,ROW()+EU$1,1)="","",EX7/INDEX($B$1:$B$682,ROW()+EU$1,1)))) ->  | EZ7: =IF(NavHistory!$R7="Yes","",IF(ET7<>"No","",IF(INDEX($B$1:$B$682,ROW()+EU$1,1)="","",ES7-EY7))) ->  | FA7: =IF(NavHistory!$R7="Yes","",IF(ET7<>"No","",IF(INDEX($B$1:$B$682,ROW()+EU$1,1)="","",IF(INDEX($B$1:$B$682,ROW()+EU$1,1)>=EV7,"Yes","No")))) ->  | FB7: =IF(NavHistory!$R7="Yes","",IF(FA7<>"No","",IF(INDEX($B$1:$B$682,ROW()+FB$1,1)="","",MAX(EU7,INDEX($B$1:$B$682,ROW()+FB$1-1,1))*1.06^(1/12)))) ->  | FC7: =IF(NavHistory!$R7="Yes","",IF(FA7<>"No","",IF(INDEX($B$1:$B$682,ROW()+FB$1,1)="","",1.06^(1/12)*EV7))) ->  | FD7: =IF(NavHistory!$R7="Yes","",IF(FA7<>"No","",IF(INDEX($B$1:$B$682,ROW()+FB$1,1)="","",EW7-EX7))) ->  | FE7: =IF(NavHistory!$R7="Yes","",IF(FA7<>"No","",IF(INDEX($B$1:$B$682,ROW()+FB$1,1)="","",MAX(0,MIN((MIN(INDEX($B$1:$B$682,ROW()+FB$1,1),FC7)-FB7)*$A$2,FD7))))) ->  | FF7: =IF(NavHistory!$R7="Yes","",IF(FA7<>"No","",IF(INDEX($B$1:$B$682,ROW()+FB$1,1)="","",FE7/INDEX($B$1:$B$682,ROW()+FB$1,1)))) ->  | FG7: =IF(NavHistory!$R7="Yes","",IF(FA7<>"No","",IF(INDEX($B$1:$B$682,ROW()+FB$1,1)="","",EZ7-FF7))) ->  | FH7: =IF(NavHistory!$R7="Yes","",IF(FA7<>"No","",IF(INDEX($B$1:$B$682,ROW()+FB$1,1)="","",IF(INDEX($B$1:$B$682,ROW()+FB$1,1)>=FC7,"Yes","No")))) ->  | FI7: =IF(NavHistory!$R7="Yes","",IF(FH7<>"No","",IF(INDEX($B$1:$B$682,ROW()+FI$1,1)="","",MAX(FB7,INDEX($B$1:$B$682,ROW()+FI$1-1,1))*1.06^(1/12)))) ->  | FJ7: =IF(NavHistory!$R7="Yes","",IF(FH7<>"No","",IF(INDEX($B$1:$B$682,ROW()+FI$1,1)="","",1.06^(1/12)*FC7))) ->  | FK7: =IF(NavHistory!$R7="Yes","",IF(FH7<>"No","",IF(INDEX($B$1:$B$682,ROW()+FI$1,1)="","",FD7-FE7))) ->  | FL7: =IF(NavHistory!$R7="Yes","",IF(FH7<>"No","",IF(INDEX($B$1:$B$682,ROW()+FI$1,1)="","",MAX(0,MIN((MIN(INDEX($B$1:$B$682,ROW()+FI$1,1),FJ7)-FI7)*$A$2,FK7))))) ->  | FM7: =IF(NavHistory!$R7="Yes","",IF(FH7<>"No","",IF(INDEX($B$1:$B$682,ROW()+FI$1,1)="","",FL7/INDEX($B$1:$B$682,ROW()+FI$1,1)))) ->  | FN7: =IF(NavHistory!$R7="Yes","",IF(FH7<>"No","",IF(INDEX($B$1:$B$682,ROW()+FI$1,1)="","",FG7-FM7))) ->  | FO7: =IF(NavHistory!$R7="Yes","",IF(FH7<>"No","",IF(INDEX($B$1:$B$682,ROW()+FI$1,1)="","",IF(INDEX($B$1:$B$682,ROW()+FI$1,1)>=FJ7,"Yes","No")))) ->  | FP7: =IF(NavHistory!$R7="Yes","",IF(FO7<>"No","",IF(INDEX($B$1:$B$682,ROW()+FP$1,1)="","",MAX(FI7,INDEX($B$1:$B$682,ROW()+FP$1-1,1))*1.06^(1/12)))) ->  | FQ7: =IF(NavHistory!$R7="Yes","",IF(FO7<>"No","",IF(INDEX($B$1:$B$682,ROW()+FP$1,1)="","",1.06^(1/12)*FJ7))) ->  | FR7: =IF(NavHistory!$R7="Yes","",IF(FO7<>"No","",IF(INDEX($B$1:$B$682,ROW()+FP$1,1)="","",FK7-FL7))) ->  | FS7: =IF(NavHistory!$R7="Yes","",IF(FO7<>"No","",IF(INDEX($B$1:$B$682,ROW()+FP$1,1)="","",MAX(0,MIN((MIN(INDEX($B$1:$B$682,ROW()+FP$1,1),FQ7)-FP7)*$A$2,FR7))))) ->  | FT7: =IF(NavHistory!$R7="Yes","",IF(FO7<>"No","",IF(INDEX($B$1:$B$682,ROW()+FP$1,1)="","",FS7/INDEX($B$1:$B$682,ROW()+FP$1,1)))) ->  | FU7: =IF(NavHistory!$R7="Yes","",IF(FO7<>"No","",IF(INDEX($B$1:$B$682,ROW()+FP$1,1)="","",FN7-FT7))) ->  | FV7: =IF(NavHistory!$R7="Yes","",IF(FO7<>"No","",IF(INDEX($B$1:$B$682,ROW()+FP$1,1)="","",IF(INDEX($B$1:$B$682,ROW()+FP$1,1)>=FQ7,"Yes","No")))) ->  | FW7: =IF(NavHistory!$R7="Yes","",IF(FV7<>"No","",IF(INDEX($B$1:$B$682,ROW()+FW$1,1)="","",MAX(FP7,INDEX($B$1:$B$682,ROW()+FW$1-1,1))*1.06^(1/12)))) ->  | FX7: =IF(NavHistory!$R7="Yes","",IF(FV7<>"No","",IF(INDEX($B$1:$B$682,ROW()+FW$1,1)="","",1.06^(1/12)*FQ7))) ->  | FY7: =IF(NavHistory!$R7="Yes","",IF(FV7<>"No","",IF(INDEX($B$1:$B$682,ROW()+FW$1,1)="","",FR7-FS7))) ->  | FZ7: =IF(NavHistory!$R7="Yes","",IF(FV7<>"No","",IF(INDEX($B$1:$B$682,ROW()+FW$1,1)="","",MAX(0,MIN((MIN(INDEX($B$1:$B$682,ROW()+FW$1,1),FX7)-FW7)*$A$2,FY7))))) ->  | GA7: =IF(NavHistory!$R7="Yes","",IF(FV7<>"No","",IF(INDEX($B$1:$B$682,ROW()+FW$1,1)="","",FZ7/INDEX($B$1:$B$682,ROW()+FW$1,1)))) ->  | GB7: =IF(NavHistory!$R7="Yes","",IF(FV7<>"No","",IF(INDEX($B$1:$B$682,ROW()+FW$1,1)="","",FU7-GA7))) ->  | GC7: =IF(NavHistory!$R7="Yes","",IF(FV7<>"No","",IF(INDEX($B$1:$B$682,ROW()+FW$1,1)="","",IF(INDEX($B$1:$B$682,ROW()+FW$1,1)>=FX7,"Yes","No")))) ->  | GD7: =IF(NavHistory!$R7="Yes","",IF(GC7<>"No","",IF(INDEX($B$1:$B$682,ROW()+GD$1,1)="","",MAX(FW7,INDEX($B$1:$B$682,ROW()+GD$1-1,1))*1.06^(1/12)))) ->  | GE7: =IF(NavHistory!$R7="Yes","",IF(GC7<>"No","",IF(INDEX($B$1:$B$682,ROW()+GD$1,1)="","",1.06^(1/12)*FX7))) ->  | GF7: =IF(NavHistory!$R7="Yes","",IF(GC7<>"No","",IF(INDEX($B$1:$B$682,ROW()+GD$1,1)="","",FY7-FZ7))) ->  | GG7: =IF(NavHistory!$R7="Yes","",IF(GC7<>"No","",IF(INDEX($B$1:$B$682,ROW()+GD$1,1)="","",MAX(0,MIN((MIN(INDEX($B$1:$B$682,ROW()+GD$1,1),GE7)-GD7)*$A$2,GF7))))) ->  | GH7: =IF(NavHistory!$R7="Yes","",IF(GC7<>"No","",IF(INDEX($B$1:$B$682,ROW()+GD$1,1)="","",GG7/INDEX($B$1:$B$682,ROW()+GD$1,1)))) ->  | GI7: =IF(NavHistory!$R7="Yes","",IF(GC7<>"No","",IF(INDEX($B$1:$B$682,ROW()+GD$1,1)="","",GB7-GH7))) ->  | GJ7: =IF(NavHistory!$R7="Yes","",IF(GC7<>"No","",IF(INDEX($B$1:$B$682,ROW()+GD$1,1)="","",IF(INDEX($B$1:$B$682,ROW()+GD$1,1)>=GE7,"Yes","No")))) ->  | GK7: =IF(NavHistory!$R7="Yes","",IF(GJ7<>"No","",IF(INDEX($B$1:$B$682,ROW()+GK$1,1)="","",MAX(GD7,INDEX($B$1:$B$682,ROW()+GK$1-1,1))*1.06^(1/12)))) ->  | GL7: =IF(NavHistory!$R7="Yes","",IF(GJ7<>"No","",IF(INDEX($B$1:$B$682,ROW()+GK$1,1)="","",1.06^(1/12)*GE7))) ->  | GM7: =IF(NavHistory!$R7="Yes","",IF(GJ7<>"No","",IF(INDEX($B$1:$B$682,ROW()+GK$1,1)="","",GF7-GG7))) ->  | GN7: =IF(NavHistory!$R7="Yes","",IF(GJ7<>"No","",IF(INDEX($B$1:$B$682,ROW()+GK$1,1)="","",MAX(0,MIN((MIN(INDEX($B$1:$B$682,ROW()+GK$1,1),GL7)-GK7)*$A$2,GM7))))) ->  | GO7: =IF(NavHistory!$R7="Yes","",IF(GJ7<>"No","",IF(INDEX($B$1:$B$682,ROW()+GK$1,1)="","",GN7/INDEX($B$1:$B$682,ROW()+GK$1,1)))) ->  | GP7: =IF(NavHistory!$R7="Yes","",IF(GJ7<>"No","",IF(INDEX($B$1:$B$682,ROW()+GK$1,1)="","",GI7-GO7))) ->  | GQ7: =IF(NavHistory!$R7="Yes","",IF(GJ7<>"No","",IF(INDEX($B$1:$B$682,ROW()+GK$1,1)="","",IF(INDEX($B$1:$B$682,ROW()+GK$1,1)>=GL7,"Yes","No")))) ->  | GR7: =IF(NavHistory!$R7="Yes","",IF(GQ7<>"No","",IF(INDEX($B$1:$B$682,ROW()+GR$1,1)="","",MAX(GK7,INDEX($B$1:$B$682,ROW()+GR$1-1,1))*1.06^(1/12)))) ->  | GS7: =IF(NavHistory!$R7="Yes","",IF(GQ7<>"No","",IF(INDEX($B$1:$B$682,ROW()+GR$1,1)="","",1.06^(1/12)*GL7))) ->  | GT7: =IF(NavHistory!$R7="Yes","",IF(GQ7<>"No","",IF(INDEX($B$1:$B$682,ROW()+GR$1,1)="","",GM7-GN7))) ->  | GU7: =IF(NavHistory!$R7="Yes","",IF(GQ7<>"No","",IF(INDEX($B$1:$B$682,ROW()+GR$1,1)="","",MAX(0,MIN((MIN(INDEX($B$1:$B$682,ROW()+GR$1,1),GS7)-GR7)*$A$2,GT7))))) ->  | GV7: =IF(NavHistory!$R7="Yes","",IF(GQ7<>"No","",IF(INDEX($B$1:$B$682,ROW()+GR$1,1)="","",GU7/INDEX($B$1:$B$682,ROW()+GR$1,1)))) ->  | GW7: =IF(NavHistory!$R7="Yes","",IF(GQ7<>"No","",IF(INDEX($B$1:$B$682,ROW()+GR$1,1)="","",GP7-GV7))) ->  | GX7: =IF(NavHistory!$R7="Yes","",IF(GQ7<>"No","",IF(INDEX($B$1:$B$682,ROW()+GR$1,1)="","",IF(INDEX($B$1:$B$682,ROW()+GR$1,1)>=GS7,"Yes","No")))) ->  | GY7: =IF(NavHistory!$R7="Yes","",IF(GX7<>"No","",IF(INDEX($B$1:$B$682,ROW()+GY$1,1)="","",MAX(GR7,INDEX($B$1:$B$682,ROW()+GY$1-1,1))*1.06^(1/12)))) ->  | GZ7: =IF(NavHistory!$R7="Yes","",IF(GX7<>"No","",IF(INDEX($B$1:$B$682,ROW()+GY$1,1)="","",1.06^(1/12)*GS7))) ->  | HA7: =IF(NavHistory!$R7="Yes","",IF(GX7<>"No","",IF(INDEX($B$1:$B$682,ROW()+GY$1,1)="","",GT7-GU7))) ->  | HB7: =IF(NavHistory!$R7="Yes","",IF(GX7<>"No","",IF(INDEX($B$1:$B$682,ROW()+GY$1,1)="","",MAX(0,MIN((MIN(INDEX($B$1:$B$682,ROW()+GY$1,1),GZ7)-GY7)*$A$2,HA7))))) ->  | HC7: =IF(NavHistory!$R7="Yes","",IF(GX7<>"No","",IF(INDEX($B$1:$B$682,ROW()+GY$1,1)="","",HB7/INDEX($B$1:$B$682,ROW()+GY$1,1)))) ->  | HD7: =IF(NavHistory!$R7="Yes","",IF(GX7<>"No","",IF(INDEX($B$1:$B$682,ROW()+GY$1,1)="","",GW7-HC7))) ->  | HE7: =IF(NavHistory!$R7="Yes","",IF(GX7<>"No","",IF(INDEX($B$1:$B$682,ROW()+GY$1,1)="","",IF(INDEX($B$1:$B$682,ROW()+GY$1,1)>=GZ7,"Yes","No")))) ->  | HF7: =IF(NavHistory!$R7="Yes","",IF(HE7<>"No","",IF(INDEX($B$1:$B$682,ROW()+HF$1,1)="","",MAX(GY7,INDEX($B$1:$B$682,ROW()+HF$1-1,1))*1.06^(1/12)))) ->  | HG7: =IF(NavHistory!$R7="Yes","",IF(HE7<>"No","",IF(INDEX($B$1:$B$682,ROW()+HF$1,1)="","",1.06^(1/12)*GZ7))) ->  | HH7: =IF(NavHistory!$R7="Yes","",IF(HE7<>"No","",IF(INDEX($B$1:$B$682,ROW()+HF$1,1)="","",HA7-HB7))) ->  | HI7: =IF(NavHistory!$R7="Yes","",IF(HE7<>"No","",IF(INDEX($B$1:$B$682,ROW()+HF$1,1)="","",MAX(0,MIN((MIN(INDEX($B$1:$B$682,ROW()+HF$1,1),HG7)-HF7)*$A$2,HH7))))) ->  | HJ7: =IF(NavHistory!$R7="Yes","",IF(HE7<>"No","",IF(INDEX($B$1:$B$682,ROW()+HF$1,1)="","",HI7/INDEX($B$1:$B$682,ROW()+HF$1,1)))) ->  | HK7: =IF(NavHistory!$R7="Yes","",IF(HE7<>"No","",IF(INDEX($B$1:$B$682,ROW()+HF$1,1)="","",HD7-HJ7))) ->  | HL7: =IF(NavHistory!$R7="Yes","",IF(HE7<>"No","",IF(INDEX($B$1:$B$682,ROW()+HF$1,1)="","",IF(INDEX($B$1:$B$682,ROW()+HF$1,1)>=HG7,"Yes","No")))) ->  | HM7: =IF(NavHistory!$R7="Yes","",IF(HL7<>"No","",IF(INDEX($B$1:$B$682,ROW()+HM$1,1)="","",MAX(HF7,INDEX($B$1:$B$682,ROW()+HM$1-1,1))*1.06^(1/12)))) ->  | HN7: =IF(NavHistory!$R7="Yes","",IF(HL7<>"No","",IF(INDEX($B$1:$B$682,ROW()+HM$1,1)="","",1.06^(1/12)*HG7))) ->  | HO7: =IF(NavHistory!$R7="Yes","",IF(HL7<>"No","",IF(INDEX($B$1:$B$682,ROW()+HM$1,1)="","",HH7-HI7))) ->  | HP7: =IF(NavHistory!$R7="Yes","",IF(HL7<>"No","",IF(INDEX($B$1:$B$682,ROW()+HM$1,1)="","",MAX(0,MIN((MIN(INDEX($B$1:$B$682,ROW()+HM$1,1),HN7)-HM7)*$A$2,HO7))))) ->  | HQ7: =IF(NavHistory!$R7="Yes","",IF(HL7<>"No","",IF(INDEX($B$1:$B$682,ROW()+HM$1,1)="","",HP7/INDEX($B$1:$B$682,ROW()+HM$1,1)))) ->  | HR7: =IF(NavHistory!$R7="Yes","",IF(HL7<>"No","",IF(INDEX($B$1:$B$682,ROW()+HM$1,1)="","",HK7-HQ7))) ->  | HS7: =IF(NavHistory!$R7="Yes","",IF(HL7<>"No","",IF(INDEX($B$1:$B$682,ROW()+HM$1,1)="","",IF(INDEX($B$1:$B$682,ROW()+HM$1,1)>=HN7,"Yes","No")))) ->  | HT7: =IF(NavHistory!$R7="Yes","",IF(HS7<>"No","",IF(INDEX($B$1:$B$682,ROW()+HT$1,1)="","",MAX(HM7,INDEX($B$1:$B$682,ROW()+HT$1-1,1))*1.06^(1/12)))) ->  | HU7: =IF(NavHistory!$R7="Yes","",IF(HS7<>"No","",IF(INDEX($B$1:$B$682,ROW()+HT$1,1)="","",1.06^(1/12)*HN7))) ->  | HV7: =IF(NavHistory!$R7="Yes","",IF(HS7<>"No","",IF(INDEX($B$1:$B$682,ROW()+HT$1,1)="","",HO7-HP7))) ->  | HW7: =IF(NavHistory!$R7="Yes","",IF(HS7<>"No","",IF(INDEX($B$1:$B$682,ROW()+HT$1,1)="","",MAX(0,MIN((MIN(INDEX($B$1:$B$682,ROW()+HT$1,1),HU7)-HT7)*$A$2,HV7))))) ->  | HX7: =IF(NavHistory!$R7="Yes","",IF(HS7<>"No","",IF(INDEX($B$1:$B$682,ROW()+HT$1,1)="","",HW7/INDEX($B$1:$B$682,ROW()+HT$1,1)))) ->  | HY7: =IF(NavHistory!$R7="Yes","",IF(HS7<>"No","",IF(INDEX($B$1:$B$682,ROW()+HT$1,1)="","",HR7-HX7))) ->  | HZ7: =IF(NavHistory!$R7="Yes","",IF(HS7<>"No","",IF(INDEX($B$1:$B$682,ROW()+HT$1,1)="","",IF(INDEX($B$1:$B$682,ROW()+HT$1,1)>=HU7,"Yes","No")))) ->  | IA7: =IF(NavHistory!$R7="Yes","",IF(HZ7<>"No","",IF(INDEX($B$1:$B$682,ROW()+IA$1,1)="","",MAX(HT7,INDEX($B$1:$B$682,ROW()+IA$1-1,1))*1.06^(1/12)))) ->  | IB7: =IF(NavHistory!$R7="Yes","",IF(HZ7<>"No","",IF(INDEX($B$1:$B$682,ROW()+IA$1,1)="","",1.06^(1/12)*HU7))) ->  | IC7: =IF(NavHistory!$R7="Yes","",IF(HZ7<>"No","",IF(INDEX($B$1:$B$682,ROW()+IA$1,1)="","",HV7-HW7))) ->  | ID7: =IF(NavHistory!$R7="Yes","",IF(HZ7<>"No","",IF(INDEX($B$1:$B$682,ROW()+IA$1,1)="","",MAX(0,MIN((MIN(INDEX($B$1:$B$682,ROW()+IA$1,1),IB7)-IA7)*$A$2,IC7))))) ->  | IE7: =IF(NavHistory!$R7="Yes","",IF(HZ7<>"No","",IF(INDEX($B$1:$B$682,ROW()+IA$1,1)="","",ID7/INDEX($B$1:$B$682,ROW()+IA$1,1)))) ->  | IF7: =IF(NavHistory!$R7="Yes","",IF(HZ7<>"No","",IF(INDEX($B$1:$B$682,ROW()+IA$1,1)="","",HY7-IE7))) ->  | IG7: =IF(NavHistory!$R7="Yes","",IF(HZ7<>"No","",IF(INDEX($B$1:$B$682,ROW()+IA$1,1)="","",IF(INDEX($B$1:$B$682,ROW()+IA$1,1)>=IB7,"Yes","No")))) ->  | IH7: =IF(NavHistory!$R7="Yes","",IF(IG7<>"No","",IF(INDEX($B$1:$B$682,ROW()+IH$1,1)="","",MAX(IA7,INDEX($B$1:$B$682,ROW()+IH$1-1,1))*1.06^(1/12)))) ->  | II7: =IF(NavHistory!$R7="Yes","",IF(IG7<>"No","",IF(INDEX($B$1:$B$682,ROW()+IH$1,1)="","",1.06^(1/12)*IB7))) ->  | IJ7: =IF(NavHistory!$R7="Yes","",IF(IG7<>"No","",IF(INDEX($B$1:$B$682,ROW()+IH$1,1)="","",IC7-ID7))) ->  | IK7: =IF(NavHistory!$R7="Yes","",IF(IG7<>"No","",IF(INDEX($B$1:$B$682,ROW()+IH$1,1)="","",MAX(0,MIN((MIN(INDEX($B$1:$B$682,ROW()+IH$1,1),II7)-IH7)*$A$2,IJ7))))) ->  | IL7: =IF(NavHistory!$R7="Yes","",IF(IG7<>"No","",IF(INDEX($B$1:$B$682,ROW()+IH$1,1)="","",IK7/INDEX($B$1:$B$682,ROW()+IH$1,1)))) ->  | IM7: =IF(NavHistory!$R7="Yes","",IF(IG7<>"No","",IF(INDEX($B$1:$B$682,ROW()+IH$1,1)="","",IF7-IL7))) ->  | IN7: =IF(NavHistory!$R7="Yes","",IF(IG7<>"No","",IF(INDEX($B$1:$B$682,ROW()+IH$1,1)="","",IF(INDEX($B$1:$B$682,ROW()+IH$1,1)>=II7,"Yes","No")))) ->  | IO7: =IF(NavHistory!$R7="Yes","",IF(IN7<>"No","",IF(INDEX($B$1:$B$682,ROW()+IO$1,1)="","",MAX(IH7,INDEX($B$1:$B$682,ROW()+IO$1-1,1))*1.06^(1/12)))) ->  | IP7: =IF(NavHistory!$R7="Yes","",IF(IN7<>"No","",IF(INDEX($B$1:$B$682,ROW()+IO$1,1)="","",1.06^(1/12)*II7))) ->  | IQ7: =IF(NavHistory!$R7="Yes","",IF(IN7<>"No","",IF(INDEX($B$1:$B$682,ROW()+IO$1,1)="","",IJ7-IK7))) ->  | IR7: =IF(NavHistory!$R7="Yes","",IF(IN7<>"No","",IF(INDEX($B$1:$B$682,ROW()+IO$1,1)="","",MAX(0,MIN((MIN(INDEX($B$1:$B$682,ROW()+IO$1,1),IP7)-IO7)*$A$2,IQ7))))) ->  | IS7: =IF(NavHistory!$R7="Yes","",IF(IN7<>"No","",IF(INDEX($B$1:$B$682,ROW()+IO$1,1)="","",IR7/INDEX($B$1:$B$682,ROW()+IO$1,1)))) ->  | IT7: =IF(NavHistory!$R7="Yes","",IF(IN7<>"No","",IF(INDEX($B$1:$B$682,ROW()+IO$1,1)="","",IM7-IS7))) ->  | IU7: =IF(NavHistory!$R7="Yes","",IF(IN7<>"No","",IF(INDEX($B$1:$B$682,ROW()+IO$1,1)="","",IF(INDEX($B$1:$B$682,ROW()+IO$1,1)>=IP7,"Yes","No")))) -> 
